Workbook

Sheet Instructions
I2: Validation - Croisement des tables
B3: Instructions:
A4: 1 | B4: Dupliquer votre modèle de détermination avant de passer aux étapes suivantes. | I4: Ovoltotrec | J4: Rapport GTYF | K4: Rapport ECONO
A5: 2 | B5: Coller les OUTPUTs ci-dessous dans votre modèle de détermination. | I5: =VLOOKUP("Ovoltotrec",Output!$C:$AM,8,FALSE) -> 1242700 | J5: =VLOOKUP("OVOLTOTREC",GTYF!$C:$AQ,8,FALSE)=I5 -> TRUE | K5: =VLOOKUP("OVOLTOTREC",Econo!$C:$AQ,8,FALSE)=I5 -> TRUE
B6: Outputs pour Cahier_Détermination_2023
A7: 3 | B7: Ajouter l'agrégat FCIMPROD_SNAT au thème 5 de la section LANSCAPE de votre modèle et les courbes SNAT
B8: *AGGREGATE FCIMPROD_SNAT FCxxxx
A9: 4 | B9: Copier coller la syntaxe TARGET_GTYF_DET, TARGET_ECONO, TARGET AREA, TARGET DETAIL (voir plus bas) dans la section "Reports" du scénario de détermination.
B10: *TARGET GTYF_DET.dbf
B11: *TARGET_ECONO.dbf
B12: *TARGET AREA.dbf et *TARGET DETAIL.dbf
A13: 5 | B13: Insérer la syntaxe économique dans les sections Output, Lanscape, …
A14: 6 | B14: Compiler le scénario (Faire une fleche sur vos scénarios)
A15: 7 | B15: Ouvrir vos rapports Output, GTYF et ECONO directement de WS. Contrôle A --> Contrôle C
A16: 8 | B16: Copier/coller vos rapports Output, GTYF et ECONO dans les onglets appropriés. Attention de respecter le nombres de colonnes. Les onglets Output, GTYF et ECONO sont préformatés et contiennent des formules aux colonnes AM à AP.
A17: 9 | B17: Valider que la cellule I5 indique vrai lorsque vous aurez collé vos données dans les onglets "Output", "GTYF" et ÉCONO" pour s'assurer que les données proviennent de la même optimisation.
A18: 10 | B18: Utiliser le fichier DBF pour copier/coller votre calendrier de COS dans l'onglet Cedule_COS et y ajouter les COS absents (COS fermés ou toujours ouverts) et compléter leur calendrier par des "0" ou des "1".
A19: 11 | B19: Compléter toutes les cellules et onglets de couleur | D19: jaune
A20: 12 | B20: Notez que les tableaux 9, 10, 13, 15 et 17 ont des instructions particulières

Sheet Suivi_modif
B4: Modifications apportées au cahier:
B5: Version originale (v1) | C5: Version de départ
B6: Version modifiée 2 novembre 2021 (v2) | C6: Correction du calcul de % de sapin en P0 (cellule O9)
B7: Version modifiée 4 novembre 2021 (v3) | C7: Correction du % récolte volume sur pied destiné à l'aménagement (Tableau - CelluleV59)
B8: Version modifiée 4 novembre 2021 (v3) | C8: Correction des valideurs Vrai/Faux (Tableau - Cellule W101, W102, W103)
B9: Version modifiée 8 novembre 2021 (v4) | C9: Onglet "UTA" - Amélioration de la syntaxe des rechercheV
B10: Version modifiée 8 novembre 2021 (v4) | C10: Tableau 3 - ligne 50: changé la police de caractère pour du Arial
B11: Version modifiée 9 novembre 2021 (v5) | C11: Onglet "Target_ECONO": La syntaxe du rapport a été corrigée.
B12: Version modifiée 11 novembre 2021 (v6) | C12: Tableau 1 - Entente Crie - Correction pour considérer le code "EXEC" pour les UA avec Entente Crie
B13: Version modifiée 15 novembre 2021 (v7) | C13: Tableau 3 - ligne 49 en caractère gras - ligne 51 en caractère normal
B14: Version modifiée 19 novembre 2021 (v8) | C14: Tableau 9 - Dernière ligne du tableau effacée
B15: Version modifiée 22 novembre 2021 (v9) | C15: Tableau 4 - Première colonne (ha/an) changé la mise en forme pour avoir des 0 ha/an au lieu de "-" Voir figure --> Format: Nombre - Utiliser séparateur de millier - sans décimales
B16: Version modifiée 25 novembre 2021 (v10) | C16: Tableau 8, cellules G102 (Coupes partielles de peuplements résineux) et G103 (Coupes partielles de peuplements de feuillus tolérants et de pins) arrondies à la dizaine près et ajouté note en bas
B17: Version modifiée 10 décembre 2021 (v11) | C17: Tableau 10 - Correction de la mise en forme de l'écart en % des plantations
B18: Version modifiée 23 mars 2022 (v12) | C18: Figure 4 - Correction des % de chacune des colonnes de classe d'âge. Les % sont maintenant calculés sur le sous-total FCAGE (signalement 1873)

Sheet Tableaux
T1: Instructions : Compléter les cellules oranges | AB1: Avec l'utilisation de l'outil à Éric
B2: PROER1 : vous pouvez utiliser l'outil FoxPro pour compléter les cellules oranges : | T2: 1) Cellule V11 : Inscrire la superficie totale brute de la carte WS | AB2: 1417767.4
B3: l'outil intérroge la carte Woodstock et met les valeurs dans un fichier Excel | T3: 2) Cellule V15 : Inscrire la superficie WS des GS RP1 et RP2 (ça ne devrait être que du EXEX et EXTI) | AB3: 0
B4: interroge_carte_WS_pour cahier_analyse.FXP | T4: 3) Cellule V24 : Inscrire la superficie WS des GS RP3 à RP9 sur INC | AB4: 62062.9
B5: T:\Donnees\Courant\CPF_2023-2028\Comite_Vague_2\30_Phase1\32_Sce1\Outils | T5: 4) Cellule V25 : Inscrire la superficie WS des GS SNAT sur INC (qui ne sont pas des RP) | AB5: 50292.9
T6: 5) Cellules L20 à S21 : Inscrire la superficie de la carte WS pour chacune des cases oranges
B7: Catégories | I7: Superficie | Z7: Total | AA7: Sup_aff | AB7: 1951
I8: ha | J8: % | V8: Période | Z8: Total | AA8: Sup_empche | AB8: 2090.5
B9: Superficie totale du territoire d'analyse (EXHU exclu) | I9: =V11-V16 -> 1417767.4 | J9: =IFERROR(I9/I9,"-") -> 1 | S9: =LEFT(B$25,10) -> Tableau 1. | T9: Output | U9: Superficie | V9: 0 | Z9: Total | AA9: Sup_ecot | AB9: 8058.2
B10: Pertes (emprise chemin, écotone, improductif) | I10: =U20+V20+Y20 -> 10331.5 | J10: =I10/I9 -> 0.007287161491 | S10: =LEFT(B$25,10) -> Tableau 1. | T10: OSUPTOT | U10: WS | V10: =VLOOKUP(T10,Output!$C:$H,6,FALSE) -> 1407435.9 | Z10: INC | AA10: Sup_brivAB | AB10: 16142
B11: Territoire improductif (EXEX + EXTI) | I11: =SUM(V13:V14) -> 408236.1 | J11: =I11/I9 -> 0.2879429306 | S11: Tableau 1. | U11: Brute | V11: =AB2 -> 1417767.4 | X11: Sup_soustraite : | Y11: =T20+U20+V20+Y20+AA20 -> 45218.7 | Z11: INC | AA11: Sup_brivCD | AB11: 18046.4
B12: sans possibilité de remise en production | I12: =I11-I13 -> 408236.1 | J12: - | S12: Tableau 1. | U12: pertes | V12: =U20+V20+Y20 -> 10331.5 | X12: Sup nette : | Y12: =V11-Y11 -> 1372548.7 | Z12: Total | AA12: Sup_impro | AB12: 182.8
B13: avec possibilité de remise en production (RP1 et RP2) | I13: =V15 -> 0 | J13: - | S13: Tableau 1. | T13: OSUPEXEX | U13: EXEX | V13: =VLOOKUP(T13,Output!$C:$H,6,FALSE) -> 263438 | Z13: Total | AA13: Sup_pentf | AB13: 32936.2
S14: Tableau 1. | T14: OSUPEXTI | U14: EXTI | V14: =VLOOKUP(T14,Output!$C:$H,6,FALSE) -> 144798.1 | Z14: INC | AA14: Sup_pentf | AB14: 18566.9
B15: Territoire inclus dans l’UA mais exclu des activités d'aménagement (EXIN) | I15: =V17+X17+Y17 -> 450252.4 | J15: =I15/I9 -> 0.3175784688 | S15: Tableau 1. | U15: RP1/RP2 | V15: =AB3 -> 0 | X15: Superficie | Y15: sup_redu
B16: pentes abruptes et sommets (codes F et S) --> potentiellement récoltables | I16: =AA21 -> 18566.9 | J16: - | S16: Tableau 1. | T16: OSUPEXHU | U16: EXHU | V16: =VLOOKUP(T16,Output!$C:$H,6,FALSE) -> 0 | X16: EXEC | Y16: EXEC
B17: bandes riveraines (densité AB) --> potentiellement récoltables | I17: =W21 -> 16142 | J17: - | S17: Tableau 1. | T17: OSUPEXIN | U17: EXIN | V17: =VLOOKUP(T17,Output!$C:$H,6,FALSE) -> 450252.4 | X17: 0 | Y17: 0
B18: bandes riveraines (densité CD) --> potentiellement récoltables | I18: =X21 -> 18046.4 | J18: - | S18: Tableau 1. | T18: ↓ | U18: ↓ | V18: ↓ | Y18: ↓ | AA18: ↓
B19: autres | I19: =I15-I16-I17-I18 -> 397497.1 | S19: Tableau 1. | T19: Sup_aff | U19: Sup_empche | V19: Sup_ecot | W19: Sup_brivAB | X19: Sup_brivCD | Y19: Sup_impro | Z19: Sup_aut | AA19: Sup_pentf
B20: Territoire destiné à l'aménagement forestier (INC) | I20: =V22 -> 548947.4 | J20: =I20/I9 -> 0.3871914392 | S20: Tableau 1. | T20: =AB7 -> 1951 | U20: =AB8 -> 2090.5 | V20: =AB9 -> 8058.2 | Y20: =AB12 -> 182.8 | AA20: =AB13 -> 32936.2 | AB20: Total
B21: forestier exploitable | I21: =V22-I22-I23 -> 436591.6 | J21: - | S21: Tableau 1. | W21: =AB10 -> 16142 | X21: =AB11 -> 18046.4 | AA21: =AB14 -> 18566.9 | AB21: INC
B22: forestier inexploitable avec possibilité de remise en production (RP3 à RP15) | I22: =V24 -> 62062.9 | J22: - | S22: Tableau 1. | T22: OSUPINC | U22: INC | V22: =VLOOKUP(T22,Output!$C:$H,6,FALSE) -> 548947.4
B23: forestier inexploitable sans possibilité de remise en production (SNAT) | I23: =V25 -> 50292.9 | J23: - | S23: Tableau 1.
S24: Tableau 1. | U24: RP3 à RP9 | V24: =AB4 -> 62062.9
B25: Tableau 1. Répartition de la superficie de l'unité d'aménagement pas catégorie de territoire | S25: Tableau 1. | U25: SNAT | V25: =AB5 -> 50292.9
B26: Catégories | F26: Superficies
F27: Hectares | G27: %
B28: Superficie totale de l’unité d’aménagement | F28: =ROUND(I9,-1) -> 1417770 | G28: =F28/F28 -> 1
B29: Retraits de superficie
B30: Territoire non forestier | F30: =ROUND(I10+I11,-1) -> 418570 | G30: =F30/F28 -> 0.2952312434
B31: Territoire forestier peu productif (30 à 50 m³/ha) | F31: =ROUND(I22+I23,-1) -> 112360 | G31: =F31/F28 -> 0.07925121846
B32: Territoire forestier exclu de l’aménagement | F32: =ROUND(F28-F30-F31-F33,-1) -> 450250 | G32: =F32/F28 -> 0.3175761936 | N32: À compléter UA : | O32: UA:
B33: Superficie destinée à l’aménagement forestier | F33: =ROUND(I21,-1) -> 436590 | G33: =F33/F28 -> 0.3079413445 | O33: 09352 | T33: Légende | U33: Output | V33: P2@P6
S34: =LEFT(B$46,10) -> Tableau 3. | T34: Sepm | U34: OVOLGSEPMREC | V34: =IFERROR(VLOOKUP($U34,Output!$C:$AM,37,FALSE)/5,0) -> 234665.344
S35: Tableau 3.
S36: Tableau 3. | T36: Tho | U36: OVOLTHOREC | V36: =IFERROR(VLOOKUP($U36,Output!$C:$AM,37,FALSE)/5,0) -> 11.1732
S37: Tableau 3. | T37: Pru | U37: OVOLPRUREC | V37: =IFERROR(VLOOKUP($U37,Output!$C:$AM,37,FALSE)/5,0) -> 0
S38: Tableau 3. | T38: Pins | U38: OVOLGPINSREC | V38: =IFERROR(VLOOKUP($U38,Output!$C:$AM,37,FALSE)/5,0) -> 3.484
S39: Tableau 3. | T39: Peu | U39: OVOLGPEUREC | V39: =IFERROR(VLOOKUP($U39,Output!$C:$AM,37,FALSE)/5,0) -> 1737.7248
S40: Tableau 3. | T40: Bop | U40: OVOLGBPREC | V40: =IFERROR(VLOOKUP($U40,Output!$C:$AM,37,FALSE)/5,0) -> 11996.8536
S41: Tableau 3. | T41: Boj | U41: OVOLBOJREC | V41: =IFERROR(VLOOKUP($U41,Output!$C:$AM,37,FALSE)/5,0) -> 5.1908
S42: Tableau 3. | T42: Ers | U42: OVOLERSREC | V42: =IFERROR(VLOOKUP($U42,Output!$C:$AM,37,FALSE)/5,0) -> 0
S43: Tableau 3. | T43: Err | U43: OVOLGEROREC | V43: =IFERROR(VLOOKUP($U43,Output!$C:$AM,37,FALSE)/5,0) -> 117.2248
S44: Tableau 3. | T44: Autre .F. (Auf) | V44: =V47-V42-V41 -> 3.0064
S45: Tableau 3. | T45: résineux | U45: OVOLGRREC | V45: =IFERROR(VLOOKUP($U45,Output!$C:$AM,37,FALSE)/5,0) -> 234680
B46: Tableau 3. Possibilités forestières par essence ou par groupe d’essences et écart avec la période 2018-2023 | S46: Tableau 3. | T46: intolérant | U46: OVOLGFIREC | V46: =IFERROR(VLOOKUP($U46,Output!$C:$AM,37,FALSE)/5,0) -> 13851.8028
B47: Périodes | C47: ="Possibilités forestières (m"&CHAR(179)&" bruts/an)" -> Possibilités forestières (m³ bruts/an) | S47: Tableau 3. | T47: Tolérant | U47: OVOLGFTREC | V47: =IFERROR(VLOOKUP($U47,Output!$C:$AM,37,FALSE)/5,0) -> 8.1972
C48: SEPM | D48: Thuya | E48: Pruche | F48: Pins blanc et rouge | G48: Peupliers | H48: Bouleau à papier | I48: Bouleau jaune | J48: Érables à sucre et rouge | K48: Autres feuillus durs | L48: Total | N48: Possibilité forestière unitaire (PAC / Sup destinée à l'aménagement) | S48: Tableau 3. | T48: Total récoltés | U48: OVOLTOTREC | V48: =IFERROR(VLOOKUP($U48,Output!$C:$AM,37,FALSE)/5,0) -> 248540
B49: 2023-2028 | C49: =ROUND(V$34,-2) -> 234700 | D49: =ROUND(V$36,-2) -> 0 | E49: =ROUND(V$37,-2) -> 0 | F49: =ROUND(V$38,-2) -> 0 | G49: =ROUND(V$39,-2) -> 1700 | H49: =ROUND(V$40,-2) -> 12000 | I49: =ROUND(V$41,-2) -> 0 | J49: =ROUND(V$50,-2) -> 100 | K49: =ROUND(V$44,-2) -> 0 | L49: =SUM(C49:K49) -> 248500 | N49: =V57 -> 0.5692755217 | S49: Tableau 3. | T49: FN sur pied | U49: OVOLGFNREC | V49: =IFERROR(VLOOKUP($U49,Output!$C:$AM,37,FALSE)/5,0) -> 3.0064
C50: =C49/$L$49 -> 0.9444668008 | D50: 0 | E50: 0 | F50: 0 | G50: 0.006841046278 | H50: 0.04828973843 | I50: 0 | J50: 0.0004024144869 | K50: 0 | L50: =SUM(C50:K50) -> 1 | S50: Tableau 3. | T50: ER | V50: =V42+V43 -> 117.2248
B51: 2018-2023 | C51: =VLOOKUP($O$33,DataLocal!$A:$W,13,FALSE) -> 316500 | D51: =VLOOKUP($O$33,DataLocal!$A:$W,14,FALSE) -> 0 | E51: =VLOOKUP($O$33,DataLocal!$A:$W,15,FALSE) -> 0 | F51: =VLOOKUP($O$33,DataLocal!$A:$W,16,FALSE) -> 0 | G51: =VLOOKUP($O$33,DataLocal!$A:$W,17,FALSE) -> 3500 | H51: =VLOOKUP($O$33,DataLocal!$A:$W,18,FALSE) -> 23700 | I51: =VLOOKUP($O$33,DataLocal!$A:$W,19,FALSE) -> 0 | J51: =VLOOKUP($O$33,DataLocal!$A:$W,20,FALSE) -> 0 | K51: =VLOOKUP($O$33,DataLocal!$A:$W,21,FALSE) -> 0 | L51: =VLOOKUP($O$33,DataLocal!$A:$W,23,FALSE) -> 343700 | N51: % du volume sur pied initial | S51: Tableau 3. | U51: OVOLSABREC | V51: =IFERROR(VLOOKUP($U51,Output!$C:$AM,37,FALSE)/5,0) -> 67892.2136
B52: Écart | C52: =IFERROR((C49/C$51)-1,0) -> -0.2584518167 | D52: 0 | E52: 0 | F52: 0 | G52: -0.5142857143 | H52: -0.4936708861 | I52: 0 | J52: 0 | K52: 0 | L52: -0.2769857434 | N52: =V59 -> 0.006902623408 | S52: Tableau 3. | U52: OVOLGEPXREC | V52: =IFERROR(VLOOKUP($U52,Output!$C:$AM,37,FALSE)/5,0) -> 165826.8224
B53: ="Répartition de la composante SEPM des possibilités forestières 2023-2028 : sapin ("&IFERROR(ROUND(V51/V34*100,0),0)&"%), épinettes ("&IFERROR(ROUND(V52/V34*100,0),0)&"%), pin gris ("&IFERROR(ROUND(V53/V34*100,0),0)&"%) et mélèzes ("&IFERROR(ROUND(V54/V34*100,0),0)&"%)." -> Répartition de la composante SEPM des possibilités forestières 2023-2028 : sapin (29%), épinettes (71%), pin gris (0%) et mélèzes (0%). | S53: Tableau 3. | U53: OVOLGPGREC | V53: =IFERROR(VLOOKUP($U53,Output!$C:$AM,37,FALSE)/5,0) -> 593.6136
B54: ="Répartition de la composante Érables à sucre et rouge des possibilités forestières 2023-2028 : érable à sucre("&IFERROR(ROUND(V42/(V42+V43)*100,0),0)&"%) et érable rouge ("&IFERROR(ROUND(V43/(V42+V43)*100,0),0)&"%)." -> Répartition de la composante Érables à sucre et rouge des possibilités forestières 2023-2028 : érable à sucre(0%) et érable rouge (100%). | S54: Tableau 3. | U54: OVOLGMLREC | V54: =IFERROR(VLOOKUP($U54,Output!$C:$AM,37,FALSE)/5,0) -> 352.694
B55: Copier/Coller le tableau ci-dessus avec les lignes 53 et 54 | S55: Tableau 3. | U55: OSUPINC | V55: =IFERROR(VLOOKUP($U55,Output!$C:$AM,6,FALSE),0) -> 548947.4
S56: Tableau 3. | U56: OVOLTOTPIEDINC | V56: =IFERROR(VLOOKUP($U56,Output!$C:$AM,7,FALSE),0) -> 37779951.5
S57: Tableau 3. | U57: Possibilité forestière unitaire | V57: =IFERROR(V48/F33,0) -> 0.5692755217
S58: Tableau 3. | U58: % récolte volume sur pied
U59: % récolte volume sur pied destiné à l'aménagement | V59: =V48/Figures!V19 -> 0.006902623408
B61: Tableau 4. Répartition des superficies récoltées et des possibilités forestières par grand type de forêt
B62: Grands types de forêt | D62: Superficie récoltée* | H62: Possibilités forestières* | S62: =LEFT(B$61,10) -> Tableau 4. | V62: Output total non arrondi | W62: Écart entre la somme du tableau et le output total
D63: Coupes totales | F63: Coupes partielles | H63: Résineux | J63: Feuillus tolérants | L63: Feuillus intolérants | N63: Total | S63: Tableau 4. | T63: Total | Z63: P2 à P6
D64: ha/an | E64: % | F64: ha/an | G64: % | H64: m³ bruts/an | I64: % | J64: ="m"&CHAR(179)&" bruts/an" -> m³ bruts/an | K64: % | L64: ="m"&CHAR(179)&" bruts/an" -> m³ bruts/an | M64: % | N64: ="m"&CHAR(179)&" bruts/an" -> m³ bruts/an | O64: % | S64: Tableau 4. | T64: ha/an | U64: % | Y64: Famille de courbe | Z64: OSUPINC | AA64: OSUPREALREGAFIN | AB64: OSUPREALREGAPAR | AC64: OSUPREALREGAPRE | AD64: OVOLGRREC | AE64: OVOLGAURREC | AF64: OVOLGFIREC | AG64: OVOLGFTREC | AH64: OVOLTOTREC
B65: Bétulaies blanches | D65: =ROUND(AA65/5,-1) -> 20 | E65: =IFERROR(D65/D$79,0) -> 0.01 | F65: =ROUND(AB65/5,-1) -> 0 | G65: =IFERROR(F65/F$79,0) -> 0 | H65: =ROUND(AD65/5,-2) -> 300 | I65: =IFERROR(H65/H$79,0) -> 0.001278227524 | J65: =ROUND(AG65/5,-2) -> 0 | K65: =IFERROR(J65/J$79,0) -> 0 | L65: =ROUND(AF65/5,-2) -> 2300 | M65: =L65/L$79 -> 0.1642857143 | N65: =H65+J65+L65 -> 2600 | O65: =N65/$N$79 -> 0.01045436269 | S65: Tableau 4. | T65: =D65+F65 -> 20 | U65: =IFERROR(T65/T$79,0) -> 0.008620689655 | V65: =(AA65+AB65)/5 -> 22.128 | W65: =T65-V65 -> -2.128 | Y65: (FCTYF_BOP) | Z65: =VLOOKUP(Z$64&$Y65,GTYF!$C:$AP,6,FALSE) -> 2424.5 | AA65: =VLOOKUP(AA$64&$Y65,GTYF!$C:$AP,37,FALSE) -> 110.64 | AB65: =VLOOKUP(AB$64&$Y65,GTYF!$C:$AP,37,FALSE) -> 0 | AC65: =VLOOKUP(AC$64&$Y65,GTYF!$C:$AP,37,FALSE) -> 110.64 | AD65: =VLOOKUP(AD$64&$Y65,GTYF!$C:$AP,37,FALSE) -> 1285.044 | AE65: =VLOOKUP(AE$64&$Y65,GTYF!$C:$AP,37,FALSE) -> 0 | AF65: =VLOOKUP(AF$64&$Y65,GTYF!$C:$AP,37,FALSE) -> 11311.654 | AG65: =VLOOKUP(AG$64&$Y65,GTYF!$C:$AP,37,FALSE) -> 0 | AH65: =VLOOKUP(AH$64&$Y65,GTYF!$C:$AP,37,FALSE) -> 12596.7
B66: Bétulaies blanches à résineux | D66: 60 | E66: =IFERROR(D66/D$79,0) -> 0.03 | F66: 0 | G66: =IFERROR(F66/F$79,0) -> 0 | H66: =ROUND(AD66/5,-2) -> 2500 | I66: =IFERROR(H66/H$79,0) -> 0.01065189604 | J66: =ROUND(AG66/5,-2) -> 0 | K66: 0 | L66: =ROUND(AF66/5,-2) -> 3900 | M66: =L66/L$79 -> 0.2785714286 | N66: =H66+J66+L66 -> 6400 | O66: 0.02573381584 | S66: Tableau 4. | T66: 60 | U66: =IFERROR(T66/T$79,0) -> 0.02586206897 | V66: =(AA66+AB66)/5 -> 62.112 | W66: -2.112 | Y66: (FCTYF_BOPR) | Z66: =VLOOKUP(Z$64&$Y66,GTYF!$C:$AP,6,FALSE) -> 4253.7 | AA66: =VLOOKUP(AA$64&$Y66,GTYF!$C:$AP,37,FALSE) -> 310.56 | AB66: =VLOOKUP(AB$64&$Y66,GTYF!$C:$AP,37,FALSE) -> 0 | AC66: =VLOOKUP(AC$64&$Y66,GTYF!$C:$AP,37,FALSE) -> 310.56 | AD66: =VLOOKUP(AD$64&$Y66,GTYF!$C:$AP,37,FALSE) -> 12472.832 | AE66: =VLOOKUP(AE$64&$Y66,GTYF!$C:$AP,37,FALSE) -> 0 | AF66: =VLOOKUP(AF$64&$Y66,GTYF!$C:$AP,37,FALSE) -> 19350.89 | AG66: =VLOOKUP(AG$64&$Y66,GTYF!$C:$AP,37,FALSE) -> 0 | AH66: =VLOOKUP(AH$64&$Y66,GTYF!$C:$AP,37,FALSE) -> 31823.722
B67: Cédrières | D67: 0 | E67: 0 | F67: 0 | G67: 0 | H67: =ROUND(AD67/5,-2) -> 0 | I67: 0 | J67: 0 | K67: 0 | L67: 0 | M67: 0 | N67: 0 | O67: 0 | S67: Tableau 4. | T67: 0 | U67: 0 | V67: =(AA67+AB67)/5 -> 0 | W67: 0 | Y67: (FCTYF_THO) | Z67: =VLOOKUP(Z$64&$Y67,GTYF!$C:$AP,6,FALSE) -> 0 | AA67: =VLOOKUP(AA$64&$Y67,GTYF!$C:$AP,37,FALSE) -> 0 | AB67: =VLOOKUP(AB$64&$Y67,GTYF!$C:$AP,37,FALSE) -> 0 | AC67: =VLOOKUP(AC$64&$Y67,GTYF!$C:$AP,37,FALSE) -> 0 | AD67: =VLOOKUP(AD$64&$Y67,GTYF!$C:$AP,37,FALSE) -> 0 | AE67: =VLOOKUP(AE$64&$Y67,GTYF!$C:$AP,37,FALSE) -> 0 | AF67: =VLOOKUP(AF$64&$Y67,GTYF!$C:$AP,37,FALSE) -> 0 | AG67: =VLOOKUP(AG$64&$Y67,GTYF!$C:$AP,37,FALSE) -> 0 | AH67: =VLOOKUP(AH$64&$Y67,GTYF!$C:$AP,37,FALSE) -> 0
B68: Érablières rouges | D68: 0 | E68: 0 | F68: 0 | G68: 0 | H68: 0 | I68: 0 | J68: 0 | K68: 0 | L68: 0 | M68: 0 | N68: 0 | O68: 0 | S68: Tableau 4. | T68: 0 | U68: 0 | V68: =(AA68+AB68)/5 -> 0 | W68: 0 | Y68: (FCTYF_ERO) | Z68: =VLOOKUP(Z$64&$Y68,GTYF!$C:$AP,6,FALSE) -> 0 | AA68: =VLOOKUP(AA$64&$Y68,GTYF!$C:$AP,37,FALSE) -> 0 | AB68: =VLOOKUP(AB$64&$Y68,GTYF!$C:$AP,37,FALSE) -> 0 | AC68: =VLOOKUP(AC$64&$Y68,GTYF!$C:$AP,37,FALSE) -> 0 | AD68: =VLOOKUP(AD$64&$Y68,GTYF!$C:$AP,37,FALSE) -> 0 | AE68: =VLOOKUP(AE$64&$Y68,GTYF!$C:$AP,37,FALSE) -> 0 | AF68: =VLOOKUP(AF$64&$Y68,GTYF!$C:$AP,37,FALSE) -> 0 | AG68: =VLOOKUP(AG$64&$Y68,GTYF!$C:$AP,37,FALSE) -> 0 | AH68: =VLOOKUP(AH$64&$Y68,GTYF!$C:$AP,37,FALSE) -> 0
B69: Feuillus tolérants | D69: 0 | E69: 0 | F69: 0 | G69: 0 | H69: 0 | I69: 0 | J69: 0 | K69: 0 | L69: 0 | M69: 0 | N69: 0 | O69: 0 | S69: Tableau 4. | T69: 0 | U69: 0 | V69: 0 | W69: 0 | Y69: (FCTYF_FT) | Z69: =VLOOKUP(Z$64&$Y69,GTYF!$C:$AP,6,FALSE) -> 0 | AA69: =VLOOKUP(AA$64&$Y69,GTYF!$C:$AP,37,FALSE) -> 0 | AB69: =VLOOKUP(AB$64&$Y69,GTYF!$C:$AP,37,FALSE) -> 0 | AC69: =VLOOKUP(AC$64&$Y69,GTYF!$C:$AP,37,FALSE) -> 0 | AD69: =VLOOKUP(AD$64&$Y69,GTYF!$C:$AP,37,FALSE) -> 0 | AE69: =VLOOKUP(AE$64&$Y69,GTYF!$C:$AP,37,FALSE) -> 0 | AF69: =VLOOKUP(AF$64&$Y69,GTYF!$C:$AP,37,FALSE) -> 0 | AG69: =VLOOKUP(AG$64&$Y69,GTYF!$C:$AP,37,FALSE) -> 0 | AH69: =VLOOKUP(AH$64&$Y69,GTYF!$C:$AP,37,FALSE) -> 0
B70: Feuillus tolérants à résineux | D70: 0 | E70: 0 | F70: 0 | G70: 0 | H70: 0 | I70: 0 | J70: 0 | K70: 0 | L70: 0 | M70: 0 | N70: 0 | O70: 0 | S70: Tableau 4. | T70: 0 | U70: 0 | V70: 0 | W70: 0 | Y70: (FCTYF_FTR) | Z70: =VLOOKUP(Z$64&$Y70,GTYF!$C:$AP,6,FALSE) -> 0 | AA70: =VLOOKUP(AA$64&$Y70,GTYF!$C:$AP,37,FALSE) -> 0 | AB70: =VLOOKUP(AB$64&$Y70,GTYF!$C:$AP,37,FALSE) -> 0 | AC70: =VLOOKUP(AC$64&$Y70,GTYF!$C:$AP,37,FALSE) -> 0 | AD70: =VLOOKUP(AD$64&$Y70,GTYF!$C:$AP,37,FALSE) -> 0 | AE70: =VLOOKUP(AE$64&$Y70,GTYF!$C:$AP,37,FALSE) -> 0 | AF70: =VLOOKUP(AF$64&$Y70,GTYF!$C:$AP,37,FALSE) -> 0 | AG70: =VLOOKUP(AG$64&$Y70,GTYF!$C:$AP,37,FALSE) -> 0 | AH70: =VLOOKUP(AH$64&$Y70,GTYF!$C:$AP,37,FALSE) -> 0
B71: Pessières | D71: =ROUND(AA71/5,-1) -> 1300 | E71: 0.65 | F71: 290 | G71: 0.90625 | H71: 161600 | I71: 0.6885385599 | J71: 0 | K71: 0 | L71: 2100 | M71: 0.15 | N71: 163700 | O71: 0.6582227583 | S71: Tableau 4. | T71: 1590 | U71: 0.6853448276 | V71: 1589.1116 | W71: =T71-V71 -> 0.8884 | Y71: (FCTYF_EPX) | Z71: =VLOOKUP(Z$64&$Y71,GTYF!$C:$AP,6,FALSE) -> 333910.8 | AA71: =VLOOKUP(AA$64&$Y71,GTYF!$C:$AP,37,FALSE) -> 6480.312 | AB71: =VLOOKUP(AB$64&$Y71,GTYF!$C:$AP,37,FALSE) -> 1465.246 | AC71: =VLOOKUP(AC$64&$Y71,GTYF!$C:$AP,37,FALSE) -> 7945.556 | AD71: =VLOOKUP(AD$64&$Y71,GTYF!$C:$AP,37,FALSE) -> 807915.314 | AE71: =VLOOKUP(AE$64&$Y71,GTYF!$C:$AP,37,FALSE) -> 0 | AF71: =VLOOKUP(AF$64&$Y71,GTYF!$C:$AP,37,FALSE) -> 10561.936 | AG71: =VLOOKUP(AG$64&$Y71,GTYF!$C:$AP,37,FALSE) -> 0 | AH71: =VLOOKUP(AH$64&$Y71,GTYF!$C:$AP,37,FALSE) -> 818477.248
B72: Peupleraies | D72: 0 | E72: 0 | F72: 0 | G72: 0 | H72: 0 | I72: 0 | J72: 0 | K72: 0 | L72: 400 | M72: 0.02857142857 | N72: 400 | O72: 0.00160836349 | S72: Tableau 4. | T72: 0 | U72: 0 | V72: 2.9792 | W72: -2.9792 | Y72: (FCTYF_PEU) | Z72: =VLOOKUP(Z$64&$Y72,GTYF!$C:$AP,6,FALSE) -> 862.1 | AA72: =VLOOKUP(AA$64&$Y72,GTYF!$C:$AP,37,FALSE) -> 14.896 | AB72: =VLOOKUP(AB$64&$Y72,GTYF!$C:$AP,37,FALSE) -> 0 | AC72: =VLOOKUP(AC$64&$Y72,GTYF!$C:$AP,37,FALSE) -> 14.896 | AD72: =VLOOKUP(AD$64&$Y72,GTYF!$C:$AP,37,FALSE) -> 170.166 | AE72: =VLOOKUP(AE$64&$Y72,GTYF!$C:$AP,37,FALSE) -> 1.972 | AF72: =VLOOKUP(AF$64&$Y72,GTYF!$C:$AP,37,FALSE) -> 1864.784 | AG72: =VLOOKUP(AG$64&$Y72,GTYF!$C:$AP,37,FALSE) -> 5.34 | AH72: =VLOOKUP(AH$64&$Y72,GTYF!$C:$AP,37,FALSE) -> 2040.29
B73: Peupleraies à résineux | D73: 0 | E73: 0 | F73: 0 | G73: 0 | H73: 0 | I73: 0 | J73: 0 | K73: 0 | L73: 0 | M73: 0 | N73: 0 | O73: 0 | S73: Tableau 4. | T73: 0 | U73: 0 | V73: 0 | W73: 0 | Y73: (FCTYF_PEUR) | Z73: =VLOOKUP(Z$64&$Y73,GTYF!$C:$AP,6,FALSE) -> 0 | AA73: =VLOOKUP(AA$64&$Y73,GTYF!$C:$AP,37,FALSE) -> 0 | AB73: =VLOOKUP(AB$64&$Y73,GTYF!$C:$AP,37,FALSE) -> 0 | AC73: =VLOOKUP(AC$64&$Y73,GTYF!$C:$AP,37,FALSE) -> 0 | AD73: =VLOOKUP(AD$64&$Y73,GTYF!$C:$AP,37,FALSE) -> 0 | AE73: =VLOOKUP(AE$64&$Y73,GTYF!$C:$AP,37,FALSE) -> 0 | AF73: =VLOOKUP(AF$64&$Y73,GTYF!$C:$AP,37,FALSE) -> 0 | AG73: =VLOOKUP(AG$64&$Y73,GTYF!$C:$AP,37,FALSE) -> 0 | AH73: =VLOOKUP(AH$64&$Y73,GTYF!$C:$AP,37,FALSE) -> 0
B74: Pinèdes blanches | D74: 0 | E74: 0 | F74: 0 | G74: 0 | H74: 0 | I74: 0 | J74: 0 | K74: 0 | L74: 0 | M74: 0 | N74: 0 | O74: 0 | S74: Tableau 4. | T74: 0 | U74: 0 | V74: 0 | W74: 0 | Y74: (FCTYF_PIN) | Z74: =VLOOKUP(Z$64&$Y74,GTYF!$C:$AP,6,FALSE) -> 0 | AA74: =VLOOKUP(AA$64&$Y74,GTYF!$C:$AP,37,FALSE) -> 0 | AB74: =VLOOKUP(AB$64&$Y74,GTYF!$C:$AP,37,FALSE) -> 0 | AC74: =VLOOKUP(AC$64&$Y74,GTYF!$C:$AP,37,FALSE) -> 0 | AD74: =VLOOKUP(AD$64&$Y74,GTYF!$C:$AP,37,FALSE) -> 0 | AE74: =VLOOKUP(AE$64&$Y74,GTYF!$C:$AP,37,FALSE) -> 0 | AF74: =VLOOKUP(AF$64&$Y74,GTYF!$C:$AP,37,FALSE) -> 0 | AG74: =VLOOKUP(AG$64&$Y74,GTYF!$C:$AP,37,FALSE) -> 0 | AH74: =VLOOKUP(AH$64&$Y74,GTYF!$C:$AP,37,FALSE) -> 0
B75: Pinèdes grises | D75: 0 | E75: 0 | F75: 0 | G75: 0 | H75: 0 | I75: 0 | J75: 0 | K75: 0 | L75: 0 | M75: 0 | N75: 0 | O75: 0 | S75: Tableau 4. | T75: 0 | U75: 0 | V75: 0 | W75: 0 | Y75: (FCTYF_PIG) | Z75: =VLOOKUP(Z$64&$Y75,GTYF!$C:$AP,6,FALSE) -> 22935.4 | AA75: =VLOOKUP(AA$64&$Y75,GTYF!$C:$AP,37,FALSE) -> 0 | AB75: =VLOOKUP(AB$64&$Y75,GTYF!$C:$AP,37,FALSE) -> 0 | AC75: =VLOOKUP(AC$64&$Y75,GTYF!$C:$AP,37,FALSE) -> 0 | AD75: =VLOOKUP(AD$64&$Y75,GTYF!$C:$AP,37,FALSE) -> 0 | AE75: =VLOOKUP(AE$64&$Y75,GTYF!$C:$AP,37,FALSE) -> 0 | AF75: =VLOOKUP(AF$64&$Y75,GTYF!$C:$AP,37,FALSE) -> 0 | AG75: =VLOOKUP(AG$64&$Y75,GTYF!$C:$AP,37,FALSE) -> 0 | AH75: =VLOOKUP(AH$64&$Y75,GTYF!$C:$AP,37,FALSE) -> 0
B76: Prucheraies | D76: 0 | E76: 0 | F76: 0 | G76: 0 | H76: 0 | I76: 0 | J76: 0 | K76: 0 | L76: 0 | M76: 0 | N76: 0 | O76: 0 | S76: Tableau 4. | T76: 0 | U76: 0 | V76: 0 | W76: 0 | Y76: (FCTYF_PRU) | Z76: =VLOOKUP(Z$64&$Y76,GTYF!$C:$AP,6,FALSE) -> 0 | AA76: =VLOOKUP(AA$64&$Y76,GTYF!$C:$AP,37,FALSE) -> 0 | AB76: =VLOOKUP(AB$64&$Y76,GTYF!$C:$AP,37,FALSE) -> 0 | AC76: =VLOOKUP(AC$64&$Y76,GTYF!$C:$AP,37,FALSE) -> 0 | AD76: =VLOOKUP(AD$64&$Y76,GTYF!$C:$AP,37,FALSE) -> 0 | AE76: =VLOOKUP(AE$64&$Y76,GTYF!$C:$AP,37,FALSE) -> 0 | AF76: =VLOOKUP(AF$64&$Y76,GTYF!$C:$AP,37,FALSE) -> 0 | AG76: =VLOOKUP(AG$64&$Y76,GTYF!$C:$AP,37,FALSE) -> 0 | AH76: =VLOOKUP(AH$64&$Y76,GTYF!$C:$AP,37,FALSE) -> 0
B77: Résineux à feuillus | D77: 60 | E77: 0.03 | F77: 30 | G77: 0.09375 | H77: 5900 | I77: 0.02513847465 | J77: 0 | K77: 0 | L77: 2300 | M77: 0.1642857143 | N77: 8200 | O77: 0.03297145155 | S77: Tableau 4. | T77: 90 | U77: 0.03879310345 | V77: 91.756 | W77: -1.756 | Y77: (FCTYF_RF) | Z77: =VLOOKUP(Z$64&$Y77,GTYF!$C:$AP,6,FALSE) -> 6623.6 | AA77: =VLOOKUP(AA$64&$Y77,GTYF!$C:$AP,37,FALSE) -> 294.026 | AB77: =VLOOKUP(AB$64&$Y77,GTYF!$C:$AP,37,FALSE) -> 164.754 | AC77: =VLOOKUP(AC$64&$Y77,GTYF!$C:$AP,37,FALSE) -> 458.78 | AD77: =VLOOKUP(AD$64&$Y77,GTYF!$C:$AP,37,FALSE) -> 29488.918 | AE77: =VLOOKUP(AE$64&$Y77,GTYF!$C:$AP,37,FALSE) -> 8.22 | AF77: =VLOOKUP(AF$64&$Y77,GTYF!$C:$AP,37,FALSE) -> 11262.954 | AG77: =VLOOKUP(AG$64&$Y77,GTYF!$C:$AP,37,FALSE) -> 20.924 | AH77: =VLOOKUP(AH$64&$Y77,GTYF!$C:$AP,37,FALSE) -> 40772.796
B78: Sapinières | D78: 560 | E78: 0.28 | F78: 0 | G78: 0 | H78: 64400 | I78: 0.2743928419 | J78: =ROUND(AG78/5,-2) -> 0 | K78: 0 | L78: 3000 | M78: 0.2142857143 | N78: 67400 | O78: 0.2710092481 | S78: Tableau 4. | T78: 560 | U78: 0.2413793103 | V78: 563.4832 | W78: -3.4832 | Y78: (FCTYF_SAB) | Z78: =VLOOKUP(Z$64&$Y78,GTYF!$C:$AP,6,FALSE) -> 65581.5 | AA78: =VLOOKUP(AA$64&$Y78,GTYF!$C:$AP,37,FALSE) -> 2817.416 | AB78: =VLOOKUP(AB$64&$Y78,GTYF!$C:$AP,37,FALSE) -> 0 | AC78: =VLOOKUP(AC$64&$Y78,GTYF!$C:$AP,37,FALSE) -> 2817.416 | AD78: =VLOOKUP(AD$64&$Y78,GTYF!$C:$AP,37,FALSE) -> 322067.728 | AE78: =VLOOKUP(AE$64&$Y78,GTYF!$C:$AP,37,FALSE) -> 63.092 | AF78: =VLOOKUP(AF$64&$Y78,GTYF!$C:$AP,37,FALSE) -> 14906.794 | AG78: =VLOOKUP(AG$64&$Y78,GTYF!$C:$AP,37,FALSE) -> 14.722 | AH78: =VLOOKUP(AH$64&$Y78,GTYF!$C:$AP,37,FALSE) -> 336989.242
B79: Total | D79: =SUM(D65:D78) -> 2000 | E79: =SUM(E65:E78) -> 1 | F79: =SUM(F65:F78) -> 320 | G79: =SUM(G65:G78) -> 1 | H79: =SUM(H65:H78) -> 234700 | I79: =SUM(I65:I78) -> 1 | J79: 0 | K79: 0 | L79: 14000 | M79: 1 | N79: =SUM(N65:N78) -> 248700 | O79: 1 | S79: Tableau 4. | T79: =SUM(T65:T78) -> 2320 | U79: =SUM(U65:U78) -> 1 | V79: =SUM(V65:V78) -> 2331.57 | W79: -11.57 | Y79: Somme | Z79: =SUM(Z65:Z78) -> 436591.6 | AA79: =SUM(AA65:AA78) -> 10027.85 | AB79: =SUM(AB65:AB78) -> 1630 | AC79: =SUM(AC65:AC78) -> 11657.848
B80: * Les superficies sont arrondies à la dizaine près et les volumes à la centaine près. Cette opération peut engendrer de légères distorsions sur les sommes. | S80: Tableau 4. | Y80: Total (Output) | Z80: =VLOOKUP(Z$64,Output!$C:$AP,6,FALSE) -> 548947.4
Y81: Écart | Z81: =Z79-Z80 -> -112355.8
N82: Écart de possibilité
N83: =Instructions!I5/5-N79 -> -160 | O83: Valideur
B84: Tableau 8. Traitements commerciaux supportant les possibilités forestières
B85: Traitements commerciaux (récolte) | G85: Superficie annuelle moyenne (ha/an) | H85: Superficie antérieure (ha/an) | I85: Écart (ha/an)
T88: Légende | U88: Name | V88: PERIOD2@6
B89: Coupe avec protection de la régénération et des sols (CPRS) | G89: =IFERROR(ROUND(V89,-1),0)-G90-G91 -> 2010 | H89: =IFERROR(ROUND(VLOOKUP(O33,DataLocal!$A:$BH,37,FALSE),-1),0) -> 3570 | I89: =G89-H89 -> -1560 | S89: =LEFT(B$84,10) -> Tableau 8. | T89: Coupes avec protection de la régénération et des sols (CPRS) | U89: OSUPCT | V89: =IFERROR(VLOOKUP(U89,Output!$C:$AQ,37,FALSE)/5,"0000") -> 2005.5704
B90: Coupe avec protection des petites tiges marchandes (CPPTM) | G90: =IFERROR(ROUND(V90,-1),0) -> 0 | H90: =IFERROR(ROUND(VLOOKUP(O33,DataLocal!$A:$BH,38,FALSE),-1),0) -> 0 | I90: =G90-H90 -> 0 | S90: Tableau 8. | T90: Coupe avec protection des petites tiges marchandes (CPPTM) | U90: OSUPREALACPPTM | V90: =IFERROR(VLOOKUP(U90,Output!$C:$AQ,37,FALSE)/5,"0000") -> 0
B91: Coupe avec réserve de semenciers (CRS) | G91: =IFERROR(ROUND(V91,-1),0) -> 0 | H91: =IFERROR(ROUND(VLOOKUP(33,DataLocal!$A:$BH,39,FALSE),-1),0) -> 0 | I91: 0 | S91: Tableau 8. | T91: Coupe avec réserve de semenciers (CRS) | U91: OSUPREALACRS | V91: =IFERROR(VLOOKUP(U91,Output!$C:$AQ,37,FALSE)/5,"0000") -> 0
B92: Total des coupes finales | G92: =SUM(G89:G91) -> 2010 | H92: =SUM(H89:H91) -> 3570 | I92: -1560 | S92: Tableau 8.
B93: Éclaircie commerciale | G93: =IFERROR(ROUND(V93,-1),0) -> 0 | H93: =IFERROR(ROUND(VLOOKUP(O33,DataLocal!$A:$BH,40,FALSE),-1),0) -> 0 | I93: 0 | S93: Tableau 8. | T93: Éclaircie commerciale (EC) | U93: OSUPEC_SEPM | V93: =IFERROR(VLOOKUP(U93,Output!$C:$AQ,37,FALSE)/5,"0000") -> 0
B94: Coupe progressive régulière | G94: =IFERROR(ROUND(V94+V95,-1),0) -> 0 | H94: =IFERROR(ROUND(VLOOKUP(O33,DataLocal!$A:$BH,41,FALSE),-1),0) -> 760 | I94: -760 | S94: Tableau 8. | T94: Coupe progressive régulière initiale (CPROG) | U94: OSUPCPROG_INI | V94: =IFERROR(VLOOKUP(U94,Output!$C:$AQ,37,FALSE)/5,"0000") -> 0000
B95: Coupe progressive irrégulière à régénération lente (CPIL) | G95: =IFERROR(ROUND(V96+V97,-1),0) -> 330 | H95: =IFERROR(ROUND(VLOOKUP(O33,DataLocal!$A:$BH,42,FALSE),-1),0) -> 0 | I95: 330 | S95: Tableau 8. | T95: Coupe progressive régulière finale (CPROG) | U95: OSUPCPROG_FIN | V95: =IFERROR(VLOOKUP(U95,Output!$C:$AQ,37,FALSE)/5,"0000") -> 0000
B96: Coupe progressive irrégulière à couvert permanent (CPICP) | G96: =IFERROR(ROUND(V98,-1),0) -> 0 | H96: =IFERROR(ROUND(VLOOKUP(O33,DataLocal!$A:$BH,43,FALSE),-1),0) -> 0 | I96: 0 | S96: Tableau 8. | T96: Coupe progessive irrégulière initiale (CPIRL) | U96: OSUPCPIRL_INI | V96: =IFERROR(VLOOKUP(U96,Output!$C:$AQ,37,FALSE)/5,"0000") -> 326
B97: Coupes de jardinage ou d'amélioration | G97: =IFERROR(ROUND(V99,-1),0) -> 0 | H97: =IFERROR(ROUND(VLOOKUP(O33,DataLocal!$A:$BH,44,FALSE),-1),0) -> 0 | I97: 0 | T97: Coupe progessive irrégulière finale (CPIRL) | U97: OSUPCPIRL_FIN | V97: =IFERROR(VLOOKUP(U97,Output!$C:$AQ,37,FALSE)/5,"0000") -> 0
B98: Total des coupes partielles | G98: =SUM(G93:G97) -> 330 | H98: =SUM(H93:H97) -> 760 | I98: -430 | S98: =LEFT(B$84,10) -> Tableau 8. | T98: Coupe à couvert permanent (CPICP) | U98: OSUPCPICP | V98: =IFERROR(VLOOKUP(U98,Output!$C:$AQ,37,FALSE)/5,"0000") -> 0000
B99: Total des activités de récolte | G99: =G92+G98 -> 2340 | H99: =H98+H92 -> 4330 | I99: -1990 | S99: =LEFT(B$84,10) -> Tableau 8. | T99: Coupe de jardinage (CJ) | U99: OSUPCJ | V99: =IFERROR(VLOOKUP(U99,Output!$C:$AQ,37,FALSE)/5,"0000") -> 0000
B100: % des coupes totales / récolte | G100: =IFERROR(G92/G99,0) -> 0.858974359 | H100: =IFERROR(H92/H99,0) -> 0.8244803695 | I100: =ROUND(G100-H100,2) -> 0.03 | W100: Valideur
B101: % des coupes partielles / récolte | G101: =IFERROR(G98/G99,0) -> 0.141025641 | H101: =IFERROR(H98/H99,0) -> 0.1755196305 | I101: =ROUND(G101-H101,2) -> -0.03 | S101: =LEFT(B$84,10) -> Tableau 8. | U101: OSUPREALREGAPAR | V101: =VLOOKUP(U101,Output!$C:$AQ,37,FALSE)/5 -> 326 | W101: =ROUND(SUM(V93:V99),0)=ROUND(V101,0) -> TRUE
B102: Coupes partielles de peuplements résineux | G102: =ROUND((AB67+AB71+AB75+AB76+AB77+AB78)/5,-1) -> 330 | H102: =IFERROR(ROUND(VLOOKUP(O33,DataLocal!$A:$BH,45,FALSE),-1),0) -> 760 | I102: -430 | S102: =LEFT(B$84,10) -> Tableau 8. | U102: OSUPREALREGAFIN | V102: =VLOOKUP(U102,Output!$C:$AQ,37,FALSE)/5 -> 2005.5704 | W102: =ROUND((V89),0)=ROUND(V102,0) -> TRUE
B103: Coupes partielles de peuplements de feuillus tolérants et de pins | G103: =ROUND((AB69+AB70+AB74)/5,-1) -> 0 | H103: =IFERROR(ROUND(VLOOKUP(O33,DataLocal!$A:$BH,46,FALSE),-1),0) -> 0 | I103: 0 | S103: =LEFT(B$84,10) -> Tableau 8. | U103: OSUPREALREGAPRE | V103: =VLOOKUP(U103,Output!$C:$AQ,37,FALSE)/5 -> 2331.5704 | W103: =ROUND(V89+SUM(V93:V99),0)=ROUND(V103,0) -> TRUE
B104: * Les superficies sont arrondies à la dizaine près. Cette opération peut engendrer de légères distorsions sur les sommes.
B109: Tableau 9. Variables descriptives reliées aux coupes partielles et totales par grand type de forêt | L109: La CRV est-elle compabilisée avec les coupes partielles (regaPar)?
B110: Grands types de forêt | E110: Coupes partielles | H110: Coupes totales | L110: Si Oui - Remplacer alors les valeurs (colonne H et I) par celles-ci
E111: Rotation moyenne | F111: Prélèvement moyen | G111: Surface terrière moyenne avant coupe | H111: Âge moyen des peuplements | I111: Volume moyen toutes essences | J111: Dimension des bois SEPM | M111: Âge moyen des peuplements | N111: Volume moyen toutes essences
S113: Référence Tableau 63 du cahier d'analyse VF
E115: Années | F115: ="m"&CHAR(179)&"/ha" -> m³/ha | G115: ="m"&CHAR(178)&"/ha" -> m²/ha | H115: Années | I115: ="m"&CHAR(179)&"/an" -> m³/an | J115: ="dcm"&CHAR(179)&"/tige" -> dcm³/tige | M115: Années | N115: ="m"&CHAR(179)&"/an" -> m³/an | S115: =LEFT(B$109,10) -> Tableau 9. | V115: OSUPREALREGAPRE | W115: OSUPINC | X115: OVOLGSEPMRECREGAFIN | Y115: ONBTGSEPMRECREGAFIN | Z115: OVOLTOTRECACT | AA115: OVOLTOTRECACFP | AB115: OVOLTOTRECACRS | AC115: OVOLTOTRECACPPTM | AD115: OSUPREALREGAFIN | AE115: OVOLTOTRECACRV | AF115: OAGETOTRECACT | AG115: OAGETOTRECACFP | AH115: OAGETOTRECACRS | AI115: OAGETOTRECACPPTM | AJ115: OSUPREALREGAFIN | AK115: OAGETOTRECACRV | AM115: OVOLTOTRECaEC | AN115: OVOLTOTRECaEC2 | AO115: OVOLTOTRECaEC3 | AP115: OVOLTOTRECaCA | AQ115: OVOLTOTRECaCA2 | AR115: OVOLTOTRECaCPROG | AS115: OVOLTOTRECaCPIL | AT115: OVOLTOTRECaCPIP | AU115: OVOLTOTRECaCPFORT | AV115: OVOLTOTRECaCPFAIBL | AW115: OVOLTOTRECaCP | AX115: OVOLTOTRECaCPJ | AY115: OVOLTOTRECaCJ | AZ115: SOMME | BA115: OSUPREALREGAPAR
B116: =T116 -> Bétulaies blanches | E116: - | F116: =IFERROR($AZ116/$BA116,"-") -> - | G116: - | H116: =IFERROR(($AF116+$AG116+$AH116+$AI116+$AK116)/$AJ116*5,"-") -> 87.8362256 | I116: =IFERROR(($Z116+$AA116+$AB116+$AC116+$AE116)/$AD116,"-") -> 113.8530369 | J116: =(IFERROR(X116/Y116*1000,"-")) -> 85.33497313 | M116: =IFERROR(($AF116+$AG116+$AH116+$AI116)/$AJ116*5,"-") -> 87.8362256 | N116: =IFERROR(($Z116+$AA116+$AB116+$AC116)/$AD116,"-") -> 113.8530369 | S116: =LEFT(B$109,10) -> Tableau 9. | T116: Bétulaies blanches | U116: (FCTYF_BOP) | V116: =VLOOKUP(V$115&$U116,GTYF!$C:$AQ,37,FALSE) -> 110.64 | W116: =VLOOKUP(W$115&$U116,GTYF!$C:$AQ,6,FALSE) -> 2424.5 | X116: =VLOOKUP(X$115&$U116,GTYF!$C:$AQ,37,FALSE) -> 1285.044 | Y116: =VLOOKUP(Y$115&$U116,GTYF!$C:$AQ,37,FALSE) -> 15058.82 | Z116: =VLOOKUP(Z$115&$U116,GTYF!$C:$AQ,37,FALSE) -> 12596.7 | AA116: =VLOOKUP(AA$115&$U116,GTYF!$C:$AQ,37,FALSE) -> 0 | AB116: =VLOOKUP(AB$115&$U116,GTYF!$C:$AQ,37,FALSE) -> 0 | AC116: =VLOOKUP(AC$115&$U116,GTYF!$C:$AQ,37,FALSE) -> 0 | AD116: =VLOOKUP(AD$115&$U116,GTYF!$C:$AQ,37,FALSE) -> 110.64 | AE116: =VLOOKUP(AE$115&$U116,GTYF!$C:$AQ,37,FALSE) -> 0 | AF116: =VLOOKUP(AF$115&$U116,GTYF!$C:$AQ,37,FALSE) -> 1943.64 | AG116: =VLOOKUP(AG$115&$U116,GTYF!$C:$AQ,37,FALSE) -> 0 | AH116: =VLOOKUP(AH$115&$U116,GTYF!$C:$AQ,37,FALSE) -> 0 | AI116: =VLOOKUP(AI$115&$U116,GTYF!$C:$AQ,37,FALSE) -> 0 | AJ116: =VLOOKUP(AJ$115&$U116,GTYF!$C:$AQ,37,FALSE) -> 110.64 | AK116: =VLOOKUP(AK$115&$U116,GTYF!$C:$AQ,37,FALSE) -> 0 | AM116: =VLOOKUP(AM$115&$U116,GTYF!$C:$AQ,37,FALSE) -> 0 | AN116: =VLOOKUP(AN$115&$U116,GTYF!$C:$AQ,37,FALSE) -> 0 | AO116: =VLOOKUP(AO$115&$U116,GTYF!$C:$AQ,37,FALSE) -> 0 | AP116: =VLOOKUP(AP$115&$U116,GTYF!$C:$AQ,37,FALSE) -> 0 | AQ116: =VLOOKUP(AQ$115&$U116,GTYF!$C:$AQ,37,FALSE) -> 0 | AR116: =VLOOKUP(AR$115&$U116,GTYF!$C:$AQ,37,FALSE) -> 0 | AS116: =VLOOKUP(AS$115&$U116,GTYF!$C:$AQ,37,FALSE) -> 0 | AT116: =VLOOKUP(AT$115&$U116,GTYF!$C:$AQ,37,FALSE) -> 0 | AU116: =VLOOKUP(AU$115&$U116,GTYF!$C:$AQ,37,FALSE) -> 0 | AV116: =VLOOKUP(AV$115&$U116,GTYF!$C:$AQ,37,FALSE) -> 0 | AW116: =VLOOKUP(AW$115&$U116,GTYF!$C:$AQ,37,FALSE) -> 0 | AX116: =VLOOKUP(AX$115&$U116,GTYF!$C:$AQ,37,FALSE) -> 0 | AY116: =VLOOKUP(AY$115&$U116,GTYF!$C:$AQ,37,FALSE) -> 0 | AZ116: =SUM(AM116:AY116) -> 0 | BA116: =VLOOKUP(BA$115&$U116,GTYF!$C:$AQ,37,FALSE) -> 0
B117: Bétulaies blanches à résineux | E117: - | F117: - | G117: - | H117: =IFERROR(($AF117+$AG117+$AH117+$AI117+$AK117)/$AJ117*5,"-") -> 119.1966448 | I117: =IFERROR(($Z117+$AA117+$AB117+$AC117+$AE117)/$AD117,"-") -> 102.4720569 | J117: =(IFERROR(X117/Y117*1000,"-")) -> 98.33826669 | M117: =IFERROR(($AF117+$AG117+$AH117+$AI117)/$AJ117*5,"-") -> 119.1966448 | N117: =IFERROR(($Z117+$AA117+$AB117+$AC117)/$AD117,"-") -> 102.4720569 | S117: Tableau 9. | T117: Bétulaies blanches à résineux | U117: (FCTYF_BOPR) | V117: =VLOOKUP(V$115&$U117,GTYF!$C:$AQ,37,FALSE) -> 310.56 | W117: =VLOOKUP(W$115&$U117,GTYF!$C:$AQ,6,FALSE) -> 4253.7 | X117: =VLOOKUP(X$115&$U117,GTYF!$C:$AQ,37,FALSE) -> 12472.832 | Y117: =VLOOKUP(Y$115&$U117,GTYF!$C:$AQ,37,FALSE) -> 126835.996 | Z117: =VLOOKUP(Z$115&$U117,GTYF!$C:$AQ,37,FALSE) -> 31823.722 | AA117: =VLOOKUP(AA$115&$U117,GTYF!$C:$AQ,37,FALSE) -> 0 | AB117: =VLOOKUP(AB$115&$U117,GTYF!$C:$AQ,37,FALSE) -> 0 | AC117: =VLOOKUP(AC$115&$U117,GTYF!$C:$AQ,37,FALSE) -> 0 | AD117: =VLOOKUP(AD$115&$U117,GTYF!$C:$AQ,37,FALSE) -> 310.56 | AE117: =VLOOKUP(AE$115&$U117,GTYF!$C:$AQ,37,FALSE) -> 0 | AF117: =VLOOKUP(AF$115&$U117,GTYF!$C:$AQ,37,FALSE) -> 7403.542 | AG117: =VLOOKUP(AG$115&$U117,GTYF!$C:$AQ,37,FALSE) -> 0 | AH117: =VLOOKUP(AH$115&$U117,GTYF!$C:$AQ,37,FALSE) -> 0 | AI117: =VLOOKUP(AI$115&$U117,GTYF!$C:$AQ,37,FALSE) -> 0 | AJ117: =VLOOKUP(AJ$115&$U117,GTYF!$C:$AQ,37,FALSE) -> 310.56 | AK117: =VLOOKUP(AK$115&$U117,GTYF!$C:$AQ,37,FALSE) -> 0 | AM117: =VLOOKUP(AM$115&$U117,GTYF!$C:$AQ,37,FALSE) -> 0 | AN117: =VLOOKUP(AN$115&$U117,GTYF!$C:$AQ,37,FALSE) -> 0 | AO117: =VLOOKUP(AO$115&$U117,GTYF!$C:$AQ,37,FALSE) -> 0 | AP117: =VLOOKUP(AP$115&$U117,GTYF!$C:$AQ,37,FALSE) -> 0 | AQ117: =VLOOKUP(AQ$115&$U117,GTYF!$C:$AQ,37,FALSE) -> 0 | AR117: =VLOOKUP(AR$115&$U117,GTYF!$C:$AQ,37,FALSE) -> 0 | AS117: =VLOOKUP(AS$115&$U117,GTYF!$C:$AQ,37,FALSE) -> 0 | AT117: =VLOOKUP(AT$115&$U117,GTYF!$C:$AQ,37,FALSE) -> 0 | AU117: =VLOOKUP(AU$115&$U117,GTYF!$C:$AQ,37,FALSE) -> 0 | AV117: =VLOOKUP(AV$115&$U117,GTYF!$C:$AQ,37,FALSE) -> 0 | AW117: =VLOOKUP(AW$115&$U117,GTYF!$C:$AQ,37,FALSE) -> 0 | AX117: =VLOOKUP(AX$115&$U117,GTYF!$C:$AQ,37,FALSE) -> 0 | AY117: =VLOOKUP(AY$115&$U117,GTYF!$C:$AQ,37,FALSE) -> 0 | AZ117: =SUM(AM117:AY117) -> 0 | BA117: =VLOOKUP(BA$115&$U117,GTYF!$C:$AQ,37,FALSE) -> 0
B118: Cédrières | E118: - | F118: - | G118: - | H118: =IFERROR(($AF118+$AG118+$AH118+$AI118+$AK118)/$AJ118*5,"-") -> - | I118: - | J118: =(IFERROR(X118/Y118*1000,"-")) -> - | M118: - | N118: - | S118: Tableau 9. | T118: Cédrières | U118: (FCTYF_THO) | V118: =VLOOKUP(V$115&$U118,GTYF!$C:$AQ,37,FALSE) -> 0 | W118: =VLOOKUP(W$115&$U118,GTYF!$C:$AQ,6,FALSE) -> 0 | X118: =VLOOKUP(X$115&$U118,GTYF!$C:$AQ,37,FALSE) -> 0 | Y118: =VLOOKUP(Y$115&$U118,GTYF!$C:$AQ,37,FALSE) -> 0 | Z118: =VLOOKUP(Z$115&$U118,GTYF!$C:$AQ,37,FALSE) -> 0 | AA118: =VLOOKUP(AA$115&$U118,GTYF!$C:$AQ,37,FALSE) -> 0 | AB118: =VLOOKUP(AB$115&$U118,GTYF!$C:$AQ,37,FALSE) -> 0 | AC118: =VLOOKUP(AC$115&$U118,GTYF!$C:$AQ,37,FALSE) -> 0 | AD118: =VLOOKUP(AD$115&$U118,GTYF!$C:$AQ,37,FALSE) -> 0 | AE118: =VLOOKUP(AE$115&$U118,GTYF!$C:$AQ,37,FALSE) -> 0 | AF118: =VLOOKUP(AF$115&$U118,GTYF!$C:$AQ,37,FALSE) -> 0 | AG118: =VLOOKUP(AG$115&$U118,GTYF!$C:$AQ,37,FALSE) -> 0 | AH118: =VLOOKUP(AH$115&$U118,GTYF!$C:$AQ,37,FALSE) -> 0 | AI118: =VLOOKUP(AI$115&$U118,GTYF!$C:$AQ,37,FALSE) -> 0 | AJ118: =VLOOKUP(AJ$115&$U118,GTYF!$C:$AQ,37,FALSE) -> 0 | AK118: =VLOOKUP(AK$115&$U118,GTYF!$C:$AQ,37,FALSE) -> 0 | AM118: =VLOOKUP(AM$115&$U118,GTYF!$C:$AQ,37,FALSE) -> 0 | AN118: =VLOOKUP(AN$115&$U118,GTYF!$C:$AQ,37,FALSE) -> 0 | AO118: =VLOOKUP(AO$115&$U118,GTYF!$C:$AQ,37,FALSE) -> 0 | AP118: =VLOOKUP(AP$115&$U118,GTYF!$C:$AQ,37,FALSE) -> 0 | AQ118: =VLOOKUP(AQ$115&$U118,GTYF!$C:$AQ,37,FALSE) -> 0 | AR118: =VLOOKUP(AR$115&$U118,GTYF!$C:$AQ,37,FALSE) -> 0 | AS118: =VLOOKUP(AS$115&$U118,GTYF!$C:$AQ,37,FALSE) -> 0 | AT118: =VLOOKUP(AT$115&$U118,GTYF!$C:$AQ,37,FALSE) -> 0 | AU118: =VLOOKUP(AU$115&$U118,GTYF!$C:$AQ,37,FALSE) -> 0 | AV118: =VLOOKUP(AV$115&$U118,GTYF!$C:$AQ,37,FALSE) -> 0 | AW118: =VLOOKUP(AW$115&$U118,GTYF!$C:$AQ,37,FALSE) -> 0 | AX118: =VLOOKUP(AX$115&$U118,GTYF!$C:$AQ,37,FALSE) -> 0 | AY118: =VLOOKUP(AY$115&$U118,GTYF!$C:$AQ,37,FALSE) -> 0 | AZ118: 0 | BA118: =VLOOKUP(BA$115&$U118,GTYF!$C:$AQ,37,FALSE) -> 0
B119: Érablières rouges | E119: - | F119: - | G119: - | H119: - | I119: - | J119: - | M119: - | N119: - | S119: Tableau 9. | T119: Érablières rouges | U119: (FCTYF_ERO) | V119: =VLOOKUP(V$115&$U119,GTYF!$C:$AQ,37,FALSE) -> 0 | W119: =VLOOKUP(W$115&$U119,GTYF!$C:$AQ,6,FALSE) -> 0 | X119: =VLOOKUP(X$115&$U119,GTYF!$C:$AQ,37,FALSE) -> 0 | Y119: =VLOOKUP(Y$115&$U119,GTYF!$C:$AQ,37,FALSE) -> 0 | Z119: =VLOOKUP(Z$115&$U119,GTYF!$C:$AQ,37,FALSE) -> 0 | AA119: =VLOOKUP(AA$115&$U119,GTYF!$C:$AQ,37,FALSE) -> 0 | AB119: =VLOOKUP(AB$115&$U119,GTYF!$C:$AQ,37,FALSE) -> 0 | AC119: =VLOOKUP(AC$115&$U119,GTYF!$C:$AQ,37,FALSE) -> 0 | AD119: =VLOOKUP(AD$115&$U119,GTYF!$C:$AQ,37,FALSE) -> 0 | AE119: =VLOOKUP(AE$115&$U119,GTYF!$C:$AQ,37,FALSE) -> 0 | AF119: =VLOOKUP(AF$115&$U119,GTYF!$C:$AQ,37,FALSE) -> 0 | AG119: =VLOOKUP(AG$115&$U119,GTYF!$C:$AQ,37,FALSE) -> 0 | AH119: =VLOOKUP(AH$115&$U119,GTYF!$C:$AQ,37,FALSE) -> 0 | AI119: =VLOOKUP(AI$115&$U119,GTYF!$C:$AQ,37,FALSE) -> 0 | AJ119: =VLOOKUP(AJ$115&$U119,GTYF!$C:$AQ,37,FALSE) -> 0 | AK119: =VLOOKUP(AK$115&$U119,GTYF!$C:$AQ,37,FALSE) -> 0 | AM119: =VLOOKUP(AM$115&$U119,GTYF!$C:$AQ,37,FALSE) -> 0 | AN119: =VLOOKUP(AN$115&$U119,GTYF!$C:$AQ,37,FALSE) -> 0 | AO119: =VLOOKUP(AO$115&$U119,GTYF!$C:$AQ,37,FALSE) -> 0 | AP119: =VLOOKUP(AP$115&$U119,GTYF!$C:$AQ,37,FALSE) -> 0 | AQ119: =VLOOKUP(AQ$115&$U119,GTYF!$C:$AQ,37,FALSE) -> 0 | AR119: =VLOOKUP(AR$115&$U119,GTYF!$C:$AQ,37,FALSE) -> 0 | AS119: =VLOOKUP(AS$115&$U119,GTYF!$C:$AQ,37,FALSE) -> 0 | AT119: =VLOOKUP(AT$115&$U119,GTYF!$C:$AQ,37,FALSE) -> 0 | AU119: =VLOOKUP(AU$115&$U119,GTYF!$C:$AQ,37,FALSE) -> 0 | AV119: =VLOOKUP(AV$115&$U119,GTYF!$C:$AQ,37,FALSE) -> 0 | AW119: =VLOOKUP(AW$115&$U119,GTYF!$C:$AQ,37,FALSE) -> 0 | AX119: =VLOOKUP(AX$115&$U119,GTYF!$C:$AQ,37,FALSE) -> 0 | AY119: =VLOOKUP(AY$115&$U119,GTYF!$C:$AQ,37,FALSE) -> 0 | AZ119: 0 | BA119: =VLOOKUP(BA$115&$U119,GTYF!$C:$AQ,37,FALSE) -> 0
B120: Feuillus tolérants | E120: - | F120: - | G120: - | H120: - | I120: - | J120: - | M120: - | N120: - | S120: Tableau 9. | T120: Feuillus tolérants | U120: (FCTYF_FT) | V120: =VLOOKUP(V$115&$U120,GTYF!$C:$AQ,37,FALSE) -> 0 | W120: =VLOOKUP(W$115&$U120,GTYF!$C:$AQ,6,FALSE) -> 0 | X120: =VLOOKUP(X$115&$U120,GTYF!$C:$AQ,37,FALSE) -> 0 | Y120: =VLOOKUP(Y$115&$U120,GTYF!$C:$AQ,37,FALSE) -> 0 | Z120: =VLOOKUP(Z$115&$U120,GTYF!$C:$AQ,37,FALSE) -> 0 | AA120: =VLOOKUP(AA$115&$U120,GTYF!$C:$AQ,37,FALSE) -> 0 | AB120: =VLOOKUP(AB$115&$U120,GTYF!$C:$AQ,37,FALSE) -> 0 | AC120: =VLOOKUP(AC$115&$U120,GTYF!$C:$AQ,37,FALSE) -> 0 | AD120: =VLOOKUP(AD$115&$U120,GTYF!$C:$AQ,37,FALSE) -> 0 | AE120: =VLOOKUP(AE$115&$U120,GTYF!$C:$AQ,37,FALSE) -> 0 | AF120: =VLOOKUP(AF$115&$U120,GTYF!$C:$AQ,37,FALSE) -> 0 | AG120: =VLOOKUP(AG$115&$U120,GTYF!$C:$AQ,37,FALSE) -> 0 | AH120: =VLOOKUP(AH$115&$U120,GTYF!$C:$AQ,37,FALSE) -> 0 | AI120: =VLOOKUP(AI$115&$U120,GTYF!$C:$AQ,37,FALSE) -> 0 | AJ120: =VLOOKUP(AJ$115&$U120,GTYF!$C:$AQ,37,FALSE) -> 0 | AK120: =VLOOKUP(AK$115&$U120,GTYF!$C:$AQ,37,FALSE) -> 0 | AM120: =VLOOKUP(AM$115&$U120,GTYF!$C:$AQ,37,FALSE) -> 0 | AN120: =VLOOKUP(AN$115&$U120,GTYF!$C:$AQ,37,FALSE) -> 0 | AO120: =VLOOKUP(AO$115&$U120,GTYF!$C:$AQ,37,FALSE) -> 0 | AP120: =VLOOKUP(AP$115&$U120,GTYF!$C:$AQ,37,FALSE) -> 0 | AQ120: =VLOOKUP(AQ$115&$U120,GTYF!$C:$AQ,37,FALSE) -> 0 | AR120: =VLOOKUP(AR$115&$U120,GTYF!$C:$AQ,37,FALSE) -> 0 | AS120: =VLOOKUP(AS$115&$U120,GTYF!$C:$AQ,37,FALSE) -> 0 | AT120: =VLOOKUP(AT$115&$U120,GTYF!$C:$AQ,37,FALSE) -> 0 | AU120: =VLOOKUP(AU$115&$U120,GTYF!$C:$AQ,37,FALSE) -> 0 | AV120: =VLOOKUP(AV$115&$U120,GTYF!$C:$AQ,37,FALSE) -> 0 | AW120: =VLOOKUP(AW$115&$U120,GTYF!$C:$AQ,37,FALSE) -> 0 | AX120: =VLOOKUP(AX$115&$U120,GTYF!$C:$AQ,37,FALSE) -> 0 | AY120: =VLOOKUP(AY$115&$U120,GTYF!$C:$AQ,37,FALSE) -> 0 | AZ120: 0 | BA120: =VLOOKUP(BA$115&$U120,GTYF!$C:$AQ,37,FALSE) -> 0
B121: Feuillus tolérants à résineux | E121: - | F121: =IFERROR($AZ121/$BA121,"-") -> - | G121: - | H121: - | I121: - | J121: - | M121: - | N121: - | S121: Tableau 9. | T121: Feuillus tolérants à résineux | U121: (FCTYF_FTR) | V121: =VLOOKUP(V$115&$U121,GTYF!$C:$AQ,37,FALSE) -> 0 | W121: =VLOOKUP(W$115&$U121,GTYF!$C:$AQ,6,FALSE) -> 0 | X121: =VLOOKUP(X$115&$U121,GTYF!$C:$AQ,37,FALSE) -> 0 | Y121: =VLOOKUP(Y$115&$U121,GTYF!$C:$AQ,37,FALSE) -> 0 | Z121: =VLOOKUP(Z$115&$U121,GTYF!$C:$AQ,37,FALSE) -> 0 | AA121: =VLOOKUP(AA$115&$U121,GTYF!$C:$AQ,37,FALSE) -> 0 | AB121: =VLOOKUP(AB$115&$U121,GTYF!$C:$AQ,37,FALSE) -> 0 | AC121: =VLOOKUP(AC$115&$U121,GTYF!$C:$AQ,37,FALSE) -> 0 | AD121: =VLOOKUP(AD$115&$U121,GTYF!$C:$AQ,37,FALSE) -> 0 | AE121: =VLOOKUP(AE$115&$U121,GTYF!$C:$AQ,37,FALSE) -> 0 | AF121: =VLOOKUP(AF$115&$U121,GTYF!$C:$AQ,37,FALSE) -> 0 | AG121: =VLOOKUP(AG$115&$U121,GTYF!$C:$AQ,37,FALSE) -> 0 | AH121: =VLOOKUP(AH$115&$U121,GTYF!$C:$AQ,37,FALSE) -> 0 | AI121: =VLOOKUP(AI$115&$U121,GTYF!$C:$AQ,37,FALSE) -> 0 | AJ121: =VLOOKUP(AJ$115&$U121,GTYF!$C:$AQ,37,FALSE) -> 0 | AK121: =VLOOKUP(AK$115&$U121,GTYF!$C:$AQ,37,FALSE) -> 0 | AM121: =VLOOKUP(AM$115&$U121,GTYF!$C:$AQ,37,FALSE) -> 0 | AN121: =VLOOKUP(AN$115&$U121,GTYF!$C:$AQ,37,FALSE) -> 0 | AO121: =VLOOKUP(AO$115&$U121,GTYF!$C:$AQ,37,FALSE) -> 0 | AP121: =VLOOKUP(AP$115&$U121,GTYF!$C:$AQ,37,FALSE) -> 0 | AQ121: =VLOOKUP(AQ$115&$U121,GTYF!$C:$AQ,37,FALSE) -> 0 | AR121: =VLOOKUP(AR$115&$U121,GTYF!$C:$AQ,37,FALSE) -> 0 | AS121: =VLOOKUP(AS$115&$U121,GTYF!$C:$AQ,37,FALSE) -> 0 | AT121: =VLOOKUP(AT$115&$U121,GTYF!$C:$AQ,37,FALSE) -> 0 | AU121: =VLOOKUP(AU$115&$U121,GTYF!$C:$AQ,37,FALSE) -> 0 | AV121: =VLOOKUP(AV$115&$U121,GTYF!$C:$AQ,37,FALSE) -> 0 | AW121: =VLOOKUP(AW$115&$U121,GTYF!$C:$AQ,37,FALSE) -> 0 | AX121: =VLOOKUP(AX$115&$U121,GTYF!$C:$AQ,37,FALSE) -> 0 | AY121: =VLOOKUP(AY$115&$U121,GTYF!$C:$AQ,37,FALSE) -> 0 | AZ121: =SUM(AM121:AY121) -> 0 | BA121: =VLOOKUP(BA$115&$U121,GTYF!$C:$AQ,37,FALSE) -> 0
B122: Pessières | E122: 68 | F122: 63.2964881 | G122: 25.6 | H122: 166.7628627 | I122: 111.9903366 | J122: 102.523929 | M122: 166.7628627 | N122: 111.9903366 | S122: Tableau 9. | T122: Pessières | U122: (FCTYF_EPX) | V122: =VLOOKUP(V$115&$U122,GTYF!$C:$AQ,37,FALSE) -> 7945.556 | W122: =VLOOKUP(W$115&$U122,GTYF!$C:$AQ,6,FALSE) -> 333910.8 | X122: =VLOOKUP(X$115&$U122,GTYF!$C:$AQ,37,FALSE) -> 716351.92 | Y122: =VLOOKUP(Y$115&$U122,GTYF!$C:$AQ,37,FALSE) -> 6987168.038 | Z122: =VLOOKUP(Z$115&$U122,GTYF!$C:$AQ,37,FALSE) -> 725732.322 | AA122: =VLOOKUP(AA$115&$U122,GTYF!$C:$AQ,37,FALSE) -> 0 | AB122: =VLOOKUP(AB$115&$U122,GTYF!$C:$AQ,37,FALSE) -> 0 | AC122: =VLOOKUP(AC$115&$U122,GTYF!$C:$AQ,37,FALSE) -> 0 | AD122: =VLOOKUP(AD$115&$U122,GTYF!$C:$AQ,37,FALSE) -> 6480.312 | AE122: =VLOOKUP(AE$115&$U122,GTYF!$C:$AQ,37,FALSE) -> 0 | AF122: =VLOOKUP(AF$115&$U122,GTYF!$C:$AQ,37,FALSE) -> 216135.076 | AG122: =VLOOKUP(AG$115&$U122,GTYF!$C:$AQ,37,FALSE) -> 0 | AH122: =VLOOKUP(AH$115&$U122,GTYF!$C:$AQ,37,FALSE) -> 0 | AI122: =VLOOKUP(AI$115&$U122,GTYF!$C:$AQ,37,FALSE) -> 0 | AJ122: =VLOOKUP(AJ$115&$U122,GTYF!$C:$AQ,37,FALSE) -> 6480.312 | AK122: =VLOOKUP(AK$115&$U122,GTYF!$C:$AQ,37,FALSE) -> 0 | AM122: =VLOOKUP(AM$115&$U122,GTYF!$C:$AQ,37,FALSE) -> 0 | AN122: =VLOOKUP(AN$115&$U122,GTYF!$C:$AQ,37,FALSE) -> 0 | AO122: =VLOOKUP(AO$115&$U122,GTYF!$C:$AQ,37,FALSE) -> 0 | AP122: =VLOOKUP(AP$115&$U122,GTYF!$C:$AQ,37,FALSE) -> 0 | AQ122: =VLOOKUP(AQ$115&$U122,GTYF!$C:$AQ,37,FALSE) -> 0 | AR122: =VLOOKUP(AR$115&$U122,GTYF!$C:$AQ,37,FALSE) -> 0 | AS122: =VLOOKUP(AS$115&$U122,GTYF!$C:$AQ,37,FALSE) -> 92744.926 | AT122: =VLOOKUP(AT$115&$U122,GTYF!$C:$AQ,37,FALSE) -> 0 | AU122: =VLOOKUP(AU$115&$U122,GTYF!$C:$AQ,37,FALSE) -> 0 | AV122: =VLOOKUP(AV$115&$U122,GTYF!$C:$AQ,37,FALSE) -> 0 | AW122: =VLOOKUP(AW$115&$U122,GTYF!$C:$AQ,37,FALSE) -> 0 | AX122: =VLOOKUP(AX$115&$U122,GTYF!$C:$AQ,37,FALSE) -> 0 | AY122: =VLOOKUP(AY$115&$U122,GTYF!$C:$AQ,37,FALSE) -> 0 | AZ122: 92744.926 | BA122: =VLOOKUP(BA$115&$U122,GTYF!$C:$AQ,37,FALSE) -> 1465.246
B123: Peupleraies | E123: - | F123: - | G123: - | H123: 52.12271751 | I123: 136.968985 | J123: 55.3601146 | M123: 52.12271751 | N123: 136.968985 | S123: Tableau 9. | T123: Peupleraies | U123: (FCTYF_PEU) | V123: =VLOOKUP(V$115&$U123,GTYF!$C:$AQ,37,FALSE) -> 14.896 | W123: =VLOOKUP(W$115&$U123,GTYF!$C:$AQ,6,FALSE) -> 862.1 | X123: =VLOOKUP(X$115&$U123,GTYF!$C:$AQ,37,FALSE) -> 168.192 | Y123: =VLOOKUP(Y$115&$U123,GTYF!$C:$AQ,37,FALSE) -> 3038.144 | Z123: =VLOOKUP(Z$115&$U123,GTYF!$C:$AQ,37,FALSE) -> 2040.29 | AA123: =VLOOKUP(AA$115&$U123,GTYF!$C:$AQ,37,FALSE) -> 0 | AB123: =VLOOKUP(AB$115&$U123,GTYF!$C:$AQ,37,FALSE) -> 0 | AC123: =VLOOKUP(AC$115&$U123,GTYF!$C:$AQ,37,FALSE) -> 0 | AD123: =VLOOKUP(AD$115&$U123,GTYF!$C:$AQ,37,FALSE) -> 14.896 | AE123: =VLOOKUP(AE$115&$U123,GTYF!$C:$AQ,37,FALSE) -> 0 | AF123: =VLOOKUP(AF$115&$U123,GTYF!$C:$AQ,37,FALSE) -> 155.284 | AG123: =VLOOKUP(AG$115&$U123,GTYF!$C:$AQ,37,FALSE) -> 0 | AH123: =VLOOKUP(AH$115&$U123,GTYF!$C:$AQ,37,FALSE) -> 0 | AI123: =VLOOKUP(AI$115&$U123,GTYF!$C:$AQ,37,FALSE) -> 0 | AJ123: =VLOOKUP(AJ$115&$U123,GTYF!$C:$AQ,37,FALSE) -> 14.896 | AK123: =VLOOKUP(AK$115&$U123,GTYF!$C:$AQ,37,FALSE) -> 0 | AM123: =VLOOKUP(AM$115&$U123,GTYF!$C:$AQ,37,FALSE) -> 0 | AN123: =VLOOKUP(AN$115&$U123,GTYF!$C:$AQ,37,FALSE) -> 0 | AO123: =VLOOKUP(AO$115&$U123,GTYF!$C:$AQ,37,FALSE) -> 0 | AP123: =VLOOKUP(AP$115&$U123,GTYF!$C:$AQ,37,FALSE) -> 0 | AQ123: =VLOOKUP(AQ$115&$U123,GTYF!$C:$AQ,37,FALSE) -> 0 | AR123: =VLOOKUP(AR$115&$U123,GTYF!$C:$AQ,37,FALSE) -> 0 | AS123: =VLOOKUP(AS$115&$U123,GTYF!$C:$AQ,37,FALSE) -> 0 | AT123: =VLOOKUP(AT$115&$U123,GTYF!$C:$AQ,37,FALSE) -> 0 | AU123: =VLOOKUP(AU$115&$U123,GTYF!$C:$AQ,37,FALSE) -> 0 | AV123: =VLOOKUP(AV$115&$U123,GTYF!$C:$AQ,37,FALSE) -> 0 | AW123: =VLOOKUP(AW$115&$U123,GTYF!$C:$AQ,37,FALSE) -> 0 | AX123: =VLOOKUP(AX$115&$U123,GTYF!$C:$AQ,37,FALSE) -> 0 | AY123: =VLOOKUP(AY$115&$U123,GTYF!$C:$AQ,37,FALSE) -> 0 | AZ123: 0 | BA123: =VLOOKUP(BA$115&$U123,GTYF!$C:$AQ,37,FALSE) -> 0
B124: Peupleraies à résineux | E124: - | F124: - | G124: - | H124: - | I124: - | J124: - | M124: - | N124: - | S124: Tableau 9. | T124: Peupleraies à résineux | U124: (FCTYF_PEUR) | V124: =VLOOKUP(V$115&$U124,GTYF!$C:$AQ,37,FALSE) -> 0 | W124: =VLOOKUP(W$115&$U124,GTYF!$C:$AQ,6,FALSE) -> 0 | X124: =VLOOKUP(X$115&$U124,GTYF!$C:$AQ,37,FALSE) -> 0 | Y124: =VLOOKUP(Y$115&$U124,GTYF!$C:$AQ,37,FALSE) -> 0 | Z124: =VLOOKUP(Z$115&$U124,GTYF!$C:$AQ,37,FALSE) -> 0 | AA124: =VLOOKUP(AA$115&$U124,GTYF!$C:$AQ,37,FALSE) -> 0 | AB124: =VLOOKUP(AB$115&$U124,GTYF!$C:$AQ,37,FALSE) -> 0 | AC124: =VLOOKUP(AC$115&$U124,GTYF!$C:$AQ,37,FALSE) -> 0 | AD124: =VLOOKUP(AD$115&$U124,GTYF!$C:$AQ,37,FALSE) -> 0 | AE124: =VLOOKUP(AE$115&$U124,GTYF!$C:$AQ,37,FALSE) -> 0 | AF124: =VLOOKUP(AF$115&$U124,GTYF!$C:$AQ,37,FALSE) -> 0 | AG124: =VLOOKUP(AG$115&$U124,GTYF!$C:$AQ,37,FALSE) -> 0 | AH124: =VLOOKUP(AH$115&$U124,GTYF!$C:$AQ,37,FALSE) -> 0 | AI124: =VLOOKUP(AI$115&$U124,GTYF!$C:$AQ,37,FALSE) -> 0 | AJ124: =VLOOKUP(AJ$115&$U124,GTYF!$C:$AQ,37,FALSE) -> 0 | AK124: =VLOOKUP(AK$115&$U124,GTYF!$C:$AQ,37,FALSE) -> 0 | AM124: =VLOOKUP(AM$115&$U124,GTYF!$C:$AQ,37,FALSE) -> 0 | AN124: =VLOOKUP(AN$115&$U124,GTYF!$C:$AQ,37,FALSE) -> 0 | AO124: =VLOOKUP(AO$115&$U124,GTYF!$C:$AQ,37,FALSE) -> 0 | AP124: =VLOOKUP(AP$115&$U124,GTYF!$C:$AQ,37,FALSE) -> 0 | AQ124: =VLOOKUP(AQ$115&$U124,GTYF!$C:$AQ,37,FALSE) -> 0 | AR124: =VLOOKUP(AR$115&$U124,GTYF!$C:$AQ,37,FALSE) -> 0 | AS124: =VLOOKUP(AS$115&$U124,GTYF!$C:$AQ,37,FALSE) -> 0 | AT124: =VLOOKUP(AT$115&$U124,GTYF!$C:$AQ,37,FALSE) -> 0 | AU124: =VLOOKUP(AU$115&$U124,GTYF!$C:$AQ,37,FALSE) -> 0 | AV124: =VLOOKUP(AV$115&$U124,GTYF!$C:$AQ,37,FALSE) -> 0 | AW124: =VLOOKUP(AW$115&$U124,GTYF!$C:$AQ,37,FALSE) -> 0 | AX124: =VLOOKUP(AX$115&$U124,GTYF!$C:$AQ,37,FALSE) -> 0 | AY124: =VLOOKUP(AY$115&$U124,GTYF!$C:$AQ,37,FALSE) -> 0 | AZ124: 0 | BA124: =VLOOKUP(BA$115&$U124,GTYF!$C:$AQ,37,FALSE) -> 0
B125: Pinèdes blanches | E125: - | F125: - | G125: - | H125: - | I125: - | J125: - | M125: - | N125: - | S125: Tableau 9. | T125: Pinèdes blanches | U125: (FCTYF_PIN) | V125: =VLOOKUP(V$115&$U125,GTYF!$C:$AQ,37,FALSE) -> 0 | W125: =VLOOKUP(W$115&$U125,GTYF!$C:$AQ,6,FALSE) -> 0 | X125: =VLOOKUP(X$115&$U125,GTYF!$C:$AQ,37,FALSE) -> 0 | Y125: =VLOOKUP(Y$115&$U125,GTYF!$C:$AQ,37,FALSE) -> 0 | Z125: =VLOOKUP(Z$115&$U125,GTYF!$C:$AQ,37,FALSE) -> 0 | AA125: =VLOOKUP(AA$115&$U125,GTYF!$C:$AQ,37,FALSE) -> 0 | AB125: =VLOOKUP(AB$115&$U125,GTYF!$C:$AQ,37,FALSE) -> 0 | AC125: =VLOOKUP(AC$115&$U125,GTYF!$C:$AQ,37,FALSE) -> 0 | AD125: =VLOOKUP(AD$115&$U125,GTYF!$C:$AQ,37,FALSE) -> 0 | AE125: =VLOOKUP(AE$115&$U125,GTYF!$C:$AQ,37,FALSE) -> 0 | AF125: =VLOOKUP(AF$115&$U125,GTYF!$C:$AQ,37,FALSE) -> 0 | AG125: =VLOOKUP(AG$115&$U125,GTYF!$C:$AQ,37,FALSE) -> 0 | AH125: =VLOOKUP(AH$115&$U125,GTYF!$C:$AQ,37,FALSE) -> 0 | AI125: =VLOOKUP(AI$115&$U125,GTYF!$C:$AQ,37,FALSE) -> 0 | AJ125: =VLOOKUP(AJ$115&$U125,GTYF!$C:$AQ,37,FALSE) -> 0 | AK125: =VLOOKUP(AK$115&$U125,GTYF!$C:$AQ,37,FALSE) -> 0 | AM125: =VLOOKUP(AM$115&$U125,GTYF!$C:$AQ,37,FALSE) -> 0 | AN125: =VLOOKUP(AN$115&$U125,GTYF!$C:$AQ,37,FALSE) -> 0 | AO125: =VLOOKUP(AO$115&$U125,GTYF!$C:$AQ,37,FALSE) -> 0 | AP125: =VLOOKUP(AP$115&$U125,GTYF!$C:$AQ,37,FALSE) -> 0 | AQ125: =VLOOKUP(AQ$115&$U125,GTYF!$C:$AQ,37,FALSE) -> 0 | AR125: =VLOOKUP(AR$115&$U125,GTYF!$C:$AQ,37,FALSE) -> 0 | AS125: =VLOOKUP(AS$115&$U125,GTYF!$C:$AQ,37,FALSE) -> 0 | AT125: =VLOOKUP(AT$115&$U125,GTYF!$C:$AQ,37,FALSE) -> 0 | AU125: =VLOOKUP(AU$115&$U125,GTYF!$C:$AQ,37,FALSE) -> 0 | AV125: =VLOOKUP(AV$115&$U125,GTYF!$C:$AQ,37,FALSE) -> 0 | AW125: =VLOOKUP(AW$115&$U125,GTYF!$C:$AQ,37,FALSE) -> 0 | AX125: =VLOOKUP(AX$115&$U125,GTYF!$C:$AQ,37,FALSE) -> 0 | AY125: =VLOOKUP(AY$115&$U125,GTYF!$C:$AQ,37,FALSE) -> 0 | AZ125: 0 | BA125: =VLOOKUP(BA$115&$U125,GTYF!$C:$AQ,37,FALSE) -> 0
B126: Pinèdes grises | E126: - | F126: - | G126: - | H126: - | I126: - | J126: - | M126: - | N126: - | S126: Tableau 9. | T126: Pinèdes grises | U126: (FCTYF_PIG) | V126: =VLOOKUP(V$115&$U126,GTYF!$C:$AQ,37,FALSE) -> 0 | W126: =VLOOKUP(W$115&$U126,GTYF!$C:$AQ,6,FALSE) -> 22935.4 | X126: =VLOOKUP(X$115&$U126,GTYF!$C:$AQ,37,FALSE) -> 0 | Y126: =VLOOKUP(Y$115&$U126,GTYF!$C:$AQ,37,FALSE) -> 0 | Z126: =VLOOKUP(Z$115&$U126,GTYF!$C:$AQ,37,FALSE) -> 0 | AA126: =VLOOKUP(AA$115&$U126,GTYF!$C:$AQ,37,FALSE) -> 0 | AB126: =VLOOKUP(AB$115&$U126,GTYF!$C:$AQ,37,FALSE) -> 0 | AC126: =VLOOKUP(AC$115&$U126,GTYF!$C:$AQ,37,FALSE) -> 0 | AD126: =VLOOKUP(AD$115&$U126,GTYF!$C:$AQ,37,FALSE) -> 0 | AE126: =VLOOKUP(AE$115&$U126,GTYF!$C:$AQ,37,FALSE) -> 0 | AF126: =VLOOKUP(AF$115&$U126,GTYF!$C:$AQ,37,FALSE) -> 0 | AG126: =VLOOKUP(AG$115&$U126,GTYF!$C:$AQ,37,FALSE) -> 0 | AH126: =VLOOKUP(AH$115&$U126,GTYF!$C:$AQ,37,FALSE) -> 0 | AI126: =VLOOKUP(AI$115&$U126,GTYF!$C:$AQ,37,FALSE) -> 0 | AJ126: =VLOOKUP(AJ$115&$U126,GTYF!$C:$AQ,37,FALSE) -> 0 | AK126: =VLOOKUP(AK$115&$U126,GTYF!$C:$AQ,37,FALSE) -> 0 | AM126: =VLOOKUP(AM$115&$U126,GTYF!$C:$AQ,37,FALSE) -> 0 | AN126: =VLOOKUP(AN$115&$U126,GTYF!$C:$AQ,37,FALSE) -> 0 | AO126: =VLOOKUP(AO$115&$U126,GTYF!$C:$AQ,37,FALSE) -> 0 | AP126: =VLOOKUP(AP$115&$U126,GTYF!$C:$AQ,37,FALSE) -> 0 | AQ126: =VLOOKUP(AQ$115&$U126,GTYF!$C:$AQ,37,FALSE) -> 0 | AR126: =VLOOKUP(AR$115&$U126,GTYF!$C:$AQ,37,FALSE) -> 0 | AS126: =VLOOKUP(AS$115&$U126,GTYF!$C:$AQ,37,FALSE) -> 0 | AT126: =VLOOKUP(AT$115&$U126,GTYF!$C:$AQ,37,FALSE) -> 0 | AU126: =VLOOKUP(AU$115&$U126,GTYF!$C:$AQ,37,FALSE) -> 0 | AV126: =VLOOKUP(AV$115&$U126,GTYF!$C:$AQ,37,FALSE) -> 0 | AW126: =VLOOKUP(AW$115&$U126,GTYF!$C:$AQ,37,FALSE) -> 0 | AX126: =VLOOKUP(AX$115&$U126,GTYF!$C:$AQ,37,FALSE) -> 0 | AY126: =VLOOKUP(AY$115&$U126,GTYF!$C:$AQ,37,FALSE) -> 0 | AZ126: 0 | BA126: =VLOOKUP(BA$115&$U126,GTYF!$C:$AQ,37,FALSE) -> 0
B127: Prucheraies | E127: - | F127: - | G127: - | H127: - | I127: - | J127: - | M127: - | N127: - | S127: Tableau 9. | T127: Prucheraies | U127: (FCTYF_PRU) | V127: =VLOOKUP(V$115&$U127,GTYF!$C:$AQ,37,FALSE) -> 0 | W127: =VLOOKUP(W$115&$U127,GTYF!$C:$AQ,6,FALSE) -> 0 | X127: =VLOOKUP(X$115&$U127,GTYF!$C:$AQ,37,FALSE) -> 0 | Y127: =VLOOKUP(Y$115&$U127,GTYF!$C:$AQ,37,FALSE) -> 0 | Z127: =VLOOKUP(Z$115&$U127,GTYF!$C:$AQ,37,FALSE) -> 0 | AA127: =VLOOKUP(AA$115&$U127,GTYF!$C:$AQ,37,FALSE) -> 0 | AB127: =VLOOKUP(AB$115&$U127,GTYF!$C:$AQ,37,FALSE) -> 0 | AC127: =VLOOKUP(AC$115&$U127,GTYF!$C:$AQ,37,FALSE) -> 0 | AD127: =VLOOKUP(AD$115&$U127,GTYF!$C:$AQ,37,FALSE) -> 0 | AE127: =VLOOKUP(AE$115&$U127,GTYF!$C:$AQ,37,FALSE) -> 0 | AF127: =VLOOKUP(AF$115&$U127,GTYF!$C:$AQ,37,FALSE) -> 0 | AG127: =VLOOKUP(AG$115&$U127,GTYF!$C:$AQ,37,FALSE) -> 0 | AH127: =VLOOKUP(AH$115&$U127,GTYF!$C:$AQ,37,FALSE) -> 0 | AI127: =VLOOKUP(AI$115&$U127,GTYF!$C:$AQ,37,FALSE) -> 0 | AJ127: =VLOOKUP(AJ$115&$U127,GTYF!$C:$AQ,37,FALSE) -> 0 | AK127: =VLOOKUP(AK$115&$U127,GTYF!$C:$AQ,37,FALSE) -> 0 | AM127: =VLOOKUP(AM$115&$U127,GTYF!$C:$AQ,37,FALSE) -> 0 | AN127: =VLOOKUP(AN$115&$U127,GTYF!$C:$AQ,37,FALSE) -> 0 | AO127: =VLOOKUP(AO$115&$U127,GTYF!$C:$AQ,37,FALSE) -> 0 | AP127: =VLOOKUP(AP$115&$U127,GTYF!$C:$AQ,37,FALSE) -> 0 | AQ127: =VLOOKUP(AQ$115&$U127,GTYF!$C:$AQ,37,FALSE) -> 0 | AR127: =VLOOKUP(AR$115&$U127,GTYF!$C:$AQ,37,FALSE) -> 0 | AS127: =VLOOKUP(AS$115&$U127,GTYF!$C:$AQ,37,FALSE) -> 0 | AT127: =VLOOKUP(AT$115&$U127,GTYF!$C:$AQ,37,FALSE) -> 0 | AU127: =VLOOKUP(AU$115&$U127,GTYF!$C:$AQ,37,FALSE) -> 0 | AV127: =VLOOKUP(AV$115&$U127,GTYF!$C:$AQ,37,FALSE) -> 0 | AW127: =VLOOKUP(AW$115&$U127,GTYF!$C:$AQ,37,FALSE) -> 0 | AX127: =VLOOKUP(AX$115&$U127,GTYF!$C:$AQ,37,FALSE) -> 0 | AY127: =VLOOKUP(AY$115&$U127,GTYF!$C:$AQ,37,FALSE) -> 0 | AZ127: 0 | BA127: =VLOOKUP(BA$115&$U127,GTYF!$C:$AQ,37,FALSE) -> 0
B128: Résineux à feuillus | E128: 43 | F128: 62.86272867 | G128: 25.7 | H128: 173.2782815 | I128: 103.4463279 | J128: 124.6442892 | M128: 173.2782815 | N128: 103.4463279 | S128: Tableau 9. | T128: Résineux à feuillus | U128: (FCTYF_RF) | V128: =VLOOKUP(V$115&$U128,GTYF!$C:$AQ,37,FALSE) -> 458.78 | W128: =VLOOKUP(W$115&$U128,GTYF!$C:$AQ,6,FALSE) -> 6623.6 | X128: =VLOOKUP(X$115&$U128,GTYF!$C:$AQ,37,FALSE) -> 22324.034 | Y128: =VLOOKUP(Y$115&$U128,GTYF!$C:$AQ,37,FALSE) -> 179101.94 | Z128: =VLOOKUP(Z$115&$U128,GTYF!$C:$AQ,37,FALSE) -> 30415.91 | AA128: =VLOOKUP(AA$115&$U128,GTYF!$C:$AQ,37,FALSE) -> 0 | AB128: =VLOOKUP(AB$115&$U128,GTYF!$C:$AQ,37,FALSE) -> 0 | AC128: =VLOOKUP(AC$115&$U128,GTYF!$C:$AQ,37,FALSE) -> 0 | AD128: =VLOOKUP(AD$115&$U128,GTYF!$C:$AQ,37,FALSE) -> 294.026 | AE128: =VLOOKUP(AE$115&$U128,GTYF!$C:$AQ,37,FALSE) -> 0 | AF128: =VLOOKUP(AF$115&$U128,GTYF!$C:$AQ,37,FALSE) -> 10189.664 | AG128: =VLOOKUP(AG$115&$U128,GTYF!$C:$AQ,37,FALSE) -> 0 | AH128: =VLOOKUP(AH$115&$U128,GTYF!$C:$AQ,37,FALSE) -> 0 | AI128: =VLOOKUP(AI$115&$U128,GTYF!$C:$AQ,37,FALSE) -> 0 | AJ128: =VLOOKUP(AJ$115&$U128,GTYF!$C:$AQ,37,FALSE) -> 294.026 | AK128: =VLOOKUP(AK$115&$U128,GTYF!$C:$AQ,37,FALSE) -> 0 | AM128: =VLOOKUP(AM$115&$U128,GTYF!$C:$AQ,37,FALSE) -> 0 | AN128: =VLOOKUP(AN$115&$U128,GTYF!$C:$AQ,37,FALSE) -> 0 | AO128: =VLOOKUP(AO$115&$U128,GTYF!$C:$AQ,37,FALSE) -> 0 | AP128: =VLOOKUP(AP$115&$U128,GTYF!$C:$AQ,37,FALSE) -> 0 | AQ128: =VLOOKUP(AQ$115&$U128,GTYF!$C:$AQ,37,FALSE) -> 0 | AR128: =VLOOKUP(AR$115&$U128,GTYF!$C:$AQ,37,FALSE) -> 0 | AS128: =VLOOKUP(AS$115&$U128,GTYF!$C:$AQ,37,FALSE) -> 10356.886 | AT128: =VLOOKUP(AT$115&$U128,GTYF!$C:$AQ,37,FALSE) -> 0 | AU128: =VLOOKUP(AU$115&$U128,GTYF!$C:$AQ,37,FALSE) -> 0 | AV128: =VLOOKUP(AV$115&$U128,GTYF!$C:$AQ,37,FALSE) -> 0 | AW128: =VLOOKUP(AW$115&$U128,GTYF!$C:$AQ,37,FALSE) -> 0 | AX128: =VLOOKUP(AX$115&$U128,GTYF!$C:$AQ,37,FALSE) -> 0 | AY128: =VLOOKUP(AY$115&$U128,GTYF!$C:$AQ,37,FALSE) -> 0 | AZ128: 10356.886 | BA128: =VLOOKUP(BA$115&$U128,GTYF!$C:$AQ,37,FALSE) -> 164.754
B129: Sapinières | E129: - | F129: - | G129: - | H129: 149.1160908 | I129: 119.6093307 | J129: 113.1133859 | M129: =IFERROR(($AF129+$AG129+$AH129+$AI129)/$AJ129*5,"-") -> 149.1160908 | N129: 119.6093307 | S129: Tableau 9. | T129: Sapinières | U129: (FCTYF_SAB) | V129: =VLOOKUP(V$115&$U129,GTYF!$C:$AQ,37,FALSE) -> 2817.416 | W129: =VLOOKUP(W$115&$U129,GTYF!$C:$AQ,6,FALSE) -> 65581.5 | X129: =VLOOKUP(X$115&$U129,GTYF!$C:$AQ,37,FALSE) -> 322004.634 | Y129: =VLOOKUP(Y$115&$U129,GTYF!$C:$AQ,37,FALSE) -> 2846742.068 | Z129: =VLOOKUP(Z$115&$U129,GTYF!$C:$AQ,37,FALSE) -> 336989.242 | AA129: =VLOOKUP(AA$115&$U129,GTYF!$C:$AQ,37,FALSE) -> 0 | AB129: =VLOOKUP(AB$115&$U129,GTYF!$C:$AQ,37,FALSE) -> 0 | AC129: =VLOOKUP(AC$115&$U129,GTYF!$C:$AQ,37,FALSE) -> 0 | AD129: =VLOOKUP(AD$115&$U129,GTYF!$C:$AQ,37,FALSE) -> 2817.416 | AE129: =VLOOKUP(AE$115&$U129,GTYF!$C:$AQ,37,FALSE) -> 0 | AF129: =VLOOKUP(AF$115&$U129,GTYF!$C:$AQ,37,FALSE) -> 84024.412 | AG129: =VLOOKUP(AG$115&$U129,GTYF!$C:$AQ,37,FALSE) -> 0 | AH129: =VLOOKUP(AH$115&$U129,GTYF!$C:$AQ,37,FALSE) -> 0 | AI129: =VLOOKUP(AI$115&$U129,GTYF!$C:$AQ,37,FALSE) -> 0 | AJ129: =VLOOKUP(AJ$115&$U129,GTYF!$C:$AQ,37,FALSE) -> 2817.416 | AK129: =VLOOKUP(AK$115&$U129,GTYF!$C:$AQ,37,FALSE) -> 0 | AM129: =VLOOKUP(AM$115&$U129,GTYF!$C:$AQ,37,FALSE) -> 0 | AN129: =VLOOKUP(AN$115&$U129,GTYF!$C:$AQ,37,FALSE) -> 0 | AO129: =VLOOKUP(AO$115&$U129,GTYF!$C:$AQ,37,FALSE) -> 0 | AP129: =VLOOKUP(AP$115&$U129,GTYF!$C:$AQ,37,FALSE) -> 0 | AQ129: =VLOOKUP(AQ$115&$U129,GTYF!$C:$AQ,37,FALSE) -> 0 | AR129: =VLOOKUP(AR$115&$U129,GTYF!$C:$AQ,37,FALSE) -> 0 | AS129: =VLOOKUP(AS$115&$U129,GTYF!$C:$AQ,37,FALSE) -> 0 | AT129: =VLOOKUP(AT$115&$U129,GTYF!$C:$AQ,37,FALSE) -> 0 | AU129: =VLOOKUP(AU$115&$U129,GTYF!$C:$AQ,37,FALSE) -> 0 | AV129: =VLOOKUP(AV$115&$U129,GTYF!$C:$AQ,37,FALSE) -> 0 | AW129: =VLOOKUP(AW$115&$U129,GTYF!$C:$AQ,37,FALSE) -> 0 | AX129: =VLOOKUP(AX$115&$U129,GTYF!$C:$AQ,37,FALSE) -> 0 | AY129: =VLOOKUP(AY$115&$U129,GTYF!$C:$AQ,37,FALSE) -> 0 | AZ129: 0 | BA129: =VLOOKUP(BA$115&$U129,GTYF!$C:$AQ,37,FALSE) -> 0
S130: Tableau 9. | T130: Tous les GTYF | V130: =SUM(V116:V129) -> 11657.848 | W130: =SUM(W116:W129) -> 436591.6 | X130: 1074606.656 | Y130: 10157945.01 | Z130: 1139598.186 | AA130: 0 | AB130: 0 | AC130: 0 | AD130: 10027.85 | AE130: 0 | AF130: 319851.618 | AG130: 0 | AH130: 0 | AI130: 0 | AJ130: 10027.85 | AK130: 0
L131: Les statistiques portants sur les coupes partielles proviennent d'un Script R et sont disponibles ici:
L132: T:\Donnees\02_Courant\01_CPF\01_UA\0XXXX\70_Determination\72_Rapport\01_Cahier_DET\Tableau_9
B134: Tableau 10. Traitements non commerciaux supportant les possibilités forestières
B135: Traitements non commerciaux | F135: Superficie annuelle moyenne (ha/an) | G135: Superficie antérieure (ha/an) | H135: Écart (ha/an) | X135: Exemple U03772
K138: Le texte en rouge demande à l'analyste de valider la nature exacte du traitement et les superficies - variable selon la vague et l'UA - veuillez ensuite mettre en noir et supprimer la remarque si elle ne s'applique pas (si DEG_1 ne contient pas de regarni)
B139: Ligniculture (essences à croissance rapide) | F139: =ROUND(V139,-1) -> 0 | G139: =IFERROR(ROUND(VLOOKUP(O33,DataLocal!$A:$BH,47,FALSE),-1),0) -> 0 | H139: =F139-G139 -> 0 | S139: =LEFT(B$134,11) -> Tableau 10. | T139: Plantation ligniculture (pins, feuillus) | U139: OSUPPL_PPF | V139: =IFERROR(VLOOKUP(U139,Output!C:AQ,37,FALSE),0)/5 -> 0
B140: Plantation intensive (2 000 plants/ha) | F140: =ROUND(V140,-1) -> 0 | G140: =IFERROR(ROUND(VLOOKUP(O33,DataLocal!$A:$BH,48,FALSE),-1),0) -> 40 | H140: =F140-G140 -> -40 | S140: =LEFT(B$134,11) -> Tableau 10. | T140: Plantation intensive | U140: OSUPPL_SEPM_I | V140: =IFERROR(VLOOKUP(U140,Output!C:AQ,37,FALSE),0)/5 -> 0
B141: Plantation de base (1 600 plants/ha) | F141: =ROUND(V141,-1) -> 0 | G141: =IFERROR(ROUND(VLOOKUP(O33,DataLocal!$A:$BH,49,FALSE),-1),0) -> 20 | H141: -20 | S141: Tableau 10. | T141: Plantation de base | U141: OSUPPL_SEPM_E | V141: =IFERROR(VLOOKUP(U141,Output!C:AQ,37,FALSE),0)/5 -> 0
B142: Regarni | F142: =ROUND(V142,-1) -> 0 | G142: =IFERROR(ROUND(VLOOKUP(O33,DataLocal!$A:$BH,50,FALSE),-1),0) -> 0 | H142: 0 | S142: Tableau 10. | T142: Regarni | U142: OSUPREG | V142: =IFERROR(VLOOKUP(U142,Output!C:AQ,37,FALSE),0)/5 -> 0
B143: % des plantations dans les coupes totales | F143: =IFERROR(SUM(F139:F141)/G92,0) -> 0 | G143: =IFERROR(SUM(G139:G141)/H92,0) -> 0.01680672269 | H143: -0.01680672269 | S143: Tableau 10.
B144: Total des travaux de reboisement | F144: =ROUND(SUM(F139:F142),-1) -> 0 | G144: =ROUND(SUM(G139:G142),-1) -> 60 | H144: -60 | S144: Tableau 10.
B145: Nettoiement (régénération naturelle et plantation) | F145: =ROUND(V145,-1) -> 0 | G145: =IFERROR(ROUND(VLOOKUP(O33,DataLocal!$A:$BH,51,FALSE),-1),0) -> 30 | H145: -30 | S145: Tableau 10. | T145: Nettoiement | U145: OSUPREALNET | V145: =IFERROR(VLOOKUP(U145,Output!C:AQ,37,FALSE),0)/5 -> 0
B146: Éclaircie précommerciale | F146: =ROUND(V146,-1) -> 0 | G146: =IFERROR(ROUND(VLOOKUP(O33,DataLocal!$A:$BH,52,FALSE),-1),0) -> 0 | H146: 0 | S146: Tableau 10. | T146: Éclaircie précommerciale de la régénération naturelle | U146: OSUPREALEPC | V146: =IFERROR(VLOOKUP(U146,Output!C:AQ,37,FALSE),0)/5 -> 0 | X146: Exemple U09751
B147: Dégagement de la régénération naturelle (et regarni) | F147: =ROUND(V147,-1) -> 0 | G147: =IFERROR(ROUND(VLOOKUP(O33,DataLocal!$A:$BH,53,FALSE),-1),0) -> 0 | H147: 0 | S147: Tableau 10. | T147: Dégagement de la régénération naturelle | U147: OSUPDEG_2 | V147: =IFERROR(VLOOKUP(U147,Output!C:AQ,37,FALSE),0)/5 -> 0
B148: Dégagement des plantations* | F148: =ROUND(V148,-1) -> 0 | G148: =IFERROR(ROUND(VLOOKUP(O33,DataLocal!$A:$BH,54,FALSE),-1),0) -> 40 | H148: -40 | S148: Tableau 10. | T148: Dégagement de plantation | U148: OSUPDEG_1 | V148: =IFERROR(VLOOKUP(U148,Output!C:AQ,37,FALSE),0)/5 -> 0
B149: Élagage | F149: =ROUND(V149,-1) -> 0 | G149: =IFERROR(ROUND(VLOOKUP(O33,DataLocal!$A:$BN,66,FALSE),-1),0) -> 0 | H149: 0 | S149: Tableau 10. | T149: Élagage (plantation) | U149: OSUPELAG | V149: =IFERROR(VLOOKUP(U149,Output!C:AQ,37,FALSE),0)/5 -> 0
B150: Total des travaux d'éducation | F150: =SUM(F145:F149) -> 0 | G150: =SUM(G145:G149) -> 70 | H150: -70 | S150: Tableau 10. | U150: OSUPSCA_LIGN | V150: =IFERROR(VLOOKUP(U150,Output!C:AQ,37,FALSE),0)/5 -> 0
B151: Scarifiage partiel | F151: =ROUND(V152,-1) -> 0 | G151: =IFERROR(ROUND(VLOOKUP(O33,DataLocal!$A:$BH,58,FALSE),-1),0) -> 0 | H151: 0 | S151: Tableau 10. | U151: OSUPSCA_LRD | V151: =IFERROR(VLOOKUP(U151,Output!C:AQ,37,FALSE),0)/5 -> 0
B152: Scarifiage en plein | F152: =ROUND(V153+V150+V151,-1) -> 0 | G152: =IFERROR(ROUND(VLOOKUP(O33,DataLocal!$A:$BH,59,FALSE),-1),0) -> 140 | H152: -140 | S152: Tableau 10. | U152: OSUPSCA_PART | V152: =IFERROR(VLOOKUP(U152,Output!C:AQ,37,FALSE),0)/5 -> 0
B153: Total de la préparation de terrain | F153: =IFERROR(SUM(F151:F152),0) -> 0 | G153: =IFERROR(SUM(G151:G152),0) -> 140 | H153: -140 | S153: Tableau 10. | U153: OSUPSCA_REG | V153: =IFERROR(VLOOKUP(U153,Output!C:AQ,37,FALSE),0)/5 -> 0
B154: Total des travaux sans récolte | F154: =F153+F150+F144 -> 0 | G154: =G153+G150+G144 -> 270 | H154: -270
B155: * Peut aussi comprendre du dégagement de regarni
B160: Tableau 13 : Variation du volume sur pied à court, moyen et long terme | L160: % du volume total | U160: colonne | V160: 37 | W160: 38 | X160: 39 | Y160: 40 | AF160: 37 | AG160: 38 | AH160: 39 | AI160: 40
B161: Essences | C161: Volume moyen sur pied (m3) | G161: Volume moyen sur pied (%) | V161: Volume moyen sur pied (m3) | Z161: Volume moyen sur pied (%) | AF161: Volume dans courbe SNAT
C162: 2023 à 2048 | D162: 2048 à 2073 | E162: 2073 à 2118 | F162: 2118 à 2168 | G162: =C162 -> 2023 à 2048 | H162: =D162 -> 2048 à 2073 | I162: 2073 à 2118 | J162: 2118 à 2168 | L162: 2023 à 2048 | T162: Légende | U162: Name | V162: p 2 à 6 | W162: p 7 à 11 | X162: p 12 à 20 | Y162: p 21 à 30 | Z162: p 2 à 6 | AA162: p 7 à 11 | AB162: p 12 à 20 | AC162: p 21 à 30 | AE162: Name | AF162: p 2 à 6 | AG162: p 7 à 11 | AH162: p 12 à 20 | AI162: p 21 à 30
B163: =T163 -> Sapin baumier | C163: =ROUND(V163-AF163,-2) -> 5274100 | D163: =ROUND(W163-AG163,-2) -> 5706700 | E163: 6351400 | F163: 6584300 | G163: =C163/C$177 -> 0.1583447671 | H163: =D163/D$177 -> 0.1811886627 | I163: =E163/E$177 -> 0.2073682767 | J163: =F163/F$177 -> 0.2197183569 | L163: =C163/C$177 -> 0.1583447671 | S163: =LEFT(B$160,11) -> Tableau 13 | T163: Sapin baumier | U163: OVOLSABPIEDINC | V163: =VLOOKUP($U163,Output!$C:$AQ,V$160,FALSE) -> 5359535.028 | W163: =VLOOKUP($U163,Output!$C:$AQ,W$160,FALSE) -> 5818440.926 | X163: =VLOOKUP($U163,Output!$C:$AQ,X$160,FALSE) -> 6480132.106 | Y163: =VLOOKUP($U163,Output!$C:$AQ,Y$160,FALSE) -> 6709973.582 | Z163: =V163/V$178 -> 0.1483182944 | AA163: =W163/W$178 -> 0.1694254403 | AB163: =X163/X$178 -> 0.1904932475 | AC163: =Y163/Y$178 -> 0.1980637797 | AE163: OVOLSABPIEDSNAT | AF163: =VLOOKUP($AE163,Output!$C:$AQ,AF$160,FALSE) -> 85433.76 | AG163: =VLOOKUP($AE163,Output!$C:$AQ,AG$160,FALSE) -> 111759.414 | AH163: =VLOOKUP($AE163,Output!$C:$AQ,AH$160,FALSE) -> 128764.7856 | AI163: =VLOOKUP($AE163,Output!$C:$AQ,AI$160,FALSE) -> 125692.14
B164: =T164 -> Épinettes | C164: =ROUND(V164-AF164,-2) -> 25610400 | D164: 23084700 | E164: 21371800 | F164: 21212300 | G164: 0.7689032866 | H164: 0.732943018 | I164: 0.69777267 | J164: 0.7078553075 | L164: 0.7689032866 | S164: Tableau 13 | T164: Épinettes | U164: OVOLgEpxPIEDINC | V164: =VLOOKUP($U164,Output!$C:$AQ,V$160,FALSE) -> 28104302.04 | W164: =VLOOKUP($U164,Output!$C:$AQ,W$160,FALSE) -> 25598064.68 | X164: =VLOOKUP($U164,Output!$C:$AQ,X$160,FALSE) -> 24421896.79 | Y164: =VLOOKUP($U164,Output!$C:$AQ,Y$160,FALSE) -> 24711601.31 | Z164: 0.7777507044 | AA164: 0.745382386 | AB164: 0.717918455 | AC164: 0.7294325527 | AE164: OVOLgEpxPIEDSNAT | AF164: =VLOOKUP($AE164,Output!$C:$AQ,AF$160,FALSE) -> 2493882.11 | AG164: =VLOOKUP($AE164,Output!$C:$AQ,AG$160,FALSE) -> 2513396.598 | AH164: =VLOOKUP($AE164,Output!$C:$AQ,AH$160,FALSE) -> 3050071.682 | AI164: =VLOOKUP($AE164,Output!$C:$AQ,AI$160,FALSE) -> 3499326.096
B165: =T165 -> Pin gris | C165: 1266500 | D165: 1703300 | E165: 1747300 | F165: 825800 | G165: 0.03802424064 | H165: 0.05408005486 | I165: 0.05704798783 | J165: 0.02755697934 | L165: 0.03802424064 | S165: Tableau 13 | T165: Pin gris | U165: OVOLgPgPIEDINC | V165: =VLOOKUP($U165,Output!$C:$AQ,V$160,FALSE) -> 1435209.58 | W165: =VLOOKUP($U165,Output!$C:$AQ,W$160,FALSE) -> 1853640.642 | X165: =VLOOKUP($U165,Output!$C:$AQ,X$160,FALSE) -> 1890084.367 | Y165: =VLOOKUP($U165,Output!$C:$AQ,Y$160,FALSE) -> 1019656.573 | Z165: 0.03971759413 | AA165: 0.0539756072 | AB165: 0.05556187794 | AC165: 0.03009803725 | AE165: OVOLgPgPIEDSNAT | AF165: =VLOOKUP($AE165,Output!$C:$AQ,AF$160,FALSE) -> 168672.898 | AG165: =VLOOKUP($AE165,Output!$C:$AQ,AG$160,FALSE) -> 150329.324 | AH165: =VLOOKUP($AE165,Output!$C:$AQ,AH$160,FALSE) -> 142743.7678 | AI165: =VLOOKUP($AE165,Output!$C:$AQ,AI$160,FALSE) -> 193864.733
B166: =T166 -> Mélèzes | C166: 66900 | D166: 67600 | E166: 95200 | F166: 115700 | G166: 0.002008544571 | H166: 0.002146311107 | I166: 0.003108206056 | J166: 0.003860913672 | L166: 0.002008544571 | S166: Tableau 13 | T166: Mélèzes | U166: OVOLgMlPIEDINC | V166: =VLOOKUP($U166,Output!$C:$AQ,V$160,FALSE) -> 140564.238 | W166: =VLOOKUP($U166,Output!$C:$AQ,W$160,FALSE) -> 133156.742 | X166: =VLOOKUP($U166,Output!$C:$AQ,X$160,FALSE) -> 157639.42 | Y166: =VLOOKUP($U166,Output!$C:$AQ,Y$160,FALSE) -> 200355.586 | Z166: 0.003889935959 | AA166: 0.003877351326 | AB166: 0.004634048282 | AC166: 0.005914059744 | AE166: OVOLGMlPIEDSNAT | AF166: =VLOOKUP($AE166,Output!$C:$AQ,AF$160,FALSE) -> 73676.826 | AG166: =VLOOKUP($AE166,Output!$C:$AQ,AG$160,FALSE) -> 65518.18 | AH166: =VLOOKUP($AE166,Output!$C:$AQ,AH$160,FALSE) -> 62419.27889 | AI166: =VLOOKUP($AE166,Output!$C:$AQ,AI$160,FALSE) -> 84704.171
B167: Thuya | C167: =ROUND(V167-AF167,-2) -> 800 | D167: 500 | E167: 500 | F167: 700 | G167: 2.40184702e-05 | H167: 1.587508215e-05 | I167: 1.632461164e-05 | J167: 2.335902826e-05 | L167: 2.40184702e-05 | S167: Tableau 13 | T167: Thuya | U167: OVOLTHOPIEDINC | V167: =VLOOKUP($U167,Output!$C:$AQ,V$160,FALSE) -> 781.4 | W167: =VLOOKUP($U167,Output!$C:$AQ,W$160,FALSE) -> 511.95 | X167: =VLOOKUP($U167,Output!$C:$AQ,X$160,FALSE) -> 545.0255556 | Y167: =VLOOKUP($U167,Output!$C:$AQ,Y$160,FALSE) -> 696.605 | Z167: 2.162424811e-05 | AA167: 1.490731886e-05 | AB167: 1.602184745e-05 | AC167: 2.056225968e-05 | AE167: OVOLTHOPIEDSNAT | AF167: =VLOOKUP($AE167,Output!$C:$AQ,AF$160,FALSE) -> 0 | AG167: =VLOOKUP($AE167,Output!$C:$AQ,AG$160,FALSE) -> 0 | AH167: =VLOOKUP($AE167,Output!$C:$AQ,AH$160,FALSE) -> 0 | AI167: =VLOOKUP($AE167,Output!$C:$AQ,AI$160,FALSE) -> 0
B168: Pruche | C168: 0 | D168: 0 | E168: 0 | F168: 0 | G168: 0 | H168: 0 | I168: 0 | J168: 0 | L168: 0 | S168: Tableau 13 | T168: Pruche | U168: OVOLPRUPIEDINC | V168: =VLOOKUP($U168,Output!$C:$AQ,V$160,FALSE) -> 0 | W168: =VLOOKUP($U168,Output!$C:$AQ,W$160,FALSE) -> 0 | X168: =VLOOKUP($U168,Output!$C:$AQ,X$160,FALSE) -> 0 | Y168: =VLOOKUP($U168,Output!$C:$AQ,Y$160,FALSE) -> 0 | Z168: 0 | AA168: 0 | AB168: 0 | AC168: 0 | AE168: OVOLPRUPIEDSNAT | AF168: =VLOOKUP($AE168,Output!$C:$AQ,AF$160,FALSE) -> 0 | AG168: =VLOOKUP($AE168,Output!$C:$AQ,AG$160,FALSE) -> 0 | AH168: =VLOOKUP($AE168,Output!$C:$AQ,AH$160,FALSE) -> 0 | AI168: =VLOOKUP($AE168,Output!$C:$AQ,AI$160,FALSE) -> 0
B169: Pins blanc et rouge | C169: 400 | D169: 400 | E169: 300 | F169: 400 | G169: 1.20092351e-05 | H169: 1.270006572e-05 | I169: 9.794766982e-06 | J169: 1.334801615e-05 | L169: 1.20092351e-05 | S169: Tableau 13 | T169: Pins blanc et rouge | U169: OVOLGPINSPIEDINC | V169: =VLOOKUP($U169,Output!$C:$AQ,V$160,FALSE) -> 440.952 | W169: =VLOOKUP($U169,Output!$C:$AQ,W$160,FALSE) -> 358.052 | X169: =VLOOKUP($U169,Output!$C:$AQ,X$160,FALSE) -> 338.1855556 | Y169: =VLOOKUP($U169,Output!$C:$AQ,Y$160,FALSE) -> 368.355 | Z169: 1.220278405e-05 | AA169: 1.042600905e-05 | AB169: 9.941473983e-06 | AC169: 1.087303589e-05 | AE169: OVOLGPINSCPIEDSNAT | AF169: =VLOOKUP($AE169,Output!$C:$AQ,AF$160,FALSE) -> 0 | AG169: =VLOOKUP($AE169,Output!$C:$AQ,AG$160,FALSE) -> 0 | AH169: =VLOOKUP($AE169,Output!$C:$AQ,AH$160,FALSE) -> 0 | AI169: =VLOOKUP($AE169,Output!$C:$AQ,AI$160,FALSE) -> 0
B170: Peupliers | C170: 240500 | D170: 209700 | E170: 221400 | F170: 235600 | G170: 0.007220552605 | H170: 0.006658009455 | I170: 0.007228538033 | J170: 0.007861981513 | L170: 0.007220552605 | S170: Tableau 13 | T170: Peupliers | U170: OVOLGPEUPIEDINC | V170: =VLOOKUP($U170,Output!$C:$AQ,V$160,FALSE) -> 240507.94 | W170: =VLOOKUP($U170,Output!$C:$AQ,W$160,FALSE) -> 209710.736 | X170: =VLOOKUP($U170,Output!$C:$AQ,X$160,FALSE) -> 221394.41 | Y170: =VLOOKUP($U170,Output!$C:$AQ,Y$160,FALSE) -> 235570.027 | Z170: 0.006655750406 | AA170: 0.006106504171 | AB170: 0.006508222279 | AC170: 0.006953513208 | AE170: OVOLPEUPIEDSNAT | AF170: =VLOOKUP($AE170,Output!$C:$AQ,AF$160,FALSE) -> 0 | AG170: =VLOOKUP($AE170,Output!$C:$AQ,AG$160,FALSE) -> 0 | AH170: =VLOOKUP($AE170,Output!$C:$AQ,AH$160,FALSE) -> 0 | AI170: =VLOOKUP($AE170,Output!$C:$AQ,AI$160,FALSE) -> 0
B171: Bouleau à papier | C171: 841300 | D171: 717300 | E171: 833700 | F171: 985400 | G171: 0.02525842373 | H171: 0.02277439286 | I171: 0.02721965744 | J171: 0.03288283779 | L171: 0.02525842373 | S171: Tableau 13 | T171: Bouleau à papier | U171: OVOLgBpPIEDINC | V171: =VLOOKUP($U171,Output!$C:$AQ,V$160,FALSE) -> 847248.644 | W171: =VLOOKUP($U171,Output!$C:$AQ,W$160,FALSE) -> 722587.81 | X171: =VLOOKUP($U171,Output!$C:$AQ,X$160,FALSE) -> 838712.49 | Y171: =VLOOKUP($U171,Output!$C:$AQ,Y$160,FALSE) -> 992657.444 | Z171: 0.02344652533 | AA171: 0.02104081822 | AB171: 0.02465521742 | AC171: 0.02930108187 | AE171: OVOLgBpPIEDSNAT | AF171: =VLOOKUP($AE171,Output!$C:$AQ,AF$160,FALSE) -> 5956.85 | AG171: =VLOOKUP($AE171,Output!$C:$AQ,AG$160,FALSE) -> 5329.814 | AH171: =VLOOKUP($AE171,Output!$C:$AQ,AH$160,FALSE) -> 5034.594444 | AI171: =VLOOKUP($AE171,Output!$C:$AQ,AI$160,FALSE) -> 7253.632
B172: Bouleau jaune | C172: 300 | D172: 300 | E172: 400 | F172: 900 | G172: 9.006926326e-06 | H172: 9.525049292e-06 | I172: 1.305968931e-05 | J172: 3.003303634e-05 | L172: 9.006926326e-06 | S172: Tableau 13 | T172: Bouleau jaune | U172: OVOLBOJPIEDINC | V172: =VLOOKUP($U172,Output!$C:$AQ,V$160,FALSE) -> 327.846 | W172: =VLOOKUP($U172,Output!$C:$AQ,W$160,FALSE) -> 291.336 | X172: =VLOOKUP($U172,Output!$C:$AQ,X$160,FALSE) -> 434.0477778 | Y172: =VLOOKUP($U172,Output!$C:$AQ,Y$160,FALSE) -> 933.064 | Z172: 9.072719793e-06 | AA172: 8.483325809e-06 | AB172: 1.275948845e-05 | AC172: 2.754201343e-05 | AE172: OVOLBOJPIEDSNAT | AF172: =VLOOKUP($AE172,Output!$C:$AQ,AF$160,FALSE) -> 0 | AG172: =VLOOKUP($AE172,Output!$C:$AQ,AG$160,FALSE) -> 0 | AH172: =VLOOKUP($AE172,Output!$C:$AQ,AH$160,FALSE) -> 0 | AI172: =VLOOKUP($AE172,Output!$C:$AQ,AI$160,FALSE) -> 0
B173: Érable rouge | C173: 6300 | D173: 5300 | E173: 6400 | F173: 6000 | G173: 0.0001891454529 | H173: 0.0001682758708 | I173: 0.000208955029 | J173: 0.0002002202423 | L173: 0.0001891454529 | S173: Tableau 13 | T173: Érable rouge | U173: OVOLgEroPIEDINC | V173: =VLOOKUP($U173,Output!$C:$AQ,V$160,FALSE) -> 6321.904 | W173: =VLOOKUP($U173,Output!$C:$AQ,W$160,FALSE) -> 5341.496 | X173: =VLOOKUP($U173,Output!$C:$AQ,X$160,FALSE) -> 6393.385556 | Y173: =VLOOKUP($U173,Output!$C:$AQ,Y$160,FALSE) -> 5951.404 | Z173: 0.0001749506279 | AA173: 0.0001555374237 | AB173: 0.000187943202 | AC173: 0.0001756724607 | AE173: OVOLgEroPIEDSNAT | AF173: =VLOOKUP($AE173,Output!$C:$AQ,AF$160,FALSE) -> 0 | AG173: =VLOOKUP($AE173,Output!$C:$AQ,AG$160,FALSE) -> 0 | AH173: =VLOOKUP($AE173,Output!$C:$AQ,AH$160,FALSE) -> 0 | AI173: =VLOOKUP($AE173,Output!$C:$AQ,AI$160,FALSE) -> 0
B174: Érable à sucre | C174: 0 | D174: 0 | E174: 0 | F174: 0 | G174: 0 | H174: 0 | I174: 0 | J174: 0 | L174: 0 | S174: Tableau 13 | T174: Érable à sucre | U174: OVOLERSPIEDINC | V174: =VLOOKUP($U174,Output!$C:$AQ,V$160,FALSE) -> 0 | W174: =VLOOKUP($U174,Output!$C:$AQ,W$160,FALSE) -> 0 | X174: =VLOOKUP($U174,Output!$C:$AQ,X$160,FALSE) -> 0 | Y174: =VLOOKUP($U174,Output!$C:$AQ,Y$160,FALSE) -> 0 | Z174: 0 | AA174: 0 | AB174: 0 | AC174: 0 | AE174: OVOLERSPIEDSNAT | AF174: =VLOOKUP($AE174,Output!$C:$AQ,AF$160,FALSE) -> 0 | AG174: =VLOOKUP($AE174,Output!$C:$AQ,AG$160,FALSE) -> 0 | AH174: =VLOOKUP($AE174,Output!$C:$AQ,AH$160,FALSE) -> 0 | AI174: =VLOOKUP($AE174,Output!$C:$AQ,AI$160,FALSE) -> 0
B175: Autres feuillus durs | C175: =ROUND(V175-AF175,-2) -> 100 | D175: 100 | E175: 100 | F175: 100 | G175: 3.002308775e-06 | H175: 3.175016431e-06 | I175: 3.264922327e-06 | J175: 3.337004038e-06 | L175: 3.002308775e-06 | S175: Tableau 13 | T175: Autres feuillus durs | V175: =V178-V176-V174-V173-V172-V171-V170-V169-V168-V167 -> 120.876 | W175: =W178-W176-W174-W173-W172-W171-W170-W169-W168-W167 -> 87.18399999 | X175: =X178-X176-X174-X173-X172-X171-X170-X169-X168-X167 -> 77.06888888 | Y175: =Y178-Y176-Y174-Y173-Y172-Y171-Y170-Y169-Y168-Y167 -> 78.79399999 | Z175: 3.34508909e-06 | AA175: 2.538684808e-06 | AB175: 2.265556116e-06 | AC175: 2.32582696e-06 | AE175: Autres feuillus durs | AF175: =AF178-AF176-AF174-AF173-AF172-AF171-AF170-AF169-AF168-AF167 -> 9.367795428e-11 | AG175: =AG178-AG176-AG174-AG173-AG172-AG171-AG170-AG169-AG168-AG167 -> -2.200977178e-10 | AH175: =AH178-AH176-AH174-AH173-AH172-AH171-AH170-AH169-AH168-AH167 -> -0.002222222317 | AI175: =AI178-AI176-AI174-AI173-AI172-AI171-AI170-AI169-AI168-AI167 -> -0.0009999994818
B176: Autres essences | C176: =IF($L$163<0.0095,C163,0)+IF($L$164<0.0095,C164,0)+IF($L$165<0.0095,C165,0)+IF($L$166<0.0095,C166,0)+IF($L$167<0.0095,C167,0)+IF($L$168<0.0095,C168,0)+IF($L$169<0.0095,C169,0)+IF($L$170<0.0095,C170,0)+IF($L$171<0.0095,C171,0)+IF($L$172<0.0095,C172,0)+IF($L$173<0.0095,C173,0)+IF($L$174<0.0095,C174+0)+IF($L$175<0.0095,C175,0) -> 315300 | D176: =IF($L$163<0.0095,D163,0)+IF($L$164<0.0095,D164,0)+IF($L$165<0.0095,D165,0)+IF($L$166<0.0095,D166,0)+IF($L$167<0.0095,D167,0)+IF($L$168<0.0095,D168,0)+IF($L$169<0.0095,D169,0)+IF($L$170<0.0095,D170,0)+IF($L$171<0.0095,D171,0)+IF($L$172<0.0095,D172,0)+IF($L$173<0.0095,D173,0)+IF($L$174<0.0095,D174+0)+IF($L$175<0.0095,D175,0) -> 283900 | E176: =IF($L$163<0.0095,E163,0)+IF($L$164<0.0095,E164,0)+IF($L$165<0.0095,E165,0)+IF($L$166<0.0095,E166,0)+IF($L$167<0.0095,E167,0)+IF($L$168<0.0095,E168,0)+IF($L$169<0.0095,E169,0)+IF($L$170<0.0095,E170,0)+IF($L$171<0.0095,E171,0)+IF($L$172<0.0095,E172,0)+IF($L$173<0.0095,E173,0)+IF($L$174<0.0095,E174+0)+IF($L$175<0.0095,E175,0) -> 324300 | F176: =IF($L$163<0.0095,F163,0)+IF($L$164<0.0095,F164,0)+IF($L$165<0.0095,F165,0)+IF($L$166<0.0095,F166,0)+IF($L$167<0.0095,F167,0)+IF($L$168<0.0095,F168,0)+IF($L$169<0.0095,F169,0)+IF($L$170<0.0095,F170,0)+IF($L$171<0.0095,F171,0)+IF($L$172<0.0095,F172,0)+IF($L$173<0.0095,F173,0)+IF($L$174<0.0095,F174+0)+IF($L$175<0.0095,F175,0) -> 359400 | G176: 0.009466279569 | H176: 0.009013871647 | I176: 0.01058814311 | J176: 0.01199319251 | L176: 0.009466279569 | S176: Tableau 13 | T176: SEPM | U176: OVOLGSEPMPIEDINC | V176: =VLOOKUP($U176,Output!$C:$AQ,V$160,FALSE) -> 35039610.89 | W176: =VLOOKUP($U176,Output!$C:$AQ,W$160,FALSE) -> 33403303 | X176: =VLOOKUP($U176,Output!$C:$AQ,X$160,FALSE) -> 32949752.68 | Y176: =VLOOKUP($U176,Output!$C:$AQ,Y$160,FALSE) -> 32641587.05 | Z176: 0.9696765288 | AA176: 0.9726607848 | AB176: 0.9686076287 | AC176: 0.9635084293 | AE176: OVOLgSEPMPIEDSNAT | AF176: =VLOOKUP($AE176,Output!$C:$AQ,AF$160,FALSE) -> 2821665.6 | AG176: =VLOOKUP($AE176,Output!$C:$AQ,AG$160,FALSE) -> 2841003.514 | AH176: =VLOOKUP($AE176,Output!$C:$AQ,AH$160,FALSE) -> 3383999.517 | AI176: =VLOOKUP($AE176,Output!$C:$AQ,AI$160,FALSE) -> 3903587.139
B177: Total | C177: =ROUND(V178-AF178,-2) -> 33307700 | D177: =ROUND(W178-AG178,-2) -> 31495900 | E177: =ROUND(X178-AH178,-2) -> 30628600 | F177: =ROUND(Y178-AI178,-2) -> 29967000 | G177: 1 | H177: 1 | I177: 1 | J177: 1 | S177: Tableau 13 | T177: FN - ERS BOJ | U177: OVOLGFNPIEDINC | V177: =VLOOKUP($U177,Output!$C:$AQ,V$160,FALSE) -> 120.882 | W177: =VLOOKUP($U177,Output!$C:$AQ,W$160,FALSE) -> 87.192 | X177: =VLOOKUP($U177,Output!$C:$AQ,X$160,FALSE) -> 77.06777778 | Y177: =VLOOKUP($U177,Output!$C:$AQ,Y$160,FALSE) -> 78.79 | Z177: 3.345255132e-06 | AA177: 2.538917758e-06 | AB177: 2.265523453e-06 | AC177: 2.325708889e-06 | AE177: OVOLgFnPIEDSNAT | AF177: =VLOOKUP($AE177,Output!$C:$AQ,AF$160,FALSE) -> 0 | AG177: =VLOOKUP($AE177,Output!$C:$AQ,AG$160,FALSE) -> 0 | AH177: =VLOOKUP($AE177,Output!$C:$AQ,AH$160,FALSE) -> 0 | AI177: =VLOOKUP($AE177,Output!$C:$AQ,AI$160,FALSE) -> 0
L178: Masquer les essences du tableau qui sont en surbrillance (< 1%) | S178: Tableau 13 | T178: TOT sur pied | U178: OVOLTOTPIEDINC | V178: =VLOOKUP($U178,Output!$C:$AQ,V$160,FALSE) -> 36135360.45 | W178: =VLOOKUP($U178,Output!$C:$AQ,W$160,FALSE) -> 34342191.56 | X178: =VLOOKUP($U178,Output!$C:$AQ,X$160,FALSE) -> 34017647.29 | Y178: =VLOOKUP($U178,Output!$C:$AQ,Y$160,FALSE) -> 33877842.75 | Z178: 1 | AA178: 1 | AB178: 1 | AC178: 1 | AE178: OVOLTOTPIEDSNAT | AF178: =VLOOKUP($AE178,Output!$C:$AQ,AF$160,FALSE) -> 2827622.45 | AG178: =VLOOKUP($AE178,Output!$C:$AQ,AG$160,FALSE) -> 2846333.328 | AH178: =VLOOKUP($AE178,Output!$C:$AQ,AH$160,FALSE) -> 3389034.109 | AI178: =VLOOKUP($AE178,Output!$C:$AQ,AI$160,FALSE) -> 3910840.77
L179: Ces volumes sont comptabilisés dans "Autres essences" | S179: Tableau 13 | T179: Érables à sucre et rouge
D182: P2 | E182: P3 | F182: P4 | G182: P5 | H182: P6
B183: Tableau 15 Statistiques sur les compartiments d’organisation spatiale admissibles à la récolte par période
B184: Compartiments d'organisation spatiale | D184: 2023-2028 | E184: 2028-2033 | F184: 2033-2038 | G184: 2038-2043 | H184: 2043-2048
B185: Nombre total | D185: =Cedule_COS!G6 -> 110
B186: En pessière | D186: =COUNTIF(Cedule_COS!$A$10:$A$1009,"<S*") -> 110 | J186: Fait la sommation automatique des COS débutant par la lettre "P" ou par "C", valider et corriger si nécessaire
B187: En sapinière | D187: =COUNTIF(Cedule_COS!$A$10:$A$1009,"S*") -> 0 | J187: Fait la sommation automatique des COS débutant par la lettre "S", valider et corriger si nécessaire
B188: Admissibles à la récolte | D188: =Cedule_COS!C7 -> 20 | E188: =Cedule_COS!D7 -> 30 | F188: =Cedule_COS!E7 -> 25 | G188: =Cedule_COS!F7 -> 25 | H188: =Cedule_COS!G7 -> 18
B189: % de compartiments admissibles | D189: =Cedule_COS!C8 -> 0.1818181818 | E189: =Cedule_COS!D8 -> 0.2727272727 | F189: =Cedule_COS!E8 -> 0.2272727273 | G189: =Cedule_COS!F8 -> 0.2272727273 | H189: =Cedule_COS!G8 -> 0.1636363636
B193: Tableau 17 Superficies considérées pour l'analyse de la mortalité d'ici la période 2023-2028 | S193: =LEFT(B$193,11) -> Tableau 17 | T193: Légende | V193: Output | W193: Valeur | X193: Période | Y193: Année
F194: ha | G194: % | S194: =LEFT(B$193,11) -> Tableau 17 | T194: Incluses aux activités de récolte | V194: OSUPINC | W194: =VLOOKUP($V194,Output!$C:$AQ,6,FALSE) -> 548947.4 | X194: P0 | Y194: 2018
B195: Épidémie sévère confirmée à la photo-interprétation | F195: 0 | G195: =F195/W$194 -> 0 | J195: Faire une sélection sur le thème 8 = "INC" et seulement les années correspondant à l'épidémie actuelle | S195: =LEFT(B$193,11) -> Tableau 17 | T195: Épidémie sévère confirmée à la photo-interprétation | V195: Requete dans la table d'attribut | W195: 0
B196: Défoliation cumulative (cote ≥ 15) | F196: =ROUND(W196,-1) -> 0 | G196: =F196/W$194 -> 0 | J196: Des champs avaient été ajoutés par l'analyste à la fin de table d'attribut de la carte woodstock | S196: =LEFT(B$193,11) -> Tableau 17 | T196: Défoliation cumulative projetée 2023 ≥ 15 | V196: OSUPINC15+ | W196: 0 | X196: P1 | Y196: 2023
B197: Mortalité projetée | F197: =ROUND(SUM(W197:W198),-1) -> 0 | G197: =F197/W$194 -> 0 | J197: et c'est sur ces derniers que doivent se réaliser les requêtes | S197: =LEFT(B$193,11) -> Tableau 17 | T197: Mortalité projetée (sommation des 2 actions) | V197: osupaTBEmort | W197: =VLOOKUP($V197,Output!$C:$AQ,8,FALSE) -> 0 | X197: P2 | Y197: 2028
B198: Récupération prévue 2018-2023 | F198: =-ROUND(W199,-1) -> 0 | G198: =F198/W$194 -> 0 | V198: Osupactiontberetard | W198: =VLOOKUP($V198,Output!$C:$AQ,8,FALSE) -> 0 | X198: P2 | Y198: 2028
S199: =LEFT(B$193,11) -> Tableau 17 | T199: Récolte prévue à court terme (récupération) | V199: osuprealregapre_15+ | W199: =VLOOKUP($V199,Output!$C:$AQ,7,FALSE) -> 0 | X199: P1 | Y199: 2023

Sheet Figures
B2: Figure 2. Répartition du volume de bois marchand sur pied en début de calcul (m3). | N2: Volume sur pied en P0 | S2: Source: CahierDetermination_2018-2023 | V2: Volume sur pied en P0 - volume en SNAT | Z2: Volume dans courbe SNAT
L3: Conserver les GTYF même s'ils sont absents de l'UA | S3: Intrants | T3: Légende | U3: Name | V3: PERIOD0 | W3: % | X3: PERIOD0 | Z3: Name | AB3: PERIOD0
N4: Total | O4: =V19 -> 36006600 | S4: =LEFT(B$2,10) -> Figure 2. | T4: Autres feuillus durs | V4: =ROUND(V19-V17-V11-V12-V10-V8-V9-V6-V5-V7,-2) -> 200 | W4: =IFERROR(V4/$V$19,0) -> 5.554537224e-06 | X4: =X19-X17-X11-X12-X10-X8-X9-X6-X5-X7 -> 155.17 | Z4: Autres feuillus durs | AB4: =ROUND(AB19-AB17-AB11-AB12-AB10-AB8-AB9-AB6-AB5-AB7,-2) -> 0
N5: % R | O5: =(V17+V12+V11+V10)/V19 -> 0.9641232441 | S5: Figure 2. | T5: Érable à sucre | U5: OVOLERSPIEDINC | V5: =ROUND(X5-AB5,-2) -> 0 | W5: 0 | X5: =VLOOKUP(U5,Output!$C:$AQ,6,FALSE) -> 0 | Z5: OVOLERSPIEDSNAT | AB5: =VLOOKUP(Z5,Output!$C:$AQ,6,FALSE) -> 0
N6: %SEPM | O6: =V17/V19 -> 0.9640843623 | S6: Figure 2. | T6: Érable rouge | U6: OVOLgEroPIEDINC | V6: 7700 | W6: 0.0002138496831 | X6: =VLOOKUP(U6,Output!$C:$AQ,6,FALSE) -> 7708.5 | Z6: OVOLgEroPIEDSNAT | AB6: =VLOOKUP(Z6,Output!$C:$AQ,6,FALSE) -> 0
N7: % Fi | O7: =W21 -> 0.03586286959 | P7: =O7*O4 -> 1291300 | S7: Figure 2. | T7: Bouleau jaune | U7: OVOLBOJPIEDINC | V7: 300 | W7: 8.331805836e-06 | X7: =VLOOKUP(U7,Output!$C:$AQ,6,FALSE) -> 337.79 | Z7: OVOLBOJPIEDSNAT | AB7: =VLOOKUP(Z7,Output!$C:$AQ,6,FALSE) -> 0
N8: % FT | O8: =W22 -> 1.388634306e-05 | S8: Figure 2. | T8: Bouleau à papier | U8: OVOLgBpPIEDINC | V8: 1017700 | W8: 0.02826426266 | X8: =VLOOKUP(U8,Output!$C:$AQ,6,FALSE) -> 1023167.48 | Z8: OVOLgBpPIEDSNAT | AB8: =VLOOKUP(Z8,Output!$C:$AQ,6,FALSE) -> 5486.57
N9: %Sapin | O9: =V16/V17 -> 0.153975122 | S9: Figure 2. | T9: Peupliers | U9: OVOLGPEUPIEDINC | V9: 265900 | W9: 0.007384757239 | X9: =VLOOKUP(U9,Output!$C:$AQ,6,FALSE) -> 265915.13 | Z9: OVOLPEUPIEDSNAT | AB9: =VLOOKUP(Z9,Output!$C:$AQ,6,FALSE) -> 0
N10: %ERR | O10: =IFERROR(V6/(V5+V6),0) -> 1 | S10: Figure 2. | T10: Pins blanc et rouge | U10: OVOLGPINSPIEDINC | V10: 500 | W10: 1.388634306e-05 | X10: =VLOOKUP(U10,Output!$C:$AQ,6,FALSE) -> 485.15 | Z10: OVOLGPINSCPIEDSNAT | AB10: =VLOOKUP(Z10,Output!$C:$AQ,6,FALSE) -> 0
S11: Figure 2. | T11: Pruche | U11: OVOLPRUPIEDINC | V11: 0 | W11: 0 | X11: =VLOOKUP(U11,Output!$C:$AQ,6,FALSE) -> 0 | Z11: OVOLPRUPIEDSNAT | AB11: =VLOOKUP(Z11,Output!$C:$AQ,6,FALSE) -> 0
N12: Volume sur pied au calcul 2015-2018 | P12: UA | S12: Figure 2. | T12: Thuya | U12: OVOLTHOPIEDINC | V12: 900 | W12: 2.499541751e-05 | X12: =VLOOKUP(U12,Output!$C:$AQ,6,FALSE) -> 892.39 | Z12: OVOLTHOPIEDSNAT | AB12: =VLOOKUP(Z12,Output!$C:$AQ,6,FALSE) -> 0
P13: =Tableaux!O33 -> 09352 | S13: Figure 2. | T13: Mélèzes | U13: OVOLgMlPIEDINC | V13: 67500 | W13: 0.001874656313 | X13: =VLOOKUP(U13,Output!$C:$AQ,6,FALSE) -> 132591.1 | Z13: OVOLGMlPIEDSNAT | AB13: =VLOOKUP(Z13,Output!$C:$AQ,6,FALSE) -> 65055.07
N14: Total | O14: =VLOOKUP(P13,DataLocal!$A:$BM,61,FALSE) -> 50031740 | S14: Figure 2. | T14: Pin gris | U14: OVOLgPgPIEDINC | V14: 725400 | W14: 0.02014630651 | X14: =VLOOKUP(U14,Output!$C:$AQ,6,FALSE) -> 873570.03 | Z14: OVOLgPgPIEDSNAT | AB14: =VLOOKUP(Z14,Output!$C:$AQ,6,FALSE) -> 148137.44
N15: % R | O15: =VLOOKUP(P13,DataLocal!$A:$BM,62,FALSE) -> 0.92 | S15: Figure 2. | T15: Épinettes | U15: OVOLgEpxPIEDINC | V15: 28575400 | W15: 0.7936156149 | X15: =VLOOKUP(U15,Output!$C:$AQ,6,FALSE) -> 31106309.29 | Z15: OVOLgEpxPIEDSNAT | AB15: =VLOOKUP(Z15,Output!$C:$AQ,6,FALSE) -> 2530877.28
N16: % SEPM | O16: =VLOOKUP(P13,DataLocal!$A:$BM,63,FALSE) -> 0.92 | S16: Figure 2. | T16: Sapin baumier | U16: OVOLSABPIEDINC | V16: =ROUND(X16-AB16,-2) -> 5345000 | W16: 0.1484450073 | X16: =VLOOKUP(U16,Output!$C:$AQ,6,FALSE) -> 5430461.66 | Z16: OVOLSABPIEDSNAT | AB16: =VLOOKUP(Z16,Output!$C:$AQ,6,FALSE) -> 85433.76
N17: % Fi | O17: =VLOOKUP(P13,DataLocal!$A:$BM,64,FALSE) -> 0.08 | S17: Figure 2. | T17: SEPM | U17: OVOLGSEPMPIEDINC | V17: =ROUND(X17-AB17,-2) -> 34713400 | W17: =IFERROR(V17/$V$19,0) -> 0.9640843623 | X17: =VLOOKUP(U17,Output!$C:$AQ,6,FALSE) -> 37542932.08 | Z17: OVOLgSEPMPIEDSNAT | AB17: =VLOOKUP(Z17,Output!$C:$AQ,6,FALSE) -> 2829503.56
N18: % Ft | O18: =VLOOKUP(P13,DataLocal!$A:$BM,65,FALSE) -> 0 | S18: Figure 2. | T18: FN - ERS BOJ | U18: OVOLGFNPIEDINC | V18: 200 | W18: 5.554537224e-06 | X18: =VLOOKUP(U18,Output!$C:$AQ,6,FALSE) -> 155.17 | Z18: OVOLgFnPIEDSNAT | AB18: =VLOOKUP(Z18,Output!$C:$AQ,6,FALSE) -> 0
S19: Figure 2. | T19: TOT sur pied | U19: OVOLTOTPIEDINC | V19: =ROUND(X19-AB19,-2) -> 36006600 | W19: 1 | X19: =VLOOKUP(U19,Output!$C:$AQ,6,FALSE) -> 38841593.69 | Z19: OVOLTOTPIEDSNAT | AB19: =VLOOKUP(Z19,Output!$C:$AQ,6,FALSE) -> 2834990.13
N20: Vol R | O20: =ROUND(O15*$O$14,-2) -> 46029200 | T20: Érables à sucre et rouge | U20: Érables à sucre et rouge | V20: =V5+V6 -> 7700 | W20: 0.0002138496831 | X20: =X5+X6 -> 7708.5 | Z20: Érables à sucre et rouge | AB20: =AB5+AB6 -> 0
N21: Vol SEPM | O21: =ROUND(O16*$O$14,-2) -> 46029200 | P21: Traduits en m3 | T21: gFi | U21: OVOLgFiPIEDINC | V21: =ROUND(X21-AB21,-2) -> 1291300 | W21: 0.03586286959 | X21: =VLOOKUP(U21,Output!$C:$AQ,6,FALSE) -> 1296791.1 | Z21: OVOLgFiPIEDSNAT | AB21: =VLOOKUP(Z21,Output!$C:$AQ,6,FALSE) -> 5486.57
N22: Vol Fi | O22: =ROUND(O17*$O$14,-2) -> 4002500 | P22: approximativement | T22: gFt | U22: OVOLgFtPIEDINC | V22: 500 | W22: 1.388634306e-05 | X22: =VLOOKUP(U22,Output!$C:$AQ,6,FALSE) -> 492.97 | Z22: OVOLgFtPIEDSNAT | AB22: =VLOOKUP(Z22,Output!$C:$AQ,6,FALSE) -> 0
N23: Vol Ft | O23: =ROUND(O18*$O$14,-2) -> 0
B27: Type de couvert : | C27: =#REF! -> 
B28: Figure 3. Répartition de la superficie par grand type de forêt en début de calcul (ha). | S28: Intrants | T28: Légende | V28: PERIOD0 | W28: % | X28: PERIOD0
S29: =LEFT(B$28,10) -> Figure 3. | T29: Sapinières | U29: (FCTYF_SAB) | V29: =ROUND(X29,-1) -> 65580 | W29: =V29/V$44 -> 0.1196316985 | X29: =VLOOKUP("OSUPINC"&$U29,GTYF!$C:$AP,6,FALSE) -> 65581.5
S30: Figure 3. | T30: Résineux à feuillus | U30: (FCTYF_RF) | V30: =ROUND(X30,-1) -> 6620 | W30: 0.01207627088 | X30: =VLOOKUP("OSUPINC"&$U30,GTYF!$C:$AP,6,FALSE) -> 6623.6
S31: Figure 3. | T31: Prucheraies | U31: (FCTYF_PRU) | V31: 0 | W31: 0 | X31: =VLOOKUP("OSUPINC"&$U31,GTYF!$C:$AP,6,FALSE) -> 0
S32: Figure 3. | T32: Pinèdes grises | U32: (FCTYF_PIG) | V32: 22940 | W32: 0.04184737976 | X32: =VLOOKUP("OSUPINC"&$U32,GTYF!$C:$AP,6,FALSE) -> 22935.4
L33: Conserver les GTYF même s'ils sont absents de l'UA | S33: Figure 3. | T33: Pinèdes blanches | U33: (FCTYF_PIN) | V33: 0 | W33: 0 | X33: =VLOOKUP("OSUPINC"&$U33,GTYF!$C:$AP,6,FALSE) -> 0
S34: Figure 3. | T34: Peupleraies à résineux | U34: (FCTYF_PEUR) | V34: 0 | W34: 0 | X34: =VLOOKUP("OSUPINC"&$U34,GTYF!$C:$AP,6,FALSE) -> 0
S35: Figure 3. | T35: Peupleraies | U35: (FCTYF_PEU) | V35: 860 | W35: 0.001568820688 | X35: =VLOOKUP("OSUPINC"&$U35,GTYF!$C:$AP,6,FALSE) -> 862.1
S36: Figure 3. | T36: Pessières | U36: (FCTYF_EPX) | V36: 333910 | W36: 0.6091219955 | X36: =VLOOKUP("OSUPINC"&$U36,GTYF!$C:$AP,6,FALSE) -> 333910.8
S37: Figure 3. | T37: Feuillus tolérants à résineux | U37: (FCTYF_FTR) | V37: 0 | W37: 0 | X37: =VLOOKUP("OSUPINC"&$U37,GTYF!$C:$AP,6,FALSE) -> 0
S38: Figure 3. | T38: Feuillus tolérants | U38: (FCTYF_FT) | V38: 0 | W38: 0 | X38: =VLOOKUP("OSUPINC"&$U38,GTYF!$C:$AP,6,FALSE) -> 0
S39: Figure 3. | T39: Érablières rouges | U39: (FCTYF_ERO) | V39: 0 | W39: 0 | X39: =VLOOKUP("OSUPINC"&$U39,GTYF!$C:$AP,6,FALSE) -> 0
S40: Figure 3. | T40: Cédrières | U40: (FCTYF_THO) | V40: 0 | W40: 0 | X40: =VLOOKUP("OSUPINC"&$U40,GTYF!$C:$AP,6,FALSE) -> 0
S41: Figure 3. | T41: Bétulaies blanches à résineux | U41: (FCTYF_BOPR) | V41: 4250 | W41: 0.007752892937 | X41: =VLOOKUP("OSUPINC"&$U41,GTYF!$C:$AP,6,FALSE) -> 4253.7
S42: Figure 3. | T42: Bétulaies blanches | U42: (FCTYF_BOP) | V42: 2420 | W42: 0.004414588449 | X42: =VLOOKUP("OSUPINC"&$U42,GTYF!$C:$AP,6,FALSE) -> 2424.5
U43: Somme: | V43: =SUM(V29:V42) -> 436580 | X43: =SUM(X29:X42) -> 436591.6
T44: OSUPINC | U44: Tous | V44: =VLOOKUP("OSUPINC",Output!$C:$AP,7,FALSE) -> 548182.47
V45: =V43-V44 -> -111602.47 | W45: Écart
V49: 2018
B50: Figure 4. Superficie destinée à l'aménagement forestier par classe d'âge en début de calcul (ha). | S50: Intrants | U50: Name | V50: PERIOD0 | X50: Classe d'âge | Y50: OUTPUT | Z50: Superficie (ha) | AA50: Pourcentage (%)
S51: =LEFT(B$50,10) -> Figure 4. | T51: 10 ans | U51: OSUP_INC_CLASSEAGEFCAGEAGE1 | V51: =VLOOKUP(U51,Output!$C:$AQ,6,FALSE) -> 7165.7 | X51: 10 | Z51: =ROUND(SUM(V51:V54),-1) -> 103200 | AA51: =IFERROR(Z51/$V$81,0) -> 0.1879961541
S52: Figure 4. | T52: 10 ans | U52: OSUP_INC_CLASSEAGEFCAGEAGE2 | V52: =VLOOKUP(U52,Output!$C:$AQ,6,FALSE) -> 11457.5 | X52: 30 | Z52: =ROUND(SUM(V55:V58),-1) -> 58960 | AA52: =IFERROR(Z52/$V$81,0) -> 0.1074055547
S53: Figure 4. | T53: 10 ans | U53: OSUP_INC_CLASSEAGEFCAGEAGE3 | V53: =VLOOKUP(U53,Output!$C:$AQ,6,FALSE) -> 41874.9 | X53: 50 | Z53: =ROUND(SUM(V59:V62),-1) -> 16020 | AA53: 0.02918312392
S54: Figure 4. | T54: 10 ans | U54: OSUP_INC_CLASSEAGEFCAGEAGE4 | V54: =VLOOKUP(U54,Output!$C:$AQ,6,FALSE) -> 42699 | X54: 70 | Z54: =ROUND(SUM(V63:V66),-1) -> 17980 | AA54: =IFERROR(Z54/$V$81,0) -> 0.03275359351
S55: Figure 4. | T55: 30 ans | U55: OSUP_INC_CLASSEAGEFCAGEAGE5 | V55: =VLOOKUP(U55,Output!$C:$AQ,6,FALSE) -> 7653.1 | X55: 90 | Z55: =ROUND(SUM(V67:V70),-1) -> 26620 | AA55: 0.04849280641
S56: Figure 4. | T56: 30 ans | U56: OSUP_INC_CLASSEAGEFCAGEAGE6 | V56: =VLOOKUP(U56,Output!$C:$AQ,6,FALSE) -> 664.9 | X56: 120 et plus | Z56: =ROUND(SUM(V71:V80),-1) -> 326180 | AA56: 0.5941917204
S57: Figure 4. | T57: 30 ans | U57: OSUP_INC_CLASSEAGEFCAGEAGE7 | V57: =VLOOKUP(U57,Output!$C:$AQ,6,FALSE) -> 790.6
S58: Figure 4. | T58: 30 ans | U58: OSUP_INC_CLASSEAGEFCAGEAGE8 | V58: =VLOOKUP(U58,Output!$C:$AQ,6,FALSE) -> 49849.3
S59: Figure 4. | T59: 50 ans | U59: OSUP_INC_CLASSEAGEFCAGEAGE9 | V59: =VLOOKUP(U59,Output!$C:$AQ,6,FALSE) -> 280.2
S60: Figure 4. | T60: 50 ans | U60: OSUP_INC_CLASSEAGEFCAGEAGE10 | V60: =VLOOKUP(U60,Output!$C:$AQ,6,FALSE) -> 1245.4
S61: Figure 4. | T61: 50 ans | U61: OSUP_INC_CLASSEAGEFCAGEAGE11 | V61: =VLOOKUP(U61,Output!$C:$AQ,6,FALSE) -> 12567.8
N62: Proportion de la superficie dont l'évolution est suivi en âge: | S62: Figure 4. | T62: 50 ans | U62: OSUP_INC_CLASSEAGEFCAGEAGE12 | V62: =VLOOKUP(U62,Output!$C:$AQ,6,FALSE) -> 1925.8
N63: =IF(AND($W$81>=99.5%,$W$81<100%),"> 99%",IF(AND($W$81>=0.1%,$W$81<0.5%),"< 1%",$W$81)) -> 1 | S63: Figure 4. | T63: 70 ans | U63: OSUP_INC_CLASSEAGEFCAGEAGE13 | V63: =VLOOKUP(U63,Output!$C:$AQ,6,FALSE) -> 452.6
S64: Figure 4. | T64: 70 ans | U64: OSUP_INC_CLASSEAGEFCAGEAGE14 | V64: =VLOOKUP(U64,Output!$C:$AQ,6,FALSE) -> 9833.8
S65: Figure 4. | T65: 70 ans | U65: OSUP_INC_CLASSEAGEFCAGEAGE15 | V65: =VLOOKUP(U65,Output!$C:$AQ,6,FALSE) -> 350.1
S66: Figure 4. | T66: 70 ans | U66: OSUP_INC_CLASSEAGEFCAGEAGE16 | V66: =VLOOKUP(U66,Output!$C:$AQ,6,FALSE) -> 7342.7
S67: Figure 4. | T67: 90 ans | U67: OSUP_INC_CLASSEAGEFCAGEAGE17 | V67: =VLOOKUP(U67,Output!$C:$AQ,6,FALSE) -> 576.2
S68: Figure 4. | T68: 90 ans | U68: OSUP_INC_CLASSEAGEFCAGEAGE18 | V68: =VLOOKUP(U68,Output!$C:$AQ,6,FALSE) -> 500
B69: Figure 5. Superficie destinée à l'aménagement forestier par classe de surface terrière en début de calcul (ha) | S69: Figure 4. | T69: 90 ans | U69: OSUP_INC_CLASSEAGEFCAGEAGE19 | V69: =VLOOKUP(U69,Output!$C:$AQ,6,FALSE) -> 2773.7
S70: Figure 4. | T70: 90 ans | U70: OSUP_INC_CLASSEAGEFCAGEAGE20 | V70: =VLOOKUP(U70,Output!$C:$AQ,6,FALSE) -> 22766.1
S71: Figure 4. | T71: 120 et plus | U71: OSUP_INC_CLASSEAGEFCAGEAGE21 | V71: =VLOOKUP(U71,Output!$C:$AQ,6,FALSE) -> 5084.4
S72: Figure 4. | T72: 120 et plus | U72: OSUP_INC_CLASSEAGEFCAGEAGE22 | V72: =VLOOKUP(U72,Output!$C:$AQ,6,FALSE) -> 4633.9
S73: Figure 4. | T73: 120 et plus | U73: OSUP_INC_CLASSEAGEFCAGEAGE23 | V73: =VLOOKUP(U73,Output!$C:$AQ,6,FALSE) -> 1772.9
S74: Figure 4. | T74: 120 et plus | U74: OSUP_INC_CLASSEAGEFCAGEAGE24 | V74: =VLOOKUP(U74,Output!$C:$AQ,6,FALSE) -> 8269.4
S75: Figure 4. | T75: 120 et plus | U75: OSUP_INC_CLASSEAGEFCAGEAGE25 | V75: =VLOOKUP(U75,Output!$C:$AQ,6,FALSE) -> 5439.8
N76: Proportion de la superficie dont l'évolution est suivi en surface terrière: | S76: Figure 4. | T76: 120 et plus | U76: OSUP_INC_CLASSEAGEFCAGEAGE26 | V76: =VLOOKUP(U76,Output!$C:$AQ,6,FALSE) -> 17103
N77: =IF(AND($W$88>=99.5%,$W$88<100%),"> 99%",IF(AND($W$88>=0.1%,$W$88<0.5%),"< 1%",$W$88)) -> 0 | S77: Figure 4. | T77: 120 et plus | U77: OSUP_INC_CLASSEAGEFCAGEAGE27 | V77: =VLOOKUP(U77,Output!$C:$AQ,6,FALSE) -> 23975.9
S78: Figure 4. | T78: 120 et plus | U78: OSUP_INC_CLASSEAGEFCAGEAGE28 | V78: =VLOOKUP(U78,Output!$C:$AQ,6,FALSE) -> 91504
S79: Figure 4. | T79: 120 et plus | U79: OSUP_INC_CLASSEAGEFCAGEAGE29 | V79: =VLOOKUP(U79,Output!$C:$AQ,6,FALSE) -> 1437.2
S80: Figure 4. | T80: 120 et plus | U80: OSUP_INC_CLASSEAGEFCAGEAGE30+ | V80: =VLOOKUP(U80,Output!$C:$AQ,6,FALSE) -> 166957.5
U81: Sous-total | V81: =SUM(V51:V80) -> 548947.4 | W81: =V81/V89 -> 1
S82: =LEFT(B$69,10) -> Figure 5. | T82: <16 | U82: OSUPINC_ST016(FCST) | V82: =VLOOKUP(U82,GTYF!$C:$AQ,6,FALSE) -> 0 | W82: =IFERROR(V82/$V$88,0) -> 0
S83: Figure 5. | T83: 16 à 18 | U83: OSUPINC_ST1619(FCST) | V83: =VLOOKUP(U83,GTYF!$C:$AQ,6,FALSE) -> 0 | W83: 0
S84: Figure 5. | T84: 19 à 21 | U84: OSUPINC_ST1922(FCST) | V84: =VLOOKUP(U84,GTYF!$C:$AQ,6,FALSE) -> 0 | W84: 0
S85: Figure 5. | T85: 22 à 24 | U85: OSUPINC_ST2225(FCST) | V85: =VLOOKUP(U85,GTYF!$C:$AQ,6,FALSE) -> 0 | W85: 0
S86: Figure 5. | T86: 25 à 28 | U86: OSUPINC_ST2528(FCST) | V86: =VLOOKUP(U86,GTYF!$C:$AQ,6,FALSE) -> 0 | W86: 0
S87: Figure 5. | T87: 29+ | U87: OSUPINC_ST29+(FCST) | V87: =VLOOKUP(U87,GTYF!$C:$AQ,6,FALSE) -> 0 | W87: 0
S88: Figure 5. | T88: Total 0-29+ | U88: Sous-total | V88: =SUM(V82:V87) -> 0 | W88: =V88/V89 -> 0
U89: OSUPINC | V89: =VLOOKUP(U89,Output!$C:$AQ,6,FALSE) -> 548947.4
A91: 80 | B91: Figure 6. Évolution des volumes et des possibilités forestières à rendement non-décroissant
U93: Période | V93: P0 | W93: P1 | X93: P2 | Y93: P3 | Z93: P4 | AA93: P5 | AB93: P6 | AC93: P7 | AD93: P8 | AE93: P9 | AF93: P10 | AG93: P11 | AH93: P12 | AI93: P13 | AJ93: P14 | AK93: P15 | AL93: P16 | AM93: P17 | AN93: P18 | AO93: P19 | AP93: P20 | AQ93: P21 | AR93: P22 | AS93: P23 | AT93: P24 | AU93: P25 | AV93: P26 | AW93: P27 | AX93: P28 | AY93: P29 | AZ93: P30
U94: Colonne | V94: 6 | W94: 7 | X94: 8 | Y94: 9 | Z94: 10 | AA94: 11 | AB94: 12 | AC94: 13 | AD94: 14 | AE94: 15 | AF94: 16 | AG94: 17 | AH94: 18 | AI94: 19 | AJ94: 20 | AK94: 21 | AL94: 22 | AM94: 23 | AN94: 24 | AO94: 25 | AP94: 26 | AQ94: 27 | AR94: 28 | AS94: 29 | AT94: 30 | AU94: 31 | AV94: 32 | AW94: 33 | AX94: 34 | AY94: 35 | AZ94: 36
S95: =LEFT(B$91,10) -> Figure 6. | T95: Légende | U95: Axe des "X" Début de période | W95: 2018 | X95: 2023 | Y95: 2028 | Z95: 2033 | AA95: 2038 | AB95: 2043 | AC95: 2048 | AD95: 2053 | AE95: 2058 | AF95: 2063 | AG95: 2068 | AH95: 2073 | AI95: 2078 | AJ95: 2083 | AK95: 2088 | AL95: 2093 | AM95: 2098 | AN95: 2103 | AO95: 2108 | AP95: 2113 | AQ95: 2118 | AR95: 2123 | AS95: 2128 | AT95: 2133 | AU95: 2138 | AV95: 2143 | AW95: 2148 | AX95: 2153 | AY95: 2158 | AZ95: 2163
S96: =LEFT(B$91,10) -> Figure 6. | T96: Possibilités forestières quinquennales | U96: OVOLTOTREC | V96: =VLOOKUP($U96,Output!$C:$AM,V$94,FALSE) -> 0 | W96: =VLOOKUP($U96,Output!$C:$AM,W$94,FALSE) -> 1732978.47 | X96: =VLOOKUP($U96,Output!$C:$AM,X$94,FALSE) -> 1242700 | Y96: =VLOOKUP($U96,Output!$C:$AM,Y$94,FALSE) -> 1242700 | Z96: =VLOOKUP($U96,Output!$C:$AM,Z$94,FALSE) -> 1242700 | AA96: =VLOOKUP($U96,Output!$C:$AM,AA$94,FALSE) -> 1242700 | AB96: =VLOOKUP($U96,Output!$C:$AM,AB$94,FALSE) -> 1242700 | AC96: =VLOOKUP($U96,Output!$C:$AM,AC$94,FALSE) -> 1242700 | AD96: =VLOOKUP($U96,Output!$C:$AM,AD$94,FALSE) -> 1242700 | AE96: =VLOOKUP($U96,Output!$C:$AM,AE$94,FALSE) -> 1242700 | AF96: =VLOOKUP($U96,Output!$C:$AM,AF$94,FALSE) -> 1242700 | AG96: =VLOOKUP($U96,Output!$C:$AM,AG$94,FALSE) -> 1242700 | AH96: =VLOOKUP($U96,Output!$C:$AM,AH$94,FALSE) -> 1242700 | AI96: =VLOOKUP($U96,Output!$C:$AM,AI$94,FALSE) -> 1242939.61 | AJ96: =VLOOKUP($U96,Output!$C:$AM,AJ$94,FALSE) -> 1242939.61 | AK96: =VLOOKUP($U96,Output!$C:$AM,AK$94,FALSE) -> 1242939.61 | AL96: =VLOOKUP($U96,Output!$C:$AM,AL$94,FALSE) -> 1242939.61 | AM96: =VLOOKUP($U96,Output!$C:$AM,AM$94,FALSE) -> 1242939.61 | AN96: =VLOOKUP($U96,Output!$C:$AM,AN$94,FALSE) -> 1242939.61 | AO96: =VLOOKUP($U96,Output!$C:$AM,AO$94,FALSE) -> 1242939.61 | AP96: =VLOOKUP($U96,Output!$C:$AM,AP$94,FALSE) -> 1242939.61 | AQ96: =VLOOKUP($U96,Output!$C:$AM,AQ$94,FALSE) -> 1242939.61 | AR96: =VLOOKUP($U96,Output!$C:$AM,AR$94,FALSE) -> 1242939.61 | AS96: =VLOOKUP($U96,Output!$C:$AM,AS$94,FALSE) -> 1242939.61 | AT96: =VLOOKUP($U96,Output!$C:$AM,AT$94,FALSE) -> 1242939.61 | AU96: =VLOOKUP($U96,Output!$C:$AM,AU$94,FALSE) -> 1242939.61 | AV96: =VLOOKUP($U96,Output!$C:$AM,AV$94,FALSE) -> 1242939.61 | AW96: =VLOOKUP($U96,Output!$C:$AM,AW$94,FALSE) -> 1242939.61 | AX96: =VLOOKUP($U96,Output!$C:$AM,AX$94,FALSE) -> 1242939.61 | AY96: =VLOOKUP($U96,Output!$C:$AM,AY$94,FALSE) -> 1243146.6 | AZ96: =VLOOKUP($U96,Output!$C:$AM,AZ$94,FALSE) -> 1243146.6
S97: =LEFT(B$91,10) -> Figure 6. | T97: Volume à maturité | U97: OVOLMATUREADM | V97: =VLOOKUP($U97,Output!$C:$AM,V$94,FALSE) -> 34626166.6 | W97: =VLOOKUP($U97,Output!$C:$AM,W$94,FALSE) -> 32914358.11 | X97: =VLOOKUP($U97,Output!$C:$AM,X$94,FALSE) -> 32384569.73 | Y97: =VLOOKUP($U97,Output!$C:$AM,Y$94,FALSE) -> 31198691.73 | Z97: =VLOOKUP($U97,Output!$C:$AM,Z$94,FALSE) -> 31937631.32 | AA97: =VLOOKUP($U97,Output!$C:$AM,AA$94,FALSE) -> 31629253.03 | AB97: =VLOOKUP($U97,Output!$C:$AM,AB$94,FALSE) -> 30532704.17 | AC97: =VLOOKUP($U97,Output!$C:$AM,AC$94,FALSE) -> 29428672.67 | AD97: =VLOOKUP($U97,Output!$C:$AM,AD$94,FALSE) -> 30083851.86 | AE97: =VLOOKUP($U97,Output!$C:$AM,AE$94,FALSE) -> 29078803.01 | AF97: =VLOOKUP($U97,Output!$C:$AM,AF$94,FALSE) -> 28655749.81 | AG97: =VLOOKUP($U97,Output!$C:$AM,AG$94,FALSE) -> 28241309.2 | AH97: =VLOOKUP($U97,Output!$C:$AM,AH$94,FALSE) -> 28378582.51 | AI97: =VLOOKUP($U97,Output!$C:$AM,AI$94,FALSE) -> 28760583.81 | AJ97: =VLOOKUP($U97,Output!$C:$AM,AJ$94,FALSE) -> 28757473.59 | AK97: =VLOOKUP($U97,Output!$C:$AM,AK$94,FALSE) -> 28831590.99 | AL97: =VLOOKUP($U97,Output!$C:$AM,AL$94,FALSE) -> 28079331.42 | AM97: =VLOOKUP($U97,Output!$C:$AM,AM$94,FALSE) -> 28784083.66 | AN97: =VLOOKUP($U97,Output!$C:$AM,AN$94,FALSE) -> 28472631.08 | AO97: =VLOOKUP($U97,Output!$C:$AM,AO$94,FALSE) -> 27645601.7 | AP97: =VLOOKUP($U97,Output!$C:$AM,AP$94,FALSE) -> 26936656.8 | AQ97: =VLOOKUP($U97,Output!$C:$AM,AQ$94,FALSE) -> 27368598.74 | AR97: =VLOOKUP($U97,Output!$C:$AM,AR$94,FALSE) -> 27527332.5 | AS97: =VLOOKUP($U97,Output!$C:$AM,AS$94,FALSE) -> 28018277.32 | AT97: =VLOOKUP($U97,Output!$C:$AM,AT$94,FALSE) -> 28198993.95 | AU97: =VLOOKUP($U97,Output!$C:$AM,AU$94,FALSE) -> 28070932.19 | AV97: =VLOOKUP($U97,Output!$C:$AM,AV$94,FALSE) -> 27928012.9 | AW97: =VLOOKUP($U97,Output!$C:$AM,AW$94,FALSE) -> 27135460.91 | AX97: =VLOOKUP($U97,Output!$C:$AM,AX$94,FALSE) -> 27558684.2 | AY97: =VLOOKUP($U97,Output!$C:$AM,AY$94,FALSE) -> 27773421.74 | AZ97: =VLOOKUP($U97,Output!$C:$AM,AZ$94,FALSE) -> 27773398.34
S98: =LEFT(B$91,10) -> Figure 6. | T98: Volume sur pied | U98: OVOLTOTPIEDINC | V98: =VLOOKUP($U98,Output!$C:$AM,V$94,FALSE) -> 38841593.69 | W98: =VLOOKUP($U98,Output!$C:$AM,W$94,FALSE) -> 37779951.5 | X98: =VLOOKUP($U98,Output!$C:$AM,X$94,FALSE) -> 37228797.13 | Y98: =VLOOKUP($U98,Output!$C:$AM,Y$94,FALSE) -> 36697312.13 | Z98: =VLOOKUP($U98,Output!$C:$AM,Z$94,FALSE) -> 36138238.69 | AA98: =VLOOKUP($U98,Output!$C:$AM,AA$94,FALSE) -> 35525460.53 | AB98: =VLOOKUP($U98,Output!$C:$AM,AB$94,FALSE) -> 35086993.78 | AC98: =VLOOKUP($U98,Output!$C:$AM,AC$94,FALSE) -> 34821455.14 | AD98: =VLOOKUP($U98,Output!$C:$AM,AD$94,FALSE) -> 34655468.07 | AE98: =VLOOKUP($U98,Output!$C:$AM,AE$94,FALSE) -> 34475060.79 | AF98: =VLOOKUP($U98,Output!$C:$AM,AF$94,FALSE) -> 33871975.83 | AG98: =VLOOKUP($U98,Output!$C:$AM,AG$94,FALSE) -> 33886997.97 | AH98: =VLOOKUP($U98,Output!$C:$AM,AH$94,FALSE) -> 33871975.83 | AI98: =VLOOKUP($U98,Output!$C:$AM,AI$94,FALSE) -> 33912572.48 | AJ98: =VLOOKUP($U98,Output!$C:$AM,AJ$94,FALSE) -> 34032911.6 | AK98: =VLOOKUP($U98,Output!$C:$AM,AK$94,FALSE) -> 34114163.16 | AL98: =VLOOKUP($U98,Output!$C:$AM,AL$94,FALSE) -> 34137103.35 | AM98: =VLOOKUP($U98,Output!$C:$AM,AM$94,FALSE) -> 34156392.05 | AN98: =VLOOKUP($U98,Output!$C:$AM,AN$94,FALSE) -> 34073299.57 | AO98: =VLOOKUP($U98,Output!$C:$AM,AO$94,FALSE) -> 33969379.57 | AP98: =VLOOKUP($U98,Output!$C:$AM,AP$94,FALSE) -> 33891028.04 | AQ98: =VLOOKUP($U98,Output!$C:$AM,AQ$94,FALSE) -> 33871975.83 | AR98: =VLOOKUP($U98,Output!$C:$AM,AR$94,FALSE) -> 33871975.83 | AS98: =VLOOKUP($U98,Output!$C:$AM,AS$94,FALSE) -> 33888831.22 | AT98: =VLOOKUP($U98,Output!$C:$AM,AT$94,FALSE) -> 33888313.46 | AU98: =VLOOKUP($U98,Output!$C:$AM,AU$94,FALSE) -> 33881782.6 | AV98: =VLOOKUP($U98,Output!$C:$AM,AV$94,FALSE) -> 33885988.98 | AW98: =VLOOKUP($U98,Output!$C:$AM,AW$94,FALSE) -> 33871975.83 | AX98: =VLOOKUP($U98,Output!$C:$AM,AX$94,FALSE) -> 33871975.83 | AY98: =VLOOKUP($U98,Output!$C:$AM,AY$94,FALSE) -> 33873632.06 | AZ98: =VLOOKUP($U98,Output!$C:$AM,AZ$94,FALSE) -> 33871975.83
S99: =LEFT(B$91,10) -> Figure 6. | T99: Volume récoltable | U99: OVOLTOTADMREGAPRE | V99: =VLOOKUP($U99,Output!$C:$AM,V$94,FALSE) -> 0 | W99: =VLOOKUP($U99,Output!$C:$AM,W$94,FALSE) -> 18569439.69 | X99: =VLOOKUP($U99,Output!$C:$AM,X$94,FALSE) -> 8184553.98 | Y99: =VLOOKUP($U99,Output!$C:$AM,Y$94,FALSE) -> 9404801.6 | Z99: =VLOOKUP($U99,Output!$C:$AM,Z$94,FALSE) -> 4548767.06 | AA99: =VLOOKUP($U99,Output!$C:$AM,AA$94,FALSE) -> 6913681.64 | AB99: =VLOOKUP($U99,Output!$C:$AM,AB$94,FALSE) -> 7499455.07 | AC99: =VLOOKUP($U99,Output!$C:$AM,AC$94,FALSE) -> 6896422.04 | AD99: =VLOOKUP($U99,Output!$C:$AM,AD$94,FALSE) -> 7808657.84 | AE99: =VLOOKUP($U99,Output!$C:$AM,AE$94,FALSE) -> 5702467.72 | AF99: =VLOOKUP($U99,Output!$C:$AM,AF$94,FALSE) -> 8061198.16 | AG99: =VLOOKUP($U99,Output!$C:$AM,AG$94,FALSE) -> 8281741.41 | AH99: =VLOOKUP($U99,Output!$C:$AM,AH$94,FALSE) -> 5241398.36 | AI99: =VLOOKUP($U99,Output!$C:$AM,AI$94,FALSE) -> 8304982.91 | AJ99: =VLOOKUP($U99,Output!$C:$AM,AJ$94,FALSE) -> 8951740.91 | AK99: =VLOOKUP($U99,Output!$C:$AM,AK$94,FALSE) -> 6671797.72 | AL99: =VLOOKUP($U99,Output!$C:$AM,AL$94,FALSE) -> 7605020.87 | AM99: =VLOOKUP($U99,Output!$C:$AM,AM$94,FALSE) -> 5352537.03 | AN99: =VLOOKUP($U99,Output!$C:$AM,AN$94,FALSE) -> 6804184.3 | AO99: =VLOOKUP($U99,Output!$C:$AM,AO$94,FALSE) -> 6432912.67 | AP99: =VLOOKUP($U99,Output!$C:$AM,AP$94,FALSE) -> 4951631.1 | AQ99: =VLOOKUP($U99,Output!$C:$AM,AQ$94,FALSE) -> 8618626.61 | AR99: =VLOOKUP($U99,Output!$C:$AM,AR$94,FALSE) -> 7368335.26 | AS99: =VLOOKUP($U99,Output!$C:$AM,AS$94,FALSE) -> 5621188 | AT99: =VLOOKUP($U99,Output!$C:$AM,AT$94,FALSE) -> 7037173.73 | AU99: =VLOOKUP($U99,Output!$C:$AM,AU$94,FALSE) -> 5227084.82 | AV99: =VLOOKUP($U99,Output!$C:$AM,AV$94,FALSE) -> 6959842.26 | AW99: =VLOOKUP($U99,Output!$C:$AM,AW$94,FALSE) -> 6182259.26 | AX99: =VLOOKUP($U99,Output!$C:$AM,AX$94,FALSE) -> 5631793.88 | AY99: =VLOOKUP($U99,Output!$C:$AM,AY$94,FALSE) -> 8920383.37 | AZ99: =VLOOKUP($U99,Output!$C:$AM,AZ$94,FALSE) -> 8060235.28
T116: * Source: Cahier_analyse, Tableau 13, onglet Budget | X116: Moyenne P2 à P6
B117: Figure 7. Répartition du budget annuel par familles de traitements prévus à la stratégie d’aménagement et coût moyen à l’hectare par famille de traitements
S118: =LEFT(B$117,10) -> Figure 7. | T118: Légende | U118: Output taux | V118: Output superficie | W118: $/ha | X118: ha | Y118: $
S119: =LEFT(B$117,10) -> Figure 7. | T119: Coupes avec protection de la régénération et des sols (CPRS) | U119: OTAUXCT_100 | V119: OSUPCT | W119: =IFERROR(VLOOKUP(U119,Output!$C:$AQ,37,FALSE),0) -> 0 | X119: =IFERROR(VLOOKUP(V119,Output!$C:$AQ,37,FALSE),"0000")/5 -> 2005.5704 | Y119: =W119*X119 -> 0
S120: =LEFT(B$117,10) -> Figure 7. | T120: Coupe avec protection des petites tiges marchandes (CPPTM) | V120: OSUPREALaCPPTM | W120: =IFERROR(VLOOKUP(U120,Output!$C:$AQ,8,FALSE),0) -> 0 | X120: =IFERROR(VLOOKUP(V120,Output!$C:$AQ,37,FALSE),"0000")/5 -> 0 | Y120: =W120*X120 -> 0
S121: =LEFT(B$117,10) -> Figure 7. | T121: Coupe avec réserve de semenciers (CRS) | V121: OSUPREALaCRS | W121: =IFERROR(VLOOKUP(U121,Output!$C:$AQ,8,FALSE),0) -> 0 | X121: =IFERROR(VLOOKUP(V121,Output!$C:$AQ,37,FALSE),"0000")/5 -> 0 | Y121: 0
T122: Coupe à rétention variable (CRV, CPPTM, CPPTM, CPHR, CDL)
S123: =LEFT(B$117,10) -> Figure 7. | T123: Coupes finales | W123: =(ROUND(Y123/X123,0))&"$/ha" -> 0$/ha | X123: =SUM(X119:X121) -> 2005.5704 | Y123: =SUM(Y119:Y121) -> 0
S124: Figure 7. | T124: Éclaircie commerciale (EC) | U124: OTAUXEC_SEPM_100 | V124: OSUPEC_SEPM | W124: =IFERROR(VLOOKUP(U124,Output!$C:$AQ,37,FALSE),0) -> 1250 | X124: =IFERROR(VLOOKUP(V124,Output!$C:$AQ,37,FALSE),"0000")/5 -> 0 | Y124: 0
S125: Figure 7. | T125: Coupe progressive régulière initiale (CPROG) | U125: OTAUXCPROG_INI_100 | V125: OSUPCPROG_INI | W125: =IFERROR(VLOOKUP(U125,Output!$C:$AQ,37,FALSE),0) -> 430 | X125: =IFERROR(VLOOKUP(V125,Output!$C:$AQ,37,FALSE),"0000")/5 -> 0 | Y125: 0
S126: Figure 7. | T126: Coupe progressive régulière finale (CPROG) | U126: OTAUXCPROG_FIN_100 | V126: OSUPCPROG_FIN | W126: =IFERROR(VLOOKUP(U126,Output!$C:$AQ,37,FALSE),0) -> 0 | X126: =IFERROR(VLOOKUP(V126,Output!$C:$AQ,37,FALSE),"0000")/5 -> 0 | Y126: 0
S127: Figure 7. | T127: Coupe progessive irrégulière initiale (CPIRL) | U127: OTAUXCPIRL_INI_100 | V127: OSUPCPIRL_INI | W127: =IFERROR(VLOOKUP(U127,Output!$C:$AQ,37,FALSE),0) -> 300 | X127: =IFERROR(VLOOKUP(V127,Output!$C:$AQ,37,FALSE),"0000")/5 -> 326 | Y127: 97800
S128: Figure 7. | T128: Coupe progessive irrégulière finale (CPIRL) | U128: OTAUXCPIRL_FIN_100 | V128: OSUPCPIRL_FIN | W128: =IFERROR(VLOOKUP(U128,Output!$C:$AQ,37,FALSE),0) -> 0 | X128: =IFERROR(VLOOKUP(V128,Output!$C:$AQ,37,FALSE),"0000")/5 -> 0 | Y128: 0
S129: Figure 7. | T129: Coupe à couvert permanent (CPICP) | U129: OTAUXCPICP_100 | V129: OSUPCPICP | W129: =IFERROR(VLOOKUP(U129,Output!$C:$AQ,37,FALSE),0) -> 350 | X129: =IFERROR(VLOOKUP(V129,Output!$C:$AQ,37,FALSE),"0000")/5 -> 0 | Y129: 0
S130: Figure 7. | T130: Coupe de jardinage (CJ) | U130: OTAUXCJ_100 | V130: OSUPCJ | W130: =IFERROR(VLOOKUP(U130,Output!$C:$AQ,37,FALSE),0) -> 580 | X130: =IFERROR(VLOOKUP(V130,Output!$C:$AQ,37,FALSE),"0000")/5 -> 0 | Y130: 0
S131: Figure 7. | T131: Coupes partielles | W131: =(ROUND(Y131/X131,0))&"$/ha" -> 300$/ha | X131: =SUM(X124:X130) -> 326 | Y131: =SUM(Y124:Y130) -> 97800
S132: Figure 7. | T132: Plantation ligniculture (pins, feuillus) | U132: OTAUXPL_PPF_100 | V132: OSUPPL_PPF | W132: =IFERROR(VLOOKUP(U132,Output!$C:$AQ,37,FALSE),0) -> 1640 | X132: =IFERROR(VLOOKUP(V132,Output!$C:$AQ,37,FALSE),"0000")/5 -> 0 | Y132: 0
S133: Figure 7. | T133: Plantation intensive | U133: OTAUXPL_SEPM_I_100 | V133: OSUPPL_SEPM_I | W133: =IFERROR(VLOOKUP(U133,Output!$C:$AQ,37,FALSE),0) -> 1390 | X133: =IFERROR(VLOOKUP(V133,Output!$C:$AQ,37,FALSE),"0000")/5 -> 0 | Y133: 0
S134: Figure 7. | T134: Plantation de base | U134: OTAUXPL_SEPM_E_100 | V134: OSUPPL_SEPM_E | W134: =IFERROR(VLOOKUP(U134,Output!$C:$AQ,37,FALSE),0) -> 1110 | X134: =IFERROR(VLOOKUP(V134,Output!$C:$AQ,37,FALSE),"0000")/5 -> 0 | Y134: 0
S135: Figure 7. | T135: Regarni | U135: OTAUXREG_100 | V135: OSUPREG | W135: =IFERROR(VLOOKUP(U135,Output!$C:$AQ,37,FALSE),0) -> 420 | X135: =IFERROR(VLOOKUP(V135,Output!$C:$AQ,37,FALSE),"0000")/5 -> 0 | Y135: 0
S136: Figure 7. | T136: Ensemencement (ENS) | U136: OTAUXENS_100 | V136: OSUPENS | W136: =IFERROR(VLOOKUP(U136,Output!$C:$AQ,37,FALSE),0) -> 130 | X136: =IFERROR(VLOOKUP(V136,Output!$C:$AQ,37,FALSE),"0000")/5 -> 0 | Y136: =W136*X136 -> 0
S137: Figure 7. | T137: Reboisement | W137: =(IFERROR(ROUND(Y137/X137,0),0)&"$/ha") -> 0$/ha | X137: =SUM(X132:X136) -> 0 | Y137: =SUM(Y132:Y136) -> 0
S138: Figure 7. | T138: Dégagement de la régénération naturelle | U138: OTAUXDEG_2_100 | V138: OSUPDEG_2 | W138: =IFERROR(VLOOKUP(U138,Output!$C:$AQ,37,FALSE),0) -> 1280 | X138: =IFERROR(VLOOKUP(V138,Output!$C:$AQ,37,FALSE),"0000")/5 -> 0 | Y138: 0
S139: Figure 7. | T139: Dégagement de plantation | U139: OTAUXDEG_1_100 | V139: OSUPDEG_1 | W139: =IFERROR(VLOOKUP(U139,Output!$C:$AQ,37,FALSE),0) -> 1280 | X139: =IFERROR(VLOOKUP(V139,Output!$C:$AQ,37,FALSE),"0000")/5 -> 0 | Y139: 0
S140: Figure 7. | T140: Nettoiement de la régénération naturelle | U140: OTAUXNETT_100 | V140: OSUPREALNET | W140: =IFERROR(VLOOKUP(U140,Output!$C:$AQ,37,FALSE),0) -> 1240 | X140: =IFERROR(VLOOKUP(V140,Output!$C:$AQ,37,FALSE),"0000")/5-X141 -> 0 | Y140: 0
C141: $ /m3 | E141: $ /ha | S141: Figure 7. | T141: Nettoiement de plantation | U141: OTAUXNETT_100 | V141: OSUPTCADNETT_T100% | W141: =IFERROR(VLOOKUP(U141,Output!$C:$AQ,37,FALSE),0) -> 1240 | X141: =IFERROR(VLOOKUP(V141,Output!$C:$AQ,37,FALSE),"0000")/5 -> 0 | Y141: 0
C142: =Y151/(Instructions!I5/5) -> 0.3934980285 | E142: =Y151/Tableaux!F33 -> 0.2240087954 | S142: Figure 7. | T142: Éclaircie précommerciale (EPC_1) | U142: OTAUXEPC_1_100 | V142: OSUPEPC_1 | W142: =IFERROR(VLOOKUP(U142,Output!$C:$AQ,37,FALSE),0) -> 1560 | X142: =IFERROR(VLOOKUP(V142,Output!$C:$AQ,37,FALSE),"0000")/5 -> 0 | Y142: 0
S143: Figure 7. | T143: Éclaircie précommerciale (EPC_2) | U143: OTAUXEPC_2_100 | V143: OSUPEPC_2 | W143: =IFERROR(VLOOKUP(U143,Output!$C:$AQ,37,FALSE),0) -> 1560 | X143: =IFERROR(VLOOKUP(V143,Output!$C:$AQ,37,FALSE),"0000")/5 -> 0 | Y143: 0
S144: Figure 7. | T144: Éclaircie précommerciale de la régénération naturelle | V144: OSUPREALEPC | W144: =IFERROR(VLOOKUP(U144,Output!$C:$AQ,37,FALSE),0) -> 0 | X144: =IFERROR(VLOOKUP(V144,Output!$C:$AQ,37,FALSE),"0000")/5 -> 0 | Y144: 0
S145: Figure 7. | T145: Élagage (plantation) | U145: OTAUXELAG_100 | V145: OSUPELAG | W145: =IFERROR(VLOOKUP(U145,Output!$C:$AQ,37,FALSE),0) -> 1630 | X145: =IFERROR(VLOOKUP(V145,Output!$C:$AQ,37,FALSE),"0000")/5 -> 0 | Y145: 0
S146: Figure 7. | T146: Travaux d'éducation | W146: =(IFERROR(ROUND(Y146/X146,0),0)&"$/ha") -> 0$/ha | X146: =SUM(X138:X143)+X145 -> 0 | Y146: =SUM(Y138:Y143)+Y145 -> 0
S147: Figure 7. | T147: Préparation terrain lignicult. + ferti + élagage (SCA_LIGN) | U147: OTAUXSCA_LIGN_100 | V147: OSUPSCA_LIGN | W147: =IFERROR(VLOOKUP(U147,Output!$C:$AQ,37,FALSE),0) -> 1540 | X147: =IFERROR(VLOOKUP(V147,Output!$C:$AQ,37,FALSE),"0000")/5 -> 0 | Y147: 0
S148: Figure 7. | T148: Préparation de terrain partielle (SCA_PART) | U148: OTAUXSCA_PART_100 | V148: OSUPSCA_PART | W148: =IFERROR(VLOOKUP(U148,Output!$C:$AQ,37,FALSE),0) -> 560 | X148: =IFERROR(VLOOKUP(V148,Output!$C:$AQ,37,FALSE),"0000")/5 -> 0 | Y148: 0
S149: Figure 7. | T149: Préparation de terrain régulière, 1 passage (SCA_REG) | U149: OTAUXSCA_REG_100 | V149: OSUPSCA_REG | W149: =IFERROR(VLOOKUP(U149,Output!$C:$AQ,37,FALSE),0) -> 430 | X149: =IFERROR(VLOOKUP(V149,Output!$C:$AQ,37,FALSE),"0000")/5 -> 0 | Y149: 0 | AA149: Valideur
B150: Figure 9b Évolution de la superficie des vieilles forêts selon leur degré d'altération | S150: Figure 7. | T150: Préparation de terrain | W150: =(IFERROR(ROUND(Y150/X150,0),0)&"$/ha") -> 0$/ha | X150: =SUM(X147:X149) -> 0 | Y150: =SUM(Y147:Y149) -> 0 | Z150: =Y123+Y131+Y137+Y146+Y150 -> 97800 | AA150: =Y151-Z150 -> 0
S151: Figure 7. | T151: Investissement sylvicole annuel (O$INVESTISTS)* | V151: O$INVESTISTS | Y151: =IFERROR(VLOOKUP(V151,Output!$C:$AQ,37,FALSE),"0000")/5 -> 97800
S155: =LEFT(B$117,10) -> Figure 7. | T155: =T123 -> Coupes finales | U155: =Y123 -> 0 | V155: =W123 -> 0$/ha
S156: =LEFT(B$117,10) -> Figure 7. | T156: =T131 -> Coupes partielles | U156: =Y131 -> 97800 | V156: =W131 -> 300$/ha
S157: =LEFT(B$117,10) -> Figure 7. | T157: =T137 -> Reboisement | U157: =Y137 -> 0 | V157: =W137 -> 0$/ha
S158: =LEFT(B$117,10) -> Figure 7. | T158: =T146 -> Travaux d'éducation | U158: =Y146 -> 0 | V158: =W146 -> 0$/ha
S159: =LEFT(B$117,10) -> Figure 7. | T159: =T150 -> Préparation de terrain | U159: =Y150 -> 0 | V159: =W150 -> 0$/ha
U161: Période | V161: P0 | W161: P1 | X161: P2 | Y161: P3 | Z161: P4 | AA161: P5 | AB161: P6 | AC161: P7 | AD161: P8 | AE161: P9 | AF161: P10 | AG161: P11 | AH161: P12 | AI161: P13 | AJ161: P14 | AK161: P15 | AL161: P16 | AM161: P17 | AN161: P18 | AO161: P19 | AP161: P20 | AQ161: P21 | AR161: P22 | AS161: P23 | AT161: P24 | AU161: P25 | AV161: P26 | AW161: P27 | AX161: P28 | AY161: P29 | AZ161: P30
S162: =LEFT(B$150,10) -> Figure 9b | U162: Axe des "X" Fin de période | V162: 2018 | W162: 2023 | X162: 2028 | Y162: 2033 | Z162: 2038 | AA162: 2043 | AB162: 2048 | AC162: 2053 | AD162: 2058 | AE162: 2063 | AF162: 2068 | AG162: 2073 | AH162: 2078 | AI162: 2083 | AJ162: 2088 | AK162: 2093 | AL162: 2098 | AM162: 2103 | AN162: 2108 | AO162: 2113 | AP162: 2118 | AQ162: 2123 | AR162: 2128 | AS162: 2133 | AT162: 2138 | AU162: 2143 | AV162: 2148 | AW162: 2153 | AX162: 2158 | AY162: 2163 | AZ162: 2168
S163: Figure 9b | U163: Colonne | V163: 6 | W163: 7 | X163: 8 | Y163: 9 | Z163: 10 | AA163: 11 | AB163: 12 | AC163: 13 | AD163: 14 | AE163: 15 | AF163: 16 | AG163: 17 | AH163: 18 | AI163: 19 | AJ163: 20 | AK163: 21 | AL163: 22 | AM163: 23 | AN163: 24 | AO163: 25 | AP163: 26 | AQ163: 27 | AR163: 28 | AS163: 29 | AT163: 30 | AU163: 31 | AV163: 32 | AW163: 33 | AX163: 34 | AY163: 35 | AZ163: 36
S164: Figure 9b | U164: OSUPREGECO | V164: =VLOOKUP($U164,Output!$C:$AL,V$163,FALSE) -> 999199.8 | W164: =VLOOKUP($U164,Output!$C:$AL,W$163,FALSE) -> 998434.87 | X164: =VLOOKUP($U164,Output!$C:$AL,X$163,FALSE) -> 997901.98 | Y164: =VLOOKUP($U164,Output!$C:$AL,Y$163,FALSE) -> 997383.03 | Z164: =VLOOKUP($U164,Output!$C:$AL,Z$163,FALSE) -> 996846.19 | AA164: =VLOOKUP($U164,Output!$C:$AL,AA$163,FALSE) -> 996314.14 | AB164: =VLOOKUP($U164,Output!$C:$AL,AB$163,FALSE) -> 995831.89 | AC164: =VLOOKUP($U164,Output!$C:$AL,AC$163,FALSE) -> 995328.48 | AD164: =VLOOKUP($U164,Output!$C:$AL,AD$163,FALSE) -> 994842.01 | AE164: =VLOOKUP($U164,Output!$C:$AL,AE$163,FALSE) -> 994438.21 | AF164: =VLOOKUP($U164,Output!$C:$AL,AF$163,FALSE) -> 994005.01 | AG164: =VLOOKUP($U164,Output!$C:$AL,AG$163,FALSE) -> 993599.84 | AH164: =VLOOKUP($U164,Output!$C:$AL,AH$163,FALSE) -> 993282.62 | AI164: =VLOOKUP($U164,Output!$C:$AL,AI$163,FALSE) -> 992937.84 | AJ164: =VLOOKUP($U164,Output!$C:$AL,AJ$163,FALSE) -> 992515.99 | AK164: =VLOOKUP($U164,Output!$C:$AL,AK$163,FALSE) -> 992144.31 | AL164: =VLOOKUP($U164,Output!$C:$AL,AL$163,FALSE) -> 991796.15 | AM164: =VLOOKUP($U164,Output!$C:$AL,AM$163,FALSE) -> 991508 | AN164: =VLOOKUP($U164,Output!$C:$AL,AN$163,FALSE) -> 991183.88 | AO164: =VLOOKUP($U164,Output!$C:$AL,AO$163,FALSE) -> 990984.27 | AP164: =VLOOKUP($U164,Output!$C:$AL,AP$163,FALSE) -> 990785.03 | AQ164: =VLOOKUP($U164,Output!$C:$AL,AQ$163,FALSE) -> 990620.79 | AR164: =VLOOKUP($U164,Output!$C:$AL,AR$163,FALSE) -> 990343.13 | AS164: =VLOOKUP($U164,Output!$C:$AL,AS$163,FALSE) -> 990056.74 | AT164: =VLOOKUP($U164,Output!$C:$AL,AT$163,FALSE) -> 989823.08 | AU164: =VLOOKUP($U164,Output!$C:$AL,AU$163,FALSE) -> 989452.81 | AV164: =VLOOKUP($U164,Output!$C:$AL,AV$163,FALSE) -> 988975.05 | AW164: =VLOOKUP($U164,Output!$C:$AL,AW$163,FALSE) -> 988605.03 | AX164: =VLOOKUP($U164,Output!$C:$AL,AX$163,FALSE) -> 988226.89 | AY164: =VLOOKUP($U164,Output!$C:$AL,AY$163,FALSE) -> 987898.98 | AZ164: =VLOOKUP($U164,Output!$C:$AL,AZ$163,FALSE) -> 987523.31
S165: Figure 9b | T165: Élevé | U165: OSUPVIEUXALERTEREGECO | V165: =VLOOKUP($U165,Output!$C:$AL,V$163,FALSE) -> 194862.25 | W165: =VLOOKUP($U165,Output!$C:$AL,W$163,FALSE) -> 194713.09 | X165: =VLOOKUP($U165,Output!$C:$AL,X$163,FALSE) -> 194609.17 | Y165: =VLOOKUP($U165,Output!$C:$AL,Y$163,FALSE) -> 194507.98 | Z165: =VLOOKUP($U165,Output!$C:$AL,Z$163,FALSE) -> 194403.29 | AA165: =VLOOKUP($U165,Output!$C:$AL,AA$163,FALSE) -> 194299.54 | AB165: =VLOOKUP($U165,Output!$C:$AL,AB$163,FALSE) -> 194205.5 | AC165: =VLOOKUP($U165,Output!$C:$AL,AC$163,FALSE) -> 194107.34 | AD165: =VLOOKUP($U165,Output!$C:$AL,AD$163,FALSE) -> 194012.48 | AE165: =VLOOKUP($U165,Output!$C:$AL,AE$163,FALSE) -> 193933.74 | AF165: =VLOOKUP($U165,Output!$C:$AL,AF$163,FALSE) -> 193849.22 | AG165: =VLOOKUP($U165,Output!$C:$AL,AG$163,FALSE) -> 193770.18 | AH165: =VLOOKUP($U165,Output!$C:$AL,AH$163,FALSE) -> 193708.32 | AI165: =VLOOKUP($U165,Output!$C:$AL,AI$163,FALSE) -> 193641.09 | AJ165: =VLOOKUP($U165,Output!$C:$AL,AJ$163,FALSE) -> 193558.83 | AK165: =VLOOKUP($U165,Output!$C:$AL,AK$163,FALSE) -> 193486.35 | AL165: =VLOOKUP($U165,Output!$C:$AL,AL$163,FALSE) -> 193418.46 | AM165: =VLOOKUP($U165,Output!$C:$AL,AM$163,FALSE) -> 193362.26 | AN165: =VLOOKUP($U165,Output!$C:$AL,AN$163,FALSE) -> 193299.06 | AO165: =VLOOKUP($U165,Output!$C:$AL,AO$163,FALSE) -> 193260.13 | AP165: =VLOOKUP($U165,Output!$C:$AL,AP$163,FALSE) -> 193221.22 | AQ165: =VLOOKUP($U165,Output!$C:$AL,AQ$163,FALSE) -> 193189.2 | AR165: =VLOOKUP($U165,Output!$C:$AL,AR$163,FALSE) -> 193135.05 | AS165: =VLOOKUP($U165,Output!$C:$AL,AS$163,FALSE) -> 193079.19 | AT165: =VLOOKUP($U165,Output!$C:$AL,AT$163,FALSE) -> 193033.62 | AU165: =VLOOKUP($U165,Output!$C:$AL,AU$163,FALSE) -> 192961.42 | AV165: =VLOOKUP($U165,Output!$C:$AL,AV$163,FALSE) -> 192868.26 | AW165: =VLOOKUP($U165,Output!$C:$AL,AW$163,FALSE) -> 192796.1 | AX165: =VLOOKUP($U165,Output!$C:$AL,AX$163,FALSE) -> 192722.36 | AY165: =VLOOKUP($U165,Output!$C:$AL,AY$163,FALSE) -> 192658.42 | AZ165: =VLOOKUP($U165,Output!$C:$AL,AZ$163,FALSE) -> 192585.17
S166: Figure 9b | U166: OSUPVIEUXACCEPTREGECO | V166: =VLOOKUP($U166,Output!$C:$AL,V$163,FALSE) -> 324770.41 | W166: =VLOOKUP($U166,Output!$C:$AL,W$163,FALSE) -> 324521.81 | X166: =VLOOKUP($U166,Output!$C:$AL,X$163,FALSE) -> 324348.62 | Y166: =VLOOKUP($U166,Output!$C:$AL,Y$163,FALSE) -> 324179.97 | Z166: =VLOOKUP($U166,Output!$C:$AL,Z$163,FALSE) -> 324005.49 | AA166: =VLOOKUP($U166,Output!$C:$AL,AA$163,FALSE) -> 323832.57 | AB166: =VLOOKUP($U166,Output!$C:$AL,AB$163,FALSE) -> 323675.84 | AC166: =VLOOKUP($U166,Output!$C:$AL,AC$163,FALSE) -> 323512.23 | AD166: =VLOOKUP($U166,Output!$C:$AL,AD$163,FALSE) -> 323354.13 | AE166: =VLOOKUP($U166,Output!$C:$AL,AE$163,FALSE) -> 323222.89 | AF166: =VLOOKUP($U166,Output!$C:$AL,AF$163,FALSE) -> 323082.03 | AG166: =VLOOKUP($U166,Output!$C:$AL,AG$163,FALSE) -> 322950.3 | AH166: =VLOOKUP($U166,Output!$C:$AL,AH$163,FALSE) -> 322847.2 | AI166: =VLOOKUP($U166,Output!$C:$AL,AI$163,FALSE) -> 322735.14 | AJ166: =VLOOKUP($U166,Output!$C:$AL,AJ$163,FALSE) -> 322598.04 | AK166: =VLOOKUP($U166,Output!$C:$AL,AK$163,FALSE) -> 322477.25 | AL166: =VLOOKUP($U166,Output!$C:$AL,AL$163,FALSE) -> 322364.1 | AM166: =VLOOKUP($U166,Output!$C:$AL,AM$163,FALSE) -> 322270.43 | AN166: =VLOOKUP($U166,Output!$C:$AL,AN$163,FALSE) -> 322165.09 | AO166: =VLOOKUP($U166,Output!$C:$AL,AO$163,FALSE) -> 322100.22 | AP166: =VLOOKUP($U166,Output!$C:$AL,AP$163,FALSE) -> 322035.37 | AQ166: =VLOOKUP($U166,Output!$C:$AL,AQ$163,FALSE) -> 321982 | AR166: =VLOOKUP($U166,Output!$C:$AL,AR$163,FALSE) -> 321891.75 | AS166: =VLOOKUP($U166,Output!$C:$AL,AS$163,FALSE) -> 321798.64 | AT166: =VLOOKUP($U166,Output!$C:$AL,AT$163,FALSE) -> 321722.7 | AU166: =VLOOKUP($U166,Output!$C:$AL,AU$163,FALSE) -> 321602.36 | AV166: =VLOOKUP($U166,Output!$C:$AL,AV$163,FALSE) -> 321447.09 | AW166: =VLOOKUP($U166,Output!$C:$AL,AW$163,FALSE) -> 321326.83 | AX166: =VLOOKUP($U166,Output!$C:$AL,AX$163,FALSE) -> 321203.94 | AY166: =VLOOKUP($U166,Output!$C:$AL,AY$163,FALSE) -> 321097.37 | AZ166: =VLOOKUP($U166,Output!$C:$AL,AZ$163,FALSE) -> 320975.28
S167: Figure 9b | T167: Moyen | V167: =V166-V165 -> 129908.16 | W167: =W166-W165 -> 129808.72 | X167: 129739.45 | Y167: 129671.99 | Z167: 129602.2 | AA167: 129533.03 | AB167: 129470.34 | AC167: 129404.89 | AD167: 129341.65 | AE167: 129289.15 | AF167: 129232.81 | AG167: 129180.12 | AH167: 129138.88 | AI167: 129094.05 | AJ167: 129039.21 | AK167: 128990.9 | AL167: 128945.64 | AM167: 128908.17 | AN167: 128866.03 | AO167: 128840.09 | AP167: 128814.15 | AQ167: 128792.8 | AR167: 128756.7 | AS167: 128719.45 | AT167: 128689.08 | AU167: 128640.94 | AV167: 128578.83 | AW167: 128530.73 | AX167: 128481.58 | AY167: 128438.95 | AZ167: 128390.11
S168: Figure 9b | T168: Faible | V168: =$V$164-V165-V167 -> 674429.39 | W168: 674677.99 | X168: 674851.18 | Y168: 675019.83 | Z168: 675194.31 | AA168: 675367.23 | AB168: 675523.96 | AC168: 675687.57 | AD168: 675845.67 | AE168: 675976.91 | AF168: 676117.77 | AG168: 676249.5 | AH168: 676352.6 | AI168: 676464.66 | AJ168: 676601.76 | AK168: 676722.55 | AL168: 676835.7 | AM168: 676929.37 | AN168: 677034.71 | AO168: 677099.58 | AP168: 677164.43 | AQ168: 677217.8 | AR168: 677308.05 | AS168: 677401.16 | AT168: 677477.1 | AU168: 677597.44 | AV168: 677752.71 | AW168: 677872.97 | AX168: 677995.86 | AY168: 678102.43 | AZ168: 678224.52
S169: Figure 9b | T169: Niveau prédit | U169: OSUPVIEUXTOTREGECO | V169: =VLOOKUP($U169,Output!$C:$AL,V$163,FALSE) -> 689297.2 | W169: =VLOOKUP($U169,Output!$C:$AL,W$163,FALSE) -> 686159.86 | X169: =VLOOKUP($U169,Output!$C:$AL,X$163,FALSE) -> 675981.88 | Y169: =VLOOKUP($U169,Output!$C:$AL,Y$163,FALSE) -> 668467.43 | Z169: =VLOOKUP($U169,Output!$C:$AL,Z$163,FALSE) -> 672010.48 | AA169: =VLOOKUP($U169,Output!$C:$AL,AA$163,FALSE) -> 666236.18 | AB169: =VLOOKUP($U169,Output!$C:$AL,AB$163,FALSE) -> 675381.42 | AC169: =VLOOKUP($U169,Output!$C:$AL,AC$163,FALSE) -> 667425.15 | AD169: =VLOOKUP($U169,Output!$C:$AL,AD$163,FALSE) -> 660885.82 | AE169: =VLOOKUP($U169,Output!$C:$AL,AE$163,FALSE) -> 669688.37 | AF169: =VLOOKUP($U169,Output!$C:$AL,AF$163,FALSE) -> 662332.05 | AG169: =VLOOKUP($U169,Output!$C:$AL,AG$163,FALSE) -> 654454.68 | AH169: =VLOOKUP($U169,Output!$C:$AL,AH$163,FALSE) -> 722606.68 | AI169: =VLOOKUP($U169,Output!$C:$AL,AI$163,FALSE) -> 716842.9 | AJ169: =VLOOKUP($U169,Output!$C:$AL,AJ$163,FALSE) -> 707869.83 | AK169: =VLOOKUP($U169,Output!$C:$AL,AK$163,FALSE) -> 712857.84 | AL169: =VLOOKUP($U169,Output!$C:$AL,AL$163,FALSE) -> 750086.41 | AM169: =VLOOKUP($U169,Output!$C:$AL,AM$163,FALSE) -> 783849.2 | AN169: =VLOOKUP($U169,Output!$C:$AL,AN$163,FALSE) -> 791400.44 | AO169: =VLOOKUP($U169,Output!$C:$AL,AO$163,FALSE) -> 803526.97 | AP169: =VLOOKUP($U169,Output!$C:$AL,AP$163,FALSE) -> 808141.21 | AQ169: =VLOOKUP($U169,Output!$C:$AL,AQ$163,FALSE) -> 812242.57 | AR169: =VLOOKUP($U169,Output!$C:$AL,AR$163,FALSE) -> 811369.67 | AS169: =VLOOKUP($U169,Output!$C:$AL,AS$163,FALSE) -> 811066.25 | AT169: =VLOOKUP($U169,Output!$C:$AL,AT$163,FALSE) -> 811885.78 | AU169: =VLOOKUP($U169,Output!$C:$AL,AU$163,FALSE) -> 804742.36 | AV169: =VLOOKUP($U169,Output!$C:$AL,AV$163,FALSE) -> 800204.77 | AW169: =VLOOKUP($U169,Output!$C:$AL,AW$163,FALSE) -> 800393.74 | AX169: =VLOOKUP($U169,Output!$C:$AL,AX$163,FALSE) -> 798264.56 | AY169: =VLOOKUP($U169,Output!$C:$AL,AY$163,FALSE) -> 796090.52 | AZ169: =VLOOKUP($U169,Output!$C:$AL,AZ$163,FALSE) -> 796690.47
S170: Figure 9b | T170: Portrait préindustriel
B176: Figure 9c Évolution de la superficie des peuplements en régénération selon leur degré d'altération
U177: Période | V177: P0 | W177: P1 | X177: P2 | Y177: P3 | Z177: P4 | AA177: P5 | AB177: P6 | AC177: P7 | AD177: P8 | AE177: P9 | AF177: P10 | AG177: P11 | AH177: P12 | AI177: P13 | AJ177: P14 | AK177: P15 | AL177: P16 | AM177: P17 | AN177: P18 | AO177: P19 | AP177: P20 | AQ177: P21 | AR177: P22 | AS177: P23 | AT177: P24 | AU177: P25 | AV177: P26 | AW177: P27 | AX177: P28 | AY177: P29 | AZ177: P30
U178: Axe des "X" Fin de période | V178: 2018 | W178: 2023 | X178: 2028 | Y178: 2033 | Z178: 2038 | AA178: 2043 | AB178: 2048 | AC178: 2053 | AD178: 2058 | AE178: 2063 | AF178: 2068 | AG178: 2073 | AH178: 2078 | AI178: 2083 | AJ178: 2088 | AK178: 2093 | AL178: 2098 | AM178: 2103 | AN178: 2108 | AO178: 2113 | AP178: 2118 | AQ178: 2123 | AR178: 2128 | AS178: 2133 | AT178: 2138 | AU178: 2143 | AV178: 2148 | AW178: 2153 | AX178: 2158 | AY178: 2163 | AZ178: 2168
S179: =LEFT(B$176,10) -> Figure 9c | U179: Colonne | V179: 6 | W179: 7 | X179: 8 | Y179: 9 | Z179: 10 | AA179: 11 | AB179: 12 | AC179: 13 | AD179: 14 | AE179: 15 | AF179: 16 | AG179: 17 | AH179: 18 | AI179: 19 | AJ179: 20 | AK179: 21 | AL179: 22 | AM179: 23 | AN179: 24 | AO179: 25 | AP179: 26 | AQ179: 27 | AR179: 28 | AS179: 29 | AT179: 30 | AU179: 31 | AV179: 32 | AW179: 33 | AX179: 34 | AY179: 35 | AZ179: 36
S180: Figure 9c | T180: Niveau prédit | U180: OSUPJEUNEREGECO | V180: =VLOOKUP($U180,Output!$C:$AL,V$179,FALSE) -> 138847 | W180: =VLOOKUP($U180,Output!$C:$AL,W$179,FALSE) -> 97943.01 | X180: =VLOOKUP($U180,Output!$C:$AL,X$179,FALSE) -> 59563.07 | Y180: =VLOOKUP($U180,Output!$C:$AL,Y$179,FALSE) -> 51239.7 | Z180: =VLOOKUP($U180,Output!$C:$AL,Z$179,FALSE) -> 41858.34 | AA180: =VLOOKUP($U180,Output!$C:$AL,AA$179,FALSE) -> 38872.08 | AB180: =VLOOKUP($U180,Output!$C:$AL,AB$179,FALSE) -> 38128.04 | AC180: =VLOOKUP($U180,Output!$C:$AL,AC$179,FALSE) -> 38584.1 | AD180: =VLOOKUP($U180,Output!$C:$AL,AD$179,FALSE) -> 38362.45 | AE180: =VLOOKUP($U180,Output!$C:$AL,AE$179,FALSE) -> 38172.13 | AF180: =VLOOKUP($U180,Output!$C:$AL,AF$179,FALSE) -> 38729.39 | AG180: =VLOOKUP($U180,Output!$C:$AL,AG$179,FALSE) -> 37487.06 | AH180: =VLOOKUP($U180,Output!$C:$AL,AH$179,FALSE) -> 36715.08 | AI180: =VLOOKUP($U180,Output!$C:$AL,AI$179,FALSE) -> 35864.82 | AJ180: =VLOOKUP($U180,Output!$C:$AL,AJ$179,FALSE) -> 36080.3 | AK180: =VLOOKUP($U180,Output!$C:$AL,AK$179,FALSE) -> 36075.68 | AL180: =VLOOKUP($U180,Output!$C:$AL,AL$179,FALSE) -> 36320.33 | AM180: =VLOOKUP($U180,Output!$C:$AL,AM$179,FALSE) -> 35921.02 | AN180: =VLOOKUP($U180,Output!$C:$AL,AN$179,FALSE) -> 34587.88 | AO180: =VLOOKUP($U180,Output!$C:$AL,AO$179,FALSE) -> 34558.38 | AP180: =VLOOKUP($U180,Output!$C:$AL,AP$179,FALSE) -> 33411.41 | AQ180: =VLOOKUP($U180,Output!$C:$AL,AQ$179,FALSE) -> 34948.97 | AR180: =VLOOKUP($U180,Output!$C:$AL,AR$179,FALSE) -> 36154.14 | AS180: =VLOOKUP($U180,Output!$C:$AL,AS$179,FALSE) -> 36915.96 | AT180: =VLOOKUP($U180,Output!$C:$AL,AT$179,FALSE) -> 37541.65 | AU180: =VLOOKUP($U180,Output!$C:$AL,AU$179,FALSE) -> 37116.16 | AV180: =VLOOKUP($U180,Output!$C:$AL,AV$179,FALSE) -> 37554.37 | AW180: =VLOOKUP($U180,Output!$C:$AL,AW$179,FALSE) -> 36424.73 | AX180: =VLOOKUP($U180,Output!$C:$AL,AX$179,FALSE) -> 37082.87 | AY180: =VLOOKUP($U180,Output!$C:$AL,AY$179,FALSE) -> 40013.7 | AZ180: =VLOOKUP($U180,Output!$C:$AL,AZ$179,FALSE) -> 39202.71
S181: Figure 9c | U181: OSUPREGECO | V181: =VLOOKUP($U181,Output!$C:$AL,V$179,FALSE) -> 999199.8 | W181: =VLOOKUP($U181,Output!$C:$AL,W$179,FALSE) -> 998434.87 | X181: =VLOOKUP($U181,Output!$C:$AL,X$179,FALSE) -> 997901.98 | Y181: =VLOOKUP($U181,Output!$C:$AL,Y$179,FALSE) -> 997383.03 | Z181: =VLOOKUP($U181,Output!$C:$AL,Z$179,FALSE) -> 996846.19 | AA181: =VLOOKUP($U181,Output!$C:$AL,AA$179,FALSE) -> 996314.14 | AB181: =VLOOKUP($U181,Output!$C:$AL,AB$179,FALSE) -> 995831.89 | AC181: =VLOOKUP($U181,Output!$C:$AL,AC$179,FALSE) -> 995328.48 | AD181: =VLOOKUP($U181,Output!$C:$AL,AD$179,FALSE) -> 994842.01 | AE181: =VLOOKUP($U181,Output!$C:$AL,AE$179,FALSE) -> 994438.21 | AF181: =VLOOKUP($U181,Output!$C:$AL,AF$179,FALSE) -> 994005.01 | AG181: =VLOOKUP($U181,Output!$C:$AL,AG$179,FALSE) -> 993599.84 | AH181: =VLOOKUP($U181,Output!$C:$AL,AH$179,FALSE) -> 993282.62 | AI181: =VLOOKUP($U181,Output!$C:$AL,AI$179,FALSE) -> 992937.84 | AJ181: =VLOOKUP($U181,Output!$C:$AL,AJ$179,FALSE) -> 992515.99 | AK181: =VLOOKUP($U181,Output!$C:$AL,AK$179,FALSE) -> 992144.31 | AL181: =VLOOKUP($U181,Output!$C:$AL,AL$179,FALSE) -> 991796.15 | AM181: =VLOOKUP($U181,Output!$C:$AL,AM$179,FALSE) -> 991508 | AN181: =VLOOKUP($U181,Output!$C:$AL,AN$179,FALSE) -> 991183.88 | AO181: =VLOOKUP($U181,Output!$C:$AL,AO$179,FALSE) -> 990984.27 | AP181: =VLOOKUP($U181,Output!$C:$AL,AP$179,FALSE) -> 990785.03 | AQ181: =VLOOKUP($U181,Output!$C:$AL,AQ$179,FALSE) -> 990620.79 | AR181: =VLOOKUP($U181,Output!$C:$AL,AR$179,FALSE) -> 990343.13 | AS181: =VLOOKUP($U181,Output!$C:$AL,AS$179,FALSE) -> 990056.74 | AT181: =VLOOKUP($U181,Output!$C:$AL,AT$179,FALSE) -> 989823.08 | AU181: =VLOOKUP($U181,Output!$C:$AL,AU$179,FALSE) -> 989452.81 | AV181: =VLOOKUP($U181,Output!$C:$AL,AV$179,FALSE) -> 988975.05 | AW181: =VLOOKUP($U181,Output!$C:$AL,AW$179,FALSE) -> 988605.03 | AX181: =VLOOKUP($U181,Output!$C:$AL,AX$179,FALSE) -> 988226.89 | AY181: =VLOOKUP($U181,Output!$C:$AL,AY$179,FALSE) -> 987898.98 | AZ181: =VLOOKUP($U181,Output!$C:$AL,AZ$179,FALSE) -> 987523.31
S182: Figure 9c | V182: =IFERROR(V180/V181,"0000") -> 0.1389581943 | W182: 0.09809654384 | X182: 0.05968829724 | Y182: 0.0513741446 | Z182: 0.04199077091 | AA182: 0.0390158871 | AB182: 0.03828762704 | AC182: 0.03876519237 | AD182: 0.03856134905 | AE182: 0.03838562277 | AF182: 0.03896297263 | AG182: 0.03772852862 | AH182: 0.03696337705 | AI182: 0.03611990455 | AJ182: 0.03635236144 | AK182: 0.03636132328 | AL182: 0.03662076123 | AM182: 0.0362286739 | AN182: 0.03489552312 | AO182: 0.0348727836 | AP182: 0.03372215868 | AQ182: 0.03527986728 | AR182: 0.03650668027 | AS182: 0.03728671147 | AT182: 0.03792763652 | AU182: 0.03751180413 | AV182: 0.03797302065 | AW182: 0.0368445728 | AX182: 0.03752465185 | AY182: 0.04050383775 | AZ182: 0.03969800976
S183: Figure 9c
S184: Figure 9c | U184: OSUPJEUNEALERTEREGECO | V184: =VLOOKUP($U184,Output!$C:$AL,V$179,FALSE) -> 349452.85 | W184: =VLOOKUP($U184,Output!$C:$AL,W$179,FALSE) -> 349185.12 | X184: =VLOOKUP($U184,Output!$C:$AL,X$179,FALSE) -> 348998.61 | Y184: =VLOOKUP($U184,Output!$C:$AL,Y$179,FALSE) -> 348816.98 | Z184: =VLOOKUP($U184,Output!$C:$AL,Z$179,FALSE) -> 348629.08 | AA184: =VLOOKUP($U184,Output!$C:$AL,AA$179,FALSE) -> 348442.87 | AB184: =VLOOKUP($U184,Output!$C:$AL,AB$179,FALSE) -> 348274.08 | AC184: =VLOOKUP($U184,Output!$C:$AL,AC$179,FALSE) -> 348097.89 | AD184: =VLOOKUP($U184,Output!$C:$AL,AD$179,FALSE) -> 347927.62 | AE184: =VLOOKUP($U184,Output!$C:$AL,AE$179,FALSE) -> 347786.29 | AF184: =VLOOKUP($U184,Output!$C:$AL,AF$179,FALSE) -> 347634.71 | AG184: =VLOOKUP($U184,Output!$C:$AL,AG$179,FALSE) -> 347492.93 | AH184: =VLOOKUP($U184,Output!$C:$AL,AH$179,FALSE) -> 347381.9 | AI184: =VLOOKUP($U184,Output!$C:$AL,AI$179,FALSE) -> 347261.23 | AJ184: =VLOOKUP($U184,Output!$C:$AL,AJ$179,FALSE) -> 347113.58 | AK184: =VLOOKUP($U184,Output!$C:$AL,AK$179,FALSE) -> 346983.49 | AL184: =VLOOKUP($U184,Output!$C:$AL,AL$179,FALSE) -> 346861.64 | AM184: =VLOOKUP($U184,Output!$C:$AL,AM$179,FALSE) -> 346760.79 | AN184: =VLOOKUP($U184,Output!$C:$AL,AN$179,FALSE) -> 346647.35 | AO184: =VLOOKUP($U184,Output!$C:$AL,AO$179,FALSE) -> 346577.49 | AP184: =VLOOKUP($U184,Output!$C:$AL,AP$179,FALSE) -> 346507.8 | AQ184: =VLOOKUP($U184,Output!$C:$AL,AQ$179,FALSE) -> 346450.32 | AR184: =VLOOKUP($U184,Output!$C:$AL,AR$179,FALSE) -> 346353.14 | AS184: =VLOOKUP($U184,Output!$C:$AL,AS$179,FALSE) -> 346252.92 | AT184: =VLOOKUP($U184,Output!$C:$AL,AT$179,FALSE) -> 346171.14 | AU184: =VLOOKUP($U184,Output!$C:$AL,AU$179,FALSE) -> 346041.55 | AV184: =VLOOKUP($U184,Output!$C:$AL,AV$179,FALSE) -> 345874.33 | AW184: =VLOOKUP($U184,Output!$C:$AL,AW$179,FALSE) -> 345744.82 | AX184: =VLOOKUP($U184,Output!$C:$AL,AX$179,FALSE) -> 345612.47 | AY184: =VLOOKUP($U184,Output!$C:$AL,AY$179,FALSE) -> 345497.7 | AZ184: =VLOOKUP($U184,Output!$C:$AL,AZ$179,FALSE) -> 345366.22
S185: Figure 9c | T185: Faible | U185: OSUPJEUNEACCEPTREGECO | V185: =VLOOKUP($U185,Output!$C:$AL,V$179,FALSE) -> 249581.04 | W185: =VLOOKUP($U185,Output!$C:$AL,W$179,FALSE) -> 249389.81 | X185: =VLOOKUP($U185,Output!$C:$AL,X$179,FALSE) -> 249256.59 | Y185: =VLOOKUP($U185,Output!$C:$AL,Y$179,FALSE) -> 249126.85 | Z185: =VLOOKUP($U185,Output!$C:$AL,Z$179,FALSE) -> 248992.64 | AA185: =VLOOKUP($U185,Output!$C:$AL,AA$179,FALSE) -> 248859.63 | AB185: =VLOOKUP($U185,Output!$C:$AL,AB$179,FALSE) -> 248739.07 | AC185: =VLOOKUP($U185,Output!$C:$AL,AC$179,FALSE) -> 248613.22 | AD185: =VLOOKUP($U185,Output!$C:$AL,AD$179,FALSE) -> 248491.6 | AE185: =VLOOKUP($U185,Output!$C:$AL,AE$179,FALSE) -> 248390.65 | AF185: =VLOOKUP($U185,Output!$C:$AL,AF$179,FALSE) -> 248282.39 | AG185: =VLOOKUP($U185,Output!$C:$AL,AG$179,FALSE) -> 248181.12 | AH185: =VLOOKUP($U185,Output!$C:$AL,AH$179,FALSE) -> 248101.82 | AI185: =VLOOKUP($U185,Output!$C:$AL,AI$179,FALSE) -> 248015.62 | AJ185: =VLOOKUP($U185,Output!$C:$AL,AJ$179,FALSE) -> 247910.16 | AK185: =VLOOKUP($U185,Output!$C:$AL,AK$179,FALSE) -> 247817.24 | AL185: =VLOOKUP($U185,Output!$C:$AL,AL$179,FALSE) -> 247730.2 | AM185: =VLOOKUP($U185,Output!$C:$AL,AM$179,FALSE) -> 247658.17 | AN185: =VLOOKUP($U185,Output!$C:$AL,AN$179,FALSE) -> 247577.14 | AO185: =VLOOKUP($U185,Output!$C:$AL,AO$179,FALSE) -> 247527.24 | AP185: =VLOOKUP($U185,Output!$C:$AL,AP$179,FALSE) -> 247477.48 | AQ185: =VLOOKUP($U185,Output!$C:$AL,AQ$179,FALSE) -> 247436.42 | AR185: =VLOOKUP($U185,Output!$C:$AL,AR$179,FALSE) -> 247367 | AS185: =VLOOKUP($U185,Output!$C:$AL,AS$179,FALSE) -> 247295.43 | AT185: =VLOOKUP($U185,Output!$C:$AL,AT$179,FALSE) -> 247237.01 | AU185: =VLOOKUP($U185,Output!$C:$AL,AU$179,FALSE) -> 247144.44 | AV185: =VLOOKUP($U185,Output!$C:$AL,AV$179,FALSE) -> 247025 | AW185: =VLOOKUP($U185,Output!$C:$AL,AW$179,FALSE) -> 246932.5 | AX185: =VLOOKUP($U185,Output!$C:$AL,AX$179,FALSE) -> 246837.96 | AY185: =VLOOKUP($U185,Output!$C:$AL,AY$179,FALSE) -> 246755.99 | AZ185: =VLOOKUP($U185,Output!$C:$AL,AZ$179,FALSE) -> 246662.07
S186: Figure 9c | T186: Moyen | V186: =V184-V185 -> 99871.81 | W186: 99795.31 | X186: 99742.02 | Y186: 99690.13 | Z186: 99636.44 | AA186: 99583.24 | AB186: 99535.01 | AC186: 99484.67 | AD186: 99436.02 | AE186: 99395.64 | AF186: 99352.32 | AG186: 99311.81 | AH186: 99280.08 | AI186: 99245.61 | AJ186: 99203.42 | AK186: 99166.25 | AL186: 99131.44 | AM186: 99102.62 | AN186: 99070.21 | AO186: 99050.25 | AP186: 99030.32 | AQ186: 99013.9 | AR186: 98986.14 | AS186: 98957.49 | AT186: 98934.13 | AU186: 98897.11 | AV186: 98849.33 | AW186: 98812.32 | AX186: 98774.51 | AY186: 98741.71 | AZ186: 98704.15
S187: Figure 9c | T187: Élevé | V187: =$V$181-V184 -> 649746.95 | W187: 650014.68 | X187: 650201.19 | Y187: 650382.82 | Z187: 650570.72 | AA187: 650756.93 | AB187: 650925.72 | AC187: 651101.91 | AD187: 651272.18 | AE187: 651413.51 | AF187: 651565.09 | AG187: 651706.87 | AH187: 651817.9 | AI187: 651938.57 | AJ187: 652086.22 | AK187: 652216.31 | AL187: 652338.16 | AM187: 652439.01 | AN187: 652552.45 | AO187: 652622.31 | AP187: 652692 | AQ187: 652749.48 | AR187: 652846.66 | AS187: 652946.88 | AT187: 653028.66 | AU187: 653158.25 | AV187: 653325.47 | AW187: 653454.98 | AX187: 653587.33 | AY187: 653702.1 | AZ187: 653833.58
U199: Période | V199: P0 | W199: P1 | X199: P2 | Y199: P3 | Z199: P4 | AA199: P5 | AB199: P6 | AC199: P7 | AD199: P8 | AE199: P9 | AF199: P10 | AG199: P11 | AH199: P12 | AI199: P13 | AJ199: P14 | AK199: P15 | AL199: P16 | AM199: P17 | AN199: P18 | AO199: P19 | AP199: P20 | AQ199: P21 | AR199: P22 | AS199: P23 | AT199: P24 | AU199: P25 | AV199: P26 | AW199: P27 | AX199: P28 | AY199: P29 | AZ199: P30
U200: Axe des "X" Fin de période | V200: 2018 | W200: 2023 | X200: 2028 | Y200: 2033 | Z200: 2038 | AA200: 2043 | AB200: 2048 | AC200: 2053 | AD200: 2058 | AE200: 2063 | AF200: 2068 | AG200: 2073 | AH200: 2078 | AI200: 2083 | AJ200: 2088 | AK200: 2093 | AL200: 2098 | AM200: 2103 | AN200: 2108 | AO200: 2113 | AP200: 2118 | AQ200: 2123 | AR200: 2128 | AS200: 2133 | AT200: 2138 | AU200: 2143 | AV200: 2148 | AW200: 2153 | AX200: 2158 | AY200: 2163 | AZ200: 2168
U201: Colonne | V201: 6 | W201: 7 | X201: 8 | Y201: 9 | Z201: 10 | AA201: 11 | AB201: 12 | AC201: 13 | AD201: 14 | AE201: 15 | AF201: 16 | AG201: 17 | AH201: 18 | AI201: 19 | AJ201: 20 | AK201: 21 | AL201: 22 | AM201: 23 | AN201: 24 | AO201: 25 | AP201: 26 | AQ201: 27 | AR201: 28 | AS201: 29 | AT201: 30 | AU201: 31 | AV201: 32 | AW201: 33 | AX201: 34 | AY201: 35 | AZ201: 36
B202: Figure 10a Évolution de la superficie selon le type de couvert | S202: =LEFT(B$202,10) -> Figure 10a | U202: OSUPINC
S203: Figure 10a | U203: Résineux | V203: =SUM(V214,V220,V221,V222,V224,V225) -> 422427.7 | W203: =SUM(W214,W220,W221,W222,W224,W225) -> 421759.37 | X203: 421154.28 | Y203: 420251.31 | Z203: 418959.95 | AA203: 417369.18 | AB203: 415390.82 | AC203: 414403.15 | AD203: 413679.35 | AE203: 413121.56 | AF203: 412579.65 | AG203: 411065.68 | AH203: 409679.72 | AI203: 409343 | AJ203: 408691.85 | AK203: 408024.82 | AL203: 407672.96 | AM203: 407193.33 | AN203: 406859.05 | AO203: 406636.1 | AP203: 406432.23 | AQ203: 406267.99 | AR203: 405987.27 | AS203: 405700.89 | AT203: 405467.22 | AU203: 405096.95 | AV203: 404619.19 | AW203: 404249.17 | AX203: 403871.11 | AY203: 403543.21 | AZ203: 403167.53
S204: Figure 10a | U204: Mixtes résineux | V204: =V223 -> 6623.6 | W204: =W223 -> 6576.07 | X204: 6663.62 | Y204: 7076.56 | Z204: 7851.02 | AA204: 8922.62 | AB204: 10439.76 | AC204: 10938.35 | AD204: 11194.39 | AE204: 11372.93 | AF204: 11498.67 | AG204: 12619.33 | AH204: 13698.66 | AI204: 13718.77 | AJ204: 13958.45 | AK204: 14273.61 | AL204: 14277.31 | AM204: 14470.88 | AN204: 14481.85 | AO204: 14507.86 | AP204: 14513.9 | AQ204: 14513.9 | AR204: 14516.95 | AS204: 14516.95 | AT204: 14516.95 | AU204: 14516.95 | AV204: 14516.95 | AW204: 14516.95 | AX204: 14516.95 | AY204: 14516.95 | AZ204: 14516.95
S205: Figure 10a | U205: Mixtes feuillus intolérants | V205: =V213+V219 -> 4253.7 | W205: =W213+W219 -> 4226.49 | X205: =X213+X219 -> 4223.92 | Y205: =Y213+Y219 -> 4195.17 | Z205: 4177.65 | AA205: 4177.65 | AB205: 4156.62 | AC205: 4142.28 | AD205: 4132.95 | AE205: 4113.8 | AF205: 4107.56 | AG205: 4106.7 | AH205: 4102.1 | AI205: 4080.28 | AJ205: 4073.39 | AK205: 4066.32 | AL205: 4066.32 | AM205: 4066.32 | AN205: 4065.5 | AO205: 4062.85 | AP205: 4062.32 | AQ205: 4062.32 | AR205: 4062.32 | AS205: 4062.32 | AT205: 4062.32 | AU205: 4062.32 | AV205: 4062.32 | AW205: 4062.32 | AX205: 4062.32 | AY205: 4062.32 | AZ205: 4062.32
S206: Figure 10a | U206: Mixtes feuillus tolérants | V206: =V217 -> 0 | W206: =W217 -> 0 | X206: 0 | Y206: 0 | Z206: 0 | AA206: 0 | AB206: 0 | AC206: 0 | AD206: 0 | AE206: 0 | AF206: 0 | AG206: 0 | AH206: 0 | AI206: 0 | AJ206: 0 | AK206: 0 | AL206: 0 | AM206: 0 | AN206: 0 | AO206: 0 | AP206: 0 | AQ206: 0 | AR206: 0 | AS206: 0 | AT206: 0 | AU206: 0 | AV206: 0 | AW206: 0 | AX206: 0 | AY206: 0 | AZ206: 0
S207: Figure 10a | U207: Feuillus intolérants | V207: =V212+V215+V218 -> 3286.6 | W207: =W212+W215+W218 -> 3264.74 | X207: =X212+X215+X218 -> 3251.97 | Y207: 3251.78 | Z207: 3249.36 | AA207: 3236.5 | AB207: 3236.5 | AC207: 3236.5 | AD207: 3227.12 | AE207: 3221.74 | AF207: 3210.94 | AG207: 3199.93 | AH207: 3193.93 | AI207: 3187.59 | AJ207: 3184.09 | AK207: 3171.36 | AL207: 3171.36 | AM207: 3169.27 | AN207: 3169.27 | AO207: 3169.27 | AP207: 3168.38 | AQ207: 3168.38 | AR207: 3168.38 | AS207: 3168.38 | AT207: 3168.38 | AU207: 3168.38 | AV207: 3168.38 | AW207: 3168.38 | AX207: 3168.3 | AY207: 3168.3 | AZ207: 3168.3
S208: Figure 10a | U208: Feuillus tolérants | V208: =V216 -> 0 | W208: =W216 -> 0 | X208: 0 | Y208: 0 | Z208: 0 | AA208: 0 | AB208: 0 | AC208: 0 | AD208: 0 | AE208: 0 | AF208: 0 | AG208: 0 | AH208: 0 | AI208: 0 | AJ208: 0 | AK208: 0 | AL208: 0 | AM208: 0 | AN208: 0 | AO208: 0 | AP208: 0 | AQ208: 0 | AR208: 0 | AS208: 0 | AT208: 0 | AU208: 0 | AV208: 0 | AW208: 0 | AX208: 0 | AY208: 0 | AZ208: 0
S209: Figure 10a | U209: Total | V209: =SUM(V203:V208) -> 436591.6 | W209: =SUM(W203:W208) -> 435826.67 | X209: =SUM(X203:X208) -> 435293.79 | Y209: 434774.82 | Z209: 434237.98 | AA209: 433705.95 | AB209: 433223.7 | AC209: 432720.28 | AD209: 432233.81 | AE209: 431830.03 | AF209: 431396.82 | AG209: 430991.64 | AH209: 430674.41 | AI209: 430329.64 | AJ209: 429907.78 | AK209: 429536.11 | AL209: 429187.95 | AM209: 428899.8 | AN209: 428575.67 | AO209: 428376.08 | AP209: 428176.83 | AQ209: 428012.59 | AR209: 427734.92 | AS209: 427448.54 | AT209: 427214.87 | AU209: 426844.6 | AV209: 426366.84 | AW209: 425996.82 | AX209: 425618.68 | AY209: 425290.78 | AZ209: 424915.1
S210: Figure 10a
S211: Figure 10a
S212: Figure 10a | T212: Bétulaies blanches | U212: (FCTYF_BOP) | V212: =VLOOKUP($U$202&$U212,GTYF!$C:$AP,V$201,FALSE) -> 2424.5 | W212: =VLOOKUP($U$202&$U212,GTYF!$C:$AP,W$201,FALSE) -> 2402.64 | X212: =VLOOKUP($U$202&$U212,GTYF!$C:$AP,X$201,FALSE) -> 2389.87 | Y212: =VLOOKUP($U$202&$U212,GTYF!$C:$AP,Y$201,FALSE) -> 2389.87 | Z212: =VLOOKUP($U$202&$U212,GTYF!$C:$AP,Z$201,FALSE) -> 2388.87 | AA212: =VLOOKUP($U$202&$U212,GTYF!$C:$AP,AA$201,FALSE) -> 2377.75 | AB212: =VLOOKUP($U$202&$U212,GTYF!$C:$AP,AB$201,FALSE) -> 2377.75 | AC212: =VLOOKUP($U$202&$U212,GTYF!$C:$AP,AC$201,FALSE) -> 2377.75 | AD212: =VLOOKUP($U$202&$U212,GTYF!$C:$AP,AD$201,FALSE) -> 2371.32 | AE212: =VLOOKUP($U$202&$U212,GTYF!$C:$AP,AE$201,FALSE) -> 2367.51 | AF212: =VLOOKUP($U$202&$U212,GTYF!$C:$AP,AF$201,FALSE) -> 2357.45 | AG212: =VLOOKUP($U$202&$U212,GTYF!$C:$AP,AG$201,FALSE) -> 2346.44 | AH212: =VLOOKUP($U$202&$U212,GTYF!$C:$AP,AH$201,FALSE) -> 2341.03 | AI212: =VLOOKUP($U$202&$U212,GTYF!$C:$AP,AI$201,FALSE) -> 2334.69 | AJ212: =VLOOKUP($U$202&$U212,GTYF!$C:$AP,AJ$201,FALSE) -> 2331.19 | AK212: =VLOOKUP($U$202&$U212,GTYF!$C:$AP,AK$201,FALSE) -> 2318.46 | AL212: =VLOOKUP($U$202&$U212,GTYF!$C:$AP,AL$201,FALSE) -> 2318.46 | AM212: =VLOOKUP($U$202&$U212,GTYF!$C:$AP,AM$201,FALSE) -> 2316.37 | AN212: =VLOOKUP($U$202&$U212,GTYF!$C:$AP,AN$201,FALSE) -> 2316.37 | AO212: =VLOOKUP($U$202&$U212,GTYF!$C:$AP,AO$201,FALSE) -> 2316.37 | AP212: =VLOOKUP($U$202&$U212,GTYF!$C:$AP,AP$201,FALSE) -> 2315.48 | AQ212: =VLOOKUP($U$202&$U212,GTYF!$C:$AP,AQ$201,FALSE) -> 2315.48 | AR212: =VLOOKUP($U$202&$U212,GTYF!$C:$AP,AR$201,FALSE) -> 2315.48 | AS212: =VLOOKUP($U$202&$U212,GTYF!$C:$AP,AS$201,FALSE) -> 2315.48 | AT212: =VLOOKUP($U$202&$U212,GTYF!$C:$AP,AT$201,FALSE) -> 2315.48 | AU212: =VLOOKUP($U$202&$U212,GTYF!$C:$AP,AU$201,FALSE) -> 2315.48 | AV212: =VLOOKUP($U$202&$U212,GTYF!$C:$AP,AV$201,FALSE) -> 2315.48 | AW212: =VLOOKUP($U$202&$U212,GTYF!$C:$AP,AW$201,FALSE) -> 2315.48 | AX212: =VLOOKUP($U$202&$U212,GTYF!$C:$AP,AX$201,FALSE) -> 2315.4 | AY212: =VLOOKUP($U$202&$U212,GTYF!$C:$AP,AY$201,FALSE) -> 2315.4 | AZ212: =VLOOKUP($U$202&$U212,GTYF!$C:$AP,AZ$201,FALSE) -> 2315.4
S213: Figure 10a | T213: Bétulaies blanches à résineux | U213: (FCTYF_BOPR) | V213: =VLOOKUP($U$202&$U213,GTYF!$C:$AP,V$201,FALSE) -> 4253.7 | W213: =VLOOKUP($U$202&$U213,GTYF!$C:$AP,W$201,FALSE) -> 4226.49 | X213: =VLOOKUP($U$202&$U213,GTYF!$C:$AP,X$201,FALSE) -> 4223.92 | Y213: =VLOOKUP($U$202&$U213,GTYF!$C:$AP,Y$201,FALSE) -> 4195.17 | Z213: =VLOOKUP($U$202&$U213,GTYF!$C:$AP,Z$201,FALSE) -> 4177.65 | AA213: =VLOOKUP($U$202&$U213,GTYF!$C:$AP,AA$201,FALSE) -> 4177.65 | AB213: =VLOOKUP($U$202&$U213,GTYF!$C:$AP,AB$201,FALSE) -> 4156.62 | AC213: =VLOOKUP($U$202&$U213,GTYF!$C:$AP,AC$201,FALSE) -> 4142.28 | AD213: =VLOOKUP($U$202&$U213,GTYF!$C:$AP,AD$201,FALSE) -> 4132.95 | AE213: =VLOOKUP($U$202&$U213,GTYF!$C:$AP,AE$201,FALSE) -> 4113.8 | AF213: =VLOOKUP($U$202&$U213,GTYF!$C:$AP,AF$201,FALSE) -> 4107.56 | AG213: =VLOOKUP($U$202&$U213,GTYF!$C:$AP,AG$201,FALSE) -> 4106.7 | AH213: =VLOOKUP($U$202&$U213,GTYF!$C:$AP,AH$201,FALSE) -> 4102.1 | AI213: =VLOOKUP($U$202&$U213,GTYF!$C:$AP,AI$201,FALSE) -> 4080.28 | AJ213: =VLOOKUP($U$202&$U213,GTYF!$C:$AP,AJ$201,FALSE) -> 4073.39 | AK213: =VLOOKUP($U$202&$U213,GTYF!$C:$AP,AK$201,FALSE) -> 4066.32 | AL213: =VLOOKUP($U$202&$U213,GTYF!$C:$AP,AL$201,FALSE) -> 4066.32 | AM213: =VLOOKUP($U$202&$U213,GTYF!$C:$AP,AM$201,FALSE) -> 4066.32 | AN213: =VLOOKUP($U$202&$U213,GTYF!$C:$AP,AN$201,FALSE) -> 4065.5 | AO213: =VLOOKUP($U$202&$U213,GTYF!$C:$AP,AO$201,FALSE) -> 4062.85 | AP213: =VLOOKUP($U$202&$U213,GTYF!$C:$AP,AP$201,FALSE) -> 4062.32 | AQ213: =VLOOKUP($U$202&$U213,GTYF!$C:$AP,AQ$201,FALSE) -> 4062.32 | AR213: =VLOOKUP($U$202&$U213,GTYF!$C:$AP,AR$201,FALSE) -> 4062.32 | AS213: =VLOOKUP($U$202&$U213,GTYF!$C:$AP,AS$201,FALSE) -> 4062.32 | AT213: =VLOOKUP($U$202&$U213,GTYF!$C:$AP,AT$201,FALSE) -> 4062.32 | AU213: =VLOOKUP($U$202&$U213,GTYF!$C:$AP,AU$201,FALSE) -> 4062.32 | AV213: =VLOOKUP($U$202&$U213,GTYF!$C:$AP,AV$201,FALSE) -> 4062.32 | AW213: =VLOOKUP($U$202&$U213,GTYF!$C:$AP,AW$201,FALSE) -> 4062.32 | AX213: =VLOOKUP($U$202&$U213,GTYF!$C:$AP,AX$201,FALSE) -> 4062.32 | AY213: =VLOOKUP($U$202&$U213,GTYF!$C:$AP,AY$201,FALSE) -> 4062.32 | AZ213: =VLOOKUP($U$202&$U213,GTYF!$C:$AP,AZ$201,FALSE) -> 4062.32
S214: Figure 10a | T214: Pessières | U214: (FCTYF_EPX) | V214: =VLOOKUP($U$202&$U214,GTYF!$C:$AP,V$201,FALSE) -> 333910.8 | W214: =VLOOKUP($U$202&$U214,GTYF!$C:$AP,W$201,FALSE) -> 333255.75 | X214: =VLOOKUP($U$202&$U214,GTYF!$C:$AP,X$201,FALSE) -> 332777.38 | Y214: =VLOOKUP($U$202&$U214,GTYF!$C:$AP,Y$201,FALSE) -> 332415.54 | Z214: =VLOOKUP($U$202&$U214,GTYF!$C:$AP,Z$201,FALSE) -> 331978.65 | AA214: =VLOOKUP($U$202&$U214,GTYF!$C:$AP,AA$201,FALSE) -> 331599.84 | AB214: =VLOOKUP($U$202&$U214,GTYF!$C:$AP,AB$201,FALSE) -> 331478.89 | AC214: =VLOOKUP($U$202&$U214,GTYF!$C:$AP,AC$201,FALSE) -> 331132.24 | AD214: =VLOOKUP($U$202&$U214,GTYF!$C:$AP,AD$201,FALSE) -> 330795.04 | AE214: =VLOOKUP($U$202&$U214,GTYF!$C:$AP,AE$201,FALSE) -> 330490.5 | AF214: =VLOOKUP($U$202&$U214,GTYF!$C:$AP,AF$201,FALSE) -> 330074.57 | AG214: =VLOOKUP($U$202&$U214,GTYF!$C:$AP,AG$201,FALSE) -> 329781.26 | AH214: =VLOOKUP($U$202&$U214,GTYF!$C:$AP,AH$201,FALSE) -> 329083.08 | AI214: =VLOOKUP($U$202&$U214,GTYF!$C:$AP,AI$201,FALSE) -> 328832.95 | AJ214: =VLOOKUP($U$202&$U214,GTYF!$C:$AP,AJ$201,FALSE) -> 328500.49 | AK214: =VLOOKUP($U$202&$U214,GTYF!$C:$AP,AK$201,FALSE) -> 328191.09 | AL214: =VLOOKUP($U$202&$U214,GTYF!$C:$AP,AL$201,FALSE) -> 329401.06 | AM214: =VLOOKUP($U$202&$U214,GTYF!$C:$AP,AM$201,FALSE) -> 330061.01 | AN214: =VLOOKUP($U$202&$U214,GTYF!$C:$AP,AN$201,FALSE) -> 330357.77 | AO214: =VLOOKUP($U$202&$U214,GTYF!$C:$AP,AO$201,FALSE) -> 330481.45 | AP214: =VLOOKUP($U$202&$U214,GTYF!$C:$AP,AP$201,FALSE) -> 331322.97 | AQ214: =VLOOKUP($U$202&$U214,GTYF!$C:$AP,AQ$201,FALSE) -> 334808.44 | AR214: =VLOOKUP($U$202&$U214,GTYF!$C:$AP,AR$201,FALSE) -> 338310.67 | AS214: =VLOOKUP($U$202&$U214,GTYF!$C:$AP,AS$201,FALSE) -> 339571.55 | AT214: =VLOOKUP($U$202&$U214,GTYF!$C:$AP,AT$201,FALSE) -> 340134.98 | AU214: =VLOOKUP($U$202&$U214,GTYF!$C:$AP,AU$201,FALSE) -> 340511.71 | AV214: =VLOOKUP($U$202&$U214,GTYF!$C:$AP,AV$201,FALSE) -> 341541.75 | AW214: =VLOOKUP($U$202&$U214,GTYF!$C:$AP,AW$201,FALSE) -> 341171.73 | AX214: =VLOOKUP($U$202&$U214,GTYF!$C:$AP,AX$201,FALSE) -> 340873.13 | AY214: =VLOOKUP($U$202&$U214,GTYF!$C:$AP,AY$201,FALSE) -> 345945.93 | AZ214: =VLOOKUP($U$202&$U214,GTYF!$C:$AP,AZ$201,FALSE) -> 345739.43
S215: Figure 10a | T215: Érablières rouges | U215: (FCTYF_ERO) | V215: =VLOOKUP($U$202&$U215,GTYF!$C:$AP,V$201,FALSE) -> 0 | W215: =VLOOKUP($U$202&$U215,GTYF!$C:$AP,W$201,FALSE) -> 0 | X215: =VLOOKUP($U$202&$U215,GTYF!$C:$AP,X$201,FALSE) -> 0 | Y215: =VLOOKUP($U$202&$U215,GTYF!$C:$AP,Y$201,FALSE) -> 0 | Z215: =VLOOKUP($U$202&$U215,GTYF!$C:$AP,Z$201,FALSE) -> 0 | AA215: =VLOOKUP($U$202&$U215,GTYF!$C:$AP,AA$201,FALSE) -> 0 | AB215: =VLOOKUP($U$202&$U215,GTYF!$C:$AP,AB$201,FALSE) -> 0 | AC215: =VLOOKUP($U$202&$U215,GTYF!$C:$AP,AC$201,FALSE) -> 0 | AD215: =VLOOKUP($U$202&$U215,GTYF!$C:$AP,AD$201,FALSE) -> 0 | AE215: =VLOOKUP($U$202&$U215,GTYF!$C:$AP,AE$201,FALSE) -> 0 | AF215: =VLOOKUP($U$202&$U215,GTYF!$C:$AP,AF$201,FALSE) -> 0 | AG215: =VLOOKUP($U$202&$U215,GTYF!$C:$AP,AG$201,FALSE) -> 0 | AH215: =VLOOKUP($U$202&$U215,GTYF!$C:$AP,AH$201,FALSE) -> 0 | AI215: =VLOOKUP($U$202&$U215,GTYF!$C:$AP,AI$201,FALSE) -> 0 | AJ215: =VLOOKUP($U$202&$U215,GTYF!$C:$AP,AJ$201,FALSE) -> 0 | AK215: =VLOOKUP($U$202&$U215,GTYF!$C:$AP,AK$201,FALSE) -> 0 | AL215: =VLOOKUP($U$202&$U215,GTYF!$C:$AP,AL$201,FALSE) -> 0 | AM215: =VLOOKUP($U$202&$U215,GTYF!$C:$AP,AM$201,FALSE) -> 0 | AN215: =VLOOKUP($U$202&$U215,GTYF!$C:$AP,AN$201,FALSE) -> 0 | AO215: =VLOOKUP($U$202&$U215,GTYF!$C:$AP,AO$201,FALSE) -> 0 | AP215: =VLOOKUP($U$202&$U215,GTYF!$C:$AP,AP$201,FALSE) -> 0 | AQ215: =VLOOKUP($U$202&$U215,GTYF!$C:$AP,AQ$201,FALSE) -> 0 | AR215: =VLOOKUP($U$202&$U215,GTYF!$C:$AP,AR$201,FALSE) -> 0 | AS215: =VLOOKUP($U$202&$U215,GTYF!$C:$AP,AS$201,FALSE) -> 0 | AT215: =VLOOKUP($U$202&$U215,GTYF!$C:$AP,AT$201,FALSE) -> 0 | AU215: =VLOOKUP($U$202&$U215,GTYF!$C:$AP,AU$201,FALSE) -> 0 | AV215: =VLOOKUP($U$202&$U215,GTYF!$C:$AP,AV$201,FALSE) -> 0 | AW215: =VLOOKUP($U$202&$U215,GTYF!$C:$AP,AW$201,FALSE) -> 0 | AX215: =VLOOKUP($U$202&$U215,GTYF!$C:$AP,AX$201,FALSE) -> 0 | AY215: =VLOOKUP($U$202&$U215,GTYF!$C:$AP,AY$201,FALSE) -> 0 | AZ215: =VLOOKUP($U$202&$U215,GTYF!$C:$AP,AZ$201,FALSE) -> 0
S216: Figure 10a | T216: Feuillus tolérants | U216: (FCTYF_FT) | V216: =VLOOKUP($U$202&$U216,GTYF!$C:$AP,V$201,FALSE) -> 0 | W216: =VLOOKUP($U$202&$U216,GTYF!$C:$AP,W$201,FALSE) -> 0 | X216: =VLOOKUP($U$202&$U216,GTYF!$C:$AP,X$201,FALSE) -> 0 | Y216: =VLOOKUP($U$202&$U216,GTYF!$C:$AP,Y$201,FALSE) -> 0 | Z216: =VLOOKUP($U$202&$U216,GTYF!$C:$AP,Z$201,FALSE) -> 0 | AA216: =VLOOKUP($U$202&$U216,GTYF!$C:$AP,AA$201,FALSE) -> 0 | AB216: =VLOOKUP($U$202&$U216,GTYF!$C:$AP,AB$201,FALSE) -> 0 | AC216: =VLOOKUP($U$202&$U216,GTYF!$C:$AP,AC$201,FALSE) -> 0 | AD216: =VLOOKUP($U$202&$U216,GTYF!$C:$AP,AD$201,FALSE) -> 0 | AE216: =VLOOKUP($U$202&$U216,GTYF!$C:$AP,AE$201,FALSE) -> 0 | AF216: =VLOOKUP($U$202&$U216,GTYF!$C:$AP,AF$201,FALSE) -> 0 | AG216: =VLOOKUP($U$202&$U216,GTYF!$C:$AP,AG$201,FALSE) -> 0 | AH216: =VLOOKUP($U$202&$U216,GTYF!$C:$AP,AH$201,FALSE) -> 0 | AI216: =VLOOKUP($U$202&$U216,GTYF!$C:$AP,AI$201,FALSE) -> 0 | AJ216: =VLOOKUP($U$202&$U216,GTYF!$C:$AP,AJ$201,FALSE) -> 0 | AK216: =VLOOKUP($U$202&$U216,GTYF!$C:$AP,AK$201,FALSE) -> 0 | AL216: =VLOOKUP($U$202&$U216,GTYF!$C:$AP,AL$201,FALSE) -> 0 | AM216: =VLOOKUP($U$202&$U216,GTYF!$C:$AP,AM$201,FALSE) -> 0 | AN216: =VLOOKUP($U$202&$U216,GTYF!$C:$AP,AN$201,FALSE) -> 0 | AO216: =VLOOKUP($U$202&$U216,GTYF!$C:$AP,AO$201,FALSE) -> 0 | AP216: =VLOOKUP($U$202&$U216,GTYF!$C:$AP,AP$201,FALSE) -> 0 | AQ216: =VLOOKUP($U$202&$U216,GTYF!$C:$AP,AQ$201,FALSE) -> 0 | AR216: =VLOOKUP($U$202&$U216,GTYF!$C:$AP,AR$201,FALSE) -> 0 | AS216: =VLOOKUP($U$202&$U216,GTYF!$C:$AP,AS$201,FALSE) -> 0 | AT216: =VLOOKUP($U$202&$U216,GTYF!$C:$AP,AT$201,FALSE) -> 0 | AU216: =VLOOKUP($U$202&$U216,GTYF!$C:$AP,AU$201,FALSE) -> 0 | AV216: =VLOOKUP($U$202&$U216,GTYF!$C:$AP,AV$201,FALSE) -> 0 | AW216: =VLOOKUP($U$202&$U216,GTYF!$C:$AP,AW$201,FALSE) -> 0 | AX216: =VLOOKUP($U$202&$U216,GTYF!$C:$AP,AX$201,FALSE) -> 0 | AY216: =VLOOKUP($U$202&$U216,GTYF!$C:$AP,AY$201,FALSE) -> 0 | AZ216: =VLOOKUP($U$202&$U216,GTYF!$C:$AP,AZ$201,FALSE) -> 0
S217: Figure 10a | T217: Feuillus tolérants à résineux | U217: (FCTYF_FTR) | V217: =VLOOKUP($U$202&$U217,GTYF!$C:$AP,V$201,FALSE) -> 0 | W217: =VLOOKUP($U$202&$U217,GTYF!$C:$AP,W$201,FALSE) -> 0 | X217: =VLOOKUP($U$202&$U217,GTYF!$C:$AP,X$201,FALSE) -> 0 | Y217: =VLOOKUP($U$202&$U217,GTYF!$C:$AP,Y$201,FALSE) -> 0 | Z217: =VLOOKUP($U$202&$U217,GTYF!$C:$AP,Z$201,FALSE) -> 0 | AA217: =VLOOKUP($U$202&$U217,GTYF!$C:$AP,AA$201,FALSE) -> 0 | AB217: =VLOOKUP($U$202&$U217,GTYF!$C:$AP,AB$201,FALSE) -> 0 | AC217: =VLOOKUP($U$202&$U217,GTYF!$C:$AP,AC$201,FALSE) -> 0 | AD217: =VLOOKUP($U$202&$U217,GTYF!$C:$AP,AD$201,FALSE) -> 0 | AE217: =VLOOKUP($U$202&$U217,GTYF!$C:$AP,AE$201,FALSE) -> 0 | AF217: =VLOOKUP($U$202&$U217,GTYF!$C:$AP,AF$201,FALSE) -> 0 | AG217: =VLOOKUP($U$202&$U217,GTYF!$C:$AP,AG$201,FALSE) -> 0 | AH217: =VLOOKUP($U$202&$U217,GTYF!$C:$AP,AH$201,FALSE) -> 0 | AI217: =VLOOKUP($U$202&$U217,GTYF!$C:$AP,AI$201,FALSE) -> 0 | AJ217: =VLOOKUP($U$202&$U217,GTYF!$C:$AP,AJ$201,FALSE) -> 0 | AK217: =VLOOKUP($U$202&$U217,GTYF!$C:$AP,AK$201,FALSE) -> 0 | AL217: =VLOOKUP($U$202&$U217,GTYF!$C:$AP,AL$201,FALSE) -> 0 | AM217: =VLOOKUP($U$202&$U217,GTYF!$C:$AP,AM$201,FALSE) -> 0 | AN217: =VLOOKUP($U$202&$U217,GTYF!$C:$AP,AN$201,FALSE) -> 0 | AO217: =VLOOKUP($U$202&$U217,GTYF!$C:$AP,AO$201,FALSE) -> 0 | AP217: =VLOOKUP($U$202&$U217,GTYF!$C:$AP,AP$201,FALSE) -> 0 | AQ217: =VLOOKUP($U$202&$U217,GTYF!$C:$AP,AQ$201,FALSE) -> 0 | AR217: =VLOOKUP($U$202&$U217,GTYF!$C:$AP,AR$201,FALSE) -> 0 | AS217: =VLOOKUP($U$202&$U217,GTYF!$C:$AP,AS$201,FALSE) -> 0 | AT217: =VLOOKUP($U$202&$U217,GTYF!$C:$AP,AT$201,FALSE) -> 0 | AU217: =VLOOKUP($U$202&$U217,GTYF!$C:$AP,AU$201,FALSE) -> 0 | AV217: =VLOOKUP($U$202&$U217,GTYF!$C:$AP,AV$201,FALSE) -> 0 | AW217: =VLOOKUP($U$202&$U217,GTYF!$C:$AP,AW$201,FALSE) -> 0 | AX217: =VLOOKUP($U$202&$U217,GTYF!$C:$AP,AX$201,FALSE) -> 0 | AY217: =VLOOKUP($U$202&$U217,GTYF!$C:$AP,AY$201,FALSE) -> 0 | AZ217: =VLOOKUP($U$202&$U217,GTYF!$C:$AP,AZ$201,FALSE) -> 0
S218: Figure 10a | T218: Peupleraies | U218: (FCTYF_PEU) | V218: =VLOOKUP($U$202&$U218,GTYF!$C:$AP,V$201,FALSE) -> 862.1 | W218: =VLOOKUP($U$202&$U218,GTYF!$C:$AP,W$201,FALSE) -> 862.1 | X218: =VLOOKUP($U$202&$U218,GTYF!$C:$AP,X$201,FALSE) -> 862.1 | Y218: =VLOOKUP($U$202&$U218,GTYF!$C:$AP,Y$201,FALSE) -> 861.91 | Z218: =VLOOKUP($U$202&$U218,GTYF!$C:$AP,Z$201,FALSE) -> 860.49 | AA218: =VLOOKUP($U$202&$U218,GTYF!$C:$AP,AA$201,FALSE) -> 858.75 | AB218: =VLOOKUP($U$202&$U218,GTYF!$C:$AP,AB$201,FALSE) -> 858.75 | AC218: =VLOOKUP($U$202&$U218,GTYF!$C:$AP,AC$201,FALSE) -> 858.75 | AD218: =VLOOKUP($U$202&$U218,GTYF!$C:$AP,AD$201,FALSE) -> 855.8 | AE218: =VLOOKUP($U$202&$U218,GTYF!$C:$AP,AE$201,FALSE) -> 854.23 | AF218: =VLOOKUP($U$202&$U218,GTYF!$C:$AP,AF$201,FALSE) -> 853.49 | AG218: =VLOOKUP($U$202&$U218,GTYF!$C:$AP,AG$201,FALSE) -> 853.49 | AH218: =VLOOKUP($U$202&$U218,GTYF!$C:$AP,AH$201,FALSE) -> 852.9 | AI218: =VLOOKUP($U$202&$U218,GTYF!$C:$AP,AI$201,FALSE) -> 852.9 | AJ218: =VLOOKUP($U$202&$U218,GTYF!$C:$AP,AJ$201,FALSE) -> 852.9 | AK218: =VLOOKUP($U$202&$U218,GTYF!$C:$AP,AK$201,FALSE) -> 852.9 | AL218: =VLOOKUP($U$202&$U218,GTYF!$C:$AP,AL$201,FALSE) -> 852.9 | AM218: =VLOOKUP($U$202&$U218,GTYF!$C:$AP,AM$201,FALSE) -> 852.9 | AN218: =VLOOKUP($U$202&$U218,GTYF!$C:$AP,AN$201,FALSE) -> 852.9 | AO218: =VLOOKUP($U$202&$U218,GTYF!$C:$AP,AO$201,FALSE) -> 852.9 | AP218: =VLOOKUP($U$202&$U218,GTYF!$C:$AP,AP$201,FALSE) -> 852.9 | AQ218: =VLOOKUP($U$202&$U218,GTYF!$C:$AP,AQ$201,FALSE) -> 852.9 | AR218: =VLOOKUP($U$202&$U218,GTYF!$C:$AP,AR$201,FALSE) -> 852.9 | AS218: =VLOOKUP($U$202&$U218,GTYF!$C:$AP,AS$201,FALSE) -> 852.9 | AT218: =VLOOKUP($U$202&$U218,GTYF!$C:$AP,AT$201,FALSE) -> 852.9 | AU218: =VLOOKUP($U$202&$U218,GTYF!$C:$AP,AU$201,FALSE) -> 852.9 | AV218: =VLOOKUP($U$202&$U218,GTYF!$C:$AP,AV$201,FALSE) -> 852.9 | AW218: =VLOOKUP($U$202&$U218,GTYF!$C:$AP,AW$201,FALSE) -> 852.9 | AX218: =VLOOKUP($U$202&$U218,GTYF!$C:$AP,AX$201,FALSE) -> 852.9 | AY218: =VLOOKUP($U$202&$U218,GTYF!$C:$AP,AY$201,FALSE) -> 852.9 | AZ218: =VLOOKUP($U$202&$U218,GTYF!$C:$AP,AZ$201,FALSE) -> 852.9
S219: Figure 10a | T219: Peupleraies à résineux | U219: (FCTYF_PEUR) | V219: =VLOOKUP($U$202&$U219,GTYF!$C:$AP,V$201,FALSE) -> 0 | W219: =VLOOKUP($U$202&$U219,GTYF!$C:$AP,W$201,FALSE) -> 0 | X219: =VLOOKUP($U$202&$U219,GTYF!$C:$AP,X$201,FALSE) -> 0 | Y219: =VLOOKUP($U$202&$U219,GTYF!$C:$AP,Y$201,FALSE) -> 0 | Z219: =VLOOKUP($U$202&$U219,GTYF!$C:$AP,Z$201,FALSE) -> 0 | AA219: =VLOOKUP($U$202&$U219,GTYF!$C:$AP,AA$201,FALSE) -> 0 | AB219: =VLOOKUP($U$202&$U219,GTYF!$C:$AP,AB$201,FALSE) -> 0 | AC219: =VLOOKUP($U$202&$U219,GTYF!$C:$AP,AC$201,FALSE) -> 0 | AD219: =VLOOKUP($U$202&$U219,GTYF!$C:$AP,AD$201,FALSE) -> 0 | AE219: =VLOOKUP($U$202&$U219,GTYF!$C:$AP,AE$201,FALSE) -> 0 | AF219: =VLOOKUP($U$202&$U219,GTYF!$C:$AP,AF$201,FALSE) -> 0 | AG219: =VLOOKUP($U$202&$U219,GTYF!$C:$AP,AG$201,FALSE) -> 0 | AH219: =VLOOKUP($U$202&$U219,GTYF!$C:$AP,AH$201,FALSE) -> 0 | AI219: =VLOOKUP($U$202&$U219,GTYF!$C:$AP,AI$201,FALSE) -> 0 | AJ219: =VLOOKUP($U$202&$U219,GTYF!$C:$AP,AJ$201,FALSE) -> 0 | AK219: =VLOOKUP($U$202&$U219,GTYF!$C:$AP,AK$201,FALSE) -> 0 | AL219: =VLOOKUP($U$202&$U219,GTYF!$C:$AP,AL$201,FALSE) -> 0 | AM219: =VLOOKUP($U$202&$U219,GTYF!$C:$AP,AM$201,FALSE) -> 0 | AN219: =VLOOKUP($U$202&$U219,GTYF!$C:$AP,AN$201,FALSE) -> 0 | AO219: =VLOOKUP($U$202&$U219,GTYF!$C:$AP,AO$201,FALSE) -> 0 | AP219: =VLOOKUP($U$202&$U219,GTYF!$C:$AP,AP$201,FALSE) -> 0 | AQ219: =VLOOKUP($U$202&$U219,GTYF!$C:$AP,AQ$201,FALSE) -> 0 | AR219: =VLOOKUP($U$202&$U219,GTYF!$C:$AP,AR$201,FALSE) -> 0 | AS219: =VLOOKUP($U$202&$U219,GTYF!$C:$AP,AS$201,FALSE) -> 0 | AT219: =VLOOKUP($U$202&$U219,GTYF!$C:$AP,AT$201,FALSE) -> 0 | AU219: =VLOOKUP($U$202&$U219,GTYF!$C:$AP,AU$201,FALSE) -> 0 | AV219: =VLOOKUP($U$202&$U219,GTYF!$C:$AP,AV$201,FALSE) -> 0 | AW219: =VLOOKUP($U$202&$U219,GTYF!$C:$AP,AW$201,FALSE) -> 0 | AX219: =VLOOKUP($U$202&$U219,GTYF!$C:$AP,AX$201,FALSE) -> 0 | AY219: =VLOOKUP($U$202&$U219,GTYF!$C:$AP,AY$201,FALSE) -> 0 | AZ219: =VLOOKUP($U$202&$U219,GTYF!$C:$AP,AZ$201,FALSE) -> 0
S220: Figure 10a | T220: Pinèdes grises | U220: (FCTYF_PIG) | V220: =VLOOKUP($U$202&$U220,GTYF!$C:$AP,V$201,FALSE) -> 22935.4 | W220: =VLOOKUP($U$202&$U220,GTYF!$C:$AP,W$201,FALSE) -> 22935.4 | X220: =VLOOKUP($U$202&$U220,GTYF!$C:$AP,X$201,FALSE) -> 22935.4 | Y220: =VLOOKUP($U$202&$U220,GTYF!$C:$AP,Y$201,FALSE) -> 22935.4 | Z220: =VLOOKUP($U$202&$U220,GTYF!$C:$AP,Z$201,FALSE) -> 22935.4 | AA220: =VLOOKUP($U$202&$U220,GTYF!$C:$AP,AA$201,FALSE) -> 22935.4 | AB220: =VLOOKUP($U$202&$U220,GTYF!$C:$AP,AB$201,FALSE) -> 22935.4 | AC220: =VLOOKUP($U$202&$U220,GTYF!$C:$AP,AC$201,FALSE) -> 22935.4 | AD220: =VLOOKUP($U$202&$U220,GTYF!$C:$AP,AD$201,FALSE) -> 22837.3 | AE220: =VLOOKUP($U$202&$U220,GTYF!$C:$AP,AE$201,FALSE) -> 22834.8 | AF220: =VLOOKUP($U$202&$U220,GTYF!$C:$AP,AF$201,FALSE) -> 22833.5 | AG220: =VLOOKUP($U$202&$U220,GTYF!$C:$AP,AG$201,FALSE) -> 22799.3 | AH220: =VLOOKUP($U$202&$U220,GTYF!$C:$AP,AH$201,FALSE) -> 22793.1 | AI220: =VLOOKUP($U$202&$U220,GTYF!$C:$AP,AI$201,FALSE) -> 22793.1 | AJ220: =VLOOKUP($U$202&$U220,GTYF!$C:$AP,AJ$201,FALSE) -> 22793.1 | AK220: =VLOOKUP($U$202&$U220,GTYF!$C:$AP,AK$201,FALSE) -> 22793.1 | AL220: =VLOOKUP($U$202&$U220,GTYF!$C:$AP,AL$201,FALSE) -> 21259.5 | AM220: =VLOOKUP($U$202&$U220,GTYF!$C:$AP,AM$201,FALSE) -> 20332.2 | AN220: =VLOOKUP($U$202&$U220,GTYF!$C:$AP,AN$201,FALSE) -> 19717.59 | AO220: =VLOOKUP($U$202&$U220,GTYF!$C:$AP,AO$201,FALSE) -> 19410.1 | AP220: =VLOOKUP($U$202&$U220,GTYF!$C:$AP,AP$201,FALSE) -> 18371.7 | AQ220: =VLOOKUP($U$202&$U220,GTYF!$C:$AP,AQ$201,FALSE) -> 14721.99 | AR220: =VLOOKUP($U$202&$U220,GTYF!$C:$AP,AR$201,FALSE) -> 10974.78 | AS220: =VLOOKUP($U$202&$U220,GTYF!$C:$AP,AS$201,FALSE) -> 9450.78 | AT220: =VLOOKUP($U$202&$U220,GTYF!$C:$AP,AT$201,FALSE) -> 8653.68 | AU220: =VLOOKUP($U$202&$U220,GTYF!$C:$AP,AU$201,FALSE) -> 7906.68 | AV220: =VLOOKUP($U$202&$U220,GTYF!$C:$AP,AV$201,FALSE) -> 6398.88 | AW220: =VLOOKUP($U$202&$U220,GTYF!$C:$AP,AW$201,FALSE) -> 6398.88 | AX220: =VLOOKUP($U$202&$U220,GTYF!$C:$AP,AX$201,FALSE) -> 6326.78 | AY220: =VLOOKUP($U$202&$U220,GTYF!$C:$AP,AY$201,FALSE) -> 926.08 | AZ220: =VLOOKUP($U$202&$U220,GTYF!$C:$AP,AZ$201,FALSE) -> 756.9
S221: Figure 10a | T221: Pinèdes blanches | U221: (FCTYF_PIN) | V221: =VLOOKUP($U$202&$U221,GTYF!$C:$AP,V$201,FALSE) -> 0 | W221: =VLOOKUP($U$202&$U221,GTYF!$C:$AP,W$201,FALSE) -> 0 | X221: =VLOOKUP($U$202&$U221,GTYF!$C:$AP,X$201,FALSE) -> 0 | Y221: =VLOOKUP($U$202&$U221,GTYF!$C:$AP,Y$201,FALSE) -> 0 | Z221: =VLOOKUP($U$202&$U221,GTYF!$C:$AP,Z$201,FALSE) -> 0 | AA221: =VLOOKUP($U$202&$U221,GTYF!$C:$AP,AA$201,FALSE) -> 0 | AB221: =VLOOKUP($U$202&$U221,GTYF!$C:$AP,AB$201,FALSE) -> 0 | AC221: =VLOOKUP($U$202&$U221,GTYF!$C:$AP,AC$201,FALSE) -> 0 | AD221: =VLOOKUP($U$202&$U221,GTYF!$C:$AP,AD$201,FALSE) -> 0 | AE221: =VLOOKUP($U$202&$U221,GTYF!$C:$AP,AE$201,FALSE) -> 0 | AF221: =VLOOKUP($U$202&$U221,GTYF!$C:$AP,AF$201,FALSE) -> 0 | AG221: =VLOOKUP($U$202&$U221,GTYF!$C:$AP,AG$201,FALSE) -> 0 | AH221: =VLOOKUP($U$202&$U221,GTYF!$C:$AP,AH$201,FALSE) -> 0 | AI221: =VLOOKUP($U$202&$U221,GTYF!$C:$AP,AI$201,FALSE) -> 0 | AJ221: =VLOOKUP($U$202&$U221,GTYF!$C:$AP,AJ$201,FALSE) -> 0 | AK221: =VLOOKUP($U$202&$U221,GTYF!$C:$AP,AK$201,FALSE) -> 0 | AL221: =VLOOKUP($U$202&$U221,GTYF!$C:$AP,AL$201,FALSE) -> 0 | AM221: =VLOOKUP($U$202&$U221,GTYF!$C:$AP,AM$201,FALSE) -> 0 | AN221: =VLOOKUP($U$202&$U221,GTYF!$C:$AP,AN$201,FALSE) -> 0 | AO221: =VLOOKUP($U$202&$U221,GTYF!$C:$AP,AO$201,FALSE) -> 0 | AP221: =VLOOKUP($U$202&$U221,GTYF!$C:$AP,AP$201,FALSE) -> 0 | AQ221: =VLOOKUP($U$202&$U221,GTYF!$C:$AP,AQ$201,FALSE) -> 0 | AR221: =VLOOKUP($U$202&$U221,GTYF!$C:$AP,AR$201,FALSE) -> 0 | AS221: =VLOOKUP($U$202&$U221,GTYF!$C:$AP,AS$201,FALSE) -> 0 | AT221: =VLOOKUP($U$202&$U221,GTYF!$C:$AP,AT$201,FALSE) -> 0 | AU221: =VLOOKUP($U$202&$U221,GTYF!$C:$AP,AU$201,FALSE) -> 0 | AV221: =VLOOKUP($U$202&$U221,GTYF!$C:$AP,AV$201,FALSE) -> 0 | AW221: =VLOOKUP($U$202&$U221,GTYF!$C:$AP,AW$201,FALSE) -> 0 | AX221: =VLOOKUP($U$202&$U221,GTYF!$C:$AP,AX$201,FALSE) -> 0 | AY221: =VLOOKUP($U$202&$U221,GTYF!$C:$AP,AY$201,FALSE) -> 0 | AZ221: =VLOOKUP($U$202&$U221,GTYF!$C:$AP,AZ$201,FALSE) -> 0
S222: Figure 10a | T222: Prucheraies | U222: (FCTYF_PRU) | V222: =VLOOKUP($U$202&$U222,GTYF!$C:$AP,V$201,FALSE) -> 0 | W222: =VLOOKUP($U$202&$U222,GTYF!$C:$AP,W$201,FALSE) -> 0 | X222: =VLOOKUP($U$202&$U222,GTYF!$C:$AP,X$201,FALSE) -> 0 | Y222: =VLOOKUP($U$202&$U222,GTYF!$C:$AP,Y$201,FALSE) -> 0 | Z222: =VLOOKUP($U$202&$U222,GTYF!$C:$AP,Z$201,FALSE) -> 0 | AA222: =VLOOKUP($U$202&$U222,GTYF!$C:$AP,AA$201,FALSE) -> 0 | AB222: =VLOOKUP($U$202&$U222,GTYF!$C:$AP,AB$201,FALSE) -> 0 | AC222: =VLOOKUP($U$202&$U222,GTYF!$C:$AP,AC$201,FALSE) -> 0 | AD222: =VLOOKUP($U$202&$U222,GTYF!$C:$AP,AD$201,FALSE) -> 0 | AE222: =VLOOKUP($U$202&$U222,GTYF!$C:$AP,AE$201,FALSE) -> 0 | AF222: =VLOOKUP($U$202&$U222,GTYF!$C:$AP,AF$201,FALSE) -> 0 | AG222: =VLOOKUP($U$202&$U222,GTYF!$C:$AP,AG$201,FALSE) -> 0 | AH222: =VLOOKUP($U$202&$U222,GTYF!$C:$AP,AH$201,FALSE) -> 0 | AI222: =VLOOKUP($U$202&$U222,GTYF!$C:$AP,AI$201,FALSE) -> 0 | AJ222: =VLOOKUP($U$202&$U222,GTYF!$C:$AP,AJ$201,FALSE) -> 0 | AK222: =VLOOKUP($U$202&$U222,GTYF!$C:$AP,AK$201,FALSE) -> 0 | AL222: =VLOOKUP($U$202&$U222,GTYF!$C:$AP,AL$201,FALSE) -> 0 | AM222: =VLOOKUP($U$202&$U222,GTYF!$C:$AP,AM$201,FALSE) -> 0 | AN222: =VLOOKUP($U$202&$U222,GTYF!$C:$AP,AN$201,FALSE) -> 0 | AO222: =VLOOKUP($U$202&$U222,GTYF!$C:$AP,AO$201,FALSE) -> 0 | AP222: =VLOOKUP($U$202&$U222,GTYF!$C:$AP,AP$201,FALSE) -> 0 | AQ222: =VLOOKUP($U$202&$U222,GTYF!$C:$AP,AQ$201,FALSE) -> 0 | AR222: =VLOOKUP($U$202&$U222,GTYF!$C:$AP,AR$201,FALSE) -> 0 | AS222: =VLOOKUP($U$202&$U222,GTYF!$C:$AP,AS$201,FALSE) -> 0 | AT222: =VLOOKUP($U$202&$U222,GTYF!$C:$AP,AT$201,FALSE) -> 0 | AU222: =VLOOKUP($U$202&$U222,GTYF!$C:$AP,AU$201,FALSE) -> 0 | AV222: =VLOOKUP($U$202&$U222,GTYF!$C:$AP,AV$201,FALSE) -> 0 | AW222: =VLOOKUP($U$202&$U222,GTYF!$C:$AP,AW$201,FALSE) -> 0 | AX222: =VLOOKUP($U$202&$U222,GTYF!$C:$AP,AX$201,FALSE) -> 0 | AY222: =VLOOKUP($U$202&$U222,GTYF!$C:$AP,AY$201,FALSE) -> 0 | AZ222: =VLOOKUP($U$202&$U222,GTYF!$C:$AP,AZ$201,FALSE) -> 0
S223: Figure 10a | T223: Résineux à feuillus | U223: (FCTYF_RF) | V223: =VLOOKUP($U$202&$U223,GTYF!$C:$AP,V$201,FALSE) -> 6623.6 | W223: =VLOOKUP($U$202&$U223,GTYF!$C:$AP,W$201,FALSE) -> 6576.07 | X223: =VLOOKUP($U$202&$U223,GTYF!$C:$AP,X$201,FALSE) -> 6663.62 | Y223: =VLOOKUP($U$202&$U223,GTYF!$C:$AP,Y$201,FALSE) -> 7076.56 | Z223: =VLOOKUP($U$202&$U223,GTYF!$C:$AP,Z$201,FALSE) -> 7851.02 | AA223: =VLOOKUP($U$202&$U223,GTYF!$C:$AP,AA$201,FALSE) -> 8922.62 | AB223: =VLOOKUP($U$202&$U223,GTYF!$C:$AP,AB$201,FALSE) -> 10439.76 | AC223: =VLOOKUP($U$202&$U223,GTYF!$C:$AP,AC$201,FALSE) -> 10938.35 | AD223: =VLOOKUP($U$202&$U223,GTYF!$C:$AP,AD$201,FALSE) -> 11194.39 | AE223: =VLOOKUP($U$202&$U223,GTYF!$C:$AP,AE$201,FALSE) -> 11372.93 | AF223: =VLOOKUP($U$202&$U223,GTYF!$C:$AP,AF$201,FALSE) -> 11498.67 | AG223: =VLOOKUP($U$202&$U223,GTYF!$C:$AP,AG$201,FALSE) -> 12619.33 | AH223: =VLOOKUP($U$202&$U223,GTYF!$C:$AP,AH$201,FALSE) -> 13698.66 | AI223: =VLOOKUP($U$202&$U223,GTYF!$C:$AP,AI$201,FALSE) -> 13718.77 | AJ223: =VLOOKUP($U$202&$U223,GTYF!$C:$AP,AJ$201,FALSE) -> 13958.45 | AK223: =VLOOKUP($U$202&$U223,GTYF!$C:$AP,AK$201,FALSE) -> 14273.61 | AL223: =VLOOKUP($U$202&$U223,GTYF!$C:$AP,AL$201,FALSE) -> 14277.31 | AM223: =VLOOKUP($U$202&$U223,GTYF!$C:$AP,AM$201,FALSE) -> 14470.88 | AN223: =VLOOKUP($U$202&$U223,GTYF!$C:$AP,AN$201,FALSE) -> 14481.85 | AO223: =VLOOKUP($U$202&$U223,GTYF!$C:$AP,AO$201,FALSE) -> 14507.86 | AP223: =VLOOKUP($U$202&$U223,GTYF!$C:$AP,AP$201,FALSE) -> 14513.9 | AQ223: =VLOOKUP($U$202&$U223,GTYF!$C:$AP,AQ$201,FALSE) -> 14513.9 | AR223: =VLOOKUP($U$202&$U223,GTYF!$C:$AP,AR$201,FALSE) -> 14516.95 | AS223: =VLOOKUP($U$202&$U223,GTYF!$C:$AP,AS$201,FALSE) -> 14516.95 | AT223: =VLOOKUP($U$202&$U223,GTYF!$C:$AP,AT$201,FALSE) -> 14516.95 | AU223: =VLOOKUP($U$202&$U223,GTYF!$C:$AP,AU$201,FALSE) -> 14516.95 | AV223: =VLOOKUP($U$202&$U223,GTYF!$C:$AP,AV$201,FALSE) -> 14516.95 | AW223: =VLOOKUP($U$202&$U223,GTYF!$C:$AP,AW$201,FALSE) -> 14516.95 | AX223: =VLOOKUP($U$202&$U223,GTYF!$C:$AP,AX$201,FALSE) -> 14516.95 | AY223: =VLOOKUP($U$202&$U223,GTYF!$C:$AP,AY$201,FALSE) -> 14516.95 | AZ223: =VLOOKUP($U$202&$U223,GTYF!$C:$AP,AZ$201,FALSE) -> 14516.95
S224: Figure 10a | T224: Sapinières | U224: (FCTYF_SAB) | V224: =VLOOKUP($U$202&$U224,GTYF!$C:$AP,V$201,FALSE) -> 65581.5 | W224: =VLOOKUP($U$202&$U224,GTYF!$C:$AP,W$201,FALSE) -> 65568.22 | X224: =VLOOKUP($U$202&$U224,GTYF!$C:$AP,X$201,FALSE) -> 65441.5 | Y224: =VLOOKUP($U$202&$U224,GTYF!$C:$AP,Y$201,FALSE) -> 64900.37 | Z224: =VLOOKUP($U$202&$U224,GTYF!$C:$AP,Z$201,FALSE) -> 64045.9 | AA224: =VLOOKUP($U$202&$U224,GTYF!$C:$AP,AA$201,FALSE) -> 62833.94 | AB224: =VLOOKUP($U$202&$U224,GTYF!$C:$AP,AB$201,FALSE) -> 60976.53 | AC224: =VLOOKUP($U$202&$U224,GTYF!$C:$AP,AC$201,FALSE) -> 60335.51 | AD224: =VLOOKUP($U$202&$U224,GTYF!$C:$AP,AD$201,FALSE) -> 60047.01 | AE224: =VLOOKUP($U$202&$U224,GTYF!$C:$AP,AE$201,FALSE) -> 59796.26 | AF224: =VLOOKUP($U$202&$U224,GTYF!$C:$AP,AF$201,FALSE) -> 59671.58 | AG224: =VLOOKUP($U$202&$U224,GTYF!$C:$AP,AG$201,FALSE) -> 58485.12 | AH224: =VLOOKUP($U$202&$U224,GTYF!$C:$AP,AH$201,FALSE) -> 57803.54 | AI224: =VLOOKUP($U$202&$U224,GTYF!$C:$AP,AI$201,FALSE) -> 57716.95 | AJ224: =VLOOKUP($U$202&$U224,GTYF!$C:$AP,AJ$201,FALSE) -> 57398.26 | AK224: =VLOOKUP($U$202&$U224,GTYF!$C:$AP,AK$201,FALSE) -> 57040.63 | AL224: =VLOOKUP($U$202&$U224,GTYF!$C:$AP,AL$201,FALSE) -> 57012.4 | AM224: =VLOOKUP($U$202&$U224,GTYF!$C:$AP,AM$201,FALSE) -> 56800.12 | AN224: =VLOOKUP($U$202&$U224,GTYF!$C:$AP,AN$201,FALSE) -> 56783.69 | AO224: =VLOOKUP($U$202&$U224,GTYF!$C:$AP,AO$201,FALSE) -> 56744.55 | AP224: =VLOOKUP($U$202&$U224,GTYF!$C:$AP,AP$201,FALSE) -> 56737.56 | AQ224: =VLOOKUP($U$202&$U224,GTYF!$C:$AP,AQ$201,FALSE) -> 56737.56 | AR224: =VLOOKUP($U$202&$U224,GTYF!$C:$AP,AR$201,FALSE) -> 56701.82 | AS224: =VLOOKUP($U$202&$U224,GTYF!$C:$AP,AS$201,FALSE) -> 56678.56 | AT224: =VLOOKUP($U$202&$U224,GTYF!$C:$AP,AT$201,FALSE) -> 56678.56 | AU224: =VLOOKUP($U$202&$U224,GTYF!$C:$AP,AU$201,FALSE) -> 56678.56 | AV224: =VLOOKUP($U$202&$U224,GTYF!$C:$AP,AV$201,FALSE) -> 56678.56 | AW224: =VLOOKUP($U$202&$U224,GTYF!$C:$AP,AW$201,FALSE) -> 56678.56 | AX224: =VLOOKUP($U$202&$U224,GTYF!$C:$AP,AX$201,FALSE) -> 56671.2 | AY224: =VLOOKUP($U$202&$U224,GTYF!$C:$AP,AY$201,FALSE) -> 56671.2 | AZ224: =VLOOKUP($U$202&$U224,GTYF!$C:$AP,AZ$201,FALSE) -> 56671.2
B225: * Attention, étant donné que le graphique fait appel aux GTYF, certains TYF ne paraissent pas dans les bons types de couvert (ex: EoRx, PbFx, PuFx, ToFx) | S225: Figure 10a | T225: Cédrières | U225: (FCTYF_THO) | V225: =VLOOKUP($U$202&$U225,GTYF!$C:$AP,V$201,FALSE) -> 0 | W225: =VLOOKUP($U$202&$U225,GTYF!$C:$AP,W$201,FALSE) -> 0 | X225: =VLOOKUP($U$202&$U225,GTYF!$C:$AP,X$201,FALSE) -> 0 | Y225: =VLOOKUP($U$202&$U225,GTYF!$C:$AP,Y$201,FALSE) -> 0 | Z225: =VLOOKUP($U$202&$U225,GTYF!$C:$AP,Z$201,FALSE) -> 0 | AA225: =VLOOKUP($U$202&$U225,GTYF!$C:$AP,AA$201,FALSE) -> 0 | AB225: =VLOOKUP($U$202&$U225,GTYF!$C:$AP,AB$201,FALSE) -> 0 | AC225: =VLOOKUP($U$202&$U225,GTYF!$C:$AP,AC$201,FALSE) -> 0 | AD225: =VLOOKUP($U$202&$U225,GTYF!$C:$AP,AD$201,FALSE) -> 0 | AE225: =VLOOKUP($U$202&$U225,GTYF!$C:$AP,AE$201,FALSE) -> 0 | AF225: =VLOOKUP($U$202&$U225,GTYF!$C:$AP,AF$201,FALSE) -> 0 | AG225: =VLOOKUP($U$202&$U225,GTYF!$C:$AP,AG$201,FALSE) -> 0 | AH225: =VLOOKUP($U$202&$U225,GTYF!$C:$AP,AH$201,FALSE) -> 0 | AI225: =VLOOKUP($U$202&$U225,GTYF!$C:$AP,AI$201,FALSE) -> 0 | AJ225: =VLOOKUP($U$202&$U225,GTYF!$C:$AP,AJ$201,FALSE) -> 0 | AK225: =VLOOKUP($U$202&$U225,GTYF!$C:$AP,AK$201,FALSE) -> 0 | AL225: =VLOOKUP($U$202&$U225,GTYF!$C:$AP,AL$201,FALSE) -> 0 | AM225: =VLOOKUP($U$202&$U225,GTYF!$C:$AP,AM$201,FALSE) -> 0 | AN225: =VLOOKUP($U$202&$U225,GTYF!$C:$AP,AN$201,FALSE) -> 0 | AO225: =VLOOKUP($U$202&$U225,GTYF!$C:$AP,AO$201,FALSE) -> 0 | AP225: =VLOOKUP($U$202&$U225,GTYF!$C:$AP,AP$201,FALSE) -> 0 | AQ225: =VLOOKUP($U$202&$U225,GTYF!$C:$AP,AQ$201,FALSE) -> 0 | AR225: =VLOOKUP($U$202&$U225,GTYF!$C:$AP,AR$201,FALSE) -> 0 | AS225: =VLOOKUP($U$202&$U225,GTYF!$C:$AP,AS$201,FALSE) -> 0 | AT225: =VLOOKUP($U$202&$U225,GTYF!$C:$AP,AT$201,FALSE) -> 0 | AU225: =VLOOKUP($U$202&$U225,GTYF!$C:$AP,AU$201,FALSE) -> 0 | AV225: =VLOOKUP($U$202&$U225,GTYF!$C:$AP,AV$201,FALSE) -> 0 | AW225: =VLOOKUP($U$202&$U225,GTYF!$C:$AP,AW$201,FALSE) -> 0 | AX225: =VLOOKUP($U$202&$U225,GTYF!$C:$AP,AX$201,FALSE) -> 0 | AY225: =VLOOKUP($U$202&$U225,GTYF!$C:$AP,AY$201,FALSE) -> 0 | AZ225: =VLOOKUP($U$202&$U225,GTYF!$C:$AP,AZ$201,FALSE) -> 0
U228: Colonne | V228: 6 | W228: 7 | X228: 8 | Y228: 9 | Z228: 10 | AA228: 11 | AB228: 12 | AC228: 13 | AD228: 14 | AE228: 15 | AF228: 16 | AG228: 17 | AH228: 18 | AI228: 19 | AJ228: 20 | AK228: 21 | AL228: 22 | AM228: 23 | AN228: 24 | AO228: 25 | AP228: 26 | AQ228: 27 | AR228: 28 | AS228: 29 | AT228: 30 | AU228: 31 | AV228: 32 | AW228: 33 | AX228: 34 | AY228: 35 | AZ228: 36
B229: Figure 10c Évolution des superficies de hêtraie et d'érablière à hêtre | U229: Période | V229: P0 | W229: P1 | X229: P2 | Y229: P3 | Z229: P4 | AA229: P5 | AB229: P6 | AC229: P7 | AD229: P8 | AE229: P9 | AF229: P10 | AG229: P11 | AH229: P12 | AI229: P13 | AJ229: P14 | AK229: P15 | AL229: P16 | AM229: P17 | AN229: P18 | AO229: P19 | AP229: P20 | AQ229: P21 | AR229: P22 | AS229: P23 | AT229: P24 | AU229: P25 | AV229: P26 | AW229: P27 | AX229: P28 | AY229: P29 | AZ229: P30
U230: Axe des "X" Fin de période | V230: 2018 | W230: 2023 | X230: 2028 | Y230: 2033 | Z230: 2038 | AA230: 2043 | AB230: 2048 | AC230: 2053 | AD230: 2058 | AE230: 2063 | AF230: 2068 | AG230: 2073 | AH230: 2078 | AI230: 2083 | AJ230: 2088 | AK230: 2093 | AL230: 2098 | AM230: 2103 | AN230: 2108 | AO230: 2113 | AP230: 2118 | AQ230: 2123 | AR230: 2128 | AS230: 2133 | AT230: 2138 | AU230: 2143 | AV230: 2148 | AW230: 2153 | AX230: 2158 | AY230: 2163 | AZ230: 2168
S231: =LEFT(B$229,10) -> Figure 10c | T231: Hêtraie | U231: OSUPESHG_FX | V231: =VLOOKUP($U231,Output!$C:$AQ,V$228,FALSE) ->  | W231: =VLOOKUP($U231,Output!$C:$AQ,W$228,FALSE) ->  | X231: =VLOOKUP($U231,Output!$C:$AQ,X$228,FALSE) ->  | Y231: =VLOOKUP($U231,Output!$C:$AQ,Y$228,FALSE) ->  | Z231: =VLOOKUP($U231,Output!$C:$AQ,Z$228,FALSE) ->  | AA231: =VLOOKUP($U231,Output!$C:$AQ,AA$228,FALSE) ->  | AB231: =VLOOKUP($U231,Output!$C:$AQ,AB$228,FALSE) ->  | AC231: =VLOOKUP($U231,Output!$C:$AQ,AC$228,FALSE) ->  | AD231: =VLOOKUP($U231,Output!$C:$AQ,AD$228,FALSE) ->  | AE231: =VLOOKUP($U231,Output!$C:$AQ,AE$228,FALSE) ->  | AF231: =VLOOKUP($U231,Output!$C:$AQ,AF$228,FALSE) ->  | AG231: =VLOOKUP($U231,Output!$C:$AQ,AG$228,FALSE) ->  | AH231: =VLOOKUP($U231,Output!$C:$AQ,AH$228,FALSE) ->  | AI231: =VLOOKUP($U231,Output!$C:$AQ,AI$228,FALSE) ->  | AJ231: =VLOOKUP($U231,Output!$C:$AQ,AJ$228,FALSE) ->  | AK231: =VLOOKUP($U231,Output!$C:$AQ,AK$228,FALSE) ->  | AL231: =VLOOKUP($U231,Output!$C:$AQ,AL$228,FALSE) ->  | AM231: =VLOOKUP($U231,Output!$C:$AQ,AM$228,FALSE) ->  | AN231: =VLOOKUP($U231,Output!$C:$AQ,AN$228,FALSE) ->  | AO231: =VLOOKUP($U231,Output!$C:$AQ,AO$228,FALSE) ->  | AP231: =VLOOKUP($U231,Output!$C:$AQ,AP$228,FALSE) ->  | AQ231: =VLOOKUP($U231,Output!$C:$AQ,AQ$228,FALSE) ->  | AR231: =VLOOKUP($U231,Output!$C:$AQ,AR$228,FALSE) ->  | AS231: =VLOOKUP($U231,Output!$C:$AQ,AS$228,FALSE) ->  | AT231: =VLOOKUP($U231,Output!$C:$AQ,AT$228,FALSE) ->  | AU231: =VLOOKUP($U231,Output!$C:$AQ,AU$228,FALSE) ->  | AV231: =VLOOKUP($U231,Output!$C:$AQ,AV$228,FALSE) ->  | AW231: =VLOOKUP($U231,Output!$C:$AQ,AW$228,FALSE) ->  | AX231: =VLOOKUP($U231,Output!$C:$AQ,AX$228,FALSE) ->  | AY231: =VLOOKUP($U231,Output!$C:$AQ,AY$228,FALSE) ->  | AZ231: =VLOOKUP($U231,Output!$C:$AQ,AZ$228,FALSE) -> 
S232: =LEFT(B$229,10) -> Figure 10c | T232: Érablière à hêtre | U232: OSUPESHG | V232: =VLOOKUP($U232,Output!$C:$AQ,V$228,FALSE) ->  | W232: =VLOOKUP($U232,Output!$C:$AQ,W$228,FALSE) ->  | X232: =VLOOKUP($U232,Output!$C:$AQ,X$228,FALSE) ->  | Y232: =VLOOKUP($U232,Output!$C:$AQ,Y$228,FALSE) ->  | Z232: =VLOOKUP($U232,Output!$C:$AQ,Z$228,FALSE) ->  | AA232: =VLOOKUP($U232,Output!$C:$AQ,AA$228,FALSE) ->  | AB232: =VLOOKUP($U232,Output!$C:$AQ,AB$228,FALSE) ->  | AC232: =VLOOKUP($U232,Output!$C:$AQ,AC$228,FALSE) ->  | AD232: =VLOOKUP($U232,Output!$C:$AQ,AD$228,FALSE) ->  | AE232: =VLOOKUP($U232,Output!$C:$AQ,AE$228,FALSE) ->  | AF232: =VLOOKUP($U232,Output!$C:$AQ,AF$228,FALSE) ->  | AG232: =VLOOKUP($U232,Output!$C:$AQ,AG$228,FALSE) ->  | AH232: =VLOOKUP($U232,Output!$C:$AQ,AH$228,FALSE) ->  | AI232: =VLOOKUP($U232,Output!$C:$AQ,AI$228,FALSE) ->  | AJ232: =VLOOKUP($U232,Output!$C:$AQ,AJ$228,FALSE) ->  | AK232: =VLOOKUP($U232,Output!$C:$AQ,AK$228,FALSE) ->  | AL232: =VLOOKUP($U232,Output!$C:$AQ,AL$228,FALSE) ->  | AM232: =VLOOKUP($U232,Output!$C:$AQ,AM$228,FALSE) ->  | AN232: =VLOOKUP($U232,Output!$C:$AQ,AN$228,FALSE) ->  | AO232: =VLOOKUP($U232,Output!$C:$AQ,AO$228,FALSE) ->  | AP232: =VLOOKUP($U232,Output!$C:$AQ,AP$228,FALSE) ->  | AQ232: =VLOOKUP($U232,Output!$C:$AQ,AQ$228,FALSE) ->  | AR232: =VLOOKUP($U232,Output!$C:$AQ,AR$228,FALSE) ->  | AS232: =VLOOKUP($U232,Output!$C:$AQ,AS$228,FALSE) ->  | AT232: =VLOOKUP($U232,Output!$C:$AQ,AT$228,FALSE) ->  | AU232: =VLOOKUP($U232,Output!$C:$AQ,AU$228,FALSE) ->  | AV232: =VLOOKUP($U232,Output!$C:$AQ,AV$228,FALSE) ->  | AW232: =VLOOKUP($U232,Output!$C:$AQ,AW$228,FALSE) ->  | AX232: =VLOOKUP($U232,Output!$C:$AQ,AX$228,FALSE) ->  | AY232: =VLOOKUP($U232,Output!$C:$AQ,AY$228,FALSE) ->  | AZ232: =VLOOKUP($U232,Output!$C:$AQ,AZ$228,FALSE) -> 
S233: =LEFT(B$229,10) -> Figure 10c | T233: Total | U233: Total | V233: =SUM(V231:V232) ->  | W233: =SUM(W231:W232) -> 
B255: Figure 11b Évolution du volume de sapin et d'épinettes sur pied dans la composante SEPM
U262: Colonne | V262: 6 | W262: 7 | X262: 8 | Y262: 9 | Z262: 10 | AA262: 11 | AB262: 12 | AC262: 13 | AD262: 14 | AE262: 15 | AF262: 16 | AG262: 17 | AH262: 18 | AI262: 19 | AJ262: 20 | AK262: 21 | AL262: 22 | AM262: 23 | AN262: 24 | AO262: 25 | AP262: 26 | AQ262: 27 | AR262: 28 | AS262: 29 | AT262: 30 | AU262: 31 | AV262: 32 | AW262: 33 | AX262: 34 | AY262: 35 | AZ262: 36
U263: Axe des "X" Fin de période | V263: 2018 | W263: 2023 | X263: 2028 | Y263: 2033 | Z263: 2038 | AA263: 2043 | AB263: 2048 | AC263: 2053 | AD263: 2058 | AE263: 2063 | AF263: 2068 | AG263: 2073 | AH263: 2078 | AI263: 2083 | AJ263: 2088 | AK263: 2093 | AL263: 2098 | AM263: 2103 | AN263: 2108 | AO263: 2113 | AP263: 2118 | AQ263: 2123 | AR263: 2128 | AS263: 2133 | AT263: 2138 | AU263: 2143 | AV263: 2148 | AW263: 2153 | AX263: 2158 | AY263: 2163 | AZ263: 2168
S264: =LEFT(B$255,10) -> Figure 11b | U264: Période | V264: P0 | W264: P1 | X264: P2 | Y264: P3 | Z264: P4 | AA264: P5 | AB264: P6 | AC264: P7 | AD264: P8 | AE264: P9 | AF264: P10 | AG264: P11 | AH264: P12 | AI264: P13 | AJ264: P14 | AK264: P15 | AL264: P16 | AM264: P17 | AN264: P18 | AO264: P19 | AP264: P20 | AQ264: P21 | AR264: P22 | AS264: P23 | AT264: P24 | AU264: P25 | AV264: P26 | AW264: P27 | AX264: P28 | AY264: P29 | AZ264: P30
S265: Figure 11b | T265: Légende | Y265: PERIOD3 | Z265: PERIOD4 | AA265: PERIOD5 | AB265: PERIOD6 | AC265: PERIOD7 | AD265: PERIOD8 | AE265: PERIOD9 | AF265: PERIOD10 | AG265: PERIOD11 | AH265: PERIOD12 | AI265: PERIOD13 | AJ265: PERIOD14 | AK265: PERIOD15 | AL265: PERIOD16 | AM265: PERIOD17 | AN265: PERIOD18 | AO265: PERIOD19 | AP265: PERIOD20 | AQ265: PERIOD21 | AR265: PERIOD22 | AS265: PERIOD23 | AT265: PERIOD24 | AU265: PERIOD25 | AV265: PERIOD26 | AW265: PERIOD27 | AX265: PERIOD28 | AY265: PERIOD29 | AZ265: PERIOD30
S266: Figure 11b | T266: Volume Sapin | U266: OVOLSABPIEDINC(FCTYF_SEPM) | V266: =VLOOKUP($U266,GTYF!$C:$AL,Figures!V$262,FALSE) -> 5114279.66 | W266: =VLOOKUP($U266,GTYF!$C:$AL,Figures!W$262,FALSE) -> 5035877.44 | X266: =VLOOKUP($U266,GTYF!$C:$AL,Figures!X$262,FALSE) -> 5140041.2 | Y266: =VLOOKUP($U266,GTYF!$C:$AL,Figures!Y$262,FALSE) -> 5063293.26 | Z266: =VLOOKUP($U266,GTYF!$C:$AL,Figures!Z$262,FALSE) -> 5131589.72 | AA266: =VLOOKUP($U266,GTYF!$C:$AL,Figures!AA$262,FALSE) -> 5097732.47 | AB266: =VLOOKUP($U266,GTYF!$C:$AL,Figures!AB$262,FALSE) -> 4923788.37 | AC266: =VLOOKUP($U266,GTYF!$C:$AL,Figures!AC$262,FALSE) -> 5240410.26 | AD266: =VLOOKUP($U266,GTYF!$C:$AL,Figures!AD$262,FALSE) -> 5472239.02 | AE266: =VLOOKUP($U266,GTYF!$C:$AL,Figures!AE$262,FALSE) -> 5469349.71 | AF266: =VLOOKUP($U266,GTYF!$C:$AL,Figures!AF$262,FALSE) -> 5576448.99 | AG266: =VLOOKUP($U266,GTYF!$C:$AL,Figures!AG$262,FALSE) -> 5751239.43 | AH266: =VLOOKUP($U266,GTYF!$C:$AL,Figures!AH$262,FALSE) -> 5700049.56 | AI266: =VLOOKUP($U266,GTYF!$C:$AL,Figures!AI$262,FALSE) -> 5768767.2 | AJ266: =VLOOKUP($U266,GTYF!$C:$AL,Figures!AJ$262,FALSE) -> 5880196.51 | AK266: =VLOOKUP($U266,GTYF!$C:$AL,Figures!AK$262,FALSE) -> 5876833.83 | AL266: =VLOOKUP($U266,GTYF!$C:$AL,Figures!AL$262,FALSE) -> 5859130.78 | AM266: =VLOOKUP($U266,GTYF!$C:$AL,Figures!AM$262,FALSE) -> 5847391.93 | AN266: =VLOOKUP($U266,GTYF!$C:$AL,Figures!AN$262,FALSE) -> 5961929.72 | AO266: =VLOOKUP($U266,GTYF!$C:$AL,Figures!AO$262,FALSE) -> 5858879.93 | AP266: =VLOOKUP($U266,GTYF!$C:$AL,Figures!AP$262,FALSE) -> 5868846.44 | AQ266: =VLOOKUP($U266,GTYF!$C:$AL,Figures!AQ$262,FALSE) -> 5775111.27 | AR266: =VLOOKUP($U266,GTYF!$C:$AL,Figures!AR$262,FALSE) -> 5755927.32 | AS266: =VLOOKUP($U266,GTYF!$C:$AL,Figures!AS$262,FALSE) -> 5797046.09 | AT266: =VLOOKUP($U266,GTYF!$C:$AL,Figures!AT$262,FALSE) -> 5742546.08 | AU266: =VLOOKUP($U266,GTYF!$C:$AL,Figures!AU$262,FALSE) -> 5838717.08 | AV266: =VLOOKUP($U266,GTYF!$C:$AL,Figures!AV$262,FALSE) -> 6038285.75 | AW266: =VLOOKUP($U266,GTYF!$C:$AL,Figures!AW$262,FALSE) -> 6193147 | AX266: =VLOOKUP($U266,GTYF!$C:$AL,Figures!AX$262,FALSE) -> 6364197.74 | AY266: =VLOOKUP($U266,GTYF!$C:$AL,Figures!AY$262,FALSE) -> 6472630.44 | AZ266: =VLOOKUP($U266,GTYF!$C:$AL,Figures!AZ$262,FALSE) -> 6503456.39
S267: Figure 11b | T267: Volume Épinettes | U267: OVOLGEPXPIEDINC(FCTYF_SEPM) | V267: =VLOOKUP($U267,GTYF!$C:$AL,Figures!V$262,FALSE) -> 28086363.22 | W267: =VLOOKUP($U267,GTYF!$C:$AL,Figures!W$262,FALSE) -> 27116269.65 | X267: =VLOOKUP($U267,GTYF!$C:$AL,Figures!X$262,FALSE) -> 26367692.58 | Y267: =VLOOKUP($U267,GTYF!$C:$AL,Figures!Y$262,FALSE) -> 25829313.28 | Z267: =VLOOKUP($U267,GTYF!$C:$AL,Figures!Z$262,FALSE) -> 25133689.45 | AA267: =VLOOKUP($U267,GTYF!$C:$AL,Figures!AA$262,FALSE) -> 24511644.61 | AB267: =VLOOKUP($U267,GTYF!$C:$AL,Figures!AB$262,FALSE) -> 24208779.24 | AC267: =VLOOKUP($U267,GTYF!$C:$AL,Figures!AC$262,FALSE) -> 23635371.1 | AD267: =VLOOKUP($U267,GTYF!$C:$AL,Figures!AD$262,FALSE) -> 23140627.98 | AE267: =VLOOKUP($U267,GTYF!$C:$AL,Figures!AE$262,FALSE) -> 22831126.72 | AF267: =VLOOKUP($U267,GTYF!$C:$AL,Figures!AF$262,FALSE) -> 22337963.7 | AG267: =VLOOKUP($U267,GTYF!$C:$AL,Figures!AG$262,FALSE) -> 21949551.52 | AH267: =VLOOKUP($U267,GTYF!$C:$AL,Figures!AH$262,FALSE) -> 21725282.95 | AI267: =VLOOKUP($U267,GTYF!$C:$AL,Figures!AI$262,FALSE) -> 21459163.9 | AJ267: =VLOOKUP($U267,GTYF!$C:$AL,Figures!AJ$262,FALSE) -> 21279098.3 | AK267: =VLOOKUP($U267,GTYF!$C:$AL,Figures!AK$262,FALSE) -> 21139582.54 | AL267: =VLOOKUP($U267,GTYF!$C:$AL,Figures!AL$262,FALSE) -> 21092107.2 | AM267: =VLOOKUP($U267,GTYF!$C:$AL,Figures!AM$262,FALSE) -> 21049633.59 | AN267: =VLOOKUP($U267,GTYF!$C:$AL,Figures!AN$262,FALSE) -> 20741016.68 | AO267: =VLOOKUP($U267,GTYF!$C:$AL,Figures!AO$262,FALSE) -> 20684211.9 | AP267: =VLOOKUP($U267,GTYF!$C:$AL,Figures!AP$262,FALSE) -> 20587974.84 | AQ267: =VLOOKUP($U267,GTYF!$C:$AL,Figures!AQ$262,FALSE) -> 20867672.93 | AR267: =VLOOKUP($U267,GTYF!$C:$AL,Figures!AR$262,FALSE) -> 21138035.63 | AS267: =VLOOKUP($U267,GTYF!$C:$AL,Figures!AS$262,FALSE) -> 21157654.06 | AT267: =VLOOKUP($U267,GTYF!$C:$AL,Figures!AT$262,FALSE) -> 21240147.44 | AU267: =VLOOKUP($U267,GTYF!$C:$AL,Figures!AU$262,FALSE) -> 21120649.88 | AV267: =VLOOKUP($U267,GTYF!$C:$AL,Figures!AV$262,FALSE) -> 20953087.45 | AW267: =VLOOKUP($U267,GTYF!$C:$AL,Figures!AW$262,FALSE) -> 20669555.87 | AX267: =VLOOKUP($U267,GTYF!$C:$AL,Figures!AX$262,FALSE) -> 20368445.12 | AY267: =VLOOKUP($U267,GTYF!$C:$AL,Figures!AY$262,FALSE) -> 20480439.99 | AZ267: =VLOOKUP($U267,GTYF!$C:$AL,Figures!AZ$262,FALSE) -> 20345931.55
S268: Figure 11b
S269: Figure 11b | T269: SEPM sur pied | U269: OVOLGSEPMPIEDINC(FCTYF_SEPM) | V269: =VLOOKUP($U269,GTYF!$C:$AL,Figures!V$262,FALSE) -> 33991968.22 | W269: =VLOOKUP($U269,GTYF!$C:$AL,Figures!W$262,FALSE) -> 33096921.23 | X269: =VLOOKUP($U269,GTYF!$C:$AL,Figures!X$262,FALSE) -> 32588114.06 | Y269: =VLOOKUP($U269,GTYF!$C:$AL,Figures!Y$262,FALSE) -> 32108060.45 | Z269: =VLOOKUP($U269,GTYF!$C:$AL,Figures!Z$262,FALSE) -> 31607394 | AA269: =VLOOKUP($U269,GTYF!$C:$AL,Figures!AA$262,FALSE) -> 31068254.32 | AB269: =VLOOKUP($U269,GTYF!$C:$AL,Figures!AB$262,FALSE) -> 30694848.14 | AC269: =VLOOKUP($U269,GTYF!$C:$AL,Figures!AC$262,FALSE) -> 30522926.65 | AD269: =VLOOKUP($U269,GTYF!$C:$AL,Figures!AD$262,FALSE) -> 30332196.81 | AE269: =VLOOKUP($U269,GTYF!$C:$AL,Figures!AE$262,FALSE) -> 30082609.89 | AF269: =VLOOKUP($U269,GTYF!$C:$AL,Figures!AF$262,FALSE) -> 29746437.52 | AG269: =VLOOKUP($U269,GTYF!$C:$AL,Figures!AG$262,FALSE) -> 29566565.11 | AH269: =VLOOKUP($U269,GTYF!$C:$AL,Figures!AH$262,FALSE) -> 29316003.14 | AI269: =VLOOKUP($U269,GTYF!$C:$AL,Figures!AI$262,FALSE) -> 29147609.02 | AJ269: =VLOOKUP($U269,GTYF!$C:$AL,Figures!AJ$262,FALSE) -> 29109664.86 | AK269: =VLOOKUP($U269,GTYF!$C:$AL,Figures!AK$262,FALSE) -> 28984270.95 | AL269: =VLOOKUP($U269,GTYF!$C:$AL,Figures!AL$262,FALSE) -> 28814092.94 | AM269: =VLOOKUP($U269,GTYF!$C:$AL,Figures!AM$262,FALSE) -> 28696829.61 | AN269: =VLOOKUP($U269,GTYF!$C:$AL,Figures!AN$262,FALSE) -> 28462057.34 | AO269: =VLOOKUP($U269,GTYF!$C:$AL,Figures!AO$262,FALSE) -> 28278048.69 | AP269: =VLOOKUP($U269,GTYF!$C:$AL,Figures!AP$262,FALSE) -> 28124844.65 | AQ269: =VLOOKUP($U269,GTYF!$C:$AL,Figures!AQ$262,FALSE) -> 28069885.37 | AR269: =VLOOKUP($U269,GTYF!$C:$AL,Figures!AR$262,FALSE) -> 28081406.18 | AS269: =VLOOKUP($U269,GTYF!$C:$AL,Figures!AS$262,FALSE) -> 28049694.95 | AT269: =VLOOKUP($U269,GTYF!$C:$AL,Figures!AT$262,FALSE) -> 28022255.94 | AU269: =VLOOKUP($U269,GTYF!$C:$AL,Figures!AU$262,FALSE) -> 27943694.59 | AV269: =VLOOKUP($U269,GTYF!$C:$AL,Figures!AV$262,FALSE) -> 27873662.73 | AW269: =VLOOKUP($U269,GTYF!$C:$AL,Figures!AW$262,FALSE) -> 27731324.64 | AX269: =VLOOKUP($U269,GTYF!$C:$AL,Figures!AX$262,FALSE) -> 27583938.79 | AY269: =VLOOKUP($U269,GTYF!$C:$AL,Figures!AY$262,FALSE) -> 27479318.03 | AZ269: =VLOOKUP($U269,GTYF!$C:$AL,Figures!AZ$262,FALSE) -> 27356638.58
S270: Figure 11b
S271: Figure 11b | T271: % Sapin | V271: =IF(ISERROR(V266),0,V266/V269) -> 0.1504555319 | W271: 0.152155465 | X271: 0.1577274828 | Y271: 0.1576953945 | Z271: 0.1623540909 | AA271: 0.1640817156 | AB271: 0.160410905 | AC271: 0.1716876733 | AD271: 0.1804102438 | AE271: 0.1818110107 | AF271: 0.1874661121 | AG271: 0.194518349 | AH271: 0.1944347438 | AI271: 0.1979156231 | AJ271: 0.2020015187 | AK271: 0.2027594153 | AL271: 0.2033425377 | AM271: 0.2037643882 | AN271: 0.2094693876 | AO271: 0.207188268 | AP271: 0.2086712483 | AQ271: 0.2057404651 | AR271: 0.2049729021 | AS271: 0.2066705574 | AT271: 0.2049280433 | AU271: 0.2089457806 | AV271: 0.2166305092 | AW271: 0.2233267642 | AX271: 0.2307211377 | AY271: 0.2355455267 | AZ271: 0.2377286365
S272: Figure 11b | T272: % Épinettes | V272: =IF(ISERROR(V267),0,V267/V269) -> 0.826264694 | W272: =IF(ISERROR(W267),0,W267/W269) -> 0.8192988545 | X272: 0.8091199304 | Y272: 0.8044495033 | Z272: 0.7951838563 | AA272: 0.7889611163 | AB272: 0.7886919371 | AC272: 0.7743481276 | AD272: 0.7629064299 | AE272: 0.7589476712 | AF272: 0.7509458464 | AG272: 0.7423774604 | AH272: 0.7410724732 | AI272: 0.7362238146 | AJ272: 0.7309977082 | AK272: 0.7293467059 | AL272: 0.7320066345 | AM272: 0.7335177396 | AN272: 0.7287251386 | AO272: 0.7314582462 | AP272: 0.7320209266 | AQ272: 0.7434185304 | AR272: 0.7527413511 | AS272: 0.7542917703 | AT272: 0.7579742147 | AU272: 0.7558288261 | AV272: 0.75171633 | AW272: 0.7453504706 | AX272: 0.7384168474 | AY272: 0.7453037942 | AZ272: 0.7437292228
S273: Figure 11b | T273: % Volume autre | V273: =1-(V272+V271) -> 0.02327977406 | W273: 0.02854568053 | X273: 0.0331525868 | Y273: 0.03785510221 | Z273: 0.04246205271 | AA273: 0.04695716808 | AB273: 0.05089715782 | AC273: 0.05396419907 | AD273: 0.05668332633 | AE273: 0.05924131804 | AF273: 0.06158804155 | AG273: 0.0631041906 | AH273: 0.06449278304 | AI273: 0.06586056231 | AJ273: 0.06700077309 | AK273: 0.06789387883 | AL273: 0.06465082777 | AM273: 0.06271787213 | AN273: 0.06180547383 | AO273: 0.06135348584 | AP273: 0.05930782519 | AQ273: 0.05084100456 | AR273: 0.04228574675 | AS273: 0.03903767232 | AT273: 0.03709774196 | AU273: 0.03522539322 | AV273: 0.03165316085 | AW273: 0.03132276519 | AX273: 0.0308620149 | AY273: 0.01915067905 | AZ273: 0.01854214064
B278: Figure 14 Indicateur de productivité
... 148 more rows

Sheet UTA
M1: Jeune forêt | R1: Niveau d'altération des vieilles forêts | W1: Niveau d'altération combiné | AA1: Info à récupérer par le SSP Niveau d'altération des vieilles forêts
A2: Inscrire la liste des numéros d'UTA de l'UA: | B2: VieuxAlerte (%) | C2: VieuxAccept (%) | D2: RegeAlerte (%) | E2: RegeAccept (%) | G2: VieuxAlerte (ha) | H2: VieuxAccept (ha) | I2: RegeAlerte (ha) | J2: RegeAccept (ha) | K2: SupUTA | M2: OSUPJEUNEREGECO PERIOD1 (%) | N2: État Jeune 2023 | O2: OSUPJEUNEREGECO PERIOD6 (%) | P2: État Jeune 2048 | R2: OSUPVIEUXTOTREGECO PERIOD1 (%) | S2: État Vielle 2023 | T2: OSUPVIEUXTOTREGECO PERIOD6 (%) | U2: État Vielle 2048 | W2: UTA | X2: 2023 | Y2: 2048 | AA2: UA | AB2: UTA | AC2: 2023 | AD2: 2048 | AE2: Mode de répartition spatiale | AP2: Mode de répartition spatiale
A3: UTA21 | B3: =ROUND(G3/$K3,3) -> 0.195 | C3: =ROUND(H3/$K3,3) -> 0.325 | D3: =ROUND(I3/$K3,3) -> 0.35 | E3: =ROUND(J3/$K3,3) -> 0.25 | G3: =VLOOKUP(CONCATENATE("OSUPVIEUXALERTEREGECO_"&A3),Output!$C:$AQ,6,FALSE) -> 28502.62 | H3: =VLOOKUP(CONCATENATE("OSUPVIEUXACCEPTREGECO_"&A3),Output!$C:$AQ,6,FALSE) -> 47504.37 | I3: =VLOOKUP(CONCATENATE("OSUPJEUNEALERTEREGECO_"&A3),Output!$C:$AQ,6,FALSE) -> 51158.55 | J3: =VLOOKUP(CONCATENATE("OSUPJEUNEACCEPTREGECO_"&A3),Output!$C:$AQ,6,FALSE) -> 36541.82 | K3: =VLOOKUP(CONCATENATE("OSUPREGECO_"&A3),Output!$C:$AQ,6,FALSE) -> 146167.3 | M3: =ROUND(VLOOKUP("OSUPJEUNEREGECO_"&A3,Output!$C:$AQ,7,FALSE)/VLOOKUP("OSUPREGECO_"&A3,Output!$C:$AQ,6,FALSE),3) -> 0.247 | N3: =IF(M3<=$E3,"Faible",IF(M3<$D3,"Modéré","Supérieur")) -> Faible | O3: =ROUND(VLOOKUP("OSUPJEUNEREGECO_"&$A3,Output!$C:$AQ,12,FALSE)/VLOOKUP("OSUPREGECO_"&A3,Output!$C:$AQ,6,FALSE),3) -> 0.07 | P3: =IF(O3<=$E3,"Faible",IF(O3<$D3,"Modéré","Supérieur")) -> Faible | R3: =ROUND(VLOOKUP("OSUPVIEUXTOTREGECO_"&$A3,Output!$C:$AQ,7,FALSE)/VLOOKUP("OSUPREGECO_"&A3,Output!$C:$AQ,6,FALSE),3) -> 0.58 | S3: =IF(R3<$B3,"Supérieur",IF(R3<$C3,"Modéré","Faible")) -> Faible | T3: =ROUND(VLOOKUP("OSUPVIEUXTOTREGECO_"&$A3,Output!$C:$AQ,12,FALSE)/VLOOKUP("OSUPREGECO_"&A3,Output!$C:$AQ,6,FALSE),3) -> 0.516 | U3: =IF(T3<$B3,"Supérieur",IF(T3<$C3,"Modéré","Faible")) -> Faible | W3: =A3 -> UTA21 | X3: =IF(S3>N3,S3,N3) -> Faible | Y3: =IF(U3>P3,U3,P3) -> Faible | AA3: =Tableaux!$O$33 -> 09352 | AB3: =W3 -> UTA21 | AC3: =S3 -> Faible | AD3: =U3 -> Faible | AE3: COS pessière | AG3: Note: "Élevé" a été renommé "Supérieur" pour le bon fonctionnement des formules. | AP3: COS sapinière
A4: UTA22 | B4: =ROUND(G4/$K4,3) -> 0.195 | C4: 0.325 | D4: 0.35 | E4: 0.25 | G4: =VLOOKUP(CONCATENATE("OSUPVIEUXALERTEREGECO_"&A4),Output!$C:$AQ,6,FALSE) -> 29449.88 | H4: =VLOOKUP(CONCATENATE("OSUPVIEUXACCEPTREGECO_"&A4),Output!$C:$AQ,6,FALSE) -> 49083.13 | I4: =VLOOKUP(CONCATENATE("OSUPJEUNEALERTEREGECO_"&A4),Output!$C:$AQ,6,FALSE) -> 52858.75 | J4: =VLOOKUP(CONCATENATE("OSUPJEUNEACCEPTREGECO_"&A4),Output!$C:$AQ,6,FALSE) -> 37756.25 | K4: =VLOOKUP(CONCATENATE("OSUPREGECO_"&A4),Output!$C:$AQ,6,FALSE) -> 151025 | M4: =ROUND(VLOOKUP("OSUPJEUNEREGECO_"&A4,Output!$C:$AQ,7,FALSE)/VLOOKUP("OSUPREGECO_"&A4,Output!$C:$AQ,6,FALSE),3) -> 0.013 | N4: =IF(M4<=$E4,"Faible",IF(M4<$D4,"Modéré","Supérieur")) -> Faible | O4: =ROUND(VLOOKUP("OSUPJEUNEREGECO_"&$A4,Output!$C:$AQ,12,FALSE)/VLOOKUP("OSUPREGECO_"&A4,Output!$C:$AQ,6,FALSE),3) -> 0.021 | P4: =IF(O4<=$E4,"Faible",IF(O4<$D4,"Modéré","Supérieur")) -> Faible | R4: =ROUND(VLOOKUP("OSUPVIEUXTOTREGECO_"&$A4,Output!$C:$AQ,7,FALSE)/VLOOKUP("OSUPREGECO_"&A4,Output!$C:$AQ,6,FALSE),3) -> 0.318 | S4: =IF(R4<$B4,"Supérieur",IF(R4<$C4,"Modéré","Faible")) -> Modéré | T4: =ROUND(VLOOKUP("OSUPVIEUXTOTREGECO_"&$A4,Output!$C:$AQ,12,FALSE)/VLOOKUP("OSUPREGECO_"&A4,Output!$C:$AQ,6,FALSE),3) -> 0.433 | U4: =IF(T4<$B4,"Supérieur",IF(T4<$C4,"Modéré","Faible")) -> Faible | W4: =A4 -> UTA22 | X4: =IF(S4>N4,S4,N4) -> Modéré | Y4: =IF(U4>P4,U4,P4) -> Faible | AA4: =Tableaux!$O$33 -> 09352 | AB4: =W4 -> UTA22 | AC4: =S4 -> Modéré | AD4: =U4 -> Faible | AE4: COS pessière | AP4: COS pessière
A5: UTA23 | B5: 0.195 | C5: 0.325 | D5: 0.35 | E5: 0.25 | G5: =VLOOKUP(CONCATENATE("OSUPVIEUXALERTEREGECO_"&A5),Output!$C:$AQ,6,FALSE) -> 30339.54 | H5: =VLOOKUP(CONCATENATE("OSUPVIEUXACCEPTREGECO_"&A5),Output!$C:$AQ,6,FALSE) -> 50565.9 | I5: =VLOOKUP(CONCATENATE("OSUPJEUNEALERTEREGECO_"&A5),Output!$C:$AQ,6,FALSE) -> 54455.59 | J5: =VLOOKUP(CONCATENATE("OSUPJEUNEACCEPTREGECO_"&A5),Output!$C:$AQ,6,FALSE) -> 38896.85 | K5: =VLOOKUP(CONCATENATE("OSUPREGECO_"&A5),Output!$C:$AQ,6,FALSE) -> 155587.4 | M5: =ROUND(VLOOKUP("OSUPJEUNEREGECO_"&A5,Output!$C:$AQ,7,FALSE)/VLOOKUP("OSUPREGECO_"&A5,Output!$C:$AQ,6,FALSE),3) -> 0.063 | N5: Faible | O5: =ROUND(VLOOKUP("OSUPJEUNEREGECO_"&$A5,Output!$C:$AQ,12,FALSE)/VLOOKUP("OSUPREGECO_"&A5,Output!$C:$AQ,6,FALSE),3) -> 0.022 | P5: Faible | R5: =ROUND(VLOOKUP("OSUPVIEUXTOTREGECO_"&$A5,Output!$C:$AQ,7,FALSE)/VLOOKUP("OSUPREGECO_"&A5,Output!$C:$AQ,6,FALSE),3) -> 0.688 | S5: Faible | T5: =ROUND(VLOOKUP("OSUPVIEUXTOTREGECO_"&$A5,Output!$C:$AQ,12,FALSE)/VLOOKUP("OSUPREGECO_"&A5,Output!$C:$AQ,6,FALSE),3) -> 0.704 | U5: Faible | W5: UTA23 | X5: Faible | Y5: Faible | AA5: =Tableaux!$O$33 -> 09352 | AB5: =W5 -> UTA23 | AC5: =S5 -> Faible | AD5: =U5 -> Faible | AE5: COS pessière | AP5: CMO
A6: UTA24 | B6: 0.195 | C6: 0.325 | D6: 0.35 | E6: 0.25 | G6: =VLOOKUP(CONCATENATE("OSUPVIEUXALERTEREGECO_"&A6),Output!$C:$AQ,6,FALSE) -> 37352.06 | H6: =VLOOKUP(CONCATENATE("OSUPVIEUXACCEPTREGECO_"&A6),Output!$C:$AQ,6,FALSE) -> 62253.42 | I6: =VLOOKUP(CONCATENATE("OSUPJEUNEALERTEREGECO_"&A6),Output!$C:$AQ,6,FALSE) -> 67042.15 | J6: =VLOOKUP(CONCATENATE("OSUPJEUNEACCEPTREGECO_"&A6),Output!$C:$AQ,6,FALSE) -> 47887.25 | K6: =VLOOKUP(CONCATENATE("OSUPREGECO_"&A6),Output!$C:$AQ,6,FALSE) -> 191549 | M6: =ROUND(VLOOKUP("OSUPJEUNEREGECO_"&A6,Output!$C:$AQ,7,FALSE)/VLOOKUP("OSUPREGECO_"&A6,Output!$C:$AQ,6,FALSE),3) -> 0.041 | N6: Faible | O6: =ROUND(VLOOKUP("OSUPJEUNEREGECO_"&$A6,Output!$C:$AQ,12,FALSE)/VLOOKUP("OSUPREGECO_"&A6,Output!$C:$AQ,6,FALSE),3) -> 0.015 | P6: Faible | R6: =ROUND(VLOOKUP("OSUPVIEUXTOTREGECO_"&$A6,Output!$C:$AQ,7,FALSE)/VLOOKUP("OSUPREGECO_"&A6,Output!$C:$AQ,6,FALSE),3) -> 0.888 | S6: Faible | T6: =ROUND(VLOOKUP("OSUPVIEUXTOTREGECO_"&$A6,Output!$C:$AQ,12,FALSE)/VLOOKUP("OSUPREGECO_"&A6,Output!$C:$AQ,6,FALSE),3) -> 0.889 | U6: Faible | W6: UTA24 | X6: Faible | Y6: Faible | AA6: =Tableaux!$O$33 -> 09352 | AB6: UTA24 | AC6: Faible | AD6: =U6 -> Faible | AE6: COS pessière | AP6: CMO entente Cris
A7: UTA25 | B7: 0.195 | C7: 0.325 | D7: 0.35 | E7: 0.25 | G7: =VLOOKUP(CONCATENATE("OSUPVIEUXALERTEREGECO_"&A7),Output!$C:$AQ,6,FALSE) -> 32167.43 | H7: =VLOOKUP(CONCATENATE("OSUPVIEUXACCEPTREGECO_"&A7),Output!$C:$AQ,6,FALSE) -> 53612.39 | I7: =VLOOKUP(CONCATENATE("OSUPJEUNEALERTEREGECO_"&A7),Output!$C:$AQ,6,FALSE) -> 57736.42 | J7: =VLOOKUP(CONCATENATE("OSUPJEUNEACCEPTREGECO_"&A7),Output!$C:$AQ,6,FALSE) -> 41240.3 | K7: =VLOOKUP(CONCATENATE("OSUPREGECO_"&A7),Output!$C:$AQ,6,FALSE) -> 164961.2 | M7: =ROUND(VLOOKUP("OSUPJEUNEREGECO_"&A7,Output!$C:$AQ,7,FALSE)/VLOOKUP("OSUPREGECO_"&A7,Output!$C:$AQ,6,FALSE),3) -> 0.187 | N7: Faible | O7: =ROUND(VLOOKUP("OSUPJEUNEREGECO_"&$A7,Output!$C:$AQ,12,FALSE)/VLOOKUP("OSUPREGECO_"&A7,Output!$C:$AQ,6,FALSE),3) -> 0.003 | P7: Faible | R7: =ROUND(VLOOKUP("OSUPVIEUXTOTREGECO_"&$A7,Output!$C:$AQ,7,FALSE)/VLOOKUP("OSUPREGECO_"&A7,Output!$C:$AQ,6,FALSE),3) -> 0.688 | S7: Faible | T7: =ROUND(VLOOKUP("OSUPVIEUXTOTREGECO_"&$A7,Output!$C:$AQ,12,FALSE)/VLOOKUP("OSUPREGECO_"&A7,Output!$C:$AQ,6,FALSE),3) -> 0.682 | U7: Faible | W7: UTA25 | X7: Faible | Y7: Faible | AA7: =Tableaux!$O$33 -> 09352 | AB7: UTA25 | AC7: =S7 -> Faible | AD7: =U7 -> Faible | AE7: COS pessière | AG7: Voir à renommer "Élevé" dans la légende des figures | AP7: CMO entente BM
A8: UTA26 | B8: 0.195 | C8: 0.325 | D8: 0.35 | E8: 0.25 | G8: =VLOOKUP(CONCATENATE("OSUPVIEUXALERTEREGECO_"&A8),Output!$C:$AQ,6,FALSE) -> 36554.5 | H8: =VLOOKUP(CONCATENATE("OSUPVIEUXACCEPTREGECO_"&A8),Output!$C:$AQ,6,FALSE) -> 60924.18 | I8: =VLOOKUP(CONCATENATE("OSUPJEUNEALERTEREGECO_"&A8),Output!$C:$AQ,6,FALSE) -> 65610.65 | J8: =VLOOKUP(CONCATENATE("OSUPJEUNEACCEPTREGECO_"&A8),Output!$C:$AQ,6,FALSE) -> 46864.75 | K8: =VLOOKUP(CONCATENATE("OSUPREGECO_"&A8),Output!$C:$AQ,6,FALSE) -> 187459 | M8: =ROUND(VLOOKUP("OSUPJEUNEREGECO_"&A8,Output!$C:$AQ,7,FALSE)/VLOOKUP("OSUPREGECO_"&A8,Output!$C:$AQ,6,FALSE),3) -> 0.061 | N8: Faible | O8: =ROUND(VLOOKUP("OSUPJEUNEREGECO_"&$A8,Output!$C:$AQ,12,FALSE)/VLOOKUP("OSUPREGECO_"&A8,Output!$C:$AQ,6,FALSE),3) -> 0.096 | P8: Faible | R8: =ROUND(VLOOKUP("OSUPVIEUXTOTREGECO_"&$A8,Output!$C:$AQ,7,FALSE)/VLOOKUP("OSUPREGECO_"&A8,Output!$C:$AQ,6,FALSE),3) -> 0.866 | S8: Faible | T8: =ROUND(VLOOKUP("OSUPVIEUXTOTREGECO_"&$A8,Output!$C:$AQ,12,FALSE)/VLOOKUP("OSUPREGECO_"&A8,Output!$C:$AQ,6,FALSE),3) -> 0.757 | U8: Faible | W8: UTA26 | X8: Faible | Y8: Faible | AA8: =Tableaux!$O$33 -> 09352 | AB8: UTA26 | AC8: Faible | AD8: Faible | AE8: COS pessière
G9: =VLOOKUP(CONCATENATE("OSUPVIEUXALERTEREGECO_"&A9),Output!$C:$AQ,6,FALSE) ->  | H9: =VLOOKUP(CONCATENATE("OSUPVIEUXACCEPTREGECO_"&A9),Output!$C:$AQ,6,FALSE) ->  | I9: =VLOOKUP(CONCATENATE("OSUPJEUNEALERTEREGECO_"&A9),Output!$C:$AQ,6,FALSE) ->  | J9: =VLOOKUP(CONCATENATE("OSUPJEUNEACCEPTREGECO_"&A9),Output!$C:$AQ,6,FALSE) ->  | K9: =VLOOKUP(CONCATENATE("OSUPREGECO_"&A9),Output!$C:$AQ,6,FALSE) ->  | M9: =ROUND(VLOOKUP("OSUPJEUNEREGECO_"&A9,Output!$C:$AQ,7,FALSE)/VLOOKUP("OSUPREGECO_"&A9,Output!$C:$AQ,6,FALSE),3) ->  | O9: =ROUND(VLOOKUP("OSUPJEUNEREGECO_"&$A9,Output!$C:$AQ,12,FALSE)/VLOOKUP("OSUPREGECO_"&A9,Output!$C:$AQ,6,FALSE),3) ->  | R9: =ROUND(VLOOKUP("OSUPVIEUXTOTREGECO_"&$A9,Output!$C:$AQ,7,FALSE)/VLOOKUP("OSUPREGECO_"&A9,Output!$C:$AQ,6,FALSE),3) ->  | T9: =ROUND(VLOOKUP("OSUPVIEUXTOTREGECO_"&$A9,Output!$C:$AQ,12,FALSE)/VLOOKUP("OSUPREGECO_"&A9,Output!$C:$AQ,6,FALSE),3) ->  | W9: 0 | AA9: =Tableaux!$O$33 -> 09352 | AB9: 0
G10: =VLOOKUP(CONCATENATE("OSUPVIEUXALERTEREGECO_"&A10),Output!$C:$AQ,6,FALSE) ->  | H10: =VLOOKUP(CONCATENATE("OSUPVIEUXACCEPTREGECO_"&A10),Output!$C:$AQ,6,FALSE) ->  | I10: =VLOOKUP(CONCATENATE("OSUPJEUNEALERTEREGECO_"&A10),Output!$C:$AQ,6,FALSE) ->  | J10: =VLOOKUP(CONCATENATE("OSUPJEUNEACCEPTREGECO_"&A10),Output!$C:$AQ,6,FALSE) ->  | K10: =VLOOKUP(CONCATENATE("OSUPREGECO_"&A10),Output!$C:$AQ,6,FALSE) ->  | M10: =ROUND(VLOOKUP("OSUPJEUNEREGECO_"&A10,Output!$C:$AQ,7,FALSE)/VLOOKUP("OSUPREGECO_"&A10,Output!$C:$AQ,6,FALSE),3) ->  | O10: =ROUND(VLOOKUP("OSUPJEUNEREGECO_"&$A10,Output!$C:$AQ,12,FALSE)/VLOOKUP("OSUPREGECO_"&A10,Output!$C:$AQ,6,FALSE),3) ->  | R10: =ROUND(VLOOKUP("OSUPVIEUXTOTREGECO_"&$A10,Output!$C:$AQ,7,FALSE)/VLOOKUP("OSUPREGECO_"&A10,Output!$C:$AQ,6,FALSE),3) ->  | T10: =ROUND(VLOOKUP("OSUPVIEUXTOTREGECO_"&$A10,Output!$C:$AQ,12,FALSE)/VLOOKUP("OSUPREGECO_"&A10,Output!$C:$AQ,6,FALSE),3) ->  | W10: 0 | AA10: =Tableaux!$O$33 -> 09352 | AB10: 0
E11: =ROUND(J11/$K11,3) ->  | G11: =VLOOKUP(CONCATENATE("OSUPVIEUXALERTEREGECO_"&A11),Output!$C:$AQ,6,FALSE) ->  | H11: =VLOOKUP(CONCATENATE("OSUPVIEUXACCEPTREGECO_"&A11),Output!$C:$AQ,6,FALSE) ->  | I11: =VLOOKUP(CONCATENATE("OSUPJEUNEALERTEREGECO_"&A11),Output!$C:$AQ,6,FALSE) ->  | J11: =VLOOKUP(CONCATENATE("OSUPJEUNEACCEPTREGECO_"&A11),Output!$C:$AQ,6,FALSE) ->  | K11: =VLOOKUP(CONCATENATE("OSUPREGECO_"&A11),Output!$C:$AQ,6,FALSE) ->  | M11: =ROUND(VLOOKUP("OSUPJEUNEREGECO_"&A11,Output!$C:$AQ,7,FALSE)/VLOOKUP("OSUPREGECO_"&A11,Output!$C:$AQ,6,FALSE),3) ->  | O11: =ROUND(VLOOKUP("OSUPJEUNEREGECO_"&$A11,Output!$C:$AQ,12,FALSE)/VLOOKUP("OSUPREGECO_"&A11,Output!$C:$AQ,6,FALSE),3) ->  | R11: =ROUND(VLOOKUP("OSUPVIEUXTOTREGECO_"&$A11,Output!$C:$AQ,7,FALSE)/VLOOKUP("OSUPREGECO_"&A11,Output!$C:$AQ,6,FALSE),3) ->  | T11: =ROUND(VLOOKUP("OSUPVIEUXTOTREGECO_"&$A11,Output!$C:$AQ,12,FALSE)/VLOOKUP("OSUPREGECO_"&A11,Output!$C:$AQ,6,FALSE),3) ->  | W11: 0 | AA11: =Tableaux!$O$33 -> 09352 | AB11: 0
G12: =VLOOKUP(CONCATENATE("OSUPVIEUXALERTEREGECO_"&A12),Output!$C:$AQ,6,FALSE) ->  | H12: =VLOOKUP(CONCATENATE("OSUPVIEUXACCEPTREGECO_"&A12),Output!$C:$AQ,6,FALSE) ->  | I12: =VLOOKUP(CONCATENATE("OSUPJEUNEALERTEREGECO_"&A12),Output!$C:$AQ,6,FALSE) ->  | J12: =VLOOKUP(CONCATENATE("OSUPJEUNEACCEPTREGECO_"&A12),Output!$C:$AQ,6,FALSE) ->  | K12: =VLOOKUP(CONCATENATE("OSUPREGECO_"&A12),Output!$C:$AQ,6,FALSE) ->  | M12: =ROUND(VLOOKUP("OSUPJEUNEREGECO_"&A12,Output!$C:$AQ,7,FALSE)/VLOOKUP("OSUPREGECO_"&A12,Output!$C:$AQ,6,FALSE),3) ->  | O12: =ROUND(VLOOKUP("OSUPJEUNEREGECO_"&$A12,Output!$C:$AQ,12,FALSE)/VLOOKUP("OSUPREGECO_"&A12,Output!$C:$AQ,6,FALSE),3) ->  | R12: =ROUND(VLOOKUP("OSUPVIEUXTOTREGECO_"&$A12,Output!$C:$AQ,7,FALSE)/VLOOKUP("OSUPREGECO_"&A12,Output!$C:$AQ,6,FALSE),3) ->  | T12: =ROUND(VLOOKUP("OSUPVIEUXTOTREGECO_"&$A12,Output!$C:$AQ,12,FALSE)/VLOOKUP("OSUPREGECO_"&A12,Output!$C:$AQ,6,FALSE),3) ->  | W12: 0 | AA12: =Tableaux!$O$33 -> 09352 | AB12: 0 | AG12: Compléter cellules en jaune
G13: =VLOOKUP(CONCATENATE("OSUPVIEUXALERTEREGECO_"&A13),Output!$C:$AQ,6,FALSE) ->  | H13: =VLOOKUP(CONCATENATE("OSUPVIEUXACCEPTREGECO_"&A13),Output!$C:$AQ,6,FALSE) ->  | I13: =VLOOKUP(CONCATENATE("OSUPJEUNEALERTEREGECO_"&A13),Output!$C:$AQ,6,FALSE) ->  | J13: =VLOOKUP(CONCATENATE("OSUPJEUNEACCEPTREGECO_"&A13),Output!$C:$AQ,6,FALSE) ->  | K13: =VLOOKUP(CONCATENATE("OSUPREGECO_"&A13),Output!$C:$AQ,6,FALSE) ->  | M13: =ROUND(VLOOKUP("OSUPJEUNEREGECO_"&A13,Output!$C:$AQ,7,FALSE)/VLOOKUP("OSUPREGECO_"&A13,Output!$C:$AQ,6,FALSE),3) ->  | O13: =ROUND(VLOOKUP("OSUPJEUNEREGECO_"&$A13,Output!$C:$AQ,12,FALSE)/VLOOKUP("OSUPREGECO_"&A13,Output!$C:$AQ,6,FALSE),3) ->  | R13: =ROUND(VLOOKUP("OSUPVIEUXTOTREGECO_"&$A13,Output!$C:$AQ,7,FALSE)/VLOOKUP("OSUPREGECO_"&A13,Output!$C:$AQ,6,FALSE),3) ->  | T13: =ROUND(VLOOKUP("OSUPVIEUXTOTREGECO_"&$A13,Output!$C:$AQ,12,FALSE)/VLOOKUP("OSUPREGECO_"&A13,Output!$C:$AQ,6,FALSE),3) ->  | W13: 0 | AA13: =Tableaux!$O$33 -> 09352 | AB13: 0
G14: =VLOOKUP(CONCATENATE("OSUPVIEUXALERTEREGECO_"&A14),Output!$C:$AQ,6,FALSE) ->  | H14: =VLOOKUP(CONCATENATE("OSUPVIEUXACCEPTREGECO_"&A14),Output!$C:$AQ,6,FALSE) ->  | I14: =VLOOKUP(CONCATENATE("OSUPJEUNEALERTEREGECO_"&A14),Output!$C:$AQ,6,FALSE) ->  | J14: =VLOOKUP(CONCATENATE("OSUPJEUNEACCEPTREGECO_"&A14),Output!$C:$AQ,6,FALSE) ->  | K14: =VLOOKUP(CONCATENATE("OSUPREGECO_"&A14),Output!$C:$AQ,6,FALSE) ->  | M14: =ROUND(VLOOKUP("OSUPJEUNEREGECO_"&A14,Output!$C:$AQ,7,FALSE)/VLOOKUP("OSUPREGECO_"&A14,Output!$C:$AQ,6,FALSE),3) ->  | O14: =ROUND(VLOOKUP("OSUPJEUNEREGECO_"&$A14,Output!$C:$AQ,12,FALSE)/VLOOKUP("OSUPREGECO_"&A14,Output!$C:$AQ,6,FALSE),3) ->  | R14: =ROUND(VLOOKUP("OSUPVIEUXTOTREGECO_"&$A14,Output!$C:$AQ,7,FALSE)/VLOOKUP("OSUPREGECO_"&A14,Output!$C:$AQ,6,FALSE),3) ->  | T14: =ROUND(VLOOKUP("OSUPVIEUXTOTREGECO_"&$A14,Output!$C:$AQ,12,FALSE)/VLOOKUP("OSUPREGECO_"&A14,Output!$C:$AQ,6,FALSE),3) ->  | W14: 0 | AA14: =Tableaux!$O$33 -> 09352 | AB14: 0
G15: =VLOOKUP(CONCATENATE("OSUPVIEUXALERTEREGECO_"&A15),Output!$C:$AQ,6,FALSE) ->  | H15: =VLOOKUP(CONCATENATE("OSUPVIEUXACCEPTREGECO_"&A15),Output!$C:$AQ,6,FALSE) ->  | I15: =VLOOKUP(CONCATENATE("OSUPJEUNEALERTEREGECO_"&A15),Output!$C:$AQ,6,FALSE) ->  | J15: =VLOOKUP(CONCATENATE("OSUPJEUNEACCEPTREGECO_"&A15),Output!$C:$AQ,6,FALSE) ->  | K15: =VLOOKUP(CONCATENATE("OSUPREGECO_"&A15),Output!$C:$AQ,6,FALSE) ->  | M15: =ROUND(VLOOKUP("OSUPJEUNEREGECO_"&A15,Output!$C:$AQ,7,FALSE)/VLOOKUP("OSUPREGECO_"&A15,Output!$C:$AQ,6,FALSE),3) ->  | O15: =ROUND(VLOOKUP("OSUPJEUNEREGECO_"&$A15,Output!$C:$AQ,12,FALSE)/VLOOKUP("OSUPREGECO_"&A15,Output!$C:$AQ,6,FALSE),3) ->  | R15: =ROUND(VLOOKUP("OSUPVIEUXTOTREGECO_"&$A15,Output!$C:$AQ,7,FALSE)/VLOOKUP("OSUPREGECO_"&A15,Output!$C:$AQ,6,FALSE),3) ->  | T15: =ROUND(VLOOKUP("OSUPVIEUXTOTREGECO_"&$A15,Output!$C:$AQ,12,FALSE)/VLOOKUP("OSUPREGECO_"&A15,Output!$C:$AQ,6,FALSE),3) ->  | W15: 0 | AA15: =Tableaux!$O$33 -> 09352 | AB15: 0
G16: =VLOOKUP(CONCATENATE("OSUPVIEUXALERTEREGECO_"&A16),Output!$C:$AQ,6,FALSE) ->  | H16: =VLOOKUP(CONCATENATE("OSUPVIEUXACCEPTREGECO_"&A16),Output!$C:$AQ,6,FALSE) ->  | I16: =VLOOKUP(CONCATENATE("OSUPJEUNEALERTEREGECO_"&A16),Output!$C:$AQ,6,FALSE) ->  | J16: =VLOOKUP(CONCATENATE("OSUPJEUNEACCEPTREGECO_"&A16),Output!$C:$AQ,6,FALSE) ->  | K16: =VLOOKUP(CONCATENATE("OSUPREGECO_"&A16),Output!$C:$AQ,6,FALSE) ->  | M16: =ROUND(VLOOKUP("OSUPJEUNEREGECO_"&A16,Output!$C:$AQ,7,FALSE)/VLOOKUP("OSUPREGECO_"&A16,Output!$C:$AQ,6,FALSE),3) ->  | O16: =ROUND(VLOOKUP("OSUPJEUNEREGECO_"&$A16,Output!$C:$AQ,12,FALSE)/VLOOKUP("OSUPREGECO_"&A16,Output!$C:$AQ,6,FALSE),3) ->  | R16: =ROUND(VLOOKUP("OSUPVIEUXTOTREGECO_"&$A16,Output!$C:$AQ,7,FALSE)/VLOOKUP("OSUPREGECO_"&A16,Output!$C:$AQ,6,FALSE),3) ->  | T16: =ROUND(VLOOKUP("OSUPVIEUXTOTREGECO_"&$A16,Output!$C:$AQ,12,FALSE)/VLOOKUP("OSUPREGECO_"&A16,Output!$C:$AQ,6,FALSE),3) ->  | W16: 0 | AA16: =Tableaux!$O$33 -> 09352 | AB16: 0
G17: =VLOOKUP(CONCATENATE("OSUPVIEUXALERTEREGECO_"&A17),Output!$C:$AQ,6,FALSE) ->  | H17: =VLOOKUP(CONCATENATE("OSUPVIEUXACCEPTREGECO_"&A17),Output!$C:$AQ,6,FALSE) ->  | I17: =VLOOKUP(CONCATENATE("OSUPJEUNEALERTEREGECO_"&A17),Output!$C:$AQ,6,FALSE) ->  | J17: =VLOOKUP(CONCATENATE("OSUPJEUNEACCEPTREGECO_"&A17),Output!$C:$AQ,6,FALSE) ->  | K17: =VLOOKUP(CONCATENATE("OSUPREGECO_"&A17),Output!$C:$AQ,6,FALSE) ->  | M17: =ROUND(VLOOKUP("OSUPJEUNEREGECO_"&A17,Output!$C:$AQ,7,FALSE)/VLOOKUP("OSUPREGECO_"&A17,Output!$C:$AQ,6,FALSE),3) ->  | O17: =ROUND(VLOOKUP("OSUPJEUNEREGECO_"&$A17,Output!$C:$AQ,12,FALSE)/VLOOKUP("OSUPREGECO_"&A17,Output!$C:$AQ,6,FALSE),3) ->  | R17: =ROUND(VLOOKUP("OSUPVIEUXTOTREGECO_"&$A17,Output!$C:$AQ,7,FALSE)/VLOOKUP("OSUPREGECO_"&A17,Output!$C:$AQ,6,FALSE),3) ->  | T17: =ROUND(VLOOKUP("OSUPVIEUXTOTREGECO_"&$A17,Output!$C:$AQ,12,FALSE)/VLOOKUP("OSUPREGECO_"&A17,Output!$C:$AQ,6,FALSE),3) ->  | W17: 0 | AA17: =Tableaux!$O$33 -> 09352 | AB17: 0
G18: =VLOOKUP(CONCATENATE("OSUPVIEUXALERTEREGECO_"&A18),Output!$C:$AQ,6,FALSE) ->  | H18: =VLOOKUP(CONCATENATE("OSUPVIEUXACCEPTREGECO_"&A18),Output!$C:$AQ,6,FALSE) ->  | I18: =VLOOKUP(CONCATENATE("OSUPJEUNEALERTEREGECO_"&A18),Output!$C:$AQ,6,FALSE) ->  | J18: =VLOOKUP(CONCATENATE("OSUPJEUNEACCEPTREGECO_"&A18),Output!$C:$AQ,6,FALSE) ->  | K18: =VLOOKUP(CONCATENATE("OSUPREGECO_"&A18),Output!$C:$AQ,6,FALSE) ->  | M18: =ROUND(VLOOKUP("OSUPJEUNEREGECO_"&A18,Output!$C:$AQ,7,FALSE)/VLOOKUP("OSUPREGECO_"&A18,Output!$C:$AQ,6,FALSE),3) ->  | O18: =ROUND(VLOOKUP("OSUPJEUNEREGECO_"&$A18,Output!$C:$AQ,12,FALSE)/VLOOKUP("OSUPREGECO_"&A18,Output!$C:$AQ,6,FALSE),3) ->  | R18: =ROUND(VLOOKUP("OSUPVIEUXTOTREGECO_"&$A18,Output!$C:$AQ,7,FALSE)/VLOOKUP("OSUPREGECO_"&A18,Output!$C:$AQ,6,FALSE),3) ->  | T18: =ROUND(VLOOKUP("OSUPVIEUXTOTREGECO_"&$A18,Output!$C:$AQ,12,FALSE)/VLOOKUP("OSUPREGECO_"&A18,Output!$C:$AQ,6,FALSE),3) ->  | W18: 0 | AA18: =Tableaux!$O$33 -> 09352 | AB18: 0
G19: =VLOOKUP(CONCATENATE("OSUPVIEUXALERTEREGECO_"&A19),Output!$C:$AQ,6,FALSE) ->  | H19: =VLOOKUP(CONCATENATE("OSUPVIEUXACCEPTREGECO_"&A19),Output!$C:$AQ,6,FALSE) ->  | I19: =VLOOKUP(CONCATENATE("OSUPJEUNEALERTEREGECO_"&A19),Output!$C:$AQ,6,FALSE) ->  | J19: =VLOOKUP(CONCATENATE("OSUPJEUNEACCEPTREGECO_"&A19),Output!$C:$AQ,6,FALSE) ->  | K19: =VLOOKUP(CONCATENATE("OSUPREGECO_"&A19),Output!$C:$AQ,6,FALSE) ->  | M19: =ROUND(VLOOKUP("OSUPJEUNEREGECO_"&A19,Output!$C:$AQ,7,FALSE)/VLOOKUP("OSUPREGECO_"&A19,Output!$C:$AQ,6,FALSE),3) ->  | O19: =ROUND(VLOOKUP("OSUPJEUNEREGECO_"&$A19,Output!$C:$AQ,12,FALSE)/VLOOKUP("OSUPREGECO_"&A19,Output!$C:$AQ,6,FALSE),3) ->  | R19: =ROUND(VLOOKUP("OSUPVIEUXTOTREGECO_"&$A19,Output!$C:$AQ,7,FALSE)/VLOOKUP("OSUPREGECO_"&A19,Output!$C:$AQ,6,FALSE),3) ->  | T19: =ROUND(VLOOKUP("OSUPVIEUXTOTREGECO_"&$A19,Output!$C:$AQ,12,FALSE)/VLOOKUP("OSUPREGECO_"&A19,Output!$C:$AQ,6,FALSE),3) ->  | W19: 0 | AA19: =Tableaux!$O$33 -> 09352 | AB19: 0
G20: =VLOOKUP(CONCATENATE("OSUPVIEUXALERTEREGECO_"&A20),Output!$C:$AQ,6,FALSE) ->  | H20: =VLOOKUP(CONCATENATE("OSUPVIEUXACCEPTREGECO_"&A20),Output!$C:$AQ,6,FALSE) ->  | I20: =VLOOKUP(CONCATENATE("OSUPJEUNEALERTEREGECO_"&A20),Output!$C:$AQ,6,FALSE) ->  | J20: =VLOOKUP(CONCATENATE("OSUPJEUNEACCEPTREGECO_"&A20),Output!$C:$AQ,6,FALSE) ->  | K20: =VLOOKUP(CONCATENATE("OSUPREGECO_"&A20),Output!$C:$AQ,6,FALSE) ->  | M20: =ROUND(VLOOKUP("OSUPJEUNEREGECO_"&A20,Output!$C:$AQ,7,FALSE)/VLOOKUP("OSUPREGECO_"&A20,Output!$C:$AQ,6,FALSE),3) ->  | O20: =ROUND(VLOOKUP("OSUPJEUNEREGECO_"&$A20,Output!$C:$AQ,12,FALSE)/VLOOKUP("OSUPREGECO_"&A20,Output!$C:$AQ,6,FALSE),3) ->  | R20: =ROUND(VLOOKUP("OSUPVIEUXTOTREGECO_"&$A20,Output!$C:$AQ,7,FALSE)/VLOOKUP("OSUPREGECO_"&A20,Output!$C:$AQ,6,FALSE),3) ->  | T20: =ROUND(VLOOKUP("OSUPVIEUXTOTREGECO_"&$A20,Output!$C:$AQ,12,FALSE)/VLOOKUP("OSUPREGECO_"&A20,Output!$C:$AQ,6,FALSE),3) ->  | W20: 0 | AA20: =Tableaux!$O$33 -> 09352 | AB20: 0
B21: =ROUND(G21/$K21,2) ->  | C21: =H21/$K21 ->  | D21: =ROUND(I21/$K21,3) ->  | G21: =VLOOKUP(CONCATENATE("OSUPVIEUXALERTEREGECO_"&A21),Output!$C:$AQ,6,FALSE) ->  | H21: =VLOOKUP(CONCATENATE("OSUPVIEUXACCEPTREGECO_"&A21),Output!$C:$AQ,6,FALSE) ->  | I21: =VLOOKUP(CONCATENATE("OSUPJEUNEALERTEREGECO_"&A21),Output!$C:$AQ,6,FALSE) ->  | J21: =VLOOKUP(CONCATENATE("OSUPJEUNEACCEPTREGECO_"&A21),Output!$C:$AQ,6,FALSE) ->  | K21: =VLOOKUP(CONCATENATE("OSUPREGECO_"&A21),Output!$C:$AQ,6,FALSE) ->  | M21: =ROUND(VLOOKUP("OSUPJEUNEREGECO_"&A21,Output!$C:$AQ,7,FALSE)/VLOOKUP("OSUPREGECO_"&A21,Output!$C:$AQ,6,FALSE),3) ->  | O21: =ROUND(VLOOKUP("OSUPJEUNEREGECO_"&$A21,Output!$C:$AQ,12,FALSE)/VLOOKUP("OSUPREGECO_"&A21,Output!$C:$AQ,6,FALSE),3) ->  | R21: =ROUND(VLOOKUP("OSUPVIEUXTOTREGECO_"&$A21,Output!$C:$AQ,7,FALSE)/VLOOKUP("OSUPREGECO_"&A21,Output!$C:$AQ,6,FALSE),3) ->  | T21: =ROUND(VLOOKUP("OSUPVIEUXTOTREGECO_"&$A21,Output!$C:$AQ,12,FALSE)/VLOOKUP("OSUPREGECO_"&A21,Output!$C:$AQ,6,FALSE),3) ->  | W21: 0 | AA21: =Tableaux!$O$33 -> 09352 | AB21: 0
G22: =VLOOKUP(CONCATENATE("OSUPVIEUXALERTEREGECO_"&A22),Output!$C:$AQ,6,FALSE) ->  | H22: =VLOOKUP(CONCATENATE("OSUPVIEUXACCEPTREGECO_"&A22),Output!$C:$AQ,6,FALSE) ->  | I22: =VLOOKUP(CONCATENATE("OSUPJEUNEALERTEREGECO_"&A22),Output!$C:$AQ,6,FALSE) ->  | J22: =VLOOKUP(CONCATENATE("OSUPJEUNEACCEPTREGECO_"&A22),Output!$C:$AQ,6,FALSE) ->  | K22: =VLOOKUP(CONCATENATE("OSUPREGECO_"&A22),Output!$C:$AQ,6,FALSE) ->  | M22: =ROUND(VLOOKUP("OSUPJEUNEREGECO_"&A22,Output!$C:$AQ,7,FALSE)/VLOOKUP("OSUPREGECO_"&A22,Output!$C:$AQ,6,FALSE),3) ->  | O22: =ROUND(VLOOKUP("OSUPJEUNEREGECO_"&$A22,Output!$C:$AQ,12,FALSE)/VLOOKUP("OSUPREGECO_"&A22,Output!$C:$AQ,6,FALSE),3) ->  | R22: =ROUND(VLOOKUP("OSUPVIEUXTOTREGECO_"&$A22,Output!$C:$AQ,7,FALSE)/VLOOKUP("OSUPREGECO_"&A22,Output!$C:$AQ,6,FALSE),3) ->  | T22: =ROUND(VLOOKUP("OSUPVIEUXTOTREGECO_"&$A22,Output!$C:$AQ,12,FALSE)/VLOOKUP("OSUPREGECO_"&A22,Output!$C:$AQ,6,FALSE),3) ->  | W22: 0 | AA22: =Tableaux!$O$33 -> 09352 | AB22: 0
G23: =VLOOKUP(CONCATENATE("OSUPVIEUXALERTEREGECO_"&A23),Output!$C:$AQ,6,FALSE) ->  | H23: =VLOOKUP(CONCATENATE("OSUPVIEUXACCEPTREGECO_"&A23),Output!$C:$AQ,6,FALSE) ->  | I23: =VLOOKUP(CONCATENATE("OSUPJEUNEALERTEREGECO_"&A23),Output!$C:$AQ,6,FALSE) ->  | J23: =VLOOKUP(CONCATENATE("OSUPJEUNEACCEPTREGECO_"&A23),Output!$C:$AQ,6,FALSE) ->  | K23: =VLOOKUP(CONCATENATE("OSUPREGECO_"&A23),Output!$C:$AQ,6,FALSE) ->  | M23: =ROUND(VLOOKUP("OSUPJEUNEREGECO_"&A23,Output!$C:$AQ,7,FALSE)/VLOOKUP("OSUPREGECO_"&A23,Output!$C:$AQ,6,FALSE),3) ->  | O23: =ROUND(VLOOKUP("OSUPJEUNEREGECO_"&$A23,Output!$C:$AQ,12,FALSE)/VLOOKUP("OSUPREGECO_"&A23,Output!$C:$AQ,6,FALSE),3) ->  | R23: =ROUND(VLOOKUP("OSUPVIEUXTOTREGECO_"&$A23,Output!$C:$AQ,7,FALSE)/VLOOKUP("OSUPREGECO_"&A23,Output!$C:$AQ,6,FALSE),3) ->  | T23: =ROUND(VLOOKUP("OSUPVIEUXTOTREGECO_"&$A23,Output!$C:$AQ,12,FALSE)/VLOOKUP("OSUPREGECO_"&A23,Output!$C:$AQ,6,FALSE),3) ->  | W23: 0 | AA23: =Tableaux!$O$33 -> 09352 | AB23: 0
G24: =VLOOKUP(CONCATENATE("OSUPVIEUXALERTEREGECO_"&A24),Output!$C:$AQ,6,FALSE) ->  | H24: =VLOOKUP(CONCATENATE("OSUPVIEUXACCEPTREGECO_"&A24),Output!$C:$AQ,6,FALSE) ->  | I24: =VLOOKUP(CONCATENATE("OSUPJEUNEALERTEREGECO_"&A24),Output!$C:$AQ,6,FALSE) ->  | J24: =VLOOKUP(CONCATENATE("OSUPJEUNEACCEPTREGECO_"&A24),Output!$C:$AQ,6,FALSE) ->  | K24: =VLOOKUP(CONCATENATE("OSUPREGECO_"&A24),Output!$C:$AQ,6,FALSE) ->  | M24: =ROUND(VLOOKUP("OSUPJEUNEREGECO_"&A24,Output!$C:$AQ,7,FALSE)/VLOOKUP("OSUPREGECO_"&A24,Output!$C:$AQ,6,FALSE),3) ->  | O24: =ROUND(VLOOKUP("OSUPJEUNEREGECO_"&$A24,Output!$C:$AQ,12,FALSE)/VLOOKUP("OSUPREGECO_"&A24,Output!$C:$AQ,6,FALSE),3) ->  | R24: =ROUND(VLOOKUP("OSUPVIEUXTOTREGECO_"&$A24,Output!$C:$AQ,7,FALSE)/VLOOKUP("OSUPREGECO_"&A24,Output!$C:$AQ,6,FALSE),3) ->  | T24: =ROUND(VLOOKUP("OSUPVIEUXTOTREGECO_"&$A24,Output!$C:$AQ,12,FALSE)/VLOOKUP("OSUPREGECO_"&A24,Output!$C:$AQ,6,FALSE),3) ->  | W24: 0 | AA24: =Tableaux!$O$33 -> 09352 | AB24: 0
G25: =VLOOKUP(CONCATENATE("OSUPVIEUXALERTEREGECO_"&A25),Output!$C:$AQ,6,FALSE) ->  | H25: =VLOOKUP(CONCATENATE("OSUPVIEUXACCEPTREGECO_"&A25),Output!$C:$AQ,6,FALSE) ->  | I25: =VLOOKUP(CONCATENATE("OSUPJEUNEALERTEREGECO_"&A25),Output!$C:$AQ,6,FALSE) ->  | J25: =VLOOKUP(CONCATENATE("OSUPJEUNEACCEPTREGECO_"&A25),Output!$C:$AQ,6,FALSE) ->  | K25: =VLOOKUP(CONCATENATE("OSUPREGECO_"&A25),Output!$C:$AQ,6,FALSE) ->  | M25: =ROUND(VLOOKUP("OSUPJEUNEREGECO_"&A25,Output!$C:$AQ,7,FALSE)/VLOOKUP("OSUPREGECO_"&A25,Output!$C:$AQ,6,FALSE),3) ->  | O25: =ROUND(VLOOKUP("OSUPJEUNEREGECO_"&$A25,Output!$C:$AQ,12,FALSE)/VLOOKUP("OSUPREGECO_"&A25,Output!$C:$AQ,6,FALSE),3) ->  | R25: =ROUND(VLOOKUP("OSUPVIEUXTOTREGECO_"&$A25,Output!$C:$AQ,7,FALSE)/VLOOKUP("OSUPREGECO_"&A25,Output!$C:$AQ,6,FALSE),3) ->  | T25: =ROUND(VLOOKUP("OSUPVIEUXTOTREGECO_"&$A25,Output!$C:$AQ,12,FALSE)/VLOOKUP("OSUPREGECO_"&A25,Output!$C:$AQ,6,FALSE),3) ->  | W25: 0 | AA25: =Tableaux!$O$33 -> 09352 | AB25: 0
G26: =VLOOKUP(CONCATENATE("OSUPVIEUXALERTEREGECO_"&A26),Output!$C:$AQ,6,FALSE) ->  | H26: =VLOOKUP(CONCATENATE("OSUPVIEUXACCEPTREGECO_"&A26),Output!$C:$AQ,6,FALSE) ->  | I26: =VLOOKUP(CONCATENATE("OSUPJEUNEALERTEREGECO_"&A26),Output!$C:$AQ,6,FALSE) ->  | J26: =VLOOKUP(CONCATENATE("OSUPJEUNEACCEPTREGECO_"&A26),Output!$C:$AQ,6,FALSE) ->  | K26: =VLOOKUP(CONCATENATE("OSUPREGECO_"&A26),Output!$C:$AQ,6,FALSE) ->  | M26: =ROUND(VLOOKUP("OSUPJEUNEREGECO_"&A26,Output!$C:$AQ,7,FALSE)/VLOOKUP("OSUPREGECO_"&A26,Output!$C:$AQ,6,FALSE),3) ->  | O26: =ROUND(VLOOKUP("OSUPJEUNEREGECO_"&$A26,Output!$C:$AQ,12,FALSE)/VLOOKUP("OSUPREGECO_"&A26,Output!$C:$AQ,6,FALSE),3) ->  | R26: =ROUND(VLOOKUP("OSUPVIEUXTOTREGECO_"&$A26,Output!$C:$AQ,7,FALSE)/VLOOKUP("OSUPREGECO_"&A26,Output!$C:$AQ,6,FALSE),3) ->  | T26: =ROUND(VLOOKUP("OSUPVIEUXTOTREGECO_"&$A26,Output!$C:$AQ,12,FALSE)/VLOOKUP("OSUPREGECO_"&A26,Output!$C:$AQ,6,FALSE),3) ->  | W26: 0 | AA26: =Tableaux!$O$33 -> 09352 | AB26: 0
C27: =ROUND(H27/$K27,3) ->  | G27: =VLOOKUP(CONCATENATE("OSUPVIEUXALERTEREGECO_"&A27),Output!$C:$AQ,6,FALSE) ->  | H27: =VLOOKUP(CONCATENATE("OSUPVIEUXACCEPTREGECO_"&A27),Output!$C:$AQ,6,FALSE) ->  | I27: =VLOOKUP(CONCATENATE("OSUPJEUNEALERTEREGECO_"&A27),Output!$C:$AQ,6,FALSE) ->  | J27: =VLOOKUP(CONCATENATE("OSUPJEUNEACCEPTREGECO_"&A27),Output!$C:$AQ,6,FALSE) ->  | K27: =VLOOKUP(CONCATENATE("OSUPREGECO_"&A27),Output!$C:$AQ,6,FALSE) ->  | M27: =ROUND(VLOOKUP("OSUPJEUNEREGECO_"&A27,Output!$C:$AQ,7,FALSE)/VLOOKUP("OSUPREGECO_"&A27,Output!$C:$AQ,6,FALSE),3) ->  | O27: =ROUND(VLOOKUP("OSUPJEUNEREGECO_"&$A27,Output!$C:$AQ,12,FALSE)/VLOOKUP("OSUPREGECO_"&A27,Output!$C:$AQ,6,FALSE),3) ->  | R27: =ROUND(VLOOKUP("OSUPVIEUXTOTREGECO_"&$A27,Output!$C:$AQ,7,FALSE)/VLOOKUP("OSUPREGECO_"&A27,Output!$C:$AQ,6,FALSE),3) ->  | T27: =ROUND(VLOOKUP("OSUPVIEUXTOTREGECO_"&$A27,Output!$C:$AQ,12,FALSE)/VLOOKUP("OSUPREGECO_"&A27,Output!$C:$AQ,6,FALSE),3) ->  | W27: 0 | AA27: =Tableaux!$O$33 -> 09352 | AB27: 0
G28: =VLOOKUP(CONCATENATE("OSUPVIEUXALERTEREGECO_"&A28),Output!$C:$AQ,6,FALSE) ->  | H28: =VLOOKUP(CONCATENATE("OSUPVIEUXACCEPTREGECO_"&A28),Output!$C:$AQ,6,FALSE) ->  | I28: =VLOOKUP(CONCATENATE("OSUPJEUNEALERTEREGECO_"&A28),Output!$C:$AQ,6,FALSE) ->  | J28: =VLOOKUP(CONCATENATE("OSUPJEUNEACCEPTREGECO_"&A28),Output!$C:$AQ,6,FALSE) ->  | K28: =VLOOKUP(CONCATENATE("OSUPREGECO_"&A28),Output!$C:$AQ,6,FALSE) ->  | M28: =ROUND(VLOOKUP("OSUPJEUNEREGECO_"&A28,Output!$C:$AQ,7,FALSE)/VLOOKUP("OSUPREGECO_"&A28,Output!$C:$AQ,6,FALSE),3) ->  | O28: =ROUND(VLOOKUP("OSUPJEUNEREGECO_"&$A28,Output!$C:$AQ,12,FALSE)/VLOOKUP("OSUPREGECO_"&A28,Output!$C:$AQ,6,FALSE),3) ->  | R28: =ROUND(VLOOKUP("OSUPVIEUXTOTREGECO_"&$A28,Output!$C:$AQ,7,FALSE)/VLOOKUP("OSUPREGECO_"&A28,Output!$C:$AQ,6,FALSE),3) ->  | T28: =ROUND(VLOOKUP("OSUPVIEUXTOTREGECO_"&$A28,Output!$C:$AQ,12,FALSE)/VLOOKUP("OSUPREGECO_"&A28,Output!$C:$AQ,6,FALSE),3) ->  | W28: 0 | AA28: =Tableaux!$O$33 -> 09352 | AB28: 0
G29: =VLOOKUP(CONCATENATE("OSUPVIEUXALERTEREGECO_"&A29),Output!$C:$AQ,6,FALSE) ->  | H29: =VLOOKUP(CONCATENATE("OSUPVIEUXACCEPTREGECO_"&A29),Output!$C:$AQ,6,FALSE) ->  | I29: =VLOOKUP(CONCATENATE("OSUPJEUNEALERTEREGECO_"&A29),Output!$C:$AQ,6,FALSE) ->  | J29: =VLOOKUP(CONCATENATE("OSUPJEUNEACCEPTREGECO_"&A29),Output!$C:$AQ,6,FALSE) ->  | K29: =VLOOKUP(CONCATENATE("OSUPREGECO_"&A29),Output!$C:$AQ,6,FALSE) ->  | M29: =ROUND(VLOOKUP("OSUPJEUNEREGECO_"&A29,Output!$C:$AQ,7,FALSE)/VLOOKUP("OSUPREGECO_"&A29,Output!$C:$AQ,6,FALSE),3) ->  | O29: =ROUND(VLOOKUP("OSUPJEUNEREGECO_"&$A29,Output!$C:$AQ,12,FALSE)/VLOOKUP("OSUPREGECO_"&A29,Output!$C:$AQ,6,FALSE),3) ->  | R29: =ROUND(VLOOKUP("OSUPVIEUXTOTREGECO_"&$A29,Output!$C:$AQ,7,FALSE)/VLOOKUP("OSUPREGECO_"&A29,Output!$C:$AQ,6,FALSE),3) ->  | T29: =ROUND(VLOOKUP("OSUPVIEUXTOTREGECO_"&$A29,Output!$C:$AQ,12,FALSE)/VLOOKUP("OSUPREGECO_"&A29,Output!$C:$AQ,6,FALSE),3) ->  | W29: 0 | AA29: =Tableaux!$O$33 -> 09352 | AB29: 0
G30: =VLOOKUP(CONCATENATE("OSUPVIEUXALERTEREGECO_"&A30),Output!$C:$AQ,6,FALSE) ->  | H30: =VLOOKUP(CONCATENATE("OSUPVIEUXACCEPTREGECO_"&A30),Output!$C:$AQ,6,FALSE) ->  | I30: =VLOOKUP(CONCATENATE("OSUPJEUNEALERTEREGECO_"&A30),Output!$C:$AQ,6,FALSE) ->  | J30: =VLOOKUP(CONCATENATE("OSUPJEUNEACCEPTREGECO_"&A30),Output!$C:$AQ,6,FALSE) ->  | K30: =VLOOKUP(CONCATENATE("OSUPREGECO_"&A30),Output!$C:$AQ,6,FALSE) ->  | M30: =ROUND(VLOOKUP("OSUPJEUNEREGECO_"&A30,Output!$C:$AQ,7,FALSE)/VLOOKUP("OSUPREGECO_"&A30,Output!$C:$AQ,6,FALSE),3) ->  | O30: =ROUND(VLOOKUP("OSUPJEUNEREGECO_"&$A30,Output!$C:$AQ,12,FALSE)/VLOOKUP("OSUPREGECO_"&A30,Output!$C:$AQ,6,FALSE),3) ->  | R30: =ROUND(VLOOKUP("OSUPVIEUXTOTREGECO_"&$A30,Output!$C:$AQ,7,FALSE)/VLOOKUP("OSUPREGECO_"&A30,Output!$C:$AQ,6,FALSE),3) ->  | T30: =ROUND(VLOOKUP("OSUPVIEUXTOTREGECO_"&$A30,Output!$C:$AQ,12,FALSE)/VLOOKUP("OSUPREGECO_"&A30,Output!$C:$AQ,6,FALSE),3) ->  | W30: 0 | AA30: =Tableaux!$O$33 -> 09352 | AB30: 0
G31: =VLOOKUP(CONCATENATE("OSUPVIEUXALERTEREGECO_"&A31),Output!$C:$AQ,6,FALSE) ->  | H31: =VLOOKUP(CONCATENATE("OSUPVIEUXACCEPTREGECO_"&A31),Output!$C:$AQ,6,FALSE) ->  | I31: =VLOOKUP(CONCATENATE("OSUPJEUNEALERTEREGECO_"&A31),Output!$C:$AQ,6,FALSE) ->  | J31: =VLOOKUP(CONCATENATE("OSUPJEUNEACCEPTREGECO_"&A31),Output!$C:$AQ,6,FALSE) ->  | K31: =VLOOKUP(CONCATENATE("OSUPREGECO_"&A31),Output!$C:$AQ,6,FALSE) ->  | M31: =ROUND(VLOOKUP("OSUPJEUNEREGECO_"&A31,Output!$C:$AQ,7,FALSE)/VLOOKUP("OSUPREGECO_"&A31,Output!$C:$AQ,6,FALSE),3) ->  | O31: =ROUND(VLOOKUP("OSUPJEUNEREGECO_"&$A31,Output!$C:$AQ,12,FALSE)/VLOOKUP("OSUPREGECO_"&A31,Output!$C:$AQ,6,FALSE),3) ->  | R31: =ROUND(VLOOKUP("OSUPVIEUXTOTREGECO_"&$A31,Output!$C:$AQ,7,FALSE)/VLOOKUP("OSUPREGECO_"&A31,Output!$C:$AQ,6,FALSE),3) ->  | T31: =ROUND(VLOOKUP("OSUPVIEUXTOTREGECO_"&$A31,Output!$C:$AQ,12,FALSE)/VLOOKUP("OSUPREGECO_"&A31,Output!$C:$AQ,6,FALSE),3) ->  | W31: 0 | AA31: =Tableaux!$O$33 -> 09352 | AB31: 0
G32: =VLOOKUP(CONCATENATE("OSUPVIEUXALERTEREGECO_"&A32),Output!$C:$AQ,6,FALSE) ->  | H32: =VLOOKUP(CONCATENATE("OSUPVIEUXACCEPTREGECO_"&A32),Output!$C:$AQ,6,FALSE) ->  | I32: =VLOOKUP(CONCATENATE("OSUPJEUNEALERTEREGECO_"&A32),Output!$C:$AQ,6,FALSE) ->  | J32: =VLOOKUP(CONCATENATE("OSUPJEUNEACCEPTREGECO_"&A32),Output!$C:$AQ,6,FALSE) ->  | K32: =VLOOKUP(CONCATENATE("OSUPREGECO_"&A32),Output!$C:$AQ,6,FALSE) ->  | M32: =ROUND(VLOOKUP("OSUPJEUNEREGECO_"&A32,Output!$C:$AQ,7,FALSE)/VLOOKUP("OSUPREGECO_"&A32,Output!$C:$AQ,6,FALSE),3) ->  | O32: =ROUND(VLOOKUP("OSUPJEUNEREGECO_"&$A32,Output!$C:$AQ,12,FALSE)/VLOOKUP("OSUPREGECO_"&A32,Output!$C:$AQ,6,FALSE),3) ->  | R32: =ROUND(VLOOKUP("OSUPVIEUXTOTREGECO_"&$A32,Output!$C:$AQ,7,FALSE)/VLOOKUP("OSUPREGECO_"&A32,Output!$C:$AQ,6,FALSE),3) ->  | T32: =ROUND(VLOOKUP("OSUPVIEUXTOTREGECO_"&$A32,Output!$C:$AQ,12,FALSE)/VLOOKUP("OSUPREGECO_"&A32,Output!$C:$AQ,6,FALSE),3) ->  | W32: 0 | AA32: =Tableaux!$O$33 -> 09352 | AB32: 0
G33: =VLOOKUP(CONCATENATE("OSUPVIEUXALERTEREGECO_"&A33),Output!$C:$AQ,6,FALSE) ->  | H33: =VLOOKUP(CONCATENATE("OSUPVIEUXACCEPTREGECO_"&A33),Output!$C:$AQ,6,FALSE) ->  | I33: =VLOOKUP(CONCATENATE("OSUPJEUNEALERTEREGECO_"&A33),Output!$C:$AQ,6,FALSE) ->  | J33: =VLOOKUP(CONCATENATE("OSUPJEUNEACCEPTREGECO_"&A33),Output!$C:$AQ,6,FALSE) ->  | K33: =VLOOKUP(CONCATENATE("OSUPREGECO_"&A33),Output!$C:$AQ,6,FALSE) ->  | M33: =ROUND(VLOOKUP("OSUPJEUNEREGECO_"&A33,Output!$C:$AQ,7,FALSE)/VLOOKUP("OSUPREGECO_"&A33,Output!$C:$AQ,6,FALSE),3) ->  | O33: =ROUND(VLOOKUP("OSUPJEUNEREGECO_"&$A33,Output!$C:$AQ,12,FALSE)/VLOOKUP("OSUPREGECO_"&A33,Output!$C:$AQ,6,FALSE),3) ->  | R33: =ROUND(VLOOKUP("OSUPVIEUXTOTREGECO_"&$A33,Output!$C:$AQ,7,FALSE)/VLOOKUP("OSUPREGECO_"&A33,Output!$C:$AQ,6,FALSE),3) ->  | T33: =ROUND(VLOOKUP("OSUPVIEUXTOTREGECO_"&$A33,Output!$C:$AQ,12,FALSE)/VLOOKUP("OSUPREGECO_"&A33,Output!$C:$AQ,6,FALSE),3) ->  | W33: 0 | AA33: =Tableaux!$O$33 -> 09352 | AB33: =W33 -> 0
G34: =VLOOKUP(CONCATENATE("OSUPVIEUXALERTEREGECO_"&A34),Output!$C:$AQ,6,FALSE) ->  | H34: =VLOOKUP(CONCATENATE("OSUPVIEUXACCEPTREGECO_"&A34),Output!$C:$AQ,6,FALSE) ->  | I34: =VLOOKUP(CONCATENATE("OSUPJEUNEALERTEREGECO_"&A34),Output!$C:$AQ,6,FALSE) ->  | J34: =VLOOKUP(CONCATENATE("OSUPJEUNEACCEPTREGECO_"&A34),Output!$C:$AQ,6,FALSE) ->  | K34: =VLOOKUP(CONCATENATE("OSUPREGECO_"&A34),Output!$C:$AQ,6,FALSE) ->  | M34: =ROUND(VLOOKUP("OSUPJEUNEREGECO_"&A34,Output!$C:$AQ,7,FALSE)/VLOOKUP("OSUPREGECO_"&A34,Output!$C:$AQ,6,FALSE),3) ->  | O34: =ROUND(VLOOKUP("OSUPJEUNEREGECO_"&$A34,Output!$C:$AQ,12,FALSE)/VLOOKUP("OSUPREGECO_"&A34,Output!$C:$AQ,6,FALSE),3) ->  | R34: =ROUND(VLOOKUP("OSUPVIEUXTOTREGECO_"&$A34,Output!$C:$AQ,7,FALSE)/VLOOKUP("OSUPREGECO_"&A34,Output!$C:$AQ,6,FALSE),3) ->  | T34: =ROUND(VLOOKUP("OSUPVIEUXTOTREGECO_"&$A34,Output!$C:$AQ,12,FALSE)/VLOOKUP("OSUPREGECO_"&A34,Output!$C:$AQ,6,FALSE),3) ->  | W34: 0 | AA34: =Tableaux!$O$33 -> 09352 | AB34: 0
G35: =VLOOKUP(CONCATENATE("OSUPVIEUXALERTEREGECO_"&A35),Output!$C:$AQ,6,FALSE) ->  | H35: =VLOOKUP(CONCATENATE("OSUPVIEUXACCEPTREGECO_"&A35),Output!$C:$AQ,6,FALSE) ->  | I35: =VLOOKUP(CONCATENATE("OSUPJEUNEALERTEREGECO_"&A35),Output!$C:$AQ,6,FALSE) ->  | J35: =VLOOKUP(CONCATENATE("OSUPJEUNEACCEPTREGECO_"&A35),Output!$C:$AQ,6,FALSE) ->  | K35: =VLOOKUP(CONCATENATE("OSUPREGECO_"&A35),Output!$C:$AQ,6,FALSE) ->  | M35: =ROUND(VLOOKUP("OSUPJEUNEREGECO_"&A35,Output!$C:$AQ,7,FALSE)/VLOOKUP("OSUPREGECO_"&A35,Output!$C:$AQ,6,FALSE),3) ->  | O35: =ROUND(VLOOKUP("OSUPJEUNEREGECO_"&$A35,Output!$C:$AQ,12,FALSE)/VLOOKUP("OSUPREGECO_"&A35,Output!$C:$AQ,6,FALSE),3) ->  | R35: =ROUND(VLOOKUP("OSUPVIEUXTOTREGECO_"&$A35,Output!$C:$AQ,7,FALSE)/VLOOKUP("OSUPREGECO_"&A35,Output!$C:$AQ,6,FALSE),3) ->  | T35: =ROUND(VLOOKUP("OSUPVIEUXTOTREGECO_"&$A35,Output!$C:$AQ,12,FALSE)/VLOOKUP("OSUPREGECO_"&A35,Output!$C:$AQ,6,FALSE),3) ->  | W35: 0 | AA35: =Tableaux!$O$33 -> 09352 | AB35: 0
G36: =VLOOKUP(CONCATENATE("OSUPVIEUXALERTEREGECO_"&A36),Output!$C:$AQ,6,FALSE) ->  | H36: =VLOOKUP(CONCATENATE("OSUPVIEUXACCEPTREGECO_"&A36),Output!$C:$AQ,6,FALSE) ->  | I36: =VLOOKUP(CONCATENATE("OSUPJEUNEALERTEREGECO_"&A36),Output!$C:$AQ,6,FALSE) ->  | J36: =VLOOKUP(CONCATENATE("OSUPJEUNEACCEPTREGECO_"&A36),Output!$C:$AQ,6,FALSE) ->  | K36: =VLOOKUP(CONCATENATE("OSUPREGECO_"&A36),Output!$C:$AQ,6,FALSE) ->  | M36: =ROUND(VLOOKUP("OSUPJEUNEREGECO_"&A36,Output!$C:$AQ,7,FALSE)/VLOOKUP("OSUPREGECO_"&A36,Output!$C:$AQ,6,FALSE),3) ->  | O36: =ROUND(VLOOKUP("OSUPJEUNEREGECO_"&$A36,Output!$C:$AQ,12,FALSE)/VLOOKUP("OSUPREGECO_"&A36,Output!$C:$AQ,6,FALSE),3) ->  | R36: =ROUND(VLOOKUP("OSUPVIEUXTOTREGECO_"&$A36,Output!$C:$AQ,7,FALSE)/VLOOKUP("OSUPREGECO_"&A36,Output!$C:$AQ,6,FALSE),3) ->  | T36: =ROUND(VLOOKUP("OSUPVIEUXTOTREGECO_"&$A36,Output!$C:$AQ,12,FALSE)/VLOOKUP("OSUPREGECO_"&A36,Output!$C:$AQ,6,FALSE),3) ->  | W36: 0 | AA36: =Tableaux!$O$33 -> 09352 | AB36: 0
G37: =VLOOKUP(CONCATENATE("OSUPVIEUXALERTEREGECO_"&A37),Output!$C:$AQ,6,FALSE) ->  | H37: =VLOOKUP(CONCATENATE("OSUPVIEUXACCEPTREGECO_"&A37),Output!$C:$AQ,6,FALSE) ->  | I37: =VLOOKUP(CONCATENATE("OSUPJEUNEALERTEREGECO_"&A37),Output!$C:$AQ,6,FALSE) ->  | J37: =VLOOKUP(CONCATENATE("OSUPJEUNEACCEPTREGECO_"&A37),Output!$C:$AQ,6,FALSE) ->  | K37: =VLOOKUP(CONCATENATE("OSUPREGECO_"&A37),Output!$C:$AQ,6,FALSE) ->  | M37: =ROUND(VLOOKUP("OSUPJEUNEREGECO_"&A37,Output!$C:$AQ,7,FALSE)/VLOOKUP("OSUPREGECO_"&A37,Output!$C:$AQ,6,FALSE),3) ->  | O37: =ROUND(VLOOKUP("OSUPJEUNEREGECO_"&$A37,Output!$C:$AQ,12,FALSE)/VLOOKUP("OSUPREGECO_"&A37,Output!$C:$AQ,6,FALSE),3) ->  | R37: =ROUND(VLOOKUP("OSUPVIEUXTOTREGECO_"&$A37,Output!$C:$AQ,7,FALSE)/VLOOKUP("OSUPREGECO_"&A37,Output!$C:$AQ,6,FALSE),3) ->  | T37: =ROUND(VLOOKUP("OSUPVIEUXTOTREGECO_"&$A37,Output!$C:$AQ,12,FALSE)/VLOOKUP("OSUPREGECO_"&A37,Output!$C:$AQ,6,FALSE),3) ->  | W37: 0 | AA37: =Tableaux!$O$33 -> 09352 | AB37: 0
G38: =VLOOKUP(CONCATENATE("OSUPVIEUXALERTEREGECO_"&A38),Output!$C:$AQ,6,FALSE) ->  | H38: =VLOOKUP(CONCATENATE("OSUPVIEUXACCEPTREGECO_"&A38),Output!$C:$AQ,6,FALSE) ->  | I38: =VLOOKUP(CONCATENATE("OSUPJEUNEALERTEREGECO_"&A38),Output!$C:$AQ,6,FALSE) ->  | J38: =VLOOKUP(CONCATENATE("OSUPJEUNEACCEPTREGECO_"&A38),Output!$C:$AQ,6,FALSE) ->  | K38: =VLOOKUP(CONCATENATE("OSUPREGECO_"&A38),Output!$C:$AQ,6,FALSE) ->  | M38: =ROUND(VLOOKUP("OSUPJEUNEREGECO_"&A38,Output!$C:$AQ,7,FALSE)/VLOOKUP("OSUPREGECO_"&A38,Output!$C:$AQ,6,FALSE),3) ->  | O38: =ROUND(VLOOKUP("OSUPJEUNEREGECO_"&$A38,Output!$C:$AQ,12,FALSE)/VLOOKUP("OSUPREGECO_"&A38,Output!$C:$AQ,6,FALSE),3) ->  | R38: =ROUND(VLOOKUP("OSUPVIEUXTOTREGECO_"&$A38,Output!$C:$AQ,7,FALSE)/VLOOKUP("OSUPREGECO_"&A38,Output!$C:$AQ,6,FALSE),3) ->  | T38: =ROUND(VLOOKUP("OSUPVIEUXTOTREGECO_"&$A38,Output!$C:$AQ,12,FALSE)/VLOOKUP("OSUPREGECO_"&A38,Output!$C:$AQ,6,FALSE),3) ->  | W38: 0 | AA38: =Tableaux!$O$33 -> 09352 | AB38: 0
G39: =VLOOKUP(CONCATENATE("OSUPVIEUXALERTEREGECO_"&A39),Output!$C:$AQ,6,FALSE) ->  | H39: =VLOOKUP(CONCATENATE("OSUPVIEUXACCEPTREGECO_"&A39),Output!$C:$AQ,6,FALSE) ->  | I39: =VLOOKUP(CONCATENATE("OSUPJEUNEALERTEREGECO_"&A39),Output!$C:$AQ,6,FALSE) ->  | J39: =VLOOKUP(CONCATENATE("OSUPJEUNEACCEPTREGECO_"&A39),Output!$C:$AQ,6,FALSE) ->  | K39: =VLOOKUP(CONCATENATE("OSUPREGECO_"&A39),Output!$C:$AQ,6,FALSE) ->  | M39: =ROUND(VLOOKUP("OSUPJEUNEREGECO_"&A39,Output!$C:$AQ,7,FALSE)/VLOOKUP("OSUPREGECO_"&A39,Output!$C:$AQ,6,FALSE),3) ->  | O39: =ROUND(VLOOKUP("OSUPJEUNEREGECO_"&$A39,Output!$C:$AQ,12,FALSE)/VLOOKUP("OSUPREGECO_"&A39,Output!$C:$AQ,6,FALSE),3) ->  | R39: =ROUND(VLOOKUP("OSUPVIEUXTOTREGECO_"&$A39,Output!$C:$AQ,7,FALSE)/VLOOKUP("OSUPREGECO_"&A39,Output!$C:$AQ,6,FALSE),3) ->  | T39: =ROUND(VLOOKUP("OSUPVIEUXTOTREGECO_"&$A39,Output!$C:$AQ,12,FALSE)/VLOOKUP("OSUPREGECO_"&A39,Output!$C:$AQ,6,FALSE),3) ->  | W39: 0 | AA39: =Tableaux!$O$33 -> 09352 | AB39: 0
G40: =VLOOKUP(CONCATENATE("OSUPVIEUXALERTEREGECO_"&A40),Output!$C:$AQ,6,FALSE) ->  | H40: =VLOOKUP(CONCATENATE("OSUPVIEUXACCEPTREGECO_"&A40),Output!$C:$AQ,6,FALSE) ->  | I40: =VLOOKUP(CONCATENATE("OSUPJEUNEALERTEREGECO_"&A40),Output!$C:$AQ,6,FALSE) ->  | J40: =VLOOKUP(CONCATENATE("OSUPJEUNEACCEPTREGECO_"&A40),Output!$C:$AQ,6,FALSE) ->  | K40: =VLOOKUP(CONCATENATE("OSUPREGECO_"&A40),Output!$C:$AQ,6,FALSE) ->  | M40: =ROUND(VLOOKUP("OSUPJEUNEREGECO_"&A40,Output!$C:$AQ,7,FALSE)/VLOOKUP("OSUPREGECO_"&A40,Output!$C:$AQ,6,FALSE),3) ->  | O40: =ROUND(VLOOKUP("OSUPJEUNEREGECO_"&$A40,Output!$C:$AQ,12,FALSE)/VLOOKUP("OSUPREGECO_"&A40,Output!$C:$AQ,6,FALSE),3) ->  | R40: =ROUND(VLOOKUP("OSUPVIEUXTOTREGECO_"&$A40,Output!$C:$AQ,7,FALSE)/VLOOKUP("OSUPREGECO_"&A40,Output!$C:$AQ,6,FALSE),3) ->  | T40: =ROUND(VLOOKUP("OSUPVIEUXTOTREGECO_"&$A40,Output!$C:$AQ,12,FALSE)/VLOOKUP("OSUPREGECO_"&A40,Output!$C:$AQ,6,FALSE),3) ->  | W40: 0 | AA40: =Tableaux!$O$33 -> 09352 | AB40: 0
G41: =VLOOKUP(CONCATENATE("OSUPVIEUXALERTEREGECO_"&A41),Output!$C:$AQ,6,FALSE) ->  | H41: =VLOOKUP(CONCATENATE("OSUPVIEUXACCEPTREGECO_"&A41),Output!$C:$AQ,6,FALSE) ->  | I41: =VLOOKUP(CONCATENATE("OSUPJEUNEALERTEREGECO_"&A41),Output!$C:$AQ,6,FALSE) ->  | J41: =VLOOKUP(CONCATENATE("OSUPJEUNEACCEPTREGECO_"&A41),Output!$C:$AQ,6,FALSE) ->  | K41: =VLOOKUP(CONCATENATE("OSUPREGECO_"&A41),Output!$C:$AQ,6,FALSE) ->  | M41: =ROUND(VLOOKUP("OSUPJEUNEREGECO_"&A41,Output!$C:$AQ,7,FALSE)/VLOOKUP("OSUPREGECO_"&A41,Output!$C:$AQ,6,FALSE),3) ->  | O41: =ROUND(VLOOKUP("OSUPJEUNEREGECO_"&$A41,Output!$C:$AQ,12,FALSE)/VLOOKUP("OSUPREGECO_"&A41,Output!$C:$AQ,6,FALSE),3) ->  | R41: =ROUND(VLOOKUP("OSUPVIEUXTOTREGECO_"&$A41,Output!$C:$AQ,7,FALSE)/VLOOKUP("OSUPREGECO_"&A41,Output!$C:$AQ,6,FALSE),3) ->  | T41: =ROUND(VLOOKUP("OSUPVIEUXTOTREGECO_"&$A41,Output!$C:$AQ,12,FALSE)/VLOOKUP("OSUPREGECO_"&A41,Output!$C:$AQ,6,FALSE),3) ->  | W41: 0 | AA41: =Tableaux!$O$33 -> 09352 | AB41: 0
G42: =VLOOKUP(CONCATENATE("OSUPVIEUXALERTEREGECO_"&A42),Output!$C:$AQ,6,FALSE) ->  | H42: =VLOOKUP(CONCATENATE("OSUPVIEUXACCEPTREGECO_"&A42),Output!$C:$AQ,6,FALSE) ->  | I42: =VLOOKUP(CONCATENATE("OSUPJEUNEALERTEREGECO_"&A42),Output!$C:$AQ,6,FALSE) ->  | J42: =VLOOKUP(CONCATENATE("OSUPJEUNEACCEPTREGECO_"&A42),Output!$C:$AQ,6,FALSE) ->  | K42: =VLOOKUP(CONCATENATE("OSUPREGECO_"&A42),Output!$C:$AQ,6,FALSE) ->  | M42: =ROUND(VLOOKUP("OSUPJEUNEREGECO_"&A42,Output!$C:$AQ,7,FALSE)/VLOOKUP("OSUPREGECO_"&A42,Output!$C:$AQ,6,FALSE),3) ->  | O42: =ROUND(VLOOKUP("OSUPJEUNEREGECO_"&$A42,Output!$C:$AQ,12,FALSE)/VLOOKUP("OSUPREGECO_"&A42,Output!$C:$AQ,6,FALSE),3) ->  | R42: =ROUND(VLOOKUP("OSUPVIEUXTOTREGECO_"&$A42,Output!$C:$AQ,7,FALSE)/VLOOKUP("OSUPREGECO_"&A42,Output!$C:$AQ,6,FALSE),3) ->  | T42: =ROUND(VLOOKUP("OSUPVIEUXTOTREGECO_"&$A42,Output!$C:$AQ,12,FALSE)/VLOOKUP("OSUPREGECO_"&A42,Output!$C:$AQ,6,FALSE),3) ->  | W42: 0 | AA42: =Tableaux!$O$33 -> 09352 | AB42: 0

Sheet Output
C1: 1 | D1: 2 | E1: 3 | F1: 4 | G1: 5 | H1: 6 | I1: 7 | J1: 8 | K1: 9 | L1: 10 | M1: 11 | N1: 12 | O1: 13 | P1: 14 | Q1: 15 | R1: 16 | S1: 17 | T1: 18 | U1: 19 | V1: 20 | W1: 21 | X1: 22 | Y1: 23 | Z1: 24 | AA1: 25 | AB1: 26 | AC1: 27 | AD1: 28 | AE1: 29 | AF1: 30 | AG1: 31 | AH1: 32 | AI1: 33 | AJ1: 34 | AK1: 35 | AL1: 36 | AM1: 37 | AN1: 38 | AO1: 39 | AP1: 40 | AQ1: 41
A2: Record | B2: Group | C2: Name | D2: Description | E2: Attribute | F2: Minimum | G2: Maximum | H2: Period0 | I2: Period1 | J2: Period2 | K2: Period3 | L2: Period4 | M2: Period5 | N2: Period6 | O2: Period7 | P2: Period8 | Q2: Period9 | R2: Period10 | S2: Period11 | T2: Period12 | U2: Period13 | V2: Period14 | W2: Period15 | X2: Period16 | Y2: Period17 | Z2: Period18 | AA2: Period19 | AB2: Period20 | AC2: Period21 | AD2: Period22 | AE2: Period23 | AF2: Period24 | AG2: Period25 | AH2: Period26 | AI2: Period27 | AJ2: Period28 | AK2: Period29 | AL2: Period30 | AM2: Moyemme P2 à P6 | AN2: Moyenne P7 à P11 | AO2: Moyenne P12 à P20 | AP2: Moyenne P21 à P30 | AQ2: Moyenne P2 à P30
B3: GROUP | C3: NAME | D3: DESCRIPTIO | E3: ATTRIBUTE | F3: MINIMUM | G3: MAXIMUM | H3: PERIOD0 | I3: PERIOD1 | J3: PERIOD2 | K3: PERIOD3 | L3: PERIOD4 | M3: PERIOD5 | N3: PERIOD6 | O3: PERIOD7 | P3: PERIOD8 | Q3: PERIOD9 | R3: PERIOD10 | S3: PERIOD11 | T3: PERIOD12 | U3: PERIOD13 | V3: PERIOD14 | W3: PERIOD15 | X3: PERIOD16 | Y3: PERIOD17 | Z3: PERIOD18 | AA3: PERIOD19 | AB3: PERIOD20 | AC3: PERIOD21 | AD3: PERIOD22 | AE3: PERIOD23 | AF3: PERIOD24 | AG3: PERIOD25 | AH3: PERIOD26 | AI3: PERIOD27 | AJ3: PERIOD28 | AK3: PERIOD29 | AL3: PERIOD30 | AM3: =AVERAGE(J3:N3) ->  | AN3: =AVERAGE(O3:S3) ->  | AO3: =AVERAGE(T3:AB3) ->  | AP3: =AVERAGE(AC3:AL3) ->  | AQ3: =AVERAGE(J3:AL3) -> 
B4: <Non regroupÚ(s)> | C4: OSUPTOT | D4: Superficie Totale | F4: 1407435.9 | G4: 1407435.9 | H4: 1407435.9 | I4: 1407435.9 | J4: 1407435.9 | K4: 1407435.9 | L4: 1407435.9 | M4: 1407435.9 | N4: 1407435.9 | O4: 1407435.9 | P4: 1407435.9 | Q4: 1407435.9 | R4: 1407435.9 | S4: 1407435.9 | T4: 1407435.9 | U4: 1407435.9 | V4: 1407435.9 | W4: 1407435.9 | X4: 1407435.9 | Y4: 1407435.9 | Z4: 1407435.9 | AA4: 1407435.9 | AB4: 1407435.9 | AC4: 1407435.9 | AD4: 1407435.9 | AE4: 1407435.9 | AF4: 1407435.9 | AG4: 1407435.9 | AH4: 1407435.9 | AI4: 1407435.9 | AJ4: 1407435.9 | AK4: 1407435.9 | AL4: 1407435.9 | AM4: =AVERAGE(J4:N4) -> 1407435.9 | AN4: =AVERAGE(O4:S4) -> 1407435.9 | AO4: =AVERAGE(T4:AB4) -> 1407435.9 | AP4: =AVERAGE(AC4:AL4) -> 1407435.9 | AQ4: =AVERAGE(J4:AL4) -> 1407435.9
B5: <Non regroupÚ(s)> | C5: OSUPINC | D5: Superficie InclusActions par courbe | F5: 537270.91 | G5: 548947.4 | H5: 548947.4 | I5: 548182.47 | J5: 547649.58 | K5: 547130.63 | L5: 546593.79 | M5: 546061.74 | N5: 545579.49 | O5: 545076.08 | P5: 544589.61 | Q5: 544185.81 | R5: 543752.61 | S5: 543347.44 | T5: 543030.22 | U5: 542685.44 | V5: 542263.59 | W5: 541891.91 | X5: 541543.75 | Y5: 541255.6 | Z5: 540931.48 | AA5: 540731.87 | AB5: 540532.63 | AC5: 540368.39 | AD5: 540090.73 | AE5: 539804.34 | AF5: 539570.68 | AG5: 539200.41 | AH5: 538722.65 | AI5: 538352.63 | AJ5: 537974.49 | AK5: 537646.58 | AL5: 537270.91 | AM5: 546603.046 | AN5: 544190.31 | AO5: 541651.8322 | AP5: 538900.181 | AQ5: 541994.3131
B6: <Non regroupÚ(s)> | C6: OSUPregECO | D6: Superficie Disponible aux RÚsultats ╔cologiques | F6: 987523.31 | G6: 999199.8 | H6: 999199.8 | I6: 998434.87 | J6: 997901.98 | K6: 997383.03 | L6: 996846.19 | M6: 996314.14 | N6: 995831.89 | O6: 995328.48 | P6: 994842.01 | Q6: 994438.21 | R6: 994005.01 | S6: 993599.84 | T6: 993282.62 | U6: 992937.84 | V6: 992515.99 | W6: 992144.31 | X6: 991796.15 | Y6: 991508 | Z6: 991183.88 | AA6: 990984.27 | AB6: 990785.03 | AC6: 990620.79 | AD6: 990343.13 | AE6: 990056.74 | AF6: 989823.08 | AG6: 989452.81 | AH6: 988975.05 | AI6: 988605.03 | AJ6: 988226.89 | AK6: 987898.98 | AL6: 987523.31 | AM6: 996855.446 | AN6: 994442.71 | AO6: 991904.2322 | AP6: 989152.581 | AQ6: 992246.7131
B7: <Non regroupÚ(s)> | C7: OSUPEXIN | D7: Superficie ExcluActionsInclus | F7: 450252.4 | G7: 450252.4 | H7: 450252.4 | I7: 450252.4 | J7: 450252.4 | K7: 450252.4 | L7: 450252.4 | M7: 450252.4 | N7: 450252.4 | O7: 450252.4 | P7: 450252.4 | Q7: 450252.4 | R7: 450252.4 | S7: 450252.4 | T7: 450252.4 | U7: 450252.4 | V7: 450252.4 | W7: 450252.4 | X7: 450252.4 | Y7: 450252.4 | Z7: 450252.4 | AA7: 450252.4 | AB7: 450252.4 | AC7: 450252.4 | AD7: 450252.4 | AE7: 450252.4 | AF7: 450252.4 | AG7: 450252.4 | AH7: 450252.4 | AI7: 450252.4 | AJ7: 450252.4 | AK7: 450252.4 | AL7: 450252.4 | AM7: 450252.4 | AN7: 450252.4 | AO7: 450252.4 | AP7: 450252.4 | AQ7: 450252.4
B8: <Non regroupÚ(s)> | C8: OSUPEXTI | D8: Superficie Improductive | F8: 144798.1 | G8: 144798.1 | H8: 144798.1 | I8: 144798.1 | J8: 144798.1 | K8: 144798.1 | L8: 144798.1 | M8: 144798.1 | N8: 144798.1 | O8: 144798.1 | P8: 144798.1 | Q8: 144798.1 | R8: 144798.1 | S8: 144798.1 | T8: 144798.1 | U8: 144798.1 | V8: 144798.1 | W8: 144798.1 | X8: 144798.1 | Y8: 144798.1 | Z8: 144798.1 | AA8: 144798.1 | AB8: 144798.1 | AC8: 144798.1 | AD8: 144798.1 | AE8: 144798.1 | AF8: 144798.1 | AG8: 144798.1 | AH8: 144798.1 | AI8: 144798.1 | AJ8: 144798.1 | AK8: 144798.1 | AL8: 144798.1 | AM8: 144798.1 | AN8: 144798.1 | AO8: 144798.1 | AP8: 144798.1 | AQ8: 144798.1
B9: <Non regroupÚ(s)> | C9: OSUPLOCK | D9: Superficie Sous Verrous | F9: 3893.51 | G9: 73489.75 | H9: 70042.2 | I9: 73489.75 | J9: 57989.96 | K9: 59453.01 | L9: 60936.67 | M9: 34553.29 | N9: 36109.94 | O9: 37070.3 | P9: 34439.2 | Q9: 8982.93 | R9: 8238.17 | S9: 7390.26 | T9: 6658.23 | U9: 5791.82 | V9: 5408.61 | W9: 5088.69 | X9: 4695.85 | Y9: 4450.64 | Z9: 4220.48 | AA9: 3946.73 | AB9: 3893.51 | AC9: 4048.94 | AD9: 4394.86 | AE9: 4780.51 | AF9: 5037.33 | AG9: 5419.11 | AH9: 5855.07 | AI9: 6356.43 | AJ9: 6932.98 | AK9: 7596.02 | AL9: 8358.52 | AM9: 49808.574 | AN9: 19224.172 | AO9: 4906.062222 | AP9: 5877.977 | AQ9: 15451.65724
B10: Economique | C10: oSupTcsdDEG_1_T100% | D10: oSupTcsdDEG_1_T100% | F10: 0 | G10: 0 | H10: 0 | I10: 0 | J10: 0 | K10: 0 | L10: 0 | M10: 0 | N10: 0 | O10: 0 | P10: 0 | Q10: 0 | R10: 0 | S10: 0 | T10: 0 | U10: 0 | V10: 0 | W10: 0 | X10: 0 | Y10: 0 | Z10: 0 | AA10: 0 | AB10: 0 | AC10: 0 | AD10: 0 | AE10: 0 | AF10: 0 | AG10: 0 | AH10: 0 | AI10: 0 | AJ10: 0 | AK10: 0 | AL10: 0 | AM10: 0 | AN10: 0 | AO10: 0 | AP10: 0 | AQ10: 0
B11: Economique | C11: oSupTcsdDEG_2_T100% | D11: oSupTcsdDEG_2_T100% | F11: 0 | G11: 330 | H11: 0 | I11: 330 | J11: 0 | K11: 0 | L11: 0 | M11: 0 | N11: 0 | O11: 0 | P11: 0 | Q11: 0 | R11: 0 | S11: 0 | T11: 0 | U11: 0 | V11: 0 | W11: 0 | X11: 0 | Y11: 0 | Z11: 0 | AA11: 0 | AB11: 0 | AC11: 0 | AD11: 0 | AE11: 0 | AF11: 0 | AG11: 0 | AH11: 0 | AI11: 0 | AJ11: 0 | AK11: 0 | AL11: 0 | AM11: 0 | AN11: 0 | AO11: 0 | AP11: 0 | AQ11: 0
B12: Economique | C12: oSupDEG_1_T100% | D12: oSupDEG_1_T100% | F12: 0 | G12: 0 | H12: 0 | I12: 0 | J12: 0 | K12: 0 | L12: 0 | M12: 0 | N12: 0 | O12: 0 | P12: 0 | Q12: 0 | R12: 0 | S12: 0 | T12: 0 | U12: 0 | V12: 0 | W12: 0 | X12: 0 | Y12: 0 | Z12: 0 | AA12: 0 | AB12: 0 | AC12: 0 | AD12: 0 | AE12: 0 | AF12: 0 | AG12: 0 | AH12: 0 | AI12: 0 | AJ12: 0 | AK12: 0 | AL12: 0 | AM12: 0 | AN12: 0 | AO12: 0 | AP12: 0 | AQ12: 0
B13: Economique | C13: oSupDEG_2_T100% | D13: oSupDEG_2_T100% | F13: 0 | G13: 330 | H13: 0 | I13: 330 | J13: 0 | K13: 0 | L13: 0 | M13: 0 | N13: 0 | O13: 0 | P13: 0 | Q13: 0 | R13: 0 | S13: 0 | T13: 0 | U13: 0 | V13: 0 | W13: 0 | X13: 0 | Y13: 0 | Z13: 0 | AA13: 0 | AB13: 0 | AC13: 0 | AD13: 0 | AE13: 0 | AF13: 0 | AG13: 0 | AH13: 0 | AI13: 0 | AJ13: 0 | AK13: 0 | AL13: 0 | AM13: 0 | AN13: 0 | AO13: 0 | AP13: 0 | AQ13: 0
B14: Economique | C14: oSupDEG_1 | D14: oSupDEG_1 | F14: 0 | G14: 0 | H14: 0 | I14: 0 | J14: 0 | K14: 0 | L14: 0 | M14: 0 | N14: 0 | O14: 0 | P14: 0 | Q14: 0 | R14: 0 | S14: 0 | T14: 0 | U14: 0 | V14: 0 | W14: 0 | X14: 0 | Y14: 0 | Z14: 0 | AA14: 0 | AB14: 0 | AC14: 0 | AD14: 0 | AE14: 0 | AF14: 0 | AG14: 0 | AH14: 0 | AI14: 0 | AJ14: 0 | AK14: 0 | AL14: 0 | AM14: 0 | AN14: 0 | AO14: 0 | AP14: 0 | AQ14: 0
B15: Economique | C15: oSupDEG_2 | D15: oSupDEG_2 | F15: 0 | G15: 330 | H15: 0 | I15: 330 | J15: 0 | K15: 0 | L15: 0 | M15: 0 | N15: 0 | O15: 0 | P15: 0 | Q15: 0 | R15: 0 | S15: 0 | T15: 0 | U15: 0 | V15: 0 | W15: 0 | X15: 0 | Y15: 0 | Z15: 0 | AA15: 0 | AB15: 0 | AC15: 0 | AD15: 0 | AE15: 0 | AF15: 0 | AG15: 0 | AH15: 0 | AI15: 0 | AJ15: 0 | AK15: 0 | AL15: 0 | AM15: 0 | AN15: 0 | AO15: 0 | AP15: 0 | AQ15: 0
B16: Economique | C16: oSupTcsdSCA_PART_T100% | D16: oSupTcsdSCA_PART_T100% | F16: 0 | G16: 330 | H16: 0 | I16: 330 | J16: 0 | K16: 0 | L16: 0 | M16: 0 | N16: 0 | O16: 0 | P16: 0 | Q16: 0 | R16: 0 | S16: 0 | T16: 0 | U16: 0 | V16: 0 | W16: 0 | X16: 0 | Y16: 0 | Z16: 0 | AA16: 0 | AB16: 0 | AC16: 0 | AD16: 0 | AE16: 0 | AF16: 0 | AG16: 0 | AH16: 0 | AI16: 0 | AJ16: 0 | AK16: 0 | AL16: 0 | AM16: 0 | AN16: 0 | AO16: 0 | AP16: 0 | AQ16: 0
B17: Economique | C17: oSupTcsdSCA_REG_T100% | D17: oSupTcsdSCA_REG_T100% | F17: 0 | G17: 0 | H17: 0 | I17: 0 | J17: 0 | K17: 0 | L17: 0 | M17: 0 | N17: 0 | O17: 0 | P17: 0 | Q17: 0 | R17: 0 | S17: 0 | T17: 0 | U17: 0 | V17: 0 | W17: 0 | X17: 0 | Y17: 0 | Z17: 0 | AA17: 0 | AB17: 0 | AC17: 0 | AD17: 0 | AE17: 0 | AF17: 0 | AG17: 0 | AH17: 0 | AI17: 0 | AJ17: 0 | AK17: 0 | AL17: 0 | AM17: 0 | AN17: 0 | AO17: 0 | AP17: 0 | AQ17: 0
B18: Economique | C18: oSupSCA_PART_T100% | D18: oSupSCA_PART_T100% | F18: 0 | G18: 330 | H18: 0 | I18: 330 | J18: 0 | K18: 0 | L18: 0 | M18: 0 | N18: 0 | O18: 0 | P18: 0 | Q18: 0 | R18: 0 | S18: 0 | T18: 0 | U18: 0 | V18: 0 | W18: 0 | X18: 0 | Y18: 0 | Z18: 0 | AA18: 0 | AB18: 0 | AC18: 0 | AD18: 0 | AE18: 0 | AF18: 0 | AG18: 0 | AH18: 0 | AI18: 0 | AJ18: 0 | AK18: 0 | AL18: 0 | AM18: 0 | AN18: 0 | AO18: 0 | AP18: 0 | AQ18: 0
B19: Economique | C19: oSupSCA_REG_T100% | D19: oSupSCA_REG_T100% | F19: 0 | G19: 0 | H19: 0 | I19: 0 | J19: 0 | K19: 0 | L19: 0 | M19: 0 | N19: 0 | O19: 0 | P19: 0 | Q19: 0 | R19: 0 | S19: 0 | T19: 0 | U19: 0 | V19: 0 | W19: 0 | X19: 0 | Y19: 0 | Z19: 0 | AA19: 0 | AB19: 0 | AC19: 0 | AD19: 0 | AE19: 0 | AF19: 0 | AG19: 0 | AH19: 0 | AI19: 0 | AJ19: 0 | AK19: 0 | AL19: 0 | AM19: 0 | AN19: 0 | AO19: 0 | AP19: 0 | AQ19: 0
B20: Economique | C20: oSupSCA_PART | D20: oSupSCA_PART | F20: 0 | G20: 330 | H20: 0 | I20: 330 | J20: 0 | K20: 0 | L20: 0 | M20: 0 | N20: 0 | O20: 0 | P20: 0 | Q20: 0 | R20: 0 | S20: 0 | T20: 0 | U20: 0 | V20: 0 | W20: 0 | X20: 0 | Y20: 0 | Z20: 0 | AA20: 0 | AB20: 0 | AC20: 0 | AD20: 0 | AE20: 0 | AF20: 0 | AG20: 0 | AH20: 0 | AI20: 0 | AJ20: 0 | AK20: 0 | AL20: 0 | AM20: 0 | AN20: 0 | AO20: 0 | AP20: 0 | AQ20: 0
B21: Economique | C21: oSupSCA_REG | D21: oSupSCA_REG | F21: 0 | G21: 0 | H21: 0 | I21: 0 | J21: 0 | K21: 0 | L21: 0 | M21: 0 | N21: 0 | O21: 0 | P21: 0 | Q21: 0 | R21: 0 | S21: 0 | T21: 0 | U21: 0 | V21: 0 | W21: 0 | X21: 0 | Y21: 0 | Z21: 0 | AA21: 0 | AB21: 0 | AC21: 0 | AD21: 0 | AE21: 0 | AF21: 0 | AG21: 0 | AH21: 0 | AI21: 0 | AJ21: 0 | AK21: 0 | AL21: 0 | AM21: 0 | AN21: 0 | AO21: 0 | AP21: 0 | AQ21: 0
B22: Economique | C22: oSupActREG_T100% | D22: oSupActREG_T100% | F22: 0 | G22: 330 | H22: 0 | I22: 330 | J22: 0 | K22: 0 | L22: 0 | M22: 0 | N22: 0 | O22: 0 | P22: 0 | Q22: 0 | R22: 0 | S22: 0 | T22: 0 | U22: 0 | V22: 0 | W22: 0 | X22: 0 | Y22: 0 | Z22: 0 | AA22: 0 | AB22: 0 | AC22: 0 | AD22: 0 | AE22: 0 | AF22: 0 | AG22: 0 | AH22: 0 | AI22: 0 | AJ22: 0 | AK22: 0 | AL22: 0 | AM22: 0 | AN22: 0 | AO22: 0 | AP22: 0 | AQ22: 0
B23: Economique | C23: oSupREG_T100% | D23: oSupREG_T100% | F23: 0 | G23: 330 | H23: 0 | I23: 330 | J23: 0 | K23: 0 | L23: 0 | M23: 0 | N23: 0 | O23: 0 | P23: 0 | Q23: 0 | R23: 0 | S23: 0 | T23: 0 | U23: 0 | V23: 0 | W23: 0 | X23: 0 | Y23: 0 | Z23: 0 | AA23: 0 | AB23: 0 | AC23: 0 | AD23: 0 | AE23: 0 | AF23: 0 | AG23: 0 | AH23: 0 | AI23: 0 | AJ23: 0 | AK23: 0 | AL23: 0 | AM23: 0 | AN23: 0 | AO23: 0 | AP23: 0 | AQ23: 0
B24: Economique | C24: oSupREG | D24: oSupREG | F24: 0 | G24: 330 | H24: 0 | I24: 330 | J24: 0 | K24: 0 | L24: 0 | M24: 0 | N24: 0 | O24: 0 | P24: 0 | Q24: 0 | R24: 0 | S24: 0 | T24: 0 | U24: 0 | V24: 0 | W24: 0 | X24: 0 | Y24: 0 | Z24: 0 | AA24: 0 | AB24: 0 | AC24: 0 | AD24: 0 | AE24: 0 | AF24: 0 | AG24: 0 | AH24: 0 | AI24: 0 | AJ24: 0 | AK24: 0 | AL24: 0 | AM24: 0 | AN24: 0 | AO24: 0 | AP24: 0 | AQ24: 0
B25: Economique | C25: oSupActCPIRL_FIN_T100% | D25: oSupActCPIRL_FIN_T100% | F25: 0 | G25: 2191.44 | H25: 0 | I25: 0 | J25: 0 | K25: 0 | L25: 0 | M25: 0 | N25: 0 | O25: 0 | P25: 250 | Q25: 232.82 | R25: 500.4 | S25: 741.4 | T25: 779.41 | U25: 1065.13 | V25: 1225.31 | W25: 1497.96 | X25: 1622.23 | Y25: 1863.43 | Z25: 2191.44 | AA25: 1851.88 | AB25: 1528.21 | AC25: 1216.13 | AD25: 911.37 | AE25: 609.62 | AF25: 847.08 | AG25: 642.75 | AH25: 636.09 | AI25: 650.21 | AJ25: 658.31 | AK25: 658.68 | AL25: 216.44 | AM25: 0 | AN25: 344.924 | AO25: 1513.888889 | AP25: 704.668 | AQ25: 772.2862069
B26: Economique | C26: oSupActCPIRL_INI_T100% | D26: oSupActCPIRL_INI_T100% | F26: 0 | G26: 3610 | H26: 0 | I26: 3610 | J26: 1630 | K26: 1630 | L26: 1630 | M26: 1630 | N26: 1630 | O26: 1000 | P26: 850 | Q26: 977.18 | R26: 830.6 | S26: 722.7 | T26: 831.1 | U26: 706.44 | V26: 600.47 | W26: 510.4 | X26: 586.96 | Y26: 566.68 | Z26: 481.68 | AA26: 553.93 | AB26: 637.02 | AC26: 732.58 | AD26: 842.46 | AE26: 968.83 | AF26: 823.51 | AG26: 860.78 | AH26: 989.89 | AI26: 1138.38 | AJ26: 1309.13 | AK26: 1505.5 | AL26: 1731.33 | AM26: 1630 | AN26: 876.096 | AO26: 608.2977778 | AP26: 1090.239 | AQ26: 996.812069
B27: Economique | C27: oSupCPIRL_FIN_T100% | D27: oSupCPIRL_FIN_T100% | F27: 0 | G27: 2191.44 | H27: 0 | I27: 0 | J27: 0 | K27: 0 | L27: 0 | M27: 0 | N27: 0 | O27: 0 | P27: 250 | Q27: 232.82 | R27: 500.4 | S27: 741.4 | T27: 779.41 | U27: 1065.13 | V27: 1225.31 | W27: 1497.96 | X27: 1622.23 | Y27: 1863.43 | Z27: 2191.44 | AA27: 1851.88 | AB27: 1528.21 | AC27: 1216.13 | AD27: 911.37 | AE27: 609.62 | AF27: 847.08 | AG27: 642.75 | AH27: 636.09 | AI27: 650.21 | AJ27: 658.31 | AK27: 658.68 | AL27: 216.44 | AM27: 0 | AN27: 344.924 | AO27: 1513.888889 | AP27: 704.668 | AQ27: 772.2862069
B28: Economique | C28: oSupCPIRL_INI_T100% | D28: oSupCPIRL_INI_T100% | F28: 0 | G28: 3610 | H28: 0 | I28: 3610 | J28: 1630 | K28: 1630 | L28: 1630 | M28: 1630 | N28: 1630 | O28: 1000 | P28: 850 | Q28: 977.18 | R28: 830.6 | S28: 722.7 | T28: 831.1 | U28: 706.44 | V28: 600.47 | W28: 510.4 | X28: 586.96 | Y28: 566.68 | Z28: 481.68 | AA28: 553.93 | AB28: 637.02 | AC28: 732.58 | AD28: 842.46 | AE28: 968.83 | AF28: 823.51 | AG28: 860.78 | AH28: 989.89 | AI28: 1138.38 | AJ28: 1309.13 | AK28: 1505.5 | AL28: 1731.33 | AM28: 1630 | AN28: 876.096 | AO28: 608.2977778 | AP28: 1090.239 | AQ28: 996.812069
B29: Economique | C29: oSupCPIRL_FIN | D29: oSupCPIRL_FIN | F29: 0 | G29: 2191.44 | H29: 0 | I29: 0 | J29: 0 | K29: 0 | L29: 0 | M29: 0 | N29: 0 | O29: 0 | P29: 250 | Q29: 232.82 | R29: 500.4 | S29: 741.4 | T29: 779.41 | U29: 1065.13 | V29: 1225.31 | W29: 1497.96 | X29: 1622.23 | Y29: 1863.43 | Z29: 2191.44 | AA29: 1851.88 | AB29: 1528.21 | AC29: 1216.13 | AD29: 911.37 | AE29: 609.62 | AF29: 847.08 | AG29: 642.75 | AH29: 636.09 | AI29: 650.21 | AJ29: 658.31 | AK29: 658.68 | AL29: 216.44 | AM29: 0 | AN29: 344.924 | AO29: 1513.888889 | AP29: 704.668 | AQ29: 772.2862069
B30: Economique | C30: oSupCPIRL_INI | D30: oSupCPIRL_INI | F30: 0 | G30: 3610 | H30: 0 | I30: 3610 | J30: 1630 | K30: 1630 | L30: 1630 | M30: 1630 | N30: 1630 | O30: 1000 | P30: 850 | Q30: 977.18 | R30: 830.6 | S30: 722.7 | T30: 831.1 | U30: 706.44 | V30: 600.47 | W30: 510.4 | X30: 586.96 | Y30: 566.68 | Z30: 481.68 | AA30: 553.93 | AB30: 637.02 | AC30: 732.58 | AD30: 842.46 | AE30: 968.83 | AF30: 823.51 | AG30: 860.78 | AH30: 989.89 | AI30: 1138.38 | AJ30: 1309.13 | AK30: 1505.5 | AL30: 1731.33 | AM30: 1630 | AN30: 876.096 | AO30: 608.2977778 | AP30: 1090.239 | AQ30: 996.812069
B31: Economique | C31: oSupActCT_T100% | D31: oSupActCT_T100% | F31: 0 | G31: 13388.39 | H31: 0 | I31: 13388.39 | J31: 10231.05 | K31: 9902.23 | L31: 10309.05 | M31: 10261.42 | N31: 9435.51 | O31: 10377.62 | P31: 10076.42 | Q31: 10010.83 | R31: 9998.37 | S31: 9063.13 | T31: 9246.62 | U31: 9097.97 | V31: 10116.59 | W31: 9059.14 | X31: 9521.87 | Y31: 8734.52 | Z31: 8706.34 | AA31: 8752.76 | AB31: 8229.75 | AC31: 10145.78 | AD31: 9888.66 | AE31: 9600.21 | AF31: 8868.94 | AG31: 10007.4 | AH31: 10959.68 | AI31: 8890.66 | AJ31: 9258.61 | AK31: 12478.35 | AL31: 10038.3 | AM31: 10027.852 | AN31: 9905.274 | AO31: 9051.728889 | AP31: 10013.659 | AQ31: 9698.888966
B32: Economique | C32: oSupCT_T100% | D32: oSupCT_T100% | F32: 0 | G32: 13388.39 | H32: 0 | I32: 13388.39 | J32: 10231.05 | K32: 9902.23 | L32: 10309.05 | M32: 10261.42 | N32: 9435.51 | O32: 10377.62 | P32: 10076.42 | Q32: 10010.83 | R32: 9998.37 | S32: 9063.13 | T32: 9246.62 | U32: 9097.97 | V32: 10116.59 | W32: 9059.14 | X32: 9521.87 | Y32: 8734.52 | Z32: 8706.34 | AA32: 8752.76 | AB32: 8229.75 | AC32: 10145.78 | AD32: 9888.66 | AE32: 9600.21 | AF32: 8868.94 | AG32: 10007.4 | AH32: 10959.68 | AI32: 8890.66 | AJ32: 9258.61 | AK32: 12478.35 | AL32: 10038.3 | AM32: 10027.852 | AN32: 9905.274 | AO32: 9051.728889 | AP32: 10013.659 | AQ32: 9698.888966
B33: Economique | C33: oSupCT | D33: oSupCT | F33: 0 | G33: 13388.39 | H33: 0 | I33: 13388.39 | J33: 10231.05 | K33: 9902.23 | L33: 10309.05 | M33: 10261.42 | N33: 9435.51 | O33: 10377.62 | P33: 10076.42 | Q33: 10010.83 | R33: 9998.37 | S33: 9063.13 | T33: 9246.62 | U33: 9097.97 | V33: 10116.59 | W33: 9059.14 | X33: 9521.87 | Y33: 8734.52 | Z33: 8706.34 | AA33: 8752.76 | AB33: 8229.75 | AC33: 10145.78 | AD33: 9888.66 | AE33: 9600.21 | AF33: 8868.94 | AG33: 10007.4 | AH33: 10959.68 | AI33: 8890.66 | AJ33: 9258.61 | AK33: 12478.35 | AL33: 10038.3 | AM33: 10027.852 | AN33: 9905.274 | AO33: 9051.728889 | AP33: 10013.659 | AQ33: 9698.888966
B34: Economique | C34: oSupActPL_SEPM_E_T100% | D34: oSupActPL_SEPM_E_T100% | F34: 0 | G34: 0 | H34: 0 | I34: 0 | J34: 0 | K34: 0 | L34: 0 | M34: 0 | N34: 0 | O34: 0 | P34: 0 | Q34: 0 | R34: 0 | S34: 0 | T34: 0 | U34: 0 | V34: 0 | W34: 0 | X34: 0 | Y34: 0 | Z34: 0 | AA34: 0 | AB34: 0 | AC34: 0 | AD34: 0 | AE34: 0 | AF34: 0 | AG34: 0 | AH34: 0 | AI34: 0 | AJ34: 0 | AK34: 0 | AL34: 0 | AM34: 0 | AN34: 0 | AO34: 0 | AP34: 0 | AQ34: 0
B35: Economique | C35: oSupActPL_SEPM_I_T100% | D35: oSupActPL_SEPM_I_T100% | F35: 0 | G35: 0 | H35: 0 | I35: 0 | J35: 0 | K35: 0 | L35: 0 | M35: 0 | N35: 0 | O35: 0 | P35: 0 | Q35: 0 | R35: 0 | S35: 0 | T35: 0 | U35: 0 | V35: 0 | W35: 0 | X35: 0 | Y35: 0 | Z35: 0 | AA35: 0 | AB35: 0 | AC35: 0 | AD35: 0 | AE35: 0 | AF35: 0 | AG35: 0 | AH35: 0 | AI35: 0 | AJ35: 0 | AK35: 0 | AL35: 0 | AM35: 0 | AN35: 0 | AO35: 0 | AP35: 0 | AQ35: 0
B36: Economique | C36: oSupPL_SEPM_E_T100% | D36: oSupPL_SEPM_E_T100% | F36: 0 | G36: 0 | H36: 0 | I36: 0 | J36: 0 | K36: 0 | L36: 0 | M36: 0 | N36: 0 | O36: 0 | P36: 0 | Q36: 0 | R36: 0 | S36: 0 | T36: 0 | U36: 0 | V36: 0 | W36: 0 | X36: 0 | Y36: 0 | Z36: 0 | AA36: 0 | AB36: 0 | AC36: 0 | AD36: 0 | AE36: 0 | AF36: 0 | AG36: 0 | AH36: 0 | AI36: 0 | AJ36: 0 | AK36: 0 | AL36: 0 | AM36: 0 | AN36: 0 | AO36: 0 | AP36: 0 | AQ36: 0
B37: Economique | C37: oSupPL_SEPM_I_T100% | D37: oSupPL_SEPM_I_T100% | F37: 0 | G37: 0 | H37: 0 | I37: 0 | J37: 0 | K37: 0 | L37: 0 | M37: 0 | N37: 0 | O37: 0 | P37: 0 | Q37: 0 | R37: 0 | S37: 0 | T37: 0 | U37: 0 | V37: 0 | W37: 0 | X37: 0 | Y37: 0 | Z37: 0 | AA37: 0 | AB37: 0 | AC37: 0 | AD37: 0 | AE37: 0 | AF37: 0 | AG37: 0 | AH37: 0 | AI37: 0 | AJ37: 0 | AK37: 0 | AL37: 0 | AM37: 0 | AN37: 0 | AO37: 0 | AP37: 0 | AQ37: 0
B38: Economique | C38: oSupPL_SEPM_E | D38: oSupPL_SEPM_E | F38: 0 | G38: 0 | H38: 0 | I38: 0 | J38: 0 | K38: 0 | L38: 0 | M38: 0 | N38: 0 | O38: 0 | P38: 0 | Q38: 0 | R38: 0 | S38: 0 | T38: 0 | U38: 0 | V38: 0 | W38: 0 | X38: 0 | Y38: 0 | Z38: 0 | AA38: 0 | AB38: 0 | AC38: 0 | AD38: 0 | AE38: 0 | AF38: 0 | AG38: 0 | AH38: 0 | AI38: 0 | AJ38: 0 | AK38: 0 | AL38: 0 | AM38: 0 | AN38: 0 | AO38: 0 | AP38: 0 | AQ38: 0
B39: Economique | C39: oSupPL_SEPM_I | D39: oSupPL_SEPM_I | F39: 0 | G39: 0 | H39: 0 | I39: 0 | J39: 0 | K39: 0 | L39: 0 | M39: 0 | N39: 0 | O39: 0 | P39: 0 | Q39: 0 | R39: 0 | S39: 0 | T39: 0 | U39: 0 | V39: 0 | W39: 0 | X39: 0 | Y39: 0 | Z39: 0 | AA39: 0 | AB39: 0 | AC39: 0 | AD39: 0 | AE39: 0 | AF39: 0 | AG39: 0 | AH39: 0 | AI39: 0 | AJ39: 0 | AK39: 0 | AL39: 0 | AM39: 0 | AN39: 0 | AO39: 0 | AP39: 0 | AQ39: 0
B40: Economique | C40: oSupActEC_SEPM_T100% | D40: oSupActEC_SEPM_T100% | F40: 0 | G40: 0 | H40: 0 | I40: 0 | J40: 0 | K40: 0 | L40: 0 | M40: 0 | N40: 0 | O40: 0 | P40: 0 | Q40: 0 | R40: 0 | S40: 0 | T40: 0 | U40: 0 | V40: 0 | W40: 0 | X40: 0 | Y40: 0 | Z40: 0 | AA40: 0 | AB40: 0 | AC40: 0 | AD40: 0 | AE40: 0 | AF40: 0 | AG40: 0 | AH40: 0 | AI40: 0 | AJ40: 0 | AK40: 0 | AL40: 0 | AM40: 0 | AN40: 0 | AO40: 0 | AP40: 0 | AQ40: 0
B41: Economique | C41: oSupEC_SEPM_T100% | D41: oSupEC_SEPM_T100% | F41: 0 | G41: 0 | H41: 0 | I41: 0 | J41: 0 | K41: 0 | L41: 0 | M41: 0 | N41: 0 | O41: 0 | P41: 0 | Q41: 0 | R41: 0 | S41: 0 | T41: 0 | U41: 0 | V41: 0 | W41: 0 | X41: 0 | Y41: 0 | Z41: 0 | AA41: 0 | AB41: 0 | AC41: 0 | AD41: 0 | AE41: 0 | AF41: 0 | AG41: 0 | AH41: 0 | AI41: 0 | AJ41: 0 | AK41: 0 | AL41: 0 | AM41: 0 | AN41: 0 | AO41: 0 | AP41: 0 | AQ41: 0
B42: Economique | C42: oSupEC_SEPM | D42: oSupEC_SEPM | F42: 0 | G42: 0 | H42: 0 | I42: 0 | J42: 0 | K42: 0 | L42: 0 | M42: 0 | N42: 0 | O42: 0 | P42: 0 | Q42: 0 | R42: 0 | S42: 0 | T42: 0 | U42: 0 | V42: 0 | W42: 0 | X42: 0 | Y42: 0 | Z42: 0 | AA42: 0 | AB42: 0 | AC42: 0 | AD42: 0 | AE42: 0 | AF42: 0 | AG42: 0 | AH42: 0 | AI42: 0 | AJ42: 0 | AK42: 0 | AL42: 0 | AM42: 0 | AN42: 0 | AO42: 0 | AP42: 0 | AQ42: 0
B43: Economique | C43: oSupActNETT_T100% | D43: oSupActNETT_T100% | F43: 0 | G43: 0 | H43: 0 | I43: 0 | J43: 0 | K43: 0 | L43: 0 | M43: 0 | N43: 0 | O43: 0 | P43: 0 | Q43: 0 | R43: 0 | S43: 0 | T43: 0 | U43: 0 | V43: 0 | W43: 0 | X43: 0 | Y43: 0 | Z43: 0 | AA43: 0 | AB43: 0 | AC43: 0 | AD43: 0 | AE43: 0 | AF43: 0 | AG43: 0 | AH43: 0 | AI43: 0 | AJ43: 0 | AK43: 0 | AL43: 0 | AM43: 0 | AN43: 0 | AO43: 0 | AP43: 0 | AQ43: 0
B44: Economique | C44: oSupTcadNETT_T100% | D44: oSupTcadNETT_T100% | F44: 0 | G44: 0 | H44: 0 | I44: 0 | J44: 0 | K44: 0 | L44: 0 | M44: 0 | N44: 0 | O44: 0 | P44: 0 | Q44: 0 | R44: 0 | S44: 0 | T44: 0 | U44: 0 | V44: 0 | W44: 0 | X44: 0 | Y44: 0 | Z44: 0 | AA44: 0 | AB44: 0 | AC44: 0 | AD44: 0 | AE44: 0 | AF44: 0 | AG44: 0 | AH44: 0 | AI44: 0 | AJ44: 0 | AK44: 0 | AL44: 0 | AM44: 0 | AN44: 0 | AO44: 0 | AP44: 0 | AQ44: 0
B45: Economique | C45: oSupNETT_T100% | D45: oSupNETT_T100% | F45: 0 | G45: 0 | H45: 0 | I45: 0 | J45: 0 | K45: 0 | L45: 0 | M45: 0 | N45: 0 | O45: 0 | P45: 0 | Q45: 0 | R45: 0 | S45: 0 | T45: 0 | U45: 0 | V45: 0 | W45: 0 | X45: 0 | Y45: 0 | Z45: 0 | AA45: 0 | AB45: 0 | AC45: 0 | AD45: 0 | AE45: 0 | AF45: 0 | AG45: 0 | AH45: 0 | AI45: 0 | AJ45: 0 | AK45: 0 | AL45: 0 | AM45: 0 | AN45: 0 | AO45: 0 | AP45: 0 | AQ45: 0
B46: Economique | C46: oSupNETT | D46: oSupNETT | F46: 0 | G46: 0 | H46: 0 | I46: 0 | J46: 0 | K46: 0 | L46: 0 | M46: 0 | N46: 0 | O46: 0 | P46: 0 | Q46: 0 | R46: 0 | S46: 0 | T46: 0 | U46: 0 | V46: 0 | W46: 0 | X46: 0 | Y46: 0 | Z46: 0 | AA46: 0 | AB46: 0 | AC46: 0 | AD46: 0 | AE46: 0 | AF46: 0 | AG46: 0 | AH46: 0 | AI46: 0 | AJ46: 0 | AK46: 0 | AL46: 0 | AM46: 0 | AN46: 0 | AO46: 0 | AP46: 0 | AQ46: 0
B47: Economique | C47: oTauxDEG | D47: oTauxDEG | F47: 0 | G47: 422400 | H47: 0 | I47: 422400 | J47: 0 | K47: 0 | L47: 0 | M47: 0 | N47: 0 | O47: 0 | P47: 0 | Q47: 0 | R47: 0 | S47: 0 | T47: 0 | U47: 0 | V47: 0 | W47: 0 | X47: 0 | Y47: 0 | Z47: 0 | AA47: 0 | AB47: 0 | AC47: 0 | AD47: 0 | AE47: 0 | AF47: 0 | AG47: 0 | AH47: 0 | AI47: 0 | AJ47: 0 | AK47: 0 | AL47: 0 | AM47: 0 | AN47: 0 | AO47: 0 | AP47: 0 | AQ47: 0
B48: Economique | C48: oTauxSCA | D48: oTauxSCA | F48: 0 | G48: 184800 | H48: 0 | I48: 184800 | J48: 0 | K48: 0 | L48: 0 | M48: 0 | N48: 0 | O48: 0 | P48: 0 | Q48: 0 | R48: 0 | S48: 0 | T48: 0 | U48: 0 | V48: 0 | W48: 0 | X48: 0 | Y48: 0 | Z48: 0 | AA48: 0 | AB48: 0 | AC48: 0 | AD48: 0 | AE48: 0 | AF48: 0 | AG48: 0 | AH48: 0 | AI48: 0 | AJ48: 0 | AK48: 0 | AL48: 0 | AM48: 0 | AN48: 0 | AO48: 0 | AP48: 0 | AQ48: 0
B49: Economique | C49: oTauxREG | D49: oTauxREG | F49: 0 | G49: 138600 | H49: 0 | I49: 138600 | J49: 0 | K49: 0 | L49: 0 | M49: 0 | N49: 0 | O49: 0 | P49: 0 | Q49: 0 | R49: 0 | S49: 0 | T49: 0 | U49: 0 | V49: 0 | W49: 0 | X49: 0 | Y49: 0 | Z49: 0 | AA49: 0 | AB49: 0 | AC49: 0 | AD49: 0 | AE49: 0 | AF49: 0 | AG49: 0 | AH49: 0 | AI49: 0 | AJ49: 0 | AK49: 0 | AL49: 0 | AM49: 0 | AN49: 0 | AO49: 0 | AP49: 0 | AQ49: 0
B50: Economique | C50: oTauxCPI | D50: oTauxCPI | F50: 0 | G50: 1083000 | H50: 0 | I50: 1083000 | J50: 489000 | K50: 489000 | L50: 489000 | M50: 489000 | N50: 489000 | O50: 300000 | P50: 255000 | Q50: 293154.12 | R50: 249181 | S50: 216809 | T50: 249330.35 | U50: 211930.8 | V50: 180141.18 | W50: 153120 | X50: 176088 | Y50: 170005.12 | Z50: 144504.35 | AA50: 166180 | AB50: 191107 | AC50: 219773.05 | AD50: 252739.01 | AE50: 290649.86 | AF50: 247052.38 | AG50: 258232.88 | AH50: 296967.82 | AI50: 341512.99 | AJ50: 392739.94 | AK50: 451650.93 | AL50: 519398.57 | AM50: 489000 | AN50: 262828.824 | AO50: 182489.6444 | AP50: 327071.743 | AQ50: 299043.7362
B51: Economique | C51: oTauxCT | D51: oTauxCT | F51: 0 | G51: 0 | H51: 0 | I51: 0 | J51: 0 | K51: 0 | L51: 0 | M51: 0 | N51: 0 | O51: 0 | P51: 0 | Q51: 0 | R51: 0 | S51: 0 | T51: 0 | U51: 0 | V51: 0 | W51: 0 | X51: 0 | Y51: 0 | Z51: 0 | AA51: 0 | AB51: 0 | AC51: 0 | AD51: 0 | AE51: 0 | AF51: 0 | AG51: 0 | AH51: 0 | AI51: 0 | AJ51: 0 | AK51: 0 | AL51: 0 | AM51: 0 | AN51: 0 | AO51: 0 | AP51: 0 | AQ51: 0
B52: Economique | C52: oTauxPL | D52: oTauxPL | F52: 0 | G52: 0 | H52: 0 | I52: 0 | J52: 0 | K52: 0 | L52: 0 | M52: 0 | N52: 0 | O52: 0 | P52: 0 | Q52: 0 | R52: 0 | S52: 0 | T52: 0 | U52: 0 | V52: 0 | W52: 0 | X52: 0 | Y52: 0 | Z52: 0 | AA52: 0 | AB52: 0 | AC52: 0 | AD52: 0 | AE52: 0 | AF52: 0 | AG52: 0 | AH52: 0 | AI52: 0 | AJ52: 0 | AK52: 0 | AL52: 0 | AM52: 0 | AN52: 0 | AO52: 0 | AP52: 0 | AQ52: 0
B53: Economique | C53: oTauxEC | D53: oTauxEC | F53: 0 | G53: 0 | H53: 0 | I53: 0 | J53: 0 | K53: 0 | L53: 0 | M53: 0 | N53: 0 | O53: 0 | P53: 0 | Q53: 0 | R53: 0 | S53: 0 | T53: 0 | U53: 0 | V53: 0 | W53: 0 | X53: 0 | Y53: 0 | Z53: 0 | AA53: 0 | AB53: 0 | AC53: 0 | AD53: 0 | AE53: 0 | AF53: 0 | AG53: 0 | AH53: 0 | AI53: 0 | AJ53: 0 | AK53: 0 | AL53: 0 | AM53: 0 | AN53: 0 | AO53: 0 | AP53: 0 | AQ53: 0
B54: Economique | C54: oTauxNET | D54: oTauxNET | F54: 0 | G54: 0 | H54: 0 | I54: 0 | J54: 0 | K54: 0 | L54: 0 | M54: 0 | N54: 0 | O54: 0 | P54: 0 | Q54: 0 | R54: 0 | S54: 0 | T54: 0 | U54: 0 | V54: 0 | W54: 0 | X54: 0 | Y54: 0 | Z54: 0 | AA54: 0 | AB54: 0 | AC54: 0 | AD54: 0 | AE54: 0 | AF54: 0 | AG54: 0 | AH54: 0 | AI54: 0 | AJ54: 0 | AK54: 0 | AL54: 0 | AM54: 0 | AN54: 0 | AO54: 0 | AP54: 0 | AQ54: 0
B55: Economique | C55: oSupRealDEG | D55: oSupRealDEG | F55: 0 | G55: 330 | H55: 0 | I55: 330 | J55: 0 | K55: 0 | L55: 0 | M55: 0 | N55: 0 | O55: 0 | P55: 0 | Q55: 0 | R55: 0 | S55: 0 | T55: 0 | U55: 0 | V55: 0 | W55: 0 | X55: 0 | Y55: 0 | Z55: 0 | AA55: 0 | AB55: 0 | AC55: 0 | AD55: 0 | AE55: 0 | AF55: 0 | AG55: 0 | AH55: 0 | AI55: 0 | AJ55: 0 | AK55: 0 | AL55: 0 | AM55: 0 | AN55: 0 | AO55: 0 | AP55: 0 | AQ55: 0
B56: Economique | C56: oSupRealSCA | D56: oSupRealSCA | F56: 0 | G56: 330 | H56: 0 | I56: 330 | J56: 0 | K56: 0 | L56: 0 | M56: 0 | N56: 0 | O56: 0 | P56: 0 | Q56: 0 | R56: 0 | S56: 0 | T56: 0 | U56: 0 | V56: 0 | W56: 0 | X56: 0 | Y56: 0 | Z56: 0 | AA56: 0 | AB56: 0 | AC56: 0 | AD56: 0 | AE56: 0 | AF56: 0 | AG56: 0 | AH56: 0 | AI56: 0 | AJ56: 0 | AK56: 0 | AL56: 0 | AM56: 0 | AN56: 0 | AO56: 0 | AP56: 0 | AQ56: 0
B57: Economique | C57: oSupRealREG | D57: oSupRealREG | F57: 0 | G57: 330 | H57: 0 | I57: 330 | J57: 0 | K57: 0 | L57: 0 | M57: 0 | N57: 0 | O57: 0 | P57: 0 | Q57: 0 | R57: 0 | S57: 0 | T57: 0 | U57: 0 | V57: 0 | W57: 0 | X57: 0 | Y57: 0 | Z57: 0 | AA57: 0 | AB57: 0 | AC57: 0 | AD57: 0 | AE57: 0 | AF57: 0 | AG57: 0 | AH57: 0 | AI57: 0 | AJ57: 0 | AK57: 0 | AL57: 0 | AM57: 0 | AN57: 0 | AO57: 0 | AP57: 0 | AQ57: 0
B58: Economique | C58: oSupRealCPI | D58: oSupRealCPI | F58: 0 | G58: 3610 | H58: 0 | I58: 3610 | J58: 1630 | K58: 1630 | L58: 1630 | M58: 1630 | N58: 1630 | O58: 1000 | P58: 1100 | Q58: 1210 | R58: 1331 | S58: 1464.1 | T58: 1610.51 | U58: 1771.56 | V58: 1825.78 | W58: 2008.36 | X58: 2209.19 | Y58: 2430.11 | Z58: 2673.12 | AA58: 2405.81 | AB58: 2165.23 | AC58: 1948.71 | AD58: 1753.84 | AE58: 1578.45 | AF58: 1670.59 | AG58: 1503.53 | AH58: 1625.98 | AI58: 1788.58 | AJ58: 1967.44 | AK58: 2164.19 | AL58: 1947.77 | AM58: 1630 | AN58: 1221.02 | AO58: 2122.185556 | AP58: 1794.908 | AQ58: 1769.098276
B59: Economique | C59: oSupRealCT | D59: oSupRealCT | F59: 0 | G59: 13388.39 | H59: 0 | I59: 13388.39 | J59: 10231.05 | K59: 9902.23 | L59: 10309.05 | M59: 10261.42 | N59: 9435.51 | O59: 10377.62 | P59: 10076.42 | Q59: 10010.83 | R59: 9998.37 | S59: 9063.13 | T59: 9246.62 | U59: 9097.97 | V59: 10116.59 | W59: 9059.14 | X59: 9521.87 | Y59: 8734.52 | Z59: 8706.34 | AA59: 8752.76 | AB59: 8229.75 | AC59: 10145.78 | AD59: 9888.66 | AE59: 9600.21 | AF59: 8868.94 | AG59: 10007.4 | AH59: 10959.68 | AI59: 8890.66 | AJ59: 9258.61 | AK59: 12478.35 | AL59: 10038.3 | AM59: 10027.852 | AN59: 9905.274 | AO59: 9051.728889 | AP59: 10013.659 | AQ59: 9698.888966
B60: Economique | C60: oSupRealPL | D60: oSupRealPL | F60: 0 | G60: 0 | H60: 0 | I60: 0 | J60: 0 | K60: 0 | L60: 0 | M60: 0 | N60: 0 | O60: 0 | P60: 0 | Q60: 0 | R60: 0 | S60: 0 | T60: 0 | U60: 0 | V60: 0 | W60: 0 | X60: 0 | Y60: 0 | Z60: 0 | AA60: 0 | AB60: 0 | AC60: 0 | AD60: 0 | AE60: 0 | AF60: 0 | AG60: 0 | AH60: 0 | AI60: 0 | AJ60: 0 | AK60: 0 | AL60: 0 | AM60: 0 | AN60: 0 | AO60: 0 | AP60: 0 | AQ60: 0
B61: Economique | C61: oSupRealEC | D61: oSupRealEC | F61: 0 | G61: 0 | H61: 0 | I61: 0 | J61: 0 | K61: 0 | L61: 0 | M61: 0 | N61: 0 | O61: 0 | P61: 0 | Q61: 0 | R61: 0 | S61: 0 | T61: 0 | U61: 0 | V61: 0 | W61: 0 | X61: 0 | Y61: 0 | Z61: 0 | AA61: 0 | AB61: 0 | AC61: 0 | AD61: 0 | AE61: 0 | AF61: 0 | AG61: 0 | AH61: 0 | AI61: 0 | AJ61: 0 | AK61: 0 | AL61: 0 | AM61: 0 | AN61: 0 | AO61: 0 | AP61: 0 | AQ61: 0
B62: Economique | C62: oSupRealNET | D62: oSupRealNET | F62: 0 | G62: 0 | H62: 0 | I62: 0 | J62: 0 | K62: 0 | L62: 0 | M62: 0 | N62: 0 | O62: 0 | P62: 0 | Q62: 0 | R62: 0 | S62: 0 | T62: 0 | U62: 0 | V62: 0 | W62: 0 | X62: 0 | Y62: 0 | Z62: 0 | AA62: 0 | AB62: 0 | AC62: 0 | AD62: 0 | AE62: 0 | AF62: 0 | AG62: 0 | AH62: 0 | AI62: 0 | AJ62: 0 | AK62: 0 | AL62: 0 | AM62: 0 | AN62: 0 | AO62: 0 | AP62: 0 | AQ62: 0
B63: Economique | C63: oCoutProdPlants | D63: oCoutProdPlants | F63: 0 | G63: 0 | H63: 0 | I63: 0 | J63: 0 | K63: 0 | L63: 0 | M63: 0 | N63: 0 | O63: 0 | P63: 0 | Q63: 0 | R63: 0 | S63: 0 | T63: 0 | U63: 0 | V63: 0 | W63: 0 | X63: 0 | Y63: 0 | Z63: 0 | AA63: 0 | AB63: 0 | AC63: 0 | AD63: 0 | AE63: 0 | AF63: 0 | AG63: 0 | AH63: 0 | AI63: 0 | AJ63: 0 | AK63: 0 | AL63: 0 | AM63: 0 | AN63: 0 | AO63: 0 | AP63: 0 | AQ63: 0
B64: Economique | C64: oCoutTransPlants | D64: oCoutTransPlants | F64: 0 | G64: 0 | H64: 0 | I64: 0 | J64: 0 | K64: 0 | L64: 0 | M64: 0 | N64: 0 | O64: 0 | P64: 0 | Q64: 0 | R64: 0 | S64: 0 | T64: 0 | U64: 0 | V64: 0 | W64: 0 | X64: 0 | Y64: 0 | Z64: 0 | AA64: 0 | AB64: 0 | AC64: 0 | AD64: 0 | AE64: 0 | AF64: 0 | AG64: 0 | AH64: 0 | AI64: 0 | AJ64: 0 | AK64: 0 | AL64: 0 | AM64: 0 | AN64: 0 | AO64: 0 | AP64: 0 | AQ64: 0
B65: Economique | C65: o$InvestisTS | D65: o$InvestisTS | F65: 0 | G65: 1828800 | H65: 0 | I65: 1828800 | J65: 489000 | K65: 489000 | L65: 489000 | M65: 489000 | N65: 489000 | O65: 300000 | P65: 255000 | Q65: 293154.12 | R65: 249181 | S65: 216809 | T65: 249330.35 | U65: 211930.8 | V65: 180141.18 | W65: 153120 | X65: 176088 | Y65: 170005.12 | Z65: 144504.35 | AA65: 166180 | AB65: 191107 | AC65: 219773.05 | AD65: 252739.01 | AE65: 290649.86 | AF65: 247052.38 | AG65: 258232.88 | AH65: 296967.82 | AI65: 341512.99 | AJ65: 392739.94 | AK65: 451650.93 | AL65: 519398.57 | AM65: 489000 | AN65: 262828.824 | AO65: 182489.6444 | AP65: 327071.743 | AQ65: 299043.7362
B66: Economique | C66: oTauxREGAPAR | D66: oTauxREGAPAR | F66: 0 | G66: 1083000 | H66: 0 | I66: 1083000 | J66: 489000 | K66: 489000 | L66: 489000 | M66: 489000 | N66: 489000 | O66: 300000 | P66: 255000 | Q66: 293154.12 | R66: 249181 | S66: 216809 | T66: 249330.35 | U66: 211930.8 | V66: 180141.18 | W66: 153120 | X66: 176088 | Y66: 170005.12 | Z66: 144504.35 | AA66: 166180 | AB66: 191107 | AC66: 219773.05 | AD66: 252739.01 | AE66: 290649.86 | AF66: 247052.38 | AG66: 258232.88 | AH66: 296967.82 | AI66: 341512.99 | AJ66: 392739.94 | AK66: 451650.93 | AL66: 519398.57 | AM66: 489000 | AN66: 262828.824 | AO66: 182489.6444 | AP66: 327071.743 | AQ66: 299043.7362
B67: Economique | C67: oTauxREGAEDU | D67: oTauxREGAEDU | F67: 0 | G67: 422400 | H67: 0 | I67: 422400 | J67: 0 | K67: 0 | L67: 0 | M67: 0 | N67: 0 | O67: 0 | P67: 0 | Q67: 0 | R67: 0 | S67: 0 | T67: 0 | U67: 0 | V67: 0 | W67: 0 | X67: 0 | Y67: 0 | Z67: 0 | AA67: 0 | AB67: 0 | AC67: 0 | AD67: 0 | AE67: 0 | AF67: 0 | AG67: 0 | AH67: 0 | AI67: 0 | AJ67: 0 | AK67: 0 | AL67: 0 | AM67: 0 | AN67: 0 | AO67: 0 | AP67: 0 | AQ67: 0
B68: Economique | C68: oTauxREGAREG | D68: oTauxREGAREG | F68: 0 | G68: 138600 | H68: 0 | I68: 138600 | J68: 0 | K68: 0 | L68: 0 | M68: 0 | N68: 0 | O68: 0 | P68: 0 | Q68: 0 | R68: 0 | S68: 0 | T68: 0 | U68: 0 | V68: 0 | W68: 0 | X68: 0 | Y68: 0 | Z68: 0 | AA68: 0 | AB68: 0 | AC68: 0 | AD68: 0 | AE68: 0 | AF68: 0 | AG68: 0 | AH68: 0 | AI68: 0 | AJ68: 0 | AK68: 0 | AL68: 0 | AM68: =AVERAGE(J68:N68) -> 0 | AN68: =AVERAGE(O68:S68) -> 0 | AO68: =AVERAGE(T68:AB68) -> 0 | AP68: =AVERAGE(AC68:AL68) -> 0 | AQ68: =AVERAGE(J68:AL68) -> 0
B69: Economique | C69: oTauxAUTRES | D69: oTauxAUTRES | F69: 0 | G69: 184800 | H69: 0 | I69: 184800 | J69: 0 | K69: 0 | L69: 0 | M69: 0 | N69: 0 | O69: 0 | P69: 0 | Q69: 0 | R69: 0 | S69: 0 | T69: 0 | U69: 0 | V69: 0 | W69: 0 | X69: 0 | Y69: 0 | Z69: 0 | AA69: 0 | AB69: 0 | AC69: 0 | AD69: 0 | AE69: 0 | AF69: 0 | AG69: 0 | AH69: 0 | AI69: 0 | AJ69: 0 | AK69: 0 | AL69: 0 | AM69: 0 | AN69: 0 | AO69: 0 | AP69: 0 | AQ69: 0
B70: Economique | C70: oTauxREGAFIN | D70: oTauxREGAFIN | F70: 0 | G70: 0 | H70: 0 | I70: 0 | J70: 0 | K70: 0 | L70: 0 | M70: 0 | N70: 0 | O70: 0 | P70: 0 | Q70: 0 | R70: 0 | S70: 0 | T70: 0 | U70: 0 | V70: 0 | W70: 0 | X70: 0 | Y70: 0 | Z70: 0 | AA70: 0 | AB70: 0 | AC70: 0 | AD70: 0 | AE70: 0 | AF70: 0 | AG70: 0 | AH70: 0 | AI70: 0 | AJ70: 0 | AK70: 0 | AL70: 0 | AM70: 0 | AN70: 0 | AO70: 0 | AP70: 0 | AQ70: 0
B71: Economique | C71: oSupRealREGAPAR | D71: oSupRealREGAPAR | F71: 0 | G71: 3610 | H71: 0 | I71: 3610 | J71: 1630 | K71: 1630 | L71: 1630 | M71: 1630 | N71: 1630 | O71: 1000 | P71: 1100 | Q71: 1210 | R71: 1331 | S71: 1464.1 | T71: 1610.51 | U71: 1771.56 | V71: 1825.78 | W71: 2008.36 | X71: 2209.19 | Y71: 2430.11 | Z71: 2673.12 | AA71: 2405.81 | AB71: 2165.23 | AC71: 1948.71 | AD71: 1753.84 | AE71: 1578.45 | AF71: 1670.59 | AG71: 1503.53 | AH71: 1625.98 | AI71: 1788.58 | AJ71: 1967.44 | AK71: 2164.19 | AL71: 1947.77 | AM71: 1630 | AN71: 1221.02 | AO71: 2122.185556 | AP71: 1794.908 | AQ71: 1769.098276
B72: Economique | C72: oSupRealREGAEDU | D72: oSupRealREGAEDU | F72: 0 | G72: 330 | H72: 0 | I72: 330 | J72: 0 | K72: 0 | L72: 0 | M72: 0 | N72: 0 | O72: 0 | P72: 0 | Q72: 0 | R72: 0 | S72: 0 | T72: 0 | U72: 0 | V72: 0 | W72: 0 | X72: 0 | Y72: 0 | Z72: 0 | AA72: 0 | AB72: 0 | AC72: 0 | AD72: 0 | AE72: 0 | AF72: 0 | AG72: 0 | AH72: 0 | AI72: 0 | AJ72: 0 | AK72: 0 | AL72: 0 | AM72: 0 | AN72: 0 | AO72: 0 | AP72: 0 | AQ72: 0
B73: Economique | C73: oSupRealREGAREG | D73: oSupRealREGAREG | F73: 0 | G73: 330 | H73: 0 | I73: 330 | J73: 0 | K73: 0 | L73: 0 | M73: 0 | N73: 0 | O73: 0 | P73: 0 | Q73: 0 | R73: 0 | S73: 0 | T73: 0 | U73: 0 | V73: 0 | W73: 0 | X73: 0 | Y73: 0 | Z73: 0 | AA73: 0 | AB73: 0 | AC73: 0 | AD73: 0 | AE73: 0 | AF73: 0 | AG73: 0 | AH73: 0 | AI73: 0 | AJ73: 0 | AK73: 0 | AL73: 0 | AM73: 0 | AN73: 0 | AO73: 0 | AP73: 0 | AQ73: 0
B74: Economique | C74: oSupRealAUTRES | D74: oSupRealAUTRES | F74: 0 | G74: 330 | H74: 0 | I74: 330 | J74: 0 | K74: 0 | L74: 0 | M74: 0 | N74: 0 | O74: 0 | P74: 0 | Q74: 0 | R74: 0 | S74: 0 | T74: 0 | U74: 0 | V74: 0 | W74: 0 | X74: 0 | Y74: 0 | Z74: 0 | AA74: 0 | AB74: 0 | AC74: 0 | AD74: 0 | AE74: 0 | AF74: 0 | AG74: 0 | AH74: 0 | AI74: 0 | AJ74: 0 | AK74: 0 | AL74: 0 | AM74: 0 | AN74: 0 | AO74: 0 | AP74: 0 | AQ74: 0
B75: Economique | C75: oSupRealREGAFIN | D75: oSupRealREGAFIN | F75: 0 | G75: 13388.39 | H75: 0 | I75: 13388.39 | J75: 10231.05 | K75: 9902.23 | L75: 10309.05 | M75: 10261.42 | N75: 9435.51 | O75: 10377.62 | P75: 10076.42 | Q75: 10010.83 | R75: 9998.37 | S75: 9063.13 | T75: 9246.62 | U75: 9097.97 | V75: 10116.59 | W75: 9059.14 | X75: 9521.87 | Y75: 8734.52 | Z75: 8706.34 | AA75: 8752.76 | AB75: 8229.75 | AC75: 10145.78 | AD75: 9888.66 | AE75: 9600.21 | AF75: 8868.94 | AG75: 10007.4 | AH75: 10959.68 | AI75: 8890.66 | AJ75: 9258.61 | AK75: 12478.35 | AL75: 10038.3 | AM75: 10027.852 | AN75: 9905.274 | AO75: 9051.728889 | AP75: 10013.659 | AQ75: 9698.888966
B76: VolExpl | C76: OVOLBOJADMaEC | D76: Volume BOJ Admissible InclusActions aEC | F76: 0 | G76: 0 | H76: 0 | I76: 0 | J76: 0 | K76: 0 | L76: 0 | M76: 0 | N76: 0 | O76: 0 | P76: 0 | Q76: 0 | R76: 0 | S76: 0 | T76: 0 | U76: 0 | V76: 0 | W76: 0 | X76: 0 | Y76: 0 | Z76: 0 | AA76: 0 | AB76: 0 | AC76: 0 | AD76: 0 | AE76: 0 | AF76: 0 | AG76: 0 | AH76: 0 | AI76: 0 | AJ76: 0 | AK76: 0 | AL76: 0 | AM76: 0 | AN76: 0 | AO76: 0 | AP76: 0 | AQ76: 0
B77: VolExpl | C77: OVOLBOJADMaEC2 | D77: Volume BOJ Admissible InclusActions aEC2 | F77: 0 | G77: 0 | H77: 0 | I77: 0 | J77: 0 | K77: 0 | L77: 0 | M77: 0 | N77: 0 | O77: 0 | P77: 0 | Q77: 0 | R77: 0 | S77: 0 | T77: 0 | U77: 0 | V77: 0 | W77: 0 | X77: 0 | Y77: 0 | Z77: 0 | AA77: 0 | AB77: 0 | AC77: 0 | AD77: 0 | AE77: 0 | AF77: 0 | AG77: 0 | AH77: 0 | AI77: 0 | AJ77: 0 | AK77: 0 | AL77: 0 | AM77: 0 | AN77: 0 | AO77: 0 | AP77: 0 | AQ77: 0
B78: VolExpl | C78: OVOLBOJADMaEC3 | D78: Volume BOJ Admissible InclusActions aEC3 | F78: 0 | G78: 0 | H78: 0 | I78: 0 | J78: 0 | K78: 0 | L78: 0 | M78: 0 | N78: 0 | O78: 0 | P78: 0 | Q78: 0 | R78: 0 | S78: 0 | T78: 0 | U78: 0 | V78: 0 | W78: 0 | X78: 0 | Y78: 0 | Z78: 0 | AA78: 0 | AB78: 0 | AC78: 0 | AD78: 0 | AE78: 0 | AF78: 0 | AG78: 0 | AH78: 0 | AI78: 0 | AJ78: 0 | AK78: 0 | AL78: 0 | AM78: 0 | AN78: 0 | AO78: 0 | AP78: 0 | AQ78: 0
B79: VolExpl | C79: OVOLBOJADMaCA | D79: Volume BOJ Admissible InclusActions aCA | F79: 0 | G79: 0 | H79: 0 | I79: 0 | J79: 0 | K79: 0 | L79: 0 | M79: 0 | N79: 0 | O79: 0 | P79: 0 | Q79: 0 | R79: 0 | S79: 0 | T79: 0 | U79: 0 | V79: 0 | W79: 0 | X79: 0 | Y79: 0 | Z79: 0 | AA79: 0 | AB79: 0 | AC79: 0 | AD79: 0 | AE79: 0 | AF79: 0 | AG79: 0 | AH79: 0 | AI79: 0 | AJ79: 0 | AK79: 0 | AL79: 0 | AM79: 0 | AN79: 0 | AO79: 0 | AP79: 0 | AQ79: 0
B80: VolExpl | C80: OVOLBOJADMaCA2 | D80: Volume BOJ Admissible InclusActions aCA2 | F80: 0 | G80: 0 | H80: 0 | I80: 0 | J80: 0 | K80: 0 | L80: 0 | M80: 0 | N80: 0 | O80: 0 | P80: 0 | Q80: 0 | R80: 0 | S80: 0 | T80: 0 | U80: 0 | V80: 0 | W80: 0 | X80: 0 | Y80: 0 | Z80: 0 | AA80: 0 | AB80: 0 | AC80: 0 | AD80: 0 | AE80: 0 | AF80: 0 | AG80: 0 | AH80: 0 | AI80: 0 | AJ80: 0 | AK80: 0 | AL80: 0 | AM80: 0 | AN80: 0 | AO80: 0 | AP80: 0 | AQ80: 0
B81: VolExpl | C81: OVOLBOJADMaCPROG | D81: Volume BOJ Admissible InclusActions aCPROG | F81: 0 | G81: 0 | H81: 0 | I81: 0 | J81: 0 | K81: 0 | L81: 0 | M81: 0 | N81: 0 | O81: 0 | P81: 0 | Q81: 0 | R81: 0 | S81: 0 | T81: 0 | U81: 0 | V81: 0 | W81: 0 | X81: 0 | Y81: 0 | Z81: 0 | AA81: 0 | AB81: 0 | AC81: 0 | AD81: 0 | AE81: 0 | AF81: 0 | AG81: 0 | AH81: 0 | AI81: 0 | AJ81: 0 | AK81: 0 | AL81: 0 | AM81: 0 | AN81: 0 | AO81: 0 | AP81: 0 | AQ81: 0
B82: VolExpl | C82: OVOLBOJADMaCPIL | D82: Volume BOJ Admissible InclusActions aCPIL | F82: 0 | G82: 103.93 | H82: 0 | I82: 0 | J82: 0 | K82: 0 | L82: 0 | M82: 0 | N82: 0 | O82: 0 | P82: 0 | Q82: 0 | R82: 0 | S82: 0 | T82: 0 | U82: 0 | V82: 0 | W82: 0 | X82: 0 | Y82: 0 | Z82: 17.32 | AA82: 69.71 | AB82: 3.88 | AC82: 19.9 | AD82: 1.22 | AE82: 33.53 | AF82: 103.93 | AG82: 19.58 | AH82: 3.88 | AI82: 5.72 | AJ82: 0 | AK82: 82.49 | AL82: 15.85 | AM82: 0 | AN82: 0 | AO82: 10.10111111 | AP82: 28.61 | AQ82: 13.00034483
B83: VolExpl | C83: OVOLBOJADMaCPIP | D83: Volume BOJ Admissible InclusActions aCPIP | F83: 0 | G83: 0 | H83: 0 | I83: 0 | J83: 0 | K83: 0 | L83: 0 | M83: 0 | N83: 0 | O83: 0 | P83: 0 | Q83: 0 | R83: 0 | S83: 0 | T83: 0 | U83: 0 | V83: 0 | W83: 0 | X83: 0 | Y83: 0 | Z83: 0 | AA83: 0 | AB83: 0 | AC83: 0 | AD83: 0 | AE83: 0 | AF83: 0 | AG83: 0 | AH83: 0 | AI83: 0 | AJ83: 0 | AK83: 0 | AL83: 0 | AM83: 0 | AN83: 0 | AO83: 0 | AP83: 0 | AQ83: 0
B84: VolExpl | C84: OVOLBOJADMaCPFORT | D84: Volume BOJ Admissible InclusActions aCPFORT | F84: 0 | G84: 0 | H84: 0 | I84: 0 | J84: 0 | K84: 0 | L84: 0 | M84: 0 | N84: 0 | O84: 0 | P84: 0 | Q84: 0 | R84: 0 | S84: 0 | T84: 0 | U84: 0 | V84: 0 | W84: 0 | X84: 0 | Y84: 0 | Z84: 0 | AA84: 0 | AB84: 0 | AC84: 0 | AD84: 0 | AE84: 0 | AF84: 0 | AG84: 0 | AH84: 0 | AI84: 0 | AJ84: 0 | AK84: 0 | AL84: 0 | AM84: 0 | AN84: 0 | AO84: 0 | AP84: 0 | AQ84: 0
B85: VolExpl | C85: OVOLBOJADMaCPFAIBL | D85: Volume BOJ Admissible InclusActions aCPFAIBL | F85: 0 | G85: 0 | H85: 0 | I85: 0 | J85: 0 | K85: 0 | L85: 0 | M85: 0 | N85: 0 | O85: 0 | P85: 0 | Q85: 0 | R85: 0 | S85: 0 | T85: 0 | U85: 0 | V85: 0 | W85: 0 | X85: 0 | Y85: 0 | Z85: 0 | AA85: 0 | AB85: 0 | AC85: 0 | AD85: 0 | AE85: 0 | AF85: 0 | AG85: 0 | AH85: 0 | AI85: 0 | AJ85: 0 | AK85: 0 | AL85: 0 | AM85: 0 | AN85: 0 | AO85: 0 | AP85: 0 | AQ85: 0
B86: VolExpl | C86: OVOLBOJADMaCP | D86: Volume BOJ Admissible InclusActions aCP | F86: 0 | G86: 0 | H86: 0 | I86: 0 | J86: 0 | K86: 0 | L86: 0 | M86: 0 | N86: 0 | O86: 0 | P86: 0 | Q86: 0 | R86: 0 | S86: 0 | T86: 0 | U86: 0 | V86: 0 | W86: 0 | X86: 0 | Y86: 0 | Z86: 0 | AA86: 0 | AB86: 0 | AC86: 0 | AD86: 0 | AE86: 0 | AF86: 0 | AG86: 0 | AH86: 0 | AI86: 0 | AJ86: 0 | AK86: 0 | AL86: 0 | AM86: 0 | AN86: 0 | AO86: 0 | AP86: 0 | AQ86: 0
B87: VolExpl | C87: OVOLBOJADMaCPJ | D87: Volume BOJ Admissible InclusActions aCPJ | F87: 0 | G87: 0 | H87: 0 | I87: 0 | J87: 0 | K87: 0 | L87: 0 | M87: 0 | N87: 0 | O87: 0 | P87: 0 | Q87: 0 | R87: 0 | S87: 0 | T87: 0 | U87: 0 | V87: 0 | W87: 0 | X87: 0 | Y87: 0 | Z87: 0 | AA87: 0 | AB87: 0 | AC87: 0 | AD87: 0 | AE87: 0 | AF87: 0 | AG87: 0 | AH87: 0 | AI87: 0 | AJ87: 0 | AK87: 0 | AL87: 0 | AM87: 0 | AN87: 0 | AO87: 0 | AP87: 0 | AQ87: 0
B88: VolExpl | C88: OVOLBOJADMaCJ | D88: Volume BOJ Admissible InclusActions aCJ | F88: 0 | G88: 0 | H88: 0 | I88: 0 | J88: 0 | K88: 0 | L88: 0 | M88: 0 | N88: 0 | O88: 0 | P88: 0 | Q88: 0 | R88: 0 | S88: 0 | T88: 0 | U88: 0 | V88: 0 | W88: 0 | X88: 0 | Y88: 0 | Z88: 0 | AA88: 0 | AB88: 0 | AC88: 0 | AD88: 0 | AE88: 0 | AF88: 0 | AG88: 0 | AH88: 0 | AI88: 0 | AJ88: 0 | AK88: 0 | AL88: 0 | AM88: 0 | AN88: 0 | AO88: 0 | AP88: 0 | AQ88: 0
B89: VolExpl | C89: OVOLBOJADMaCRV | D89: Volume BOJ Admissible InclusActions aCRV | F89: 0 | G89: 0 | H89: 0 | I89: 0 | J89: 0 | K89: 0 | L89: 0 | M89: 0 | N89: 0 | O89: 0 | P89: 0 | Q89: 0 | R89: 0 | S89: 0 | T89: 0 | U89: 0 | V89: 0 | W89: 0 | X89: 0 | Y89: 0 | Z89: 0 | AA89: 0 | AB89: 0 | AC89: 0 | AD89: 0 | AE89: 0 | AF89: 0 | AG89: 0 | AH89: 0 | AI89: 0 | AJ89: 0 | AK89: 0 | AL89: 0 | AM89: 0 | AN89: 0 | AO89: 0 | AP89: 0 | AQ89: 0
B90: VolExpl | C90: OVOLBOJADMaCRS | D90: Volume BOJ Admissible InclusActions aCRS | F90: 0 | G90: 0 | H90: 0 | I90: 0 | J90: 0 | K90: 0 | L90: 0 | M90: 0 | N90: 0 | O90: 0 | P90: 0 | Q90: 0 | R90: 0 | S90: 0 | T90: 0 | U90: 0 | V90: 0 | W90: 0 | X90: 0 | Y90: 0 | Z90: 0 | AA90: 0 | AB90: 0 | AC90: 0 | AD90: 0 | AE90: 0 | AF90: 0 | AG90: 0 | AH90: 0 | AI90: 0 | AJ90: 0 | AK90: 0 | AL90: 0 | AM90: 0 | AN90: 0 | AO90: 0 | AP90: 0 | AQ90: 0
B91: VolExpl | C91: OVOLBOJADMaCFP | D91: Volume BOJ Admissible InclusActions aCFP | F91: 0 | G91: 247.82 | H91: 0 | I91: 0 | J91: 0 | K91: 0 | L91: 0 | M91: 0 | N91: 0 | O91: 0 | P91: 0 | Q91: 0 | R91: 0 | S91: 0 | T91: 0 | U91: 0 | V91: 0 | W91: 2.34 | X91: 8.87 | Y91: 6.45 | Z91: 139.3 | AA91: 152.59 | AB91: 30.99 | AC91: 64.08 | AD91: 50.46 | AE91: 223.9 | AF91: 247.82 | AG91: 46.98 | AH91: 16.62 | AI91: 12.06 | AJ91: 15.68 | AK91: 50.62 | AL91: 109.99 | AM91: 0 | AN91: 0 | AO91: 37.83777778 | AP91: 83.821 | AQ91: 40.64655172
B92: VolExpl | C92: OVOLBOJADMaCPPTM | D92: Volume BOJ Admissible InclusActions aCPPTM | F92: 0 | G92: 0 | H92: 0 | I92: 0 | J92: 0 | K92: 0 | L92: 0 | M92: 0 | N92: 0 | O92: 0 | P92: 0 | Q92: 0 | R92: 0 | S92: 0 | T92: 0 | U92: 0 | V92: 0 | W92: 0 | X92: 0 | Y92: 0 | Z92: 0 | AA92: 0 | AB92: 0 | AC92: 0 | AD92: 0 | AE92: 0 | AF92: 0 | AG92: 0 | AH92: 0 | AI92: 0 | AJ92: 0 | AK92: 0 | AL92: 0 | AM92: 0 | AN92: 0 | AO92: 0 | AP92: 0 | AQ92: 0
B93: VolExpl | C93: OVOLBOJADMaCT | D93: Volume BOJ Admissible InclusActions aCT | F93: 0 | G93: 292.24 | H93: 0 | I93: 84.68 | J93: 42.67 | K93: 68.78 | L93: 47.53 | M93: 55.01 | N93: 35.71 | O93: 49.73 | P93: 57.22 | Q93: 37.21 | R93: 38.48 | S93: 32.14 | T93: 20.65 | U93: 4.94 | V93: 15.47 | W93: 10.92 | X93: 2.15 | Y93: 8.6 | Z93: 15.21 | AA93: 36.3 | AB93: 91.67 | AC93: 76.39 | AD93: 60.76 | AE93: 136.02 | AF93: 97.08 | AG93: 72.52 | AH93: 211.51 | AI93: 51.92 | AJ93: 63.53 | AK93: 292.24 | AL93: 145.13 | AM93: 49.94 | AN93: 42.956 | AO93: 22.87888889 | AP93: 120.71 | AQ93: 64.74103448
B94: VolExpl | C94: OVOLERSADMaEC | D94: Volume ERS Admissible InclusActions aEC | F94: 0 | G94: 0 | H94: 0 | I94: 0 | J94: 0 | K94: 0 | L94: 0 | M94: 0 | N94: 0 | O94: 0 | P94: 0 | Q94: 0 | R94: 0 | S94: 0 | T94: 0 | U94: 0 | V94: 0 | W94: 0 | X94: 0 | Y94: 0 | Z94: 0 | AA94: 0 | AB94: 0 | AC94: 0 | AD94: 0 | AE94: 0 | AF94: 0 | AG94: 0 | AH94: 0 | AI94: 0 | AJ94: 0 | AK94: 0 | AL94: 0 | AM94: 0 | AN94: 0 | AO94: 0 | AP94: 0 | AQ94: 0
B95: VolExpl | C95: OVOLERSADMaEC2 | D95: Volume ERS Admissible InclusActions aEC2 | F95: 0 | G95: 0 | H95: 0 | I95: 0 | J95: 0 | K95: 0 | L95: 0 | M95: 0 | N95: 0 | O95: 0 | P95: 0 | Q95: 0 | R95: 0 | S95: 0 | T95: 0 | U95: 0 | V95: 0 | W95: 0 | X95: 0 | Y95: 0 | Z95: 0 | AA95: 0 | AB95: 0 | AC95: 0 | AD95: 0 | AE95: 0 | AF95: 0 | AG95: 0 | AH95: 0 | AI95: 0 | AJ95: 0 | AK95: 0 | AL95: 0 | AM95: 0 | AN95: 0 | AO95: 0 | AP95: 0 | AQ95: 0
B96: VolExpl | C96: OVOLERSADMaEC3 | D96: Volume ERS Admissible InclusActions aEC3 | F96: 0 | G96: 0 | H96: 0 | I96: 0 | J96: 0 | K96: 0 | L96: 0 | M96: 0 | N96: 0 | O96: 0 | P96: 0 | Q96: 0 | R96: 0 | S96: 0 | T96: 0 | U96: 0 | V96: 0 | W96: 0 | X96: 0 | Y96: 0 | Z96: 0 | AA96: 0 | AB96: 0 | AC96: 0 | AD96: 0 | AE96: 0 | AF96: 0 | AG96: 0 | AH96: 0 | AI96: 0 | AJ96: 0 | AK96: 0 | AL96: 0 | AM96: 0 | AN96: 0 | AO96: 0 | AP96: 0 | AQ96: 0
B97: VolExpl | C97: OVOLERSADMaCA | D97: Volume ERS Admissible InclusActions aCA | F97: 0 | G97: 0 | H97: 0 | I97: 0 | J97: 0 | K97: 0 | L97: 0 | M97: 0 | N97: 0 | O97: 0 | P97: 0 | Q97: 0 | R97: 0 | S97: 0 | T97: 0 | U97: 0 | V97: 0 | W97: 0 | X97: 0 | Y97: 0 | Z97: 0 | AA97: 0 | AB97: 0 | AC97: 0 | AD97: 0 | AE97: 0 | AF97: 0 | AG97: 0 | AH97: 0 | AI97: 0 | AJ97: 0 | AK97: 0 | AL97: 0 | AM97: 0 | AN97: 0 | AO97: 0 | AP97: 0 | AQ97: 0
B98: VolExpl | C98: OVOLERSADMaCA2 | D98: Volume ERS Admissible InclusActions aCA2 | F98: 0 | G98: 0 | H98: 0 | I98: 0 | J98: 0 | K98: 0 | L98: 0 | M98: 0 | N98: 0 | O98: 0 | P98: 0 | Q98: 0 | R98: 0 | S98: 0 | T98: 0 | U98: 0 | V98: 0 | W98: 0 | X98: 0 | Y98: 0 | Z98: 0 | AA98: 0 | AB98: 0 | AC98: 0 | AD98: 0 | AE98: 0 | AF98: 0 | AG98: 0 | AH98: 0 | AI98: 0 | AJ98: 0 | AK98: 0 | AL98: 0 | AM98: 0 | AN98: 0 | AO98: 0 | AP98: 0 | AQ98: 0
B99: VolExpl | C99: OVOLERSADMaCPROG | D99: Volume ERS Admissible InclusActions aCPROG | F99: 0 | G99: 0 | H99: 0 | I99: 0 | J99: 0 | K99: 0 | L99: 0 | M99: 0 | N99: 0 | O99: 0 | P99: 0 | Q99: 0 | R99: 0 | S99: 0 | T99: 0 | U99: 0 | V99: 0 | W99: 0 | X99: 0 | Y99: 0 | Z99: 0 | AA99: 0 | AB99: 0 | AC99: 0 | AD99: 0 | AE99: 0 | AF99: 0 | AG99: 0 | AH99: 0 | AI99: 0 | AJ99: 0 | AK99: 0 | AL99: 0 | AM99: 0 | AN99: 0 | AO99: 0 | AP99: 0 | AQ99: 0
B100: VolExpl | C100: OVOLERSADMaCPIL | D100: Volume ERS Admissible InclusActions aCPIL | F100: 0 | G100: 0 | H100: 0 | I100: 0 | J100: 0 | K100: 0 | L100: 0 | M100: 0 | N100: 0 | O100: 0 | P100: 0 | Q100: 0 | R100: 0 | S100: 0 | T100: 0 | U100: 0 | V100: 0 | W100: 0 | X100: 0 | Y100: 0 | Z100: 0 | AA100: 0 | AB100: 0 | AC100: 0 | AD100: 0 | AE100: 0 | AF100: 0 | AG100: 0 | AH100: 0 | AI100: 0 | AJ100: 0 | AK100: 0 | AL100: 0 | AM100: 0 | AN100: 0 | AO100: 0 | AP100: 0 | AQ100: 0
B101: VolExpl | C101: OVOLERSADMaCPIP | D101: Volume ERS Admissible InclusActions aCPIP | F101: 0 | G101: 0 | H101: 0 | I101: 0 | J101: 0 | K101: 0 | L101: 0 | M101: 0 | N101: 0 | O101: 0 | P101: 0 | Q101: 0 | R101: 0 | S101: 0 | T101: 0 | U101: 0 | V101: 0 | W101: 0 | X101: 0 | Y101: 0 | Z101: 0 | AA101: 0 | AB101: 0 | AC101: 0 | AD101: 0 | AE101: 0 | AF101: 0 | AG101: 0 | AH101: 0 | AI101: 0 | AJ101: 0 | AK101: 0 | AL101: 0 | AM101: 0 | AN101: 0 | AO101: 0 | AP101: 0 | AQ101: 0
B102: VolExpl | C102: OVOLERSADMaCPFORT | D102: Volume ERS Admissible InclusActions aCPFORT | F102: 0 | G102: 0 | H102: 0 | I102: 0 | J102: 0 | K102: 0 | L102: 0 | M102: 0 | N102: 0 | O102: 0 | P102: 0 | Q102: 0 | R102: 0 | S102: 0 | T102: 0 | U102: 0 | V102: 0 | W102: 0 | X102: 0 | Y102: 0 | Z102: 0 | AA102: 0 | AB102: 0 | AC102: 0 | AD102: 0 | AE102: 0 | AF102: 0 | AG102: 0 | AH102: 0 | AI102: 0 | AJ102: 0 | AK102: 0 | AL102: 0 | AM102: 0 | AN102: 0 | AO102: 0 | AP102: 0 | AQ102: 0
B103: VolExpl | C103: OVOLERSADMaCPFAIBL | D103: Volume ERS Admissible InclusActions aCPFAIBL | F103: 0 | G103: 0 | H103: 0 | I103: 0 | J103: 0 | K103: 0 | L103: 0 | M103: 0 | N103: 0 | O103: 0 | P103: 0 | Q103: 0 | R103: 0 | S103: 0 | T103: 0 | U103: 0 | V103: 0 | W103: 0 | X103: 0 | Y103: 0 | Z103: 0 | AA103: 0 | AB103: 0 | AC103: 0 | AD103: 0 | AE103: 0 | AF103: 0 | AG103: 0 | AH103: 0 | AI103: 0 | AJ103: 0 | AK103: 0 | AL103: 0 | AM103: 0 | AN103: 0 | AO103: 0 | AP103: 0 | AQ103: 0
B104: VolExpl | C104: OVOLERSADMaCP | D104: Volume ERS Admissible InclusActions aCP | F104: 0 | G104: 0 | H104: 0 | I104: 0 | J104: 0 | K104: 0 | L104: 0 | M104: 0 | N104: 0 | O104: 0 | P104: 0 | Q104: 0 | R104: 0 | S104: 0 | T104: 0 | U104: 0 | V104: 0 | W104: 0 | X104: 0 | Y104: 0 | Z104: 0 | AA104: 0 | AB104: 0 | AC104: 0 | AD104: 0 | AE104: 0 | AF104: 0 | AG104: 0 | AH104: 0 | AI104: 0 | AJ104: 0 | AK104: 0 | AL104: 0 | AM104: 0 | AN104: 0 | AO104: 0 | AP104: 0 | AQ104: 0
B105: VolExpl | C105: OVOLERSADMaCPJ | D105: Volume ERS Admissible InclusActions aCPJ | F105: 0 | G105: 0 | H105: 0 | I105: 0 | J105: 0 | K105: 0 | L105: 0 | M105: 0 | N105: 0 | O105: 0 | P105: 0 | Q105: 0 | R105: 0 | S105: 0 | T105: 0 | U105: 0 | V105: 0 | W105: 0 | X105: 0 | Y105: 0 | Z105: 0 | AA105: 0 | AB105: 0 | AC105: 0 | AD105: 0 | AE105: 0 | AF105: 0 | AG105: 0 | AH105: 0 | AI105: 0 | AJ105: 0 | AK105: 0 | AL105: 0 | AM105: 0 | AN105: 0 | AO105: 0 | AP105: 0 | AQ105: 0
B106: VolExpl | C106: OVOLERSADMaCJ | D106: Volume ERS Admissible InclusActions aCJ | F106: 0 | G106: 0 | H106: 0 | I106: 0 | J106: 0 | K106: 0 | L106: 0 | M106: 0 | N106: 0 | O106: 0 | P106: 0 | Q106: 0 | R106: 0 | S106: 0 | T106: 0 | U106: 0 | V106: 0 | W106: 0 | X106: 0 | Y106: 0 | Z106: 0 | AA106: 0 | AB106: 0 | AC106: 0 | AD106: 0 | AE106: 0 | AF106: 0 | AG106: 0 | AH106: 0 | AI106: 0 | AJ106: 0 | AK106: 0 | AL106: 0 | AM106: 0 | AN106: 0 | AO106: 0 | AP106: 0 | AQ106: 0
B107: VolExpl | C107: OVOLERSADMaCRV | D107: Volume ERS Admissible InclusActions aCRV | F107: 0 | G107: 0 | H107: 0 | I107: 0 | J107: 0 | K107: 0 | L107: 0 | M107: 0 | N107: 0 | O107: 0 | P107: 0 | Q107: 0 | R107: 0 | S107: 0 | T107: 0 | U107: 0 | V107: 0 | W107: 0 | X107: 0 | Y107: 0 | Z107: 0 | AA107: 0 | AB107: 0 | AC107: 0 | AD107: 0 | AE107: 0 | AF107: 0 | AG107: 0 | AH107: 0 | AI107: 0 | AJ107: 0 | AK107: 0 | AL107: 0 | AM107: 0 | AN107: 0 | AO107: 0 | AP107: 0 | AQ107: 0
B108: VolExpl | C108: OVOLERSADMaCRS | D108: Volume ERS Admissible InclusActions aCRS | F108: 0 | G108: 0 | H108: 0 | I108: 0 | J108: 0 | K108: 0 | L108: 0 | M108: 0 | N108: 0 | O108: 0 | P108: 0 | Q108: 0 | R108: 0 | S108: 0 | T108: 0 | U108: 0 | V108: 0 | W108: 0 | X108: 0 | Y108: 0 | Z108: 0 | AA108: 0 | AB108: 0 | AC108: 0 | AD108: 0 | AE108: 0 | AF108: 0 | AG108: 0 | AH108: 0 | AI108: 0 | AJ108: 0 | AK108: 0 | AL108: 0 | AM108: 0 | AN108: 0 | AO108: 0 | AP108: 0 | AQ108: 0
B109: VolExpl | C109: OVOLERSADMaCFP | D109: Volume ERS Admissible InclusActions aCFP | F109: 0 | G109: 0 | H109: 0 | I109: 0 | J109: 0 | K109: 0 | L109: 0 | M109: 0 | N109: 0 | O109: 0 | P109: 0 | Q109: 0 | R109: 0 | S109: 0 | T109: 0 | U109: 0 | V109: 0 | W109: 0 | X109: 0 | Y109: 0 | Z109: 0 | AA109: 0 | AB109: 0 | AC109: 0 | AD109: 0 | AE109: 0 | AF109: 0 | AG109: 0 | AH109: 0 | AI109: 0 | AJ109: 0 | AK109: 0 | AL109: 0 | AM109: 0 | AN109: 0 | AO109: 0 | AP109: 0 | AQ109: 0
B110: VolExpl | C110: OVOLERSADMaCPPTM | D110: Volume ERS Admissible InclusActions aCPPTM | F110: 0 | G110: 0 | H110: 0 | I110: 0 | J110: 0 | K110: 0 | L110: 0 | M110: 0 | N110: 0 | O110: 0 | P110: 0 | Q110: 0 | R110: 0 | S110: 0 | T110: 0 | U110: 0 | V110: 0 | W110: 0 | X110: 0 | Y110: 0 | Z110: 0 | AA110: 0 | AB110: 0 | AC110: 0 | AD110: 0 | AE110: 0 | AF110: 0 | AG110: 0 | AH110: 0 | AI110: 0 | AJ110: 0 | AK110: 0 | AL110: 0 | AM110: 0 | AN110: 0 | AO110: 0 | AP110: 0 | AQ110: 0
B111: VolExpl | C111: OVOLERSADMaCT | D111: Volume ERS Admissible InclusActions aCT | F111: 0 | G111: 0 | H111: 0 | I111: 0 | J111: 0 | K111: 0 | L111: 0 | M111: 0 | N111: 0 | O111: 0 | P111: 0 | Q111: 0 | R111: 0 | S111: 0 | T111: 0 | U111: 0 | V111: 0 | W111: 0 | X111: 0 | Y111: 0 | Z111: 0 | AA111: 0 | AB111: 0 | AC111: 0 | AD111: 0 | AE111: 0 | AF111: 0 | AG111: 0 | AH111: 0 | AI111: 0 | AJ111: 0 | AK111: 0 | AL111: 0 | AM111: 0 | AN111: 0 | AO111: 0 | AP111: 0 | AQ111: 0
B112: VolExpl | C112: OVOLSABADMaEC | D112: Volume SAB Admissible InclusActions aEC | F112: 0 | G112: 589.17 | H112: 0 | I112: 0 | J112: 0 | K112: 0 | L112: 0 | M112: 0 | N112: 0 | O112: 589.17 | P112: 0 | Q112: 5.71 | R112: 0 | S112: 0 | T112: 0 | U112: 0 | V112: 0 | W112: 0 | X112: 0 | Y112: 0 | Z112: 0 | AA112: 0 | AB112: 0 | AC112: 0 | AD112: 0 | AE112: 0 | AF112: 0 | AG112: 0 | AH112: 0 | AI112: 0 | AJ112: 0 | AK112: 0 | AL112: 0 | AM112: 0 | AN112: 118.976 | AO112: 0 | AP112: 0 | AQ112: 20.51310345
B113: VolExpl | C113: OVOLSABADMaEC2 | D113: Volume SAB Admissible InclusActions aEC2 | F113: 0 | G113: 0 | H113: 0 | I113: 0 | J113: 0 | K113: 0 | L113: 0 | M113: 0 | N113: 0 | O113: 0 | P113: 0 | Q113: 0 | R113: 0 | S113: 0 | T113: 0 | U113: 0 | V113: 0 | W113: 0 | X113: 0 | Y113: 0 | Z113: 0 | AA113: 0 | AB113: 0 | AC113: 0 | AD113: 0 | AE113: 0 | AF113: 0 | AG113: 0 | AH113: 0 | AI113: 0 | AJ113: 0 | AK113: 0 | AL113: 0 | AM113: 0 | AN113: 0 | AO113: 0 | AP113: 0 | AQ113: 0
B114: VolExpl | C114: OVOLSABADMaEC3 | D114: Volume SAB Admissible InclusActions aEC3 | F114: 0 | G114: 0 | H114: 0 | I114: 0 | J114: 0 | K114: 0 | L114: 0 | M114: 0 | N114: 0 | O114: 0 | P114: 0 | Q114: 0 | R114: 0 | S114: 0 | T114: 0 | U114: 0 | V114: 0 | W114: 0 | X114: 0 | Y114: 0 | Z114: 0 | AA114: 0 | AB114: 0 | AC114: 0 | AD114: 0 | AE114: 0 | AF114: 0 | AG114: 0 | AH114: 0 | AI114: 0 | AJ114: 0 | AK114: 0 | AL114: 0 | AM114: 0 | AN114: 0 | AO114: 0 | AP114: 0 | AQ114: 0
B115: VolExpl | C115: OVOLSABADMaCA | D115: Volume SAB Admissible InclusActions aCA | F115: 0 | G115: 0 | H115: 0 | I115: 0 | J115: 0 | K115: 0 | L115: 0 | M115: 0 | N115: 0 | O115: 0 | P115: 0 | Q115: 0 | R115: 0 | S115: 0 | T115: 0 | U115: 0 | V115: 0 | W115: 0 | X115: 0 | Y115: 0 | Z115: 0 | AA115: 0 | AB115: 0 | AC115: 0 | AD115: 0 | AE115: 0 | AF115: 0 | AG115: 0 | AH115: 0 | AI115: 0 | AJ115: 0 | AK115: 0 | AL115: 0 | AM115: 0 | AN115: 0 | AO115: 0 | AP115: 0 | AQ115: 0
B116: VolExpl | C116: OVOLSABADMaCA2 | D116: Volume SAB Admissible InclusActions aCA2 | F116: 0 | G116: 0 | H116: 0 | I116: 0 | J116: 0 | K116: 0 | L116: 0 | M116: 0 | N116: 0 | O116: 0 | P116: 0 | Q116: 0 | R116: 0 | S116: 0 | T116: 0 | U116: 0 | V116: 0 | W116: 0 | X116: 0 | Y116: 0 | Z116: 0 | AA116: 0 | AB116: 0 | AC116: 0 | AD116: 0 | AE116: 0 | AF116: 0 | AG116: 0 | AH116: 0 | AI116: 0 | AJ116: 0 | AK116: 0 | AL116: 0 | AM116: 0 | AN116: 0 | AO116: 0 | AP116: 0 | AQ116: 0
B117: VolExpl | C117: OVOLSABADMaCPROG | D117: Volume SAB Admissible InclusActions aCPROG | F117: 0 | G117: 0 | H117: 0 | I117: 0 | J117: 0 | K117: 0 | L117: 0 | M117: 0 | N117: 0 | O117: 0 | P117: 0 | Q117: 0 | R117: 0 | S117: 0 | T117: 0 | U117: 0 | V117: 0 | W117: 0 | X117: 0 | Y117: 0 | Z117: 0 | AA117: 0 | AB117: 0 | AC117: 0 | AD117: 0 | AE117: 0 | AF117: 0 | AG117: 0 | AH117: 0 | AI117: 0 | AJ117: 0 | AK117: 0 | AL117: 0 | AM117: 0 | AN117: 0 | AO117: 0 | AP117: 0 | AQ117: 0
B118: VolExpl | C118: OVOLSABADMaCPIL | D118: Volume SAB Admissible InclusActions aCPIL | F118: 0 | G118: 141875.1 | H118: 0 | I118: 141875.1 | J118: 45553.87 | K118: 67332.24 | L118: 35993.66 | M118: 98417.23 | N118: 16370.96 | O118: 26641.95 | P118: 18587.64 | Q118: 75012.81 | R118: 33782.97 | S118: 22936.44 | T118: 50981.39 | U118: 47085.72 | V118: 14979.01 | W118: 9742.05 | X118: 39376.45 | Y118: 24393 | Z118: 9744.31 | AA118: 12705.15 | AB118: 11697.04 | AC118: 16074.63 | AD118: 36908.25 | AE118: 8452.33 | AF118: 21597.01 | AG118: 16345.91 | AH118: 8279.25 | AI118: 9272.04 | AJ118: 13386.42 | AK118: 31008.85 | AL118: 29854.06 | AM118: 52733.592 | AN118: 35392.362 | AO118: 24522.68 | AP118: 19117.875 | AQ118: 29396.98759
B119: VolExpl | C119: OVOLSABADMaCPIP | D119: Volume SAB Admissible InclusActions aCPIP | F119: 0 | G119: 0 | H119: 0 | I119: 0 | J119: 0 | K119: 0 | L119: 0 | M119: 0 | N119: 0 | O119: 0 | P119: 0 | Q119: 0 | R119: 0 | S119: 0 | T119: 0 | U119: 0 | V119: 0 | W119: 0 | X119: 0 | Y119: 0 | Z119: 0 | AA119: 0 | AB119: 0 | AC119: 0 | AD119: 0 | AE119: 0 | AF119: 0 | AG119: 0 | AH119: 0 | AI119: 0 | AJ119: 0 | AK119: 0 | AL119: 0 | AM119: 0 | AN119: 0 | AO119: 0 | AP119: 0 | AQ119: 0
B120: VolExpl | C120: OVOLSABADMaCPFORT | D120: Volume SAB Admissible InclusActions aCPFORT | F120: 0 | G120: 0 | H120: 0 | I120: 0 | J120: 0 | K120: 0 | L120: 0 | M120: 0 | N120: 0 | O120: 0 | P120: 0 | Q120: 0 | R120: 0 | S120: 0 | T120: 0 | U120: 0 | V120: 0 | W120: 0 | X120: 0 | Y120: 0 | Z120: 0 | AA120: 0 | AB120: 0 | AC120: 0 | AD120: 0 | AE120: 0 | AF120: 0 | AG120: 0 | AH120: 0 | AI120: 0 | AJ120: 0 | AK120: 0 | AL120: 0 | AM120: 0 | AN120: 0 | AO120: 0 | AP120: 0 | AQ120: 0
B121: VolExpl | C121: OVOLSABADMaCPFAIBL | D121: Volume SAB Admissible InclusActions aCPFAIBL | F121: 0 | G121: 0 | H121: 0 | I121: 0 | J121: 0 | K121: 0 | L121: 0 | M121: 0 | N121: 0 | O121: 0 | P121: 0 | Q121: 0 | R121: 0 | S121: 0 | T121: 0 | U121: 0 | V121: 0 | W121: 0 | X121: 0 | Y121: 0 | Z121: 0 | AA121: 0 | AB121: 0 | AC121: 0 | AD121: 0 | AE121: 0 | AF121: 0 | AG121: 0 | AH121: 0 | AI121: 0 | AJ121: 0 | AK121: 0 | AL121: 0 | AM121: 0 | AN121: 0 | AO121: 0 | AP121: 0 | AQ121: 0
B122: VolExpl | C122: OVOLSABADMaCP | D122: Volume SAB Admissible InclusActions aCP | F122: 0 | G122: 0 | H122: 0 | I122: 0 | J122: 0 | K122: 0 | L122: 0 | M122: 0 | N122: 0 | O122: 0 | P122: 0 | Q122: 0 | R122: 0 | S122: 0 | T122: 0 | U122: 0 | V122: 0 | W122: 0 | X122: 0 | Y122: 0 | Z122: 0 | AA122: 0 | AB122: 0 | AC122: 0 | AD122: 0 | AE122: 0 | AF122: 0 | AG122: 0 | AH122: 0 | AI122: 0 | AJ122: 0 | AK122: 0 | AL122: 0 | AM122: 0 | AN122: 0 | AO122: 0 | AP122: 0 | AQ122: 0
B123: VolExpl | C123: OVOLSABADMaCPJ | D123: Volume SAB Admissible InclusActions aCPJ | F123: 0 | G123: 0 | H123: 0 | I123: 0 | J123: 0 | K123: 0 | L123: 0 | M123: 0 | N123: 0 | O123: 0 | P123: 0 | Q123: 0 | R123: 0 | S123: 0 | T123: 0 | U123: 0 | V123: 0 | W123: 0 | X123: 0 | Y123: 0 | Z123: 0 | AA123: 0 | AB123: 0 | AC123: 0 | AD123: 0 | AE123: 0 | AF123: 0 | AG123: 0 | AH123: 0 | AI123: 0 | AJ123: 0 | AK123: 0 | AL123: 0 | AM123: 0 | AN123: 0 | AO123: 0 | AP123: 0 | AQ123: 0
B124: VolExpl | C124: OVOLSABADMaCJ | D124: Volume SAB Admissible InclusActions aCJ | F124: 0 | G124: 0 | H124: 0 | I124: 0 | J124: 0 | K124: 0 | L124: 0 | M124: 0 | N124: 0 | O124: 0 | P124: 0 | Q124: 0 | R124: 0 | S124: 0 | T124: 0 | U124: 0 | V124: 0 | W124: 0 | X124: 0 | Y124: 0 | Z124: 0 | AA124: 0 | AB124: 0 | AC124: 0 | AD124: 0 | AE124: 0 | AF124: 0 | AG124: 0 | AH124: 0 | AI124: 0 | AJ124: 0 | AK124: 0 | AL124: 0 | AM124: 0 | AN124: 0 | AO124: 0 | AP124: 0 | AQ124: 0
B125: VolExpl | C125: OVOLSABADMaCRV | D125: Volume SAB Admissible InclusActions aCRV | F125: 0 | G125: 0 | H125: 0 | I125: 0 | J125: 0 | K125: 0 | L125: 0 | M125: 0 | N125: 0 | O125: 0 | P125: 0 | Q125: 0 | R125: 0 | S125: 0 | T125: 0 | U125: 0 | V125: 0 | W125: 0 | X125: 0 | Y125: 0 | Z125: 0 | AA125: 0 | AB125: 0 | AC125: 0 | AD125: 0 | AE125: 0 | AF125: 0 | AG125: 0 | AH125: 0 | AI125: 0 | AJ125: 0 | AK125: 0 | AL125: 0 | AM125: 0 | AN125: 0 | AO125: 0 | AP125: 0 | AQ125: 0
B126: VolExpl | C126: OVOLSABADMaCRS | D126: Volume SAB Admissible InclusActions aCRS | F126: 0 | G126: 0 | H126: 0 | I126: 0 | J126: 0 | K126: 0 | L126: 0 | M126: 0 | N126: 0 | O126: 0 | P126: 0 | Q126: 0 | R126: 0 | S126: 0 | T126: 0 | U126: 0 | V126: 0 | W126: 0 | X126: 0 | Y126: 0 | Z126: 0 | AA126: 0 | AB126: 0 | AC126: 0 | AD126: 0 | AE126: 0 | AF126: 0 | AG126: 0 | AH126: 0 | AI126: 0 | AJ126: 0 | AK126: 0 | AL126: 0 | AM126: 0 | AN126: 0 | AO126: 0 | AP126: 0 | AQ126: 0
B127: VolExpl | C127: OVOLSABADMaCFP | D127: Volume SAB Admissible InclusActions aCFP | F127: 0 | G127: 131324.97 | H127: 0 | I127: 65044.15 | J127: 653.44 | K127: 2804.2 | L127: 4088.98 | M127: 11475.11 | N127: 7536.94 | O127: 6947.79 | P127: 4595.86 | Q127: 1783.31 | R127: 2831.54 | S127: 258.84 | T127: 660.76 | U127: 1655.02 | V127: 995.53 | W127: 4021.8 | X127: 6311.52 | Y127: 8486.08 | Z127: 35776.45 | AA127: 43727.37 | AB127: 60132.05 | AC127: 51497.62 | AD127: 29389.08 | AE127: 67954.59 | AF127: 59115.64 | AG127: 19340.27 | AH127: 8531.48 | AI127: 3962.69 | AJ127: 9334.41 | AK127: 16386.9 | AL127: 131324.97 | AM127: 5311.734 | AN127: 3283.468 | AO127: 17974.06444 | AP127: 39683.765 | AQ127: 20744.14621
B128: VolExpl | C128: OVOLSABADMaCPPTM | D128: Volume SAB Admissible InclusActions aCPPTM | F128: 0 | G128: 16945.73 | H128: 0 | I128: 16945.73 | J128: 5118.45 | K128: 5624.1 | L128: 3178.55 | M128: 9458.39 | N128: 7593.16 | O128: 2330.05 | P128: 5068.23 | Q128: 5887.13 | R128: 8502.24 | S128: 7087.26 | T128: 3643.31 | U128: 10061.96 | V128: 8515.33 | W128: 3107.88 | X128: 4668.65 | Y128: 4507.59 | Z128: 6513.49 | AA128: 5476.16 | AB128: 2794.82 | AC128: 7667.66 | AD128: 6530.83 | AE128: 2447.16 | AF128: 3721.51 | AG128: 3586.9 | AH128: 5266.72 | AI128: 3039.97 | AJ128: 2347.4 | AK128: 4529.21 | AL128: 1917.65 | AM128: 6194.53 | AN128: 5774.982 | AO128: 5476.576667 | AP128: 4105.501 | AQ128: 5179.026207
B129: VolExpl | C129: OVOLSABADMaCT | D129: Volume SAB Admissible InclusActions aCT | F129: 0 | G129: 2084918.55 | H129: 0 | I129: 1929952.88 | J129: 949551.26 | K129: 1120120.51 | L129: 691798.45 | M129: 1459159.16 | N129: 1394637.41 | O129: 925911.82 | P129: 814013.4 | Q129: 921551.84 | R129: 805227.69 | S129: 701544.63 | T129: 658506.48 | U129: 1104423.89 | V129: 1106825.55 | W129: 762382.73 | X129: 1212757.5 | Y129: 1105710.39 | Z129: 1083153.86 | AA129: 987394.04 | AB129: 1170929.52 | AC129: 1931958.09 | AD129: 1165820.25 | AE129: 657205.78 | AF129: 1179384.61 | AG129: 1037450.56 | AH129: 1027778.65 | AI129: 867132.39 | AJ129: 1372966.84 | AK129: 2084918.55 | AL129: 1437091.24 | AM129: 1123053.358 | AN129: 833649.876 | AO129: 1021342.662 | AP129: 1276170.696 | AQ129: 1094389.9
B130: VolExpl | C130: OVOLgBpADMaEC | D130: Volume gBp Admissible InclusActions aEC | F130: 0 | G130: 638.55 | H130: 0 | I130: 0 | J130: 0 | K130: 29.4 | L130: 0 | M130: 0 | N130: 0 | O130: 638.55 | P130: 0 | Q130: 6.19 | R130: 0 | S130: 0 | T130: 0 | U130: 0 | V130: 0 | W130: 0 | X130: 0 | Y130: 0 | Z130: 0 | AA130: 0 | AB130: 0 | AC130: 0 | AD130: 0 | AE130: 0 | AF130: 0 | AG130: 0 | AH130: 0 | AI130: 0 | AJ130: 0 | AK130: 0 | AL130: 0 | AM130: 5.88 | AN130: 128.948 | AO130: 0 | AP130: 0 | AQ130: 23.2462069
B131: VolExpl | C131: OVOLgBpADMaEC2 | D131: Volume gBp Admissible InclusActions aEC2 | F131: 0 | G131: 0 | H131: 0 | I131: 0 | J131: 0 | K131: 0 | L131: 0 | M131: 0 | N131: 0 | O131: 0 | P131: 0 | Q131: 0 | R131: 0 | S131: 0 | T131: 0 | U131: 0 | V131: 0 | W131: 0 | X131: 0 | Y131: 0 | Z131: 0 | AA131: 0 | AB131: 0 | AC131: 0 | AD131: 0 | AE131: 0 | AF131: 0 | AG131: 0 | AH131: 0 | AI131: 0 | AJ131: 0 | AK131: 0 | AL131: 0 | AM131: 0 | AN131: 0 | AO131: 0 | AP131: 0 | AQ131: 0
B132: VolExpl | C132: OVOLgBpADMaEC3 | D132: Volume gBp Admissible InclusActions aEC3 | F132: 0 | G132: 0 | H132: 0 | I132: 0 | J132: 0 | K132: 0 | L132: 0 | M132: 0 | N132: 0 | O132: 0 | P132: 0 | Q132: 0 | R132: 0 | S132: 0 | T132: 0 | U132: 0 | V132: 0 | W132: 0 | X132: 0 | Y132: 0 | Z132: 0 | AA132: 0 | AB132: 0 | AC132: 0 | AD132: 0 | AE132: 0 | AF132: 0 | AG132: 0 | AH132: 0 | AI132: 0 | AJ132: 0 | AK132: 0 | AL132: 0 | AM132: =AVERAGE(J132:N132) -> 0 | AN132: =AVERAGE(O132:S132) -> 0 | AO132: =AVERAGE(T132:AB132) -> 0 | AP132: =AVERAGE(AC132:AL132) -> 0 | AQ132: =AVERAGE(J132:AL132) -> 0
B133: VolExpl | C133: OVOLgBpADMaCA | D133: Volume gBp Admissible InclusActions aCA | F133: 0 | G133: 0 | H133: 0 | I133: 0 | J133: 0 | K133: 0 | L133: 0 | M133: 0 | N133: 0 | O133: 0 | P133: 0 | Q133: 0 | R133: 0 | S133: 0 | T133: 0 | U133: 0 | V133: 0 | W133: 0 | X133: 0 | Y133: 0 | Z133: 0 | AA133: 0 | AB133: 0 | AC133: 0 | AD133: 0 | AE133: 0 | AF133: 0 | AG133: 0 | AH133: 0 | AI133: 0 | AJ133: 0 | AK133: 0 | AL133: 0 | AM133: 0 | AN133: 0 | AO133: 0 | AP133: 0 | AQ133: 0
